Workbook

Sheet Menu
Z1: 2
Z4: 2
A6: South Plains Extension District - 2
D8: Budgets
D11: Forage Crops
D13: =AlfalfaHay!A3 -> Irrigated Alfalfa
D14: =CornSilage!A3 -> Irrigated Corn Silage
D15: =SorghumSilage!A3 -> Irrigated Sorghum Silage
D17: Field Crops - Irrigated
B18: Comparative Returns
D19: =Blackeyes!A3 -> Irrigated Blackeyed Peas
D20: =+Corn!A3 -> Irrigated Corn
D21: =CottonDrip!A3 -> Irrigated Cotton - Drip
D22: =CottonPivot!A3 -> Irrigated Cotton - Pivot
D23: =GuarIrragated!A3 -> Irrigated Guar
D24: =Peanuts!A3 -> Irrigated Peanuts
D25: =SesameIrrigated!A3 -> Irrigated Sesame
D26: =SorghumIrrigated!A3 -> Irrigated Sorghum
D27: =Soybeans!A3 -> Irrigated Soybeans
D28: =SunflowersConfectionary!A3 -> Irrigated Sunflowers - Confectionary
D29: =SunflowersOilseed!A3 -> Irrigated Sunflowers - Oilseed
D30: =WheatIrrigated!A3 -> Irrigated Wheat
D32: Field Crops - Dryland
D34: =CottonDryland!A3 -> Dryland Cotton - Herbicide Tolerant
D35: =GuarDryland!A3 -> Dryland Guar - Herbicide Tolerant
D36: =SesameDryland!A3 -> Dryland Sesame
D37: =SorghumDryland!A3 -> Dryland Sorghum
D38: =SunflowersDryland!A3 -> Dryland Sunflowers - Oilseed
D39: =WheatDryland!A3 -> Dryland Wheat
D41: Other Budgets
D43: ='Livestock Budget'!A3 -> Livestock Enterprise
D44: ='Crop Budget'!A3 -> Crop Enterprise
A68: Developed by Jackie Smith, Professor and Extension Economist, Texas A&M AgriLife Extension, 806-746-6101.

Sheet AlfalfaHay
A1: Projections for Planning Purposes Only -- Not to be Used without Updating
A2: 2018 Estimated Costs and Returns per Acre
A3: Irrigated Alfalfa
A4: Enter your name for this budget in the cell above.
A5: Enter Your Values in the cells highlighed in MAROON.
E6: Your Acres | R6: Your
C7: Crop Acres | D7: 122 | L7: Your | Q7: Enterprise | R7: Enterprise
E8: Your | H8: Your | I8: Cash | J8: Your | K8: Landlord | L8: Landlord | N8: Your | P8: Your | Q8: Total | R8: Total
A9: REVENUE | D9: Quantity | E9: Quantity | F9: Units | G9: $/Unit | H9: $/Unit | I9: Total | J9: Total | K9: Share | L9: Share | M9: Landlord | N9: Landlord | O9: Tenant | P9: Tenant | Q9: (122 acres) | R9: ="(" & E7 & " acres)" -> ( acres)
B10: Hay - Alfalfa | D10: 6 | F10: Ton | G10: 200 | I10: 1200 | J10: =E10*H10 -> 0 | K10: 0 | M10: 0 | N10: =J10*L10 -> 0 | O10: 1200 | P10: =+J10-N10 -> 0 | Q10: 146400 | R10: =+J10*E$7 -> 0
D11: 0 | G11: 0 | I11: 0 | J11: 0 | K11: 0 | M11: 0 | N11: 0 | O11: 0 | P11: =+J11-N11 -> 0 | Q11: 0 | R11: 0
D12: 0 | G12: 0 | I12: 0 | J12: 0 | K12: 0 | M12: 0 | N12: 0 | O12: 0 | P12: 0 | Q12: 0 | R12: 0
A13: Total Revenue | I13: 1200 | J13: =SUM(J10:J12) -> 0 | M13: 0 | N13: =SUM(N10:N12) -> 0 | O13: 1200 | P13: =SUM(P10:P12) -> 0 | Q13: 146400 | R13: =SUM(R10:R12) -> 0
Q14: Enterprise | R14: Enterprise
A15: VARIABLE COSTS | D15: Quantity | E15: Quantity | F15: Units | G15: $/Unit | H15: $/Unit | I15: Total | J15: Total | K15: Share | L15: Share | M15: Landlord | N15: Landlord | O15: Tenant | P15: Tenant | Q15: Total | R15: Total
A16: Production Costs
B17: Custom
C18: Custom Baling | D18: 6 | F18: Ton | G18: 50 | I18: 300 | J18: =E18*H18 -> 0 | K18: 0 | M18: 0 | N18: =J18*L18 -> 0 | O18: 300 | P18: =+J18-N18 -> 0 | Q18: 36600 | R18: =+J18*E$7 -> 0
C19: Fertilizer Application - Liquid Low | D19: 1 | F19: Acre | G19: 3.5 | I19: 3.5 | J19: 0 | K19: 0 | M19: 0 | N19: 0 | O19: 3.5 | P19: 0 | Q19: 427 | R19: 0
C20: Crop Consultant | D20: 1 | F20: Acre | G20: 6 | I20: 6 | J20: 0 | K20: 0 | M20: 0 | N20: 0 | O20: 6 | P20: 0 | Q20: 732 | R20: 0
B21: Fertilizer
C22: Fertilizer (P) - Liquid | D22: 65 | F22: Pound | G22: 0.5735294118 | I22: 37.27941176 | J22: 0 | K22: 0 | M22: 0 | N22: 0 | O22: 37.27941176 | P22: 0 | Q22: 4548.088235 | R22: 0
C23: Fertilizer (N) - Liquid | D23: 30 | F23: Pound | G23: 0.390625 | I23: 11.71875 | J23: 0 | K23: 0 | M23: 0 | N23: 0 | O23: 11.71875 | P23: 0 | Q23: 1429.6875 | R23: 0
C24: Sulfur | D24: 12 | F24: Pound | G24: 0.12 | I24: 1.44 | J24: 0 | K24: 0 | M24: 0 | N24: 0 | O24: 1.44 | P24: 0 | Q24: 175.68 | R24: 0
B25: Herbicide
C26: Herbicide and Application Alfalfa | D26: 1 | F26: Acre | G26: 22 | I26: 22 | J26: 0 | K26: 0 | M26: 0 | N26: 0 | O26: 22 | P26: 0 | Q26: 2684 | R26: 0
B27: Insecticide
C28: Insecticide Application Alfalfa | D28: 1 | F28: Acre | G28: 25.9 | I28: 25.9 | J28: 0 | K28: 0 | M28: 0 | N28: 0 | O28: 25.9 | P28: 0 | Q28: 3159.8 | R28: 0
B29: Miscellaneous
C30: Crop Insurance Alfalfa | D30: 1 | F30: Acre | G30: 2.5 | I30: 2.5 | J30: 0 | K30: 0 | M30: 0 | N30: 0 | O30: 2.5 | P30: 0 | Q30: 305 | R30: 0
D31: 0 | G31: 0 | I31: 0 | J31: 0 | K31: 0 | M31: 0 | N31: 0 | O31: 0 | P31: 0 | Q31: 0 | R31: 0
D32: 0 | G32: 0 | I32: 0 | J32: 0 | K32: 0 | M32: 0 | N32: 0 | O32: 0 | P32: 0 | Q32: 0 | R32: 0
D33: 0 | G33: 0 | I33: 0 | J33: =E33*H33 -> 0 | K33: 0 | M33: 0 | N33: =J33*L33 -> 0 | O33: 0 | P33: =+J33-N33 -> 0 | Q33: 0 | R33: =+J33*E$7 -> 0
B34: Irrigation
C35: Energy Cost | D35: 24 | F35: AcreInch | G35: 10 | I35: 240 | J35: =E35*H35 -> 0 | K35: 0 | M35: 0 | N35: =J35*L35 -> 0 | O35: 240 | P35: =+J35-N35 -> 0 | Q35: 29280 | R35: =+J35*E$7 -> 0
C36: Irrigation Labor | D36: 1.25 | F36: Hour | G36: 12 | I36: 15 | J36: 0 | K36: 0 | M36: 0 | N36: 0 | O36: 15 | P36: 0 | Q36: 1830 | R36: 0
B37: Machinery Labor
C38: Tractors/Self-Propelled | D38: 1 | F38: Hour | G38: 12 | I38: 12 | J38: =E38*H38 -> 0 | K38: 0 | M38: 0 | N38: =J38*L38 -> 0 | O38: 12 | P38: =+J38-N38 -> 0 | Q38: 1464 | R38: =+J38*E$7 -> 0
C39: Other Labor | D39: 0 | F39: Hour | G39: 12 | I39: 0 | J39: =E39*H39 -> 0 | K39: 0 | M39: 0 | N39: =J39*L39 -> 0 | O39: 0 | P39: =+J39-N39 -> 0 | Q39: 0 | R39: =+J39*E$7 -> 0
B41: Diesel Fuel
C42: Pickup/General Use Equipment | D42: 1 | F42: Acre | G42: 0 | I42: 0 | J42: =E42*H42 -> 0 | K42: 0 | M42: 0 | N42: =J42*L42 -> 0 | O42: 0 | P42: =+J42-N42 -> 0 | Q42: 0 | R42: =+J42*E$7 -> 0
C43: Tractors/Self-Propelled | D43: 2.01 | F43: Gallon | G43: 2.3 | I43: 4.623 | J43: =E43*H43 -> 0 | K43: 0 | M43: 0 | N43: =J43*L43 -> 0 | O43: 4.623 | P43: =+J43-N43 -> 0 | Q43: 564.006 | R43: =+J43*E$7 -> 0
B45: Gasoline
C46: Pickup/General Use Equipment | D46: 1 | F46: Acre | G46: 6 | I46: 6 | J46: =E46*H46 -> 0 | K46: 0 | M46: 0 | N46: =J46*L46 -> 0 | O46: 6 | P46: =+J46-N46 -> 0 | Q46: 732 | R46: =+J46*E$7 -> 0
C47: Tractors/Self-Propelled | D47: 0 | F47: Gallon | G47: 3 | I47: 0 | J47: =E47*H47 -> 0 | K47: 0 | M47: 0 | N47: =J47*L47 -> 0 | O47: 0 | P47: =+J47-N47 -> 0 | Q47: 0 | R47: =+J47*E$7 -> 0
B49: Repairs & Maintenance
C50: Pickup/General Use Equipment | D50: 1 | F50: Acre | G50: 0.5 | I50: 0.5 | J50: =E50*H50 -> 0 | K50: 0 | M50: 0 | N50: =J50*L50 -> 0 | O50: 0.5 | P50: =+J50-N50 -> 0 | Q50: 61 | R50: =+J50*E$7 -> 0
C51: Irrigation Equipment | D51: 1 | F51: Acre | G51: 42 | I51: 42 | J51: 0 | K51: 0 | M51: 0 | N51: 0 | O51: 42 | P51: 0 | Q51: 5124 | R51: 0
C52: Tractors/Self-Propelled | D52: 1 | F52: Acre | G52: 6 | I52: 6 | J52: 0 | K52: 0 | M52: 0 | N52: 0 | O52: 6 | P52: 0 | Q52: 732 | R52: 0
C53: Implements | D53: 1 | F53: Acre | G53: 3 | I53: 3 | J53: 0 | K53: 0 | M53: 0 | N53: 0 | O53: 3 | P53: 0 | Q53: 366 | R53: 0
I54: 0 | J54: 0 | K54: 0 | M54: 0 | N54: 0 | O54: 0 | P54: 0 | Q54: 0 | R54: 0
I55: 0 | J55: 0 | K55: 0 | M55: 0 | N55: 0 | O55: 0 | P55: 0 | Q55: 0 | R55: 0
B56: Interest on Credit Line | G56: 0.06 | I56: 12.78266464 | J56: =+SUM(J17:J55)/2*H56 -> 0 | M56: 0 | N56: =+SUM(N17:N55)/2*L56 -> 0 | O56: 12.78266464 | P56: =+SUM(P17:P55)/2*L56 -> 0 | Q56: 1559.485086 | R56: =+J56*E$7 -> 0
A57: Total Variable Costs | I57: 752.2438264 | J57: =SUM(J18:J56) -> 0 | M57: 0 | N57: =SUM(N18:N56) -> 0 | O57: 752.2438264 | P57: =SUM(P18:P56) -> 0 | Q57: 91773.74682 | R57: =SUM(R18:R56) -> 0
A58: Planned Returns Above Variable Costs: | I58: 447.7561736 | J58: =+J13-J57 -> 0 | M58: 0 | N58: =+N13-N57 -> 0 | O58: 447.7561736 | P58: =+P13-P57 -> 0 | Q58: 54626.25318 | R58: =+R13-R57 -> 0
B59: Breakeven Price to Cover Variable Costs | G59: 125.3739711 | H59: =IF(E10=0,"n/a",(YVarExp-(YTotExp+YTotRet-J10))/E10) -> n/a | I59: Ton
Q60: Enterprise | R60: Enterprise
A61: FIXED COSTS | D61: Quantity | E61: Quantity | F61: Units | G61: $/Unit | H61: $/Unit | I61: Total | J61: Total | K61: Share | L61: Share | M61: Landlord | N61: Landlord | O61: Tenant | P61: Tenant | Q61: Total | R61: Total
B62: Equipment Fixed Costs
C63: Pickup/General Use Equipment | D63: 1 | F63: Acre | G63: 1.25 | I63: 1.25 | J63: =E63*H63 -> 0 | K63: 0 | M63: 0 | N63: =J63*L63 -> 0 | O63: 1.25 | P63: =+J63-N63 -> 0 | Q63: 152.5 | R63: =+J63*E$7 -> 0
C64: Irrigation Equipment | D64: 1 | F64: Acre | G64: 55 | I64: 55 | J64: 0 | K64: 0 | M64: 0 | N64: 0 | O64: 55 | P64: 0 | Q64: 6710 | R64: 0
C65: Tractors/Self-Propelled | D65: 1 | F65: Acre | G65: 12 | I65: 12 | J65: 0 | K65: 0 | M65: 0 | N65: 0 | O65: 12 | P65: 0 | Q65: 1464 | R65: 0
C66: Implements | D66: 1 | F66: Acre | G66: 10 | I66: 10 | J66: 0 | K66: 0 | M66: 0 | N66: 0 | O66: 10 | P66: 0 | Q66: 1220 | R66: 0
B67: Salaried Labor | D67: 1 | F67: Acre | G67: 0 | I67: 0 | J67: =E67*H67 -> 0 | K67: 0 | M67: 0 | N67: 0 | O67: 0 | P67: 0 | Q67: 0 | R67: 0
B68: Management Fee, Owner/Operator Labor | D68: 1 | F68: Acre | G68: 25 | I68: 25 | J68: 0 | K68: 0 | M68: 0 | N68: 0 | O68: 25 | P68: 0 | Q68: 3050 | R68: 0
B69: Allocated Establishment Cost | D69: 1 | F69: Acre | G69: 100 | I69: 100 | J69: 0 | K69: 0 | M69: 0 | N69: 0 | O69: 100 | P69: 0 | Q69: 12200 | R69: 0
B70: Cash Rent - Alfalfa | D70: 1 | F70: Acre | G70: 130 | I70: 130 | J70: 0 | K70: 0 | M70: 0 | N70: 0 | O70: 130 | P70: 0 | Q70: 15860 | R70: 0
B71: Property Taxes | D71: 1 | F71: Acre | G71: 0 | I71: 0 | J71: 0 | K71: 0 | M71: 0 | N71: 0 | O71: 0 | P71: 0 | Q71: 0 | R71: 0
B72: Whole Farm Insurance | D72: 1 | F72: Acre | G72: 2 | I72: 2 | J72: 0 | K72: 0 | M72: 0 | N72: 0 | O72: 2 | P72: 0 | Q72: 244 | R72: 0
D73: 1 | G73: 0 | I73: 0 | J73: 0 | K73: 0 | M73: 0 | N73: 0 | O73: 0 | P73: 0 | Q73: 0 | R73: 0
D74: 1 | G74: 0 | I74: 0 | J74: =E74*H74 -> 0 | K74: 0 | M74: 0 | N74: 0 | O74: 0 | P74: 0 | Q74: 0 | R74: 0
A75: Total Fixed Costs | I75: 335.25 | J75: =+SUM(J62:J74) -> 0 | M75: 0 | N75: =+SUM(N62:N74) -> 0 | O75: 335.25 | P75: =+SUM(P62:P74) -> 0 | Q75: 40900.5 | R75: =+SUM(R62:R74) -> 0
A76: Total Specified Costs | I76: 1087.493826 | J76: =+J57+J75 -> 0 | M76: 0 | N76: =+N57+N75 -> 0 | O76: 1087.493826 | P76: =+P57+P75 -> 0 | Q76: 132674.2468 | R76: =+R57+R75 -> 0
A78: Returns Above Specified Costs | I78: 112.5061736 | J78: =+J13-J76 -> 0 | M78: 0 | N78: =+N13-N76 -> 0 | O78: 112.5061736 | P78: =+P13-P76 -> 0 | Q78: 13725.75318 | R78: =+R13-R76 -> 0
A80: Breakeven Price to Cover Total Costs | G80: 181.2489711 | H80: =IF(E10=0,"n/a",(YTotExp-(YTotExp+YTotRet-J10))/E10) -> n/a | I80: Ton
D82: Example Breakeven Prices
B83: Example | C83: Example | D83: To Cover | G83: To Cover
B84: Yield | C84: Yield | D84: Variable | G84: Total
B85: Percent | C85: Ton | D85: Costs | G85: Costs
B86: 0.75 | C86: 4.5 | D86: 167.1652948 | G86: 241.6652948
B87: 0.9 | C87: 5.4 | D87: 139.3044123 | G87: 201.3877456
B88: 1 | C88: 6 | D88: 125.3739711 | G88: 181.2489711
B89: 1.1 | C89: 6.6 | D89: 113.9763373 | G89: 164.7717919
B90: 1.25 | C90: 7.5 | D90: 100.2991769 | G90: 144.9991769
D92: Your Breakeven Prices
B93: Your | C93: Your | E93: To Cover | H93: To Cover
B94: Yield | C94: Yield | E94: Variable | H94: Total
B95: Percent | C95: Ton | E95: Costs | H95: Costs
B96: 0.75 | C96: =E10*YPER1 -> 0 | E96: =IF($E$10=0,0,(YVarExp-(YTotExp+YTotRet-J10))/($E$10*YPER1)) -> 0 | H96: =IF($E$10=0,0,(YTotExp-(YTotExp+YTotRet-J10))/($E$10*YPER1)) -> 0
B97: 0.9 | C97: =E10*YPER2 -> 0 | E97: =IF($E$10=0,0,(YVarExp-(YTotExp+YTotRet-J10))/($E$10*YPER2)) -> 0 | H97: =IF($E$10=0,0,(YTotExp-(YTotExp+YTotRet-J10))/($E$10*YPER2)) -> 0
B98: 1 | C98: =+E10 -> 0 | E98: =IF($E$10=0,0,(YVarExp-(YTotExp+YTotRet-J10))/($E$10*YPER3)) -> 0 | H98: =IF($E$10=0,0,(YTotExp-(YTotExp+YTotRet-J10))/($E$10*YPER3)) -> 0
B99: 1.1 | C99: =E10*YPER4 -> 0 | E99: =IF($E$10=0,0,(YVarExp-(YTotExp+YTotRet-J10))/($E$10*YPER4)) -> 0 | H99: =IF($E$10=0,0,(YTotExp-(YTotExp+YTotRet-J10))/($E$10*YPER4)) -> 0
B100: 1.25 | C100: =E10*YPER5 -> 0 | E100: =IF($E$10=0,0,(YVarExp-(YTotExp+YTotRet-J10))/($E$10*YPER5)) -> 0 | H100: =IF($E$10=0,0,(YTotExp-(YTotExp+YTotRet-J10))/($E$10*YPER5)) -> 0
A102: Developed by Jackie Smith, Professor and Extension Economist, Texas A&M AgriLife Extension, 806-746-6101.
A104: Information presented is prepared solely as a general guide and not intended to recognize or predict the costs and returns from any one operation. Brand names are mentioned only as examples and imply no endorsement.

Sheet Blackeyes
A1: Projections for Planning Purposes Only -- Not to be Used without Updating
A2: 2018 Estimated Costs and Returns per Acre
A3: Irrigated Blackeyed Peas
A4: Enter your name for this budget in the cell above.
A5: Enter Your Values in the cells highlighed in MAROON.
E6: Your Acres | R6: Your
C7: Crop Acres | D7: 122 | L7: Your | Q7: Enterprise | R7: Enterprise
E8: Your | H8: Your | I8: Cash | J8: Your | K8: Landlord | L8: Landlord | N8: Your | P8: Your | Q8: Total | R8: Total
A9: REVENUE | D9: Quantity | E9: Quantity | F9: Units | G9: $/Unit | H9: $/Unit | I9: Total | J9: Total | K9: Share | L9: Share | M9: Landlord | N9: Landlord | O9: Tenant | P9: Tenant | Q9: (122 acres) | R9: ="(" & E7 & " acres)" -> ( acres)
B10: Blackeyed Peas | D10: 1850 | F10: Pound | G10: 0.34 | I10: 629 | J10: =E10*H10 -> 0 | K10: 0 | M10: 0 | N10: =J10*L10 -> 0 | O10: 629 | P10: =+J10-N10 -> 0 | Q10: 76738 | R10: =+J10*E$7 -> 0
D11: 0 | G11: 0 | I11: 0 | J11: 0 | K11: 0 | M11: 0 | N11: 0 | O11: 0 | P11: =+J11-N11 -> 0 | Q11: 0 | R11: 0
D12: 0 | G12: 0 | I12: 0 | J12: 0 | K12: 0 | M12: 0 | N12: 0 | O12: 0 | P12: 0 | Q12: 0 | R12: 0
A13: Total Revenue | I13: 629 | J13: =SUM(J10:J12) -> 0 | M13: 0 | N13: =SUM(N10:N12) -> 0 | O13: 629 | P13: =SUM(P10:P12) -> 0 | Q13: 76738 | R13: =SUM(R10:R12) -> 0
Q14: Enterprise | R14: Enterprise
A15: VARIABLE COSTS | D15: Quantity | E15: Quantity | F15: Units | G15: $/Unit | H15: $/Unit | I15: Total | J15: Total | K15: Share | L15: Share | M15: Landlord | N15: Landlord | O15: Tenant | P15: Tenant | Q15: Total | R15: Total
A16: Production Costs
B17: Custom
C18: Custom Harvest - Blackeyed Peas | D18: 1 | F18: Acre | G18: 30 | I18: 30 | J18: =E18*H18 -> 0 | K18: 0 | M18: 0 | N18: =J18*L18 -> 0 | O18: 30 | P18: =+J18-N18 -> 0 | Q18: 3660 | R18: =+J18*E$7 -> 0
C19: Custom Haul - Blackeyed Peas | D19: 18.5 | F19: CWT | G19: 0.2 | I19: 3.7 | J19: 0 | K19: 0 | M19: 0 | N19: 0 | O19: 3.7 | P19: 0 | Q19: 451.4 | R19: 0
B20: Fertilizer
C21: Fertilizer (N) - Liquid | D21: 40 | F21: Pound | G21: 0.390625 | I21: 15.625 | J21: 0 | K21: 0 | M21: 0 | N21: 0 | O21: 15.625 | P21: 0 | Q21: 1906.25 | R21: 0
B22: Herbicide
C23: Herbicide Blackeyed Peas | D23: 1 | F23: Acre | G23: 10 | I23: 10 | J23: 0 | K23: 0 | M23: 0 | N23: 0 | O23: 10 | P23: 0 | Q23: 1220 | R23: 0
B24: Miscellaneous
C25: Crop Insurance Blackeyed Peas | D25: 1 | F25: Acre | G25: 24 | I25: 24 | J25: 0 | K25: 0 | M25: 0 | N25: 0 | O25: 24 | P25: 0 | Q25: 2928 | R25: 0
B26: Seed
C27: Seed - Blackeyed Peas | D27: 50 | F27: Pound | G27: 0.45 | I27: 22.5 | J27: 0 | K27: 0 | M27: 0 | N27: 0 | O27: 22.5 | P27: 0 | Q27: 2745 | R27: 0
B28: Other Labor
C29: Hoeing | D29: 1 | F29: Acre | G29: 15 | I29: 15 | J29: 0 | K29: 0 | M29: 0 | N29: 0 | O29: 15 | P29: 0 | Q29: 1830 | R29: 0
B30: Fungicides
C31: Fungicide - Blackeyed Peas | D31: 1 | F31: Acre | G31: 12 | I31: 12 | J31: 0 | K31: 0 | M31: 0 | N31: 0 | O31: 12 | P31: 0 | Q31: 1464 | R31: 0
D32: 0 | G32: 0 | I32: 0 | J32: 0 | K32: 0 | M32: 0 | N32: 0 | O32: 0 | P32: 0 | Q32: 0 | R32: 0
D33: 0 | G33: 0 | I33: 0 | J33: 0 | K33: 0 | M33: 0 | N33: 0 | O33: 0 | P33: 0 | Q33: 0 | R33: 0
D34: 0 | G34: 0 | I34: 0 | J34: =E34*H34 -> 0 | K34: 0 | M34: 0 | N34: =J34*L34 -> 0 | O34: 0 | P34: =+J34-N34 -> 0 | Q34: 0 | R34: =+J34*E$7 -> 0
B35: Irrigation
C36: Energy Cost | D36: 8 | F36: AcreInch | G36: 10 | I36: 80 | J36: =E36*H36 -> 0 | K36: 0 | M36: 0 | N36: =J36*L36 -> 0 | O36: 80 | P36: =+J36-N36 -> 0 | Q36: 9760 | R36: =+J36*E$7 -> 0
C37: Irrigation Labor | D37: 0.75 | F37: Hour | G37: 12 | I37: 9 | J37: 0 | K37: 0 | M37: 0 | N37: 0 | O37: 9 | P37: 0 | Q37: 1098 | R37: 0
B38: Machinery Labor
C39: Tractors/Self-Propelled | D39: 0.46 | F39: Hour | G39: 12 | I39: 5.52 | J39: =E39*H39 -> 0 | K39: 0 | M39: 0 | N39: =J39*L39 -> 0 | O39: 5.52 | P39: =+J39-N39 -> 0 | Q39: 673.44 | R39: =+J39*E$7 -> 0
C40: Other Labor | D40: 0.54 | F40: Hour | G40: 12 | I40: 6.48 | J40: =E40*H40 -> 0 | K40: 0 | M40: 0 | N40: =J40*L40 -> 0 | O40: 6.48 | P40: =+J40-N40 -> 0 | Q40: 790.56 | R40: =+J40*E$7 -> 0
B42: Diesel Fuel
C43: Pickup/General Use Equipment | D43: 1 | F43: Acre | G43: 0 | I43: 0 | J43: =E43*H43 -> 0 | K43: 0 | M43: 0 | N43: =J43*L43 -> 0 | O43: 0 | P43: =+J43-N43 -> 0 | Q43: 0 | R43: =+J43*E$7 -> 0
C44: Tractors/Self-Propelled | D44: 2.4 | F44: Gallon | G44: 2.3 | I44: 5.52 | J44: =E44*H44 -> 0 | K44: 0 | M44: 0 | N44: =J44*L44 -> 0 | O44: 5.52 | P44: =+J44-N44 -> 0 | Q44: 673.44 | R44: =+J44*E$7 -> 0
B46: Gasoline
C47: Pickup/General Use Equipment | D47: 1 | F47: Acre | G47: 6 | I47: 6 | J47: =E47*H47 -> 0 | K47: 0 | M47: 0 | N47: =J47*L47 -> 0 | O47: 6 | P47: =+J47-N47 -> 0 | Q47: 732 | R47: =+J47*E$7 -> 0
C48: Tractors/Self-Propelled | D48: 0 | F48: Gallon | G48: 3 | I48: 0 | J48: =E48*H48 -> 0 | K48: 0 | M48: 0 | N48: =J48*L48 -> 0 | O48: 0 | P48: =+J48-N48 -> 0 | Q48: 0 | R48: =+J48*E$7 -> 0
B50: Repairs & Maintenance
C51: Pickup/General Use Equipment | D51: 1 | F51: Acre | G51: 0.5 | I51: 0.5 | J51: =E51*H51 -> 0 | K51: 0 | M51: 0 | N51: =J51*L51 -> 0 | O51: 0.5 | P51: =+J51-N51 -> 0 | Q51: 61 | R51: =+J51*E$7 -> 0
C52: Irrigation Equipment | D52: 1 | F52: Acre | G52: 14 | I52: 14 | J52: 0 | K52: 0 | M52: 0 | N52: 0 | O52: 14 | P52: 0 | Q52: 1708 | R52: 0
C53: Tractors/Self-Propelled | D53: 1 | F53: Acre | G53: 6 | I53: 6 | J53: 0 | K53: 0 | M53: 0 | N53: 0 | O53: 6 | P53: 0 | Q53: 732 | R53: 0
C54: Implements | D54: 1 | F54: Acre | G54: 3 | I54: 3 | J54: 0 | K54: 0 | M54: 0 | N54: 0 | O54: 3 | P54: 0 | Q54: 366 | R54: 0
I55: 0 | J55: 0 | K55: 0 | M55: 0 | N55: 0 | O55: 0 | P55: 0 | Q55: 0 | R55: 0
I56: 0 | J56: 0 | K56: 0 | M56: 0 | N56: 0 | O56: 0 | P56: 0 | Q56: 0 | R56: 0
B57: Interest on Credit Line | G57: 0.06 | I57: 3.442984497 | J57: =+SUM(J17:J56)/2*H57 -> 0 | M57: 0 | N57: =+SUM(N17:N56)/2*L57 -> 0 | O57: 3.442984497 | P57: =+SUM(P17:P56)/2*L57 -> 0 | Q57: 420.0441086 | R57: =+J57*E$7 -> 0
A58: Total Variable Costs | I58: 272.2879845 | J58: =SUM(J18:J57) -> 0 | M58: 0 | N58: =SUM(N18:N57) -> 0 | O58: 272.2879845 | P58: =SUM(P18:P57) -> 0 | Q58: 33219.13411 | R58: =SUM(R18:R57) -> 0
A59: Planned Returns Above Variable Costs: | I59: 356.7120155 | J59: =+J13-J58 -> 0 | M59: 0 | N59: =+N13-N58 -> 0 | O59: 356.7120155 | P59: =+P13-P58 -> 0 | Q59: 43518.86589 | R59: =+R13-R58 -> 0
B60: Breakeven Price to Cover Variable Costs | G60: 0.1471826943 | H60: =IF(E10=0,"n/a",(YVarExp-(YTotExp+YTotRet-J10))/E10) -> n/a | I60: Pound
Q61: Enterprise | R61: Enterprise
A62: FIXED COSTS | D62: Quantity | E62: Quantity | F62: Units | G62: $/Unit | H62: $/Unit | I62: Total | J62: Total | K62: Share | L62: Share | M62: Landlord | N62: Landlord | O62: Tenant | P62: Tenant | Q62: Total | R62: Total
B63: Equipment Fixed Costs
C64: Pickup/General Use Equipment | D64: 1 | F64: Acre | G64: 1.25 | I64: 1.25 | J64: =E64*H64 -> 0 | K64: 0 | M64: 0 | N64: =J64*L64 -> 0 | O64: 1.25 | P64: =+J64-N64 -> 0 | Q64: 152.5 | R64: =+J64*E$7 -> 0
C65: Irrigation Equipment | D65: 1 | F65: Acre | G65: 55 | I65: 55 | J65: 0 | K65: 0 | M65: 0 | N65: 0 | O65: 55 | P65: 0 | Q65: 6710 | R65: 0
C66: Tractors/Self-Propelled | D66: 1 | F66: Acre | G66: 12 | I66: 12 | J66: 0 | K66: 0 | M66: 0 | N66: 0 | O66: 12 | P66: 0 | Q66: 1464 | R66: 0
C67: Implements | D67: 1 | F67: Acre | G67: 10 | I67: 10 | J67: 0 | K67: 0 | M67: 0 | N67: 0 | O67: 10 | P67: 0 | Q67: 1220 | R67: 0
B68: Salaried Labor | D68: 1 | F68: Acre | G68: 0 | I68: 0 | J68: =E68*H68 -> 0 | K68: 0 | M68: 0 | N68: 0 | O68: 0 | P68: 0 | Q68: 0 | R68: 0
B69: Management Fee, Owner/Operator Labor | D69: 1 | F69: Acre | G69: 25 | I69: 25 | J69: 0 | K69: 0 | M69: 0 | N69: 0 | O69: 25 | P69: 0 | Q69: 3050 | R69: 0
B70: Allocated Establishment Cost | D70: 1 | F70: Acre | G70: 0 | I70: 0 | J70: 0 | K70: 0 | M70: 0 | N70: 0 | O70: 0 | P70: 0 | Q70: 0 | R70: 0
B71: Cash Rent - Blackeyed Peas | D71: 1 | F71: Acre | G71: 100 | I71: 100 | J71: 0 | K71: 0 | M71: 0 | N71: 0 | O71: 100 | P71: 0 | Q71: 12200 | R71: 0
B72: Property Taxes | D72: 1 | F72: Acre | G72: 0 | I72: 0 | J72: 0 | K72: 0 | M72: 0 | N72: 0 | O72: 0 | P72: 0 | Q72: 0 | R72: 0
B73: Whole Farm Insurance | D73: 1 | F73: Acre | G73: 2 | I73: 2 | J73: 0 | K73: 0 | M73: 0 | N73: 0 | O73: 2 | P73: 0 | Q73: 244 | R73: 0
D74: 1 | G74: 0 | I74: 0 | J74: 0 | K74: 0 | M74: 0 | N74: 0 | O74: 0 | P74: 0 | Q74: 0 | R74: 0
D75: 1 | G75: 0 | I75: 0 | J75: =E75*H75 -> 0 | K75: 0 | M75: 0 | N75: 0 | O75: 0 | P75: 0 | Q75: 0 | R75: 0
A76: Total Fixed Costs | I76: 205.25 | J76: =+SUM(J63:J75) -> 0 | M76: 0 | N76: =+SUM(N63:N75) -> 0 | O76: 205.25 | P76: =+SUM(P63:P75) -> 0 | Q76: 25040.5 | R76: =+SUM(R63:R75) -> 0
A77: Total Specified Costs | I77: 477.5379845 | J77: =+J58+J76 -> 0 | M77: 0 | N77: =+N58+N76 -> 0 | O77: 477.5379845 | P77: =+P58+P76 -> 0 | Q77: 58259.63411 | R77: =+R58+R76 -> 0
A79: Returns Above Specified Costs | I79: 151.4620155 | J79: =+J13-J77 -> 0 | M79: 0 | N79: =+N13-N77 -> 0 | O79: 151.4620155 | P79: =+P13-P77 -> 0 | Q79: 18478.36589 | R79: =+R13-R77 -> 0
A81: Breakeven Price to Cover Total Costs | G81: 0.2581286403 | H81: =IF(E10=0,"n/a",(YTotExp-(YTotExp+YTotRet-J10))/E10) -> n/a | I81: Pound
D83: Example Breakeven Prices
B84: Example | C84: Example | D84: To Cover | G84: To Cover
B85: Yield | C85: Yield | D85: Variable | G85: Total
B86: Percent | C86: Pound | D86: Costs | G86: Costs
B87: 0.75 | C87: 1387.5 | D87: 0.1962435924 | G87: 0.3441715204
B88: 0.9 | C88: 1665 | D88: 0.163536327 | G88: 0.2868096003
B89: 1 | C89: 1850 | D89: 0.1471826943 | G89: 0.2581286403
B90: 1.1 | C90: 2035 | D90: 0.1338024494 | G90: 0.2346624002
B91: 1.25 | C91: 2312.5 | D91: 0.1177461555 | G91: 0.2065029122
D93: Your Breakeven Prices
B94: Your | C94: Your | E94: To Cover | H94: To Cover
B95: Yield | C95: Yield | E95: Variable | H95: Total
B96: Percent | C96: Pound | E96: Costs | H96: Costs
B97: 0.75 | C97: =E10*YPER1 -> 0 | E97: =IF($E$10=0,0,(YVarExp-(YTotExp+YTotRet-J10))/($E$10*YPER1)) -> 0 | H97: =IF($E$10=0,0,(YTotExp-(YTotExp+YTotRet-J10))/($E$10*YPER1)) -> 0
B98: 0.9 | C98: =E10*YPER2 -> 0 | E98: =IF($E$10=0,0,(YVarExp-(YTotExp+YTotRet-J10))/($E$10*YPER2)) -> 0 | H98: =IF($E$10=0,0,(YTotExp-(YTotExp+YTotRet-J10))/($E$10*YPER2)) -> 0
B99: 1 | C99: =+E10 -> 0 | E99: =IF($E$10=0,0,(YVarExp-(YTotExp+YTotRet-J10))/($E$10*YPER3)) -> 0 | H99: =IF($E$10=0,0,(YTotExp-(YTotExp+YTotRet-J10))/($E$10*YPER3)) -> 0
B100: 1.1 | C100: =E10*YPER4 -> 0 | E100: =IF($E$10=0,0,(YVarExp-(YTotExp+YTotRet-J10))/($E$10*YPER4)) -> 0 | H100: =IF($E$10=0,0,(YTotExp-(YTotExp+YTotRet-J10))/($E$10*YPER4)) -> 0
B101: 1.25 | C101: =E10*YPER5 -> 0 | E101: =IF($E$10=0,0,(YVarExp-(YTotExp+YTotRet-J10))/($E$10*YPER5)) -> 0 | H101: =IF($E$10=0,0,(YTotExp-(YTotExp+YTotRet-J10))/($E$10*YPER5)) -> 0
A103: Developed by Jackie Smith, Professor and Extension Economist, Texas A&M AgriLife Extension, 806-746-6101.
A105: Information presented is prepared solely as a general guide and not intended to recognize or predict the costs and returns from any one operation. Brand names are mentioned only as examples and imply no endorsement.

Sheet Corn
A1: Projections for Planning Purposes Only -- Not to be Used without Updating
A2: 2018 Estimated Costs and Returns per Acre
A3: Irrigated Corn
A4: Enter your name for this budget in the cell above.
A5: Enter Your Values in the cells highlighed in MAROON.
E6: Your Acres | R6: Your
C7: Crop Acres | D7: 122 | L7: Your | Q7: Enterprise | R7: Enterprise
E8: Your | H8: Your | I8: Cash | J8: Your | K8: Landlord | L8: Landlord | N8: Your | P8: Your | Q8: Total | R8: Total
A9: REVENUE | D9: Quantity | E9: Quantity | F9: Units | G9: $/Unit | H9: $/Unit | I9: Total | J9: Total | K9: Share | L9: Share | M9: Landlord | N9: Landlord | O9: Tenant | P9: Tenant | Q9: (122 acres) | R9: ="(" & E7 & " acres)" -> ( acres)
B10: Corn | D10: 210 | F10: Bushel | G10: 4 | I10: 840 | J10: =E10*H10 -> 0 | K10: 0 | M10: 0 | N10: =J10*L10 -> 0 | O10: 840 | P10: =+J10-N10 -> 0 | Q10: 102480 | R10: =+J10*E$7 -> 0
D11: 0 | G11: 0 | I11: 0 | J11: 0 | K11: 0 | M11: 0 | N11: 0 | O11: 0 | P11: =+J11-N11 -> 0 | Q11: 0 | R11: 0
D12: 0 | G12: 0 | I12: 0 | J12: 0 | K12: 0 | M12: 0 | N12: 0 | O12: 0 | P12: 0 | Q12: 0 | R12: 0
A13: Total Revenue | I13: 840 | J13: =SUM(J10:J12) -> 0 | M13: 0 | N13: =SUM(N10:N12) -> 0 | O13: 840 | P13: =SUM(P10:P12) -> 0 | Q13: 102480 | R13: =SUM(R10:R12) -> 0
Q14: Enterprise | R14: Enterprise
A15: VARIABLE COSTS | D15: Quantity | E15: Quantity | F15: Units | G15: $/Unit | H15: $/Unit | I15: Total | J15: Total | K15: Share | L15: Share | M15: Landlord | N15: Landlord | O15: Tenant | P15: Tenant | Q15: Total | R15: Total
A16: Production Costs
B17: Custom
C18: Crop Consultant | D18: 1 | F18: Acre | G18: 6 | I18: 6 | J18: =E18*H18 -> 0 | K18: 0 | M18: 0 | N18: =J18*L18 -> 0 | O18: 6 | P18: =+J18-N18 -> 0 | Q18: 732 | R18: =+J18*E$7 -> 0
C19: Harvest and Haul - Corn | D19: 210 | F19: Bushel | G19: 0.35 | I19: 73.5 | J19: 0 | K19: 0 | M19: 0 | N19: 0 | O19: 73.5 | P19: 0 | Q19: 8967 | R19: 0
C20: Fertilizer Application - Liquid High | D20: 1 | F20: Acre | G20: 4.75 | I20: 4.75 | J20: 0 | K20: 0 | M20: 0 | N20: 0 | O20: 4.75 | P20: 0 | Q20: 579.5 | R20: 0
C21: Fertilizer Application - Dry | D21: 1 | F21: Acre | G21: 3.5 | I21: 3.5 | J21: 0 | K21: 0 | M21: 0 | N21: 0 | O21: 3.5 | P21: 0 | Q21: 427 | R21: 0
C22: Fertilizer Application - NH3 | D22: 1 | F22: Acre | G22: 3.5 | I22: 3.5 | J22: 0 | K22: 0 | M22: 0 | N22: 0 | O22: 3.5 | P22: 0 | Q22: 427 | R22: 0
B23: Fertilizer
C24: Fertilizer (N) - Liquid | D24: 120 | F24: Pound | G24: 0.390625 | I24: 46.875 | J24: 0 | K24: 0 | M24: 0 | N24: 0 | O24: 46.875 | P24: 0 | Q24: 5718.75 | R24: 0
C25: Fertilizer (P) - Dry | D25: 108 | F25: Pound | G25: 0.5096153846 | I25: 55.03846154 | J25: 0 | K25: 0 | M25: 0 | N25: 0 | O25: 55.03846154 | P25: 0 | Q25: 6714.692308 | R25: 0
C26: Fertilizer (N) - NH3 | D26: 150 | F26: Pound | G26: 0.3048780488 | I26: 45.73170732 | J26: 0 | K26: 0 | M26: 0 | N26: 0 | O26: 45.73170732 | P26: 0 | Q26: 5579.268293 | R26: 0
B27: Herbicide
C28: Herbicide and Apply Corn | D28: 1 | F28: Acre | G28: 45 | I28: 45 | J28: 0 | K28: 0 | M28: 0 | N28: 0 | O28: 45 | P28: 0 | Q28: 5490 | R28: 0
B29: Insecticide
C30: Insecticide and Apply Corn | D30: 1 | F30: Acre | G30: 25 | I30: 25 | J30: 0 | K30: 0 | M30: 0 | N30: 0 | O30: 25 | P30: 0 | Q30: 3050 | R30: 0
B31: Miscellaneous
C32: Crop Insurance Corn Irrigated | D32: 1 | F32: Acre | G32: 15.5 | I32: 15.5 | J32: 0 | K32: 0 | M32: 0 | N32: 0 | O32: 15.5 | P32: 0 | Q32: 1891 | R32: 0
B33: Seed
C34: Seed - Corn | D34: 0.4375 | F34: Bag | G34: 272 | I34: 119 | J34: 0 | K34: 0 | M34: 0 | N34: 0 | O34: 119 | P34: 0 | Q34: 14518 | R34: 0
D35: 0 | G35: 0 | I35: 0 | J35: 0 | K35: 0 | M35: 0 | N35: 0 | O35: 0 | P35: 0 | Q35: 0 | R35: 0
D36: 0 | G36: 0 | I36: 0 | J36: 0 | K36: 0 | M36: 0 | N36: 0 | O36: 0 | P36: 0 | Q36: 0 | R36: 0
D37: 0 | G37: 0 | I37: 0 | J37: =E37*H37 -> 0 | K37: 0 | M37: 0 | N37: =J37*L37 -> 0 | O37: 0 | P37: =+J37-N37 -> 0 | Q37: 0 | R37: =+J37*E$7 -> 0
B38: Irrigation
C39: Energy Cost | D39: 22 | F39: AcreInch | G39: 10 | I39: 220 | J39: =E39*H39 -> 0 | K39: 0 | M39: 0 | N39: =J39*L39 -> 0 | O39: 220 | P39: =+J39-N39 -> 0 | Q39: 26840 | R39: =+J39*E$7 -> 0
C40: Irrigation Labor | D40: 1.25 | F40: Hour | G40: 12 | I40: 15 | J40: 0 | K40: 0 | M40: 0 | N40: 0 | O40: 15 | P40: 0 | Q40: 1830 | R40: 0
B41: Machinery Labor
C42: Tractors/Self-Propelled | D42: 0.46 | F42: Hour | G42: 12 | I42: 5.52 | J42: =E42*H42 -> 0 | K42: 0 | M42: 0 | N42: =J42*L42 -> 0 | O42: 5.52 | P42: =+J42-N42 -> 0 | Q42: 673.44 | R42: =+J42*E$7 -> 0
C43: Other Labor | D43: 0.54 | F43: Hour | G43: 12 | I43: 6.48 | J43: =E43*H43 -> 0 | K43: 0 | M43: 0 | N43: =J43*L43 -> 0 | O43: 6.48 | P43: =+J43-N43 -> 0 | Q43: 790.56 | R43: =+J43*E$7 -> 0
B45: Diesel Fuel
C46: Pickup/General Use Equipment | D46: 1 | F46: Acre | G46: 0 | I46: 0 | J46: =E46*H46 -> 0 | K46: 0 | M46: 0 | N46: =J46*L46 -> 0 | O46: 0 | P46: =+J46-N46 -> 0 | Q46: 0 | R46: =+J46*E$7 -> 0
C47: Tractors/Self-Propelled | D47: 2.4 | F47: Gallon | G47: 2.3 | I47: 5.52 | J47: =E47*H47 -> 0 | K47: 0 | M47: 0 | N47: =J47*L47 -> 0 | O47: 5.52 | P47: =+J47-N47 -> 0 | Q47: 673.44 | R47: =+J47*E$7 -> 0
B49: Gasoline
C50: Pickup/General Use Equipment | D50: 1 | F50: Acre | G50: 6 | I50: 6 | J50: =E50*H50 -> 0 | K50: 0 | M50: 0 | N50: =J50*L50 -> 0 | O50: 6 | P50: =+J50-N50 -> 0 | Q50: 732 | R50: =+J50*E$7 -> 0
C51: Tractors/Self-Propelled | D51: 0 | F51: Gallon | G51: 3 | I51: 0 | J51: =E51*H51 -> 0 | K51: 0 | M51: 0 | N51: =J51*L51 -> 0 | O51: 0 | P51: =+J51-N51 -> 0 | Q51: 0 | R51: =+J51*E$7 -> 0
B53: Repairs & Maintenance
C54: Pickup/General Use Equipment | D54: 1 | F54: Acre | G54: 0.5 | I54: 0.5 | J54: =E54*H54 -> 0 | K54: 0 | M54: 0 | N54: =J54*L54 -> 0 | O54: 0.5 | P54: =+J54-N54 -> 0 | Q54: 61 | R54: =+J54*E$7 -> 0
C55: Irrigation Equipment | D55: 1 | F55: Acre | G55: 40 | I55: 40 | J55: 0 | K55: 0 | M55: 0 | N55: 0 | O55: 40 | P55: 0 | Q55: 4880 | R55: 0
C56: Tractors/Self-Propelled | D56: 1 | F56: Acre | G56: 6 | I56: 6 | J56: 0 | K56: 0 | M56: 0 | N56: 0 | O56: 6 | P56: 0 | Q56: 732 | R56: 0
C57: Implements | D57: 1 | F57: Acre | G57: 3 | I57: 3 | J57: 0 | K57: 0 | M57: 0 | N57: 0 | O57: 3 | P57: 0 | Q57: 366 | R57: 0
I58: 0 | J58: 0 | K58: 0 | M58: 0 | N58: 0 | O58: 0 | P58: 0 | Q58: 0 | R58: 0
I59: 0 | J59: 0 | K59: 0 | M59: 0 | N59: 0 | O59: 0 | P59: 0 | Q59: 0 | R59: 0
B60: Interest on Credit Line | G60: 0.06 | I60: 13.14916369 | J60: =+SUM(J17:J59)/2*H60 -> 0 | M60: 0 | N60: =+SUM(N17:N59)/2*L60 -> 0 | O60: 13.14916369 | P60: =+SUM(P17:P59)/2*L60 -> 0 | Q60: 1604.19797 | R60: =+J60*E$7 -> 0
A61: Total Variable Costs | I61: 764.5643325 | J61: =SUM(J18:J60) -> 0 | M61: 0 | N61: =SUM(N18:N60) -> 0 | O61: 764.5643325 | P61: =SUM(P18:P60) -> 0 | Q61: 93276.84857 | R61: =SUM(R18:R60) -> 0
A62: Planned Returns Above Variable Costs: | I62: 75.43566746 | J62: =+J13-J61 -> 0 | M62: 0 | N62: =+N13-N61 -> 0 | O62: 75.43566746 | P62: =+P13-P61 -> 0 | Q62: 9203.15143 | R62: =+R13-R61 -> 0
B63: Breakeven Price to Cover Variable Costs | G63: 3.640782536 | H63: =IF(E10=0,"n/a",(YVarExp-(YTotExp+YTotRet-J10))/E10) -> n/a | I63: Bushel
Q64: Enterprise | R64: Enterprise
A65: FIXED COSTS | D65: Quantity | E65: Quantity | F65: Units | G65: $/Unit | H65: $/Unit | I65: Total | J65: Total | K65: Share | L65: Share | M65: Landlord | N65: Landlord | O65: Tenant | P65: Tenant | Q65: Total | R65: Total
B66: Equipment Fixed Costs
C67: Pickup/General Use Equipment | D67: 1 | F67: Acre | G67: 1.25 | I67: 1.25 | J67: =E67*H67 -> 0 | K67: 0 | M67: 0 | N67: =J67*L67 -> 0 | O67: 1.25 | P67: =+J67-N67 -> 0 | Q67: 152.5 | R67: =+J67*E$7 -> 0
C68: Irrigation Equipment | D68: 1 | F68: Acre | G68: 55 | I68: 55 | J68: 0 | K68: 0 | M68: 0 | N68: 0 | O68: 55 | P68: 0 | Q68: 6710 | R68: 0
C69: Tractors/Self-Propelled | D69: 1 | F69: Acre | G69: 12 | I69: 12 | J69: 0 | K69: 0 | M69: 0 | N69: 0 | O69: 12 | P69: 0 | Q69: 1464 | R69: 0
C70: Implements | D70: 1 | F70: Acre | G70: 10 | I70: 10 | J70: 0 | K70: 0 | M70: 0 | N70: 0 | O70: 10 | P70: 0 | Q70: 1220 | R70: 0
B71: Salaried Labor | D71: 1 | F71: Acre | G71: 0 | I71: 0 | J71: =E71*H71 -> 0 | K71: 0 | M71: 0 | N71: 0 | O71: 0 | P71: 0 | Q71: 0 | R71: 0
B72: Management Fee, Owner/Operator Labor | D72: 1 | F72: Acre | G72: 25 | I72: 25 | J72: 0 | K72: 0 | M72: 0 | N72: 0 | O72: 25 | P72: 0 | Q72: 3050 | R72: 0
B73: Allocated Establishment Cost | D73: 1 | F73: Acre | G73: 0 | I73: 0 | J73: 0 | K73: 0 | M73: 0 | N73: 0 | O73: 0 | P73: 0 | Q73: 0 | R73: 0
B74: Cash Rent - Corn | D74: 1 | F74: Acre | G74: 130 | I74: 130 | J74: 0 | K74: 0 | M74: 0 | N74: 0 | O74: 130 | P74: 0 | Q74: 15860 | R74: 0
B75: Property Taxes | D75: 1 | F75: Acre | G75: 0 | I75: 0 | J75: 0 | K75: 0 | M75: 0 | N75: 0 | O75: 0 | P75: 0 | Q75: 0 | R75: 0
B76: Whole Farm Insurance | D76: 1 | F76: Acre | G76: 2 | I76: 2 | J76: 0 | K76: 0 | M76: 0 | N76: 0 | O76: 2 | P76: 0 | Q76: 244 | R76: 0
D77: 1 | G77: 0 | I77: 0 | J77: 0 | K77: 0 | M77: 0 | N77: 0 | O77: 0 | P77: 0 | Q77: 0 | R77: 0
D78: 1 | G78: 0 | I78: 0 | J78: =E78*H78 -> 0 | K78: 0 | M78: 0 | N78: 0 | O78: 0 | P78: 0 | Q78: 0 | R78: 0
A79: Total Fixed Costs | I79: 235.25 | J79: =+SUM(J66:J78) -> 0 | M79: 0 | N79: =+SUM(N66:N78) -> 0 | O79: 235.25 | P79: =+SUM(P66:P78) -> 0 | Q79: 28700.5 | R79: =+SUM(R66:R78) -> 0
A80: Total Specified Costs | I80: 999.8143325 | J80: =+J61+J79 -> 0 | M80: 0 | N80: =+N61+N79 -> 0 | O80: 999.8143325 | P80: =+P61+P79 -> 0 | Q80: 121977.3486 | R80: =+R61+R79 -> 0
A82: Returns Above Specified Costs | I82: -159.8143325 | J82: =+J13-J80 -> 0 | M82: 0 | N82: =+N13-N80 -> 0 | O82: -159.8143325 | P82: =+P13-P80 -> 0 | Q82: -19497.34857 | R82: =+R13-R80 -> 0
A84: Breakeven Price to Cover Total Costs | G84: 4.761020631 | H84: =IF(E10=0,"n/a",(YTotExp-(YTotExp+YTotRet-J10))/E10) -> n/a | I84: Bushel
D86: Example Breakeven Prices
B87: Example | C87: Example | D87: To Cover | G87: To Cover
B88: Yield | C88: Yield | D88: Variable | G88: Total
B89: Percent | C89: Bushel | D89: Costs | G89: Costs
B90: 0.75 | C90: 157.5 | D90: 4.854376715 | G90: 6.348027508
B91: 0.9 | C91: 189 | D91: 4.045313929 | G91: 5.290022924
B92: 1 | C92: 210 | D92: 3.640782536 | G92: 4.761020631
B93: 1.1 | C93: 231 | D93: 3.309802305 | G93: 4.328200574
B94: 1.25 | C94: 262.5 | D94: 2.912626029 | G94: 3.808816505
D96: Your Breakeven Prices
B97: Your | C97: Your | E97: To Cover | H97: To Cover
B98: Yield | C98: Yield | E98: Variable | H98: Total
B99: Percent | C99: Bushel | E99: Costs | H99: Costs
B100: 0.75 | C100: =E10*YPER1 -> 0 | E100: =IF($E$10=0,0,(YVarExp-(YTotExp+YTotRet-J10))/($E$10*YPER1)) -> 0 | H100: =IF($E$10=0,0,(YTotExp-(YTotExp+YTotRet-J10))/($E$10*YPER1)) -> 0
B101: 0.9 | C101: =E10*YPER2 -> 0 | E101: =IF($E$10=0,0,(YVarExp-(YTotExp+YTotRet-J10))/($E$10*YPER2)) -> 0 | H101: =IF($E$10=0,0,(YTotExp-(YTotExp+YTotRet-J10))/($E$10*YPER2)) -> 0
B102: 1 | C102: =+E10 -> 0 | E102: =IF($E$10=0,0,(YVarExp-(YTotExp+YTotRet-J10))/($E$10*YPER3)) -> 0 | H102: =IF($E$10=0,0,(YTotExp-(YTotExp+YTotRet-J10))/($E$10*YPER3)) -> 0
B103: 1.1 | C103: =E10*YPER4 -> 0 | E103: =IF($E$10=0,0,(YVarExp-(YTotExp+YTotRet-J10))/($E$10*YPER4)) -> 0 | H103: =IF($E$10=0,0,(YTotExp-(YTotExp+YTotRet-J10))/($E$10*YPER4)) -> 0
B104: 1.25 | C104: =E10*YPER5 -> 0 | E104: =IF($E$10=0,0,(YVarExp-(YTotExp+YTotRet-J10))/($E$10*YPER5)) -> 0 | H104: =IF($E$10=0,0,(YTotExp-(YTotExp+YTotRet-J10))/($E$10*YPER5)) -> 0
A106: Developed by Jackie Smith, Professor and Extension Economist, Texas A&M AgriLife Extension, 806-746-6101.
A108: Information presented is prepared solely as a general guide and not intended to recognize or predict the costs and returns from any one operation. Brand names are mentioned only as examples and imply no endorsement.

Sheet CornSilage
A1: Projections for Planning Purposes Only -- Not to be Used without Updating
A2: 2018 Estimated Costs and Returns per Acre
A3: Irrigated Corn Silage
A4: Enter your name for this budget in the cell above.
A5: Enter Your Values in the cells highlighed in MAROON.
E6: Your Acres | R6: Your
C7: Crop Acres | D7: 122 | L7: Your | Q7: Enterprise | R7: Enterprise
E8: Your | H8: Your | I8: Cash | J8: Your | K8: Landlord | L8: Landlord | N8: Your | P8: Your | Q8: Total | R8: Total
A9: REVENUE | D9: Quantity | E9: Quantity | F9: Units | G9: $/Unit | H9: $/Unit | I9: Total | J9: Total | K9: Share | L9: Share | M9: Landlord | N9: Landlord | O9: Tenant | P9: Tenant | Q9: (122 acres) | R9: ="(" & E7 & " acres)" -> ( acres)
B10: Corn Silage | D10: 26 | F10: Ton | G10: 35 | I10: 910 | J10: =E10*H10 -> 0 | K10: 0 | M10: 0 | N10: =J10*L10 -> 0 | O10: 910 | P10: =+J10-N10 -> 0 | Q10: 111020 | R10: =+J10*E$7 -> 0
D11: 0 | G11: 0 | I11: 0 | J11: 0 | K11: 0 | M11: 0 | N11: 0 | O11: 0 | P11: =+J11-N11 -> 0 | Q11: 0 | R11: 0
D12: 0 | G12: 0 | I12: 0 | J12: 0 | K12: 0 | M12: 0 | N12: 0 | O12: 0 | P12: 0 | Q12: 0 | R12: 0
A13: Total Revenue | I13: 910 | J13: =SUM(J10:J12) -> 0 | M13: 0 | N13: =SUM(N10:N12) -> 0 | O13: 910 | P13: =SUM(P10:P12) -> 0 | Q13: 111020 | R13: =SUM(R10:R12) -> 0
Q14: Enterprise | R14: Enterprise
A15: VARIABLE COSTS | D15: Quantity | E15: Quantity | F15: Units | G15: $/Unit | H15: $/Unit | I15: Total | J15: Total | K15: Share | L15: Share | M15: Landlord | N15: Landlord | O15: Tenant | P15: Tenant | Q15: Total | R15: Total
A16: Production Costs
B17: Custom
C18: Harvest and Haul - Corn Silage | D18: 26 | F18: Ton | G18: 7 | I18: 182 | J18: =E18*H18 -> 0 | K18: 0 | M18: 0 | N18: =J18*L18 -> 0 | O18: 182 | P18: =+J18-N18 -> 0 | Q18: 22204 | R18: =+J18*E$7 -> 0
C19: Fertilizer Application - Liquid High | D19: 1 | F19: Acre | G19: 4.75 | I19: 4.75 | J19: 0 | K19: 0 | M19: 0 | N19: 0 | O19: 4.75 | P19: 0 | Q19: 579.5 | R19: 0
C20: Fertilizer Application - Dry | D20: 1 | F20: Acre | G20: 3.5 | I20: 3.5 | J20: 0 | K20: 0 | M20: 0 | N20: 0 | O20: 3.5 | P20: 0 | Q20: 427 | R20: 0
C21: Fertilizer Application - NH3 | D21: 1 | F21: Acre | G21: 3.5 | I21: 3.5 | J21: 0 | K21: 0 | M21: 0 | N21: 0 | O21: 3.5 | P21: 0 | Q21: 427 | R21: 0
B22: Fertilizer
C23: Fertilizer (N) - Liquid | D23: 175 | F23: Pound | G23: 0.390625 | I23: 68.359375 | J23: 0 | K23: 0 | M23: 0 | N23: 0 | O23: 68.359375 | P23: 0 | Q23: 8339.84375 | R23: 0
C24: Fertilizer (P) - Dry | D24: 110 | F24: Pound | G24: 0.5096153846 | I24: 56.05769231 | J24: 0 | K24: 0 | M24: 0 | N24: 0 | O24: 56.05769231 | P24: 0 | Q24: 6839.038462 | R24: 0
C25: Fertilizer (N) - NH3 | D25: 150 | F25: Pound | G25: 0.3048780488 | I25: 45.73170732 | J25: 0 | K25: 0 | M25: 0 | N25: 0 | O25: 45.73170732 | P25: 0 | Q25: 5579.268293 | R25: 0
B26: Herbicide
C27: Herbicide and Apply Corn Silage | D27: 1 | F27: Acre | G27: 21.12 | I27: 21.12 | J27: 0 | K27: 0 | M27: 0 | N27: 0 | O27: 21.12 | P27: 0 | Q27: 2576.64 | R27: 0
B28: Insecticide
C29: Insecticide and Apply Corn Silage | D29: 1 | F29: Acre | G29: 22.73 | I29: 22.73 | J29: 0 | K29: 0 | M29: 0 | N29: 0 | O29: 22.73 | P29: 0 | Q29: 2773.06 | R29: 0
B30: Miscellaneous
C31: Crop Insurance Corn Silage | D31: 1 | F31: Acre | G31: 15.5 | I31: 15.5 | J31: 0 | K31: 0 | M31: 0 | N31: 0 | O31: 15.5 | P31: 0 | Q31: 1891 | R31: 0
B32: Seed
C33: Seed - Corn | D33: 0.5 | F33: Bag | G33: 272 | I33: 136 | J33: 0 | K33: 0 | M33: 0 | N33: 0 | O33: 136 | P33: 0 | Q33: 16592 | R33: 0
D34: 0 | G34: 0 | I34: 0 | J34: 0 | K34: 0 | M34: 0 | N34: 0 | O34: 0 | P34: 0 | Q34: 0 | R34: 0
D35: 0 | G35: 0 | I35: 0 | J35: 0 | K35: 0 | M35: 0 | N35: 0 | O35: 0 | P35: 0 | Q35: 0 | R35: 0
D36: 0 | G36: 0 | I36: 0 | J36: =E36*H36 -> 0 | K36: 0 | M36: 0 | N36: =J36*L36 -> 0 | O36: 0 | P36: =+J36-N36 -> 0 | Q36: 0 | R36: =+J36*E$7 -> 0
B37: Irrigation
C38: Energy Cost | D38: 20 | F38: AcreInch | G38: 10 | I38: 200 | J38: =E38*H38 -> 0 | K38: 0 | M38: 0 | N38: =J38*L38 -> 0 | O38: 200 | P38: =+J38-N38 -> 0 | Q38: 24400 | R38: =+J38*E$7 -> 0
C39: Irrigation Labor | D39: 1.25 | F39: Hour | G39: 12 | I39: 15 | J39: 0 | K39: 0 | M39: 0 | N39: 0 | O39: 15 | P39: 0 | Q39: 1830 | R39: 0
B40: Machinery Labor
C41: Tractors/Self-Propelled | D41: 0.47 | F41: Hour | G41: 12 | I41: 5.64 | J41: =E41*H41 -> 0 | K41: 0 | M41: 0 | N41: =J41*L41 -> 0 | O41: 5.64 | P41: =+J41-N41 -> 0 | Q41: 688.08 | R41: =+J41*E$7 -> 0
C42: Other Labor | D42: 0.53 | F42: Hour | G42: 12 | I42: 6.36 | J42: =E42*H42 -> 0 | K42: 0 | M42: 0 | N42: =J42*L42 -> 0 | O42: 6.36 | P42: =+J42-N42 -> 0 | Q42: 775.92 | R42: =+J42*E$7 -> 0
B44: Diesel Fuel
C45: Pickup/General Use Equipment | D45: 1 | F45: Acre | G45: 0 | I45: 0 | J45: =E45*H45 -> 0 | K45: 0 | M45: 0 | N45: =J45*L45 -> 0 | O45: 0 | P45: =+J45-N45 -> 0 | Q45: 0 | R45: =+J45*E$7 -> 0
C46: Tractors/Self-Propelled | D46: 2.4 | F46: Gallon | G46: 2.3 | I46: 5.52 | J46: =E46*H46 -> 0 | K46: 0 | M46: 0 | N46: =J46*L46 -> 0 | O46: 5.52 | P46: =+J46-N46 -> 0 | Q46: 673.44 | R46: =+J46*E$7 -> 0
B48: Gasoline
C49: Pickup/General Use Equipment | D49: 1 | F49: Acre | G49: 6 | I49: 6 | J49: =E49*H49 -> 0 | K49: 0 | M49: 0 | N49: =J49*L49 -> 0 | O49: 6 | P49: =+J49-N49 -> 0 | Q49: 732 | R49: =+J49*E$7 -> 0
C50: Tractors/Self-Propelled | D50: 0 | F50: Gallon | G50: 3 | I50: 0 | J50: =E50*H50 -> 0 | K50: 0 | M50: 0 | N50: =J50*L50 -> 0 | O50: 0 | P50: =+J50-N50 -> 0 | Q50: 0 | R50: =+J50*E$7 -> 0
B52: Repairs & Maintenance
C53: Pickup/General Use Equipment | D53: 1 | F53: Acre | G53: 0.5 | I53: 0.5 | J53: =E53*H53 -> 0 | K53: 0 | M53: 0 | N53: =J53*L53 -> 0 | O53: 0.5 | P53: =+J53-N53 -> 0 | Q53: 61 | R53: =+J53*E$7 -> 0
C54: Irrigation Equipment | D54: 1 | F54: Acre | G54: 40 | I54: 40 | J54: 0 | K54: 0 | M54: 0 | N54: 0 | O54: 40 | P54: 0 | Q54: 4880 | R54: 0
C55: Tractors/Self-Propelled | D55: 1 | F55: Acre | G55: 6 | I55: 6 | J55: 0 | K55: 0 | M55: 0 | N55: 0 | O55: 6 | P55: 0 | Q55: 732 | R55: 0
C56: Implements | D56: 1 | F56: Acre | G56: 3 | I56: 3 | J56: 0 | K56: 0 | M56: 0 | N56: 0 | O56: 3 | P56: 0 | Q56: 366 | R56: 0
I57: 0 | J57: 0 | K57: 0 | M57: 0 | N57: 0 | O57: 0 | P57: 0 | Q57: 0 | R57: 0
I58: 0 | J58: 0 | K58: 0 | M58: 0 | N58: 0 | O58: 0 | P58: 0 | Q58: 0 | R58: 0
B59: Interest on Credit Line | G59: 0.06 | I59: 14.55512191 | J59: =+SUM(J17:J58)/2*H59 -> 0 | M59: 0 | N59: =+SUM(N17:N58)/2*L59 -> 0 | O59: 14.55512191 | P59: =+SUM(P17:P58)/2*L59 -> 0 | Q59: 1775.724872 | R59: =+J59*E$7 -> 0
A60: Total Variable Costs | I60: 861.8238965 | J60: =SUM(J18:J59) -> 0 | M60: 0 | N60: =SUM(N18:N59) -> 0 | O60: 861.8238965 | P60: =SUM(P18:P59) -> 0 | Q60: 105142.5154 | R60: =SUM(R18:R59) -> 0
A61: Planned Returns Above Variable Costs: | I61: 48.17610347 | J61: =+J13-J60 -> 0 | M61: 0 | N61: =+N13-N60 -> 0 | O61: 48.17610347 | P61: =+P13-P60 -> 0 | Q61: 5877.484623 | R61: =+R13-R60 -> 0
B62: Breakeven Price to Cover Variable Costs | G62: 33.14707294 | H62: =IF(E10=0,"n/a",(YVarExp-(YTotExp+YTotRet-J10))/E10) -> n/a | I62: Ton
Q63: Enterprise | R63: Enterprise
A64: FIXED COSTS | D64: Quantity | E64: Quantity | F64: Units | G64: $/Unit | H64: $/Unit | I64: Total | J64: Total | K64: Share | L64: Share | M64: Landlord | N64: Landlord | O64: Tenant | P64: Tenant | Q64: Total | R64: Total
B65: Equipment Fixed Costs
C66: Pickup/General Use Equipment | D66: 1 | F66: Acre | G66: 1.25 | I66: 1.25 | J66: =E66*H66 -> 0 | K66: 0 | M66: 0 | N66: =J66*L66 -> 0 | O66: 1.25 | P66: =+J66-N66 -> 0 | Q66: 152.5 | R66: =+J66*E$7 -> 0
C67: Irrigation Equipment | D67: 1 | F67: Acre | G67: 55 | I67: 55 | J67: 0 | K67: 0 | M67: 0 | N67: 0 | O67: 55 | P67: 0 | Q67: 6710 | R67: 0
C68: Tractors/Self-Propelled | D68: 1 | F68: Acre | G68: 12 | I68: 12 | J68: 0 | K68: 0 | M68: 0 | N68: 0 | O68: 12 | P68: 0 | Q68: 1464 | R68: 0
C69: Implements | D69: 1 | F69: Acre | G69: 10 | I69: 10 | J69: 0 | K69: 0 | M69: 0 | N69: 0 | O69: 10 | P69: 0 | Q69: 1220 | R69: 0
B70: Salaried Labor | D70: 1 | F70: Acre | G70: 0 | I70: 0 | J70: =E70*H70 -> 0 | K70: 0 | M70: 0 | N70: 0 | O70: 0 | P70: 0 | Q70: 0 | R70: 0
B71: Management Fee, Owner/Operator Labor | D71: 1 | F71: Acre | G71: 25 | I71: 25 | J71: 0 | K71: 0 | M71: 0 | N71: 0 | O71: 25 | P71: 0 | Q71: 3050 | R71: 0
B72: Allocated Establishment Cost | D72: 1 | F72: Acre | G72: 0 | I72: 0 | J72: 0 | K72: 0 | M72: 0 | N72: 0 | O72: 0 | P72: 0 | Q72: 0 | R72: 0
B73: Cash Rent - Corn | D73: 1 | F73: Acre | G73: 130 | I73: 130 | J73: 0 | K73: 0 | M73: 0 | N73: 0 | O73: 130 | P73: 0 | Q73: 15860 | R73: 0
B74: Property Taxes | D74: 1 | F74: Acre | G74: 0 | I74: 0 | J74: 0 | K74: 0 | M74: 0 | N74: 0 | O74: 0 | P74: 0 | Q74: 0 | R74: 0
B75: Whole Farm Insurance | D75: 1 | F75: Acre | G75: 2 | I75: 2 | J75: 0 | K75: 0 | M75: 0 | N75: 0 | O75: 2 | P75: 0 | Q75: 244 | R75: 0
D76: 1 | G76: 0 | I76: 0 | J76: 0 | K76: 0 | M76: 0 | N76: 0 | O76: 0 | P76: 0 | Q76: 0 | R76: 0
D77: 1 | G77: 0 | I77: 0 | J77: =E77*H77 -> 0 | K77: 0 | M77: 0 | N77: 0 | O77: 0 | P77: 0 | Q77: 0 | R77: 0
A78: Total Fixed Costs | I78: 235.25 | J78: =+SUM(J65:J77) -> 0 | M78: 0 | N78: =+SUM(N65:N77) -> 0 | O78: 235.25 | P78: =+SUM(P65:P77) -> 0 | Q78: 28700.5 | R78: =+SUM(R65:R77) -> 0
A79: Total Specified Costs | I79: 1097.073897 | J79: =+J60+J78 -> 0 | M79: 0 | N79: =+N60+N78 -> 0 | O79: 1097.073897 | P79: =+P60+P78 -> 0 | Q79: 133843.0154 | R79: =+R60+R78 -> 0
A81: Returns Above Specified Costs | I81: -187.0738965 | J81: =+J13-J79 -> 0 | M81: 0 | N81: =+N13-N79 -> 0 | O81: -187.0738965 | P81: =+P13-P79 -> 0 | Q81: -22823.01538 | R81: =+R13-R79 -> 0
A83: Breakeven Price to Cover Total Costs | G83: 42.19514987 | H83: =IF(E10=0,"n/a",(YTotExp-(YTotExp+YTotRet-J10))/E10) -> n/a | I83: Ton
D85: Example Breakeven Prices
B86: Example | C86: Example | D86: To Cover | G86: To Cover
B87: Yield | C87: Yield | D87: Variable | G87: Total
B88: Percent | C88: Ton | D88: Costs | G88: Costs
B89: 0.75 | C89: 19.5 | D89: 44.19609726 | G89: 56.26019982
B90: 0.9 | C90: 23.4 | D90: 36.83008105 | G90: 46.88349985
B91: 1 | C91: 26 | D91: 33.14707294 | G91: 42.19514987
B92: 1.1 | C92: 28.6 | D92: 30.13370268 | G92: 38.35922715
B93: 1.25 | C93: 32.5 | D93: 26.51765835 | G93: 33.75611989
D95: Your Breakeven Prices
B96: Your | C96: Your | E96: To Cover | H96: To Cover
B97: Yield | C97: Yield | E97: Variable | H97: Total
B98: Percent | C98: Ton | E98: Costs | H98: Costs
B99: 0.75 | C99: =E10*YPER1 -> 0 | E99: =IF($E$10=0,0,(YVarExp-(YTotExp+YTotRet-J10))/($E$10*YPER1)) -> 0 | H99: =IF($E$10=0,0,(YTotExp-(YTotExp+YTotRet-J10))/($E$10*YPER1)) -> 0
B100: 0.9 | C100: =E10*YPER2 -> 0 | E100: =IF($E$10=0,0,(YVarExp-(YTotExp+YTotRet-J10))/($E$10*YPER2)) -> 0 | H100: =IF($E$10=0,0,(YTotExp-(YTotExp+YTotRet-J10))/($E$10*YPER2)) -> 0
B101: 1 | C101: =+E10 -> 0 | E101: =IF($E$10=0,0,(YVarExp-(YTotExp+YTotRet-J10))/($E$10*YPER3)) -> 0 | H101: =IF($E$10=0,0,(YTotExp-(YTotExp+YTotRet-J10))/($E$10*YPER3)) -> 0
B102: 1.1 | C102: =E10*YPER4 -> 0 | E102: =IF($E$10=0,0,(YVarExp-(YTotExp+YTotRet-J10))/($E$10*YPER4)) -> 0 | H102: =IF($E$10=0,0,(YTotExp-(YTotExp+YTotRet-J10))/($E$10*YPER4)) -> 0
B103: 1.25 | C103: =E10*YPER5 -> 0 | E103: =IF($E$10=0,0,(YVarExp-(YTotExp+YTotRet-J10))/($E$10*YPER5)) -> 0 | H103: =IF($E$10=0,0,(YTotExp-(YTotExp+YTotRet-J10))/($E$10*YPER5)) -> 0
A105: Developed by Jackie Smith, Professor and Extension Economist, Texas A&M AgriLife Extension, 806-746-6101.
A107: Information presented is prepared solely as a general guide and not intended to recognize or predict the costs and returns from any one operation. Brand names are mentioned only as examples and imply no endorsement.

Sheet CottonDrip
A1: Projections for Planning Purposes Only -- Not to be Used without Updating
A2: 2018 Estimated Costs and Returns per Acre
A3: Irrigated Cotton - Drip
A4: Enter your name for this budget in the cell above.
A5: Enter Your Values in the cells highlighed in MAROON.
E6: Your Acres | R6: Your
C7: Crop Acres | D7: 122 | L7: Your | Q7: Enterprise | R7: Enterprise
E8: Your | H8: Your | I8: Cash | J8: Your | K8: Landlord | L8: Landlord | N8: Your | P8: Your | Q8: Total | R8: Total
A9: REVENUE | D9: Quantity | E9: Quantity | F9: Units | G9: $/Unit | H9: $/Unit | I9: Total | J9: Total | K9: Share | L9: Share | M9: Landlord | N9: Landlord | O9: Tenant | P9: Tenant | Q9: (122 acres) | R9: ="(" & E7 & " acres)" -> ( acres)
B10: Cotton Lint | D10: 1750 | F10: Pound | G10: 0.68 | I10: 1190 | J10: =E10*H10 -> 0 | K10: 0 | M10: 0 | N10: =J10*L10 -> 0 | O10: 1190 | P10: =+J10-N10 -> 0 | Q10: 145180 | R10: =+J10*E$7 -> 0
B11: Cottonseed | D11: 1.2425 | F11: Ton | G11: 160 | I11: 198.8 | J11: 0 | K11: 0 | M11: 0 | N11: 0 | O11: 198.8 | P11: =+J11-N11 -> 0 | Q11: 24253.6 | R11: 0
D12: 0 | G12: 0 | I12: 0 | J12: 0 | K12: 0 | M12: 0 | N12: 0 | O12: 0 | P12: 0 | Q12: 0 | R12: 0
D13: 0 | G13: 0 | I13: 0 | J13: 0 | K13: 0 | M13: 0 | N13: 0 | O13: 0 | P13: 0 | Q13: 0 | R13: 0
A14: Total Revenue | I14: 1388.8 | J14: =SUM(J10:J13) -> 0 | M14: 0 | N14: =SUM(N10:N13) -> 0 | O14: 1388.8 | P14: =SUM(P10:P13) -> 0 | Q14: 169433.6 | R14: =SUM(R10:R13) -> 0
Q15: Enterprise | R15: Enterprise
A16: VARIABLE COSTS | D16: Quantity | E16: Quantity | F16: Units | G16: $/Unit | H16: $/Unit | I16: Total | J16: Total | K16: Share | L16: Share | M16: Landlord | N16: Landlord | O16: Tenant | P16: Tenant | Q16: Total | R16: Total
A17: Production Costs
B18: Custom
C19: Fertilizer Application - Liquid High | D19: 1 | F19: Acre | G19: 4.75 | I19: 4.75 | J19: =E19*H19 -> 0 | K19: 0 | M19: 0 | N19: =J19*L19 -> 0 | O19: 4.75 | P19: =+J19-N19 -> 0 | Q19: 579.5 | R19: =+J19*E$7 -> 0
C20: Scouting | D20: 1 | F20: Acre | G20: 9 | I20: 9 | J20: 0 | K20: 0 | M20: 0 | N20: 0 | O20: 9 | P20: 0 | Q20: 1098 | R20: 0
C21: Strip and Module - Cotton | D21: 1750 | F21: Pound | G21: 0.08 | I21: 140 | J21: 0 | K21: 0 | M21: 0 | N21: 0 | O21: 140 | P21: 0 | Q21: 17080 | R21: 0
C22: Ginning - Cotton | D22: 62.5 | F22: CWT | G22: 2.9 | I22: 181.25 | J22: 0 | K22: 0 | M22: 0 | N22: 0 | O22: 181.25 | P22: 0 | Q22: 22112.5 | R22: 0
B23: Fertilizer
C24: Fertilizer (P) - Liquid | D24: 70 | F24: Pound | G24: 0.5735294118 | I24: 40.14705882 | J24: 0 | K24: 0 | M24: 0 | N24: 0 | O24: 40.14705882 | P24: 0 | Q24: 4897.941176 | R24: 0
C25: Fertilizer (N) - Liquid | D25: 175 | F25: Pound | G25: 0.390625 | I25: 68.359375 | J25: 0 | K25: 0 | M25: 0 | N25: 0 | O25: 68.359375 | P25: 0 | Q25: 8339.84375 | R25: 0
B26: Herbicide
C27: Herbicide - Cotton Preplant | D27: 1 | F27: Acre | G27: 9.5 | I27: 9.5 | J27: 0 | K27: 0 | M27: 0 | N27: 0 | O27: 9.5 | P27: 0 | Q27: 1159 | R27: 0
C28: Herbicide - Cotton At Plant | D28: 1 | F28: Acre | G28: 4.5 | I28: 4.5 | J28: 0 | K28: 0 | M28: 0 | N28: 0 | O28: 4.5 | P28: 0 | Q28: 549 | R28: 0
C29: Herbicide - Cotton Postplant | D29: 1 | F29: Acre | G29: 25 | I29: 25 | J29: 0 | K29: 0 | M29: 0 | N29: 0 | O29: 25 | P29: 0 | Q29: 3050 | R29: 0
C30: Spot Spray and Chemical | D30: 0.2 | F30: Acre | G30: 15 | I30: 3 | J30: 0 | K30: 0 | M30: 0 | N30: 0 | O30: 3 | P30: 0 | Q30: 366 | R30: 0
B31: Insecticide
C32: Insecticide and Apply Cotton | D32: 1 | F32: Acre | G32: 12 | I32: 12 | J32: 0 | K32: 0 | M32: 0 | N32: 0 | O32: 12 | P32: 0 | Q32: 1464 | R32: 0
C33: Boll Weevil Assessment Irrigated | D33: 3.5 | F33: Bale | G33: 1 | I33: 3.5 | J33: 0 | K33: 0 | M33: 0 | N33: 0 | O33: 3.5 | P33: 0 | Q33: 427 | R33: 0
B34: Miscellaneous
C35: Crop Insurance Cotton - Drip | D35: 1 | F35: Acre | G35: 56 | I35: 56 | J35: 0 | K35: 0 | M35: 0 | N35: 0 | O35: 56 | P35: 0 | Q35: 6832 | R35: 0
C36: Crop Insurance Hail | D36: 4 | F36: 100 | G36: 2.25 | I36: 9 | J36: 0 | K36: 0 | M36: 0 | N36: 0 | O36: 9 | P36: 0 | Q36: 1098 | R36: 0
B37: Seed
C38: Seed - Cotton Irrigated | D38: 45 | F38: Thousand | G38: 1.59 | I38: 71.55 | J38: 0 | K38: 0 | M38: 0 | N38: 0 | O38: 71.55 | P38: 0 | Q38: 8729.1 | R38: 0
B39: Other Chemicals
C40: Acid | D40: 24 | F40: Pound | G40: 0.5 | I40: 12 | J40: 0 | K40: 0 | M40: 0 | N40: 0 | O40: 12 | P40: 0 | Q40: 1464 | R40: 0
C41: Harvest Aid Apply Cotton Drip | D41: 1 | F41: Acre | G41: 30 | I41: 30 | J41: 0 | K41: 0 | M41: 0 | N41: 0 | O41: 30 | P41: 0 | Q41: 3660 | R41: 0
B42: Other Labor
C43: Hoeing | D43: 0.2 | F43: Acre | G43: 15 | I43: 3 | J43: 0 | K43: 0 | M43: 0 | N43: 0 | O43: 3 | P43: 0 | Q43: 366 | R43: 0
D44: 0 | G44: 0 | I44: 0 | J44: 0 | K44: 0 | M44: 0 | N44: 0 | O44: 0 | P44: 0 | Q44: 0 | R44: 0
D45: 0 | G45: 0 | I45: 0 | J45: 0 | K45: 0 | M45: 0 | N45: 0 | O45: 0 | P45: 0 | Q45: 0 | R45: 0
D46: 0 | G46: 0 | I46: 0 | J46: =E46*H46 -> 0 | K46: 0 | M46: 0 | N46: =J46*L46 -> 0 | O46: 0 | P46: =+J46-N46 -> 0 | Q46: 0 | R46: =+J46*E$7 -> 0
B47: Irrigation
C48: Energy Cost | D48: 16 | F48: AcreInch | G48: 10 | I48: 160 | J48: =E48*H48 -> 0 | K48: 0 | M48: 0 | N48: =J48*L48 -> 0 | O48: 160 | P48: =+J48-N48 -> 0 | Q48: 19520 | R48: =+J48*E$7 -> 0
C49: Irrigation Labor | D49: 1.25 | F49: Hour | G49: 12 | I49: 15 | J49: 0 | K49: 0 | M49: 0 | N49: 0 | O49: 15 | P49: 0 | Q49: 1830 | R49: 0
B50: Machinery Labor
C51: Tractors/Self-Propelled | D51: 0.75 | F51: Hour | G51: 12 | I51: 9 | J51: =E51*H51 -> 0 | K51: 0 | M51: 0 | N51: =J51*L51 -> 0 | O51: 9 | P51: =+J51-N51 -> 0 | Q51: 1098 | R51: =+J51*E$7 -> 0
C52: Other Labor | D52: 0.85 | F52: Hour | G52: 12 | I52: 10.2 | J52: =E52*H52 -> 0 | K52: 0 | M52: 0 | N52: =J52*L52 -> 0 | O52: 10.2 | P52: =+J52-N52 -> 0 | Q52: 1244.4 | R52: =+J52*E$7 -> 0
B54: Diesel Fuel
C55: Pickup/General Use Equipment | D55: 1 | F55: Acre | G55: 0 | I55: 0 | J55: =E55*H55 -> 0 | K55: 0 | M55: 0 | N55: =J55*L55 -> 0 | O55: 0 | P55: =+J55-N55 -> 0 | Q55: 0 | R55: =+J55*E$7 -> 0
C56: Tractors/Self-Propelled | D56: 4 | F56: Gallon | G56: 2.3 | I56: 9.2 | J56: =E56*H56 -> 0 | K56: 0 | M56: 0 | N56: =J56*L56 -> 0 | O56: 9.2 | P56: =+J56-N56 -> 0 | Q56: 1122.4 | R56: =+J56*E$7 -> 0
B58: Gasoline
C59: Pickup/General Use Equipment | D59: 1 | F59: Acre | G59: 6 | I59: 6 | J59: =E59*H59 -> 0 | K59: 0 | M59: 0 | N59: =J59*L59 -> 0 | O59: 6 | P59: =+J59-N59 -> 0 | Q59: 732 | R59: =+J59*E$7 -> 0
C60: Tractors/Self-Propelled | D60: 0 | F60: Gallon | G60: 3 | I60: 0 | J60: =E60*H60 -> 0 | K60: 0 | M60: 0 | N60: =J60*L60 -> 0 | O60: 0 | P60: =+J60-N60 -> 0 | Q60: 0 | R60: =+J60*E$7 -> 0
B62: Repairs & Maintenance
C63: Pickup/General Use Equipment | D63: 1 | F63: Acre | G63: 0.5 | I63: 0.5 | J63: =E63*H63 -> 0 | K63: 0 | M63: 0 | N63: =J63*L63 -> 0 | O63: 0.5 | P63: =+J63-N63 -> 0 | Q63: 61 | R63: =+J63*E$7 -> 0
C64: Irrigation Equipment | D64: 1 | F64: Acre | G64: 31.5 | I64: 31.5 | J64: 0 | K64: 0 | M64: 0 | N64: 0 | O64: 31.5 | P64: 0 | Q64: 3843 | R64: 0
C65: Tractors/Self-Propelled | D65: 1 | F65: Acre | G65: 6 | I65: 6 | J65: 0 | K65: 0 | M65: 0 | N65: 0 | O65: 6 | P65: 0 | Q65: 732 | R65: 0
C66: Implements | D66: 1 | F66: Acre | G66: 3 | I66: 3 | J66: 0 | K66: 0 | M66: 0 | N66: 0 | O66: 3 | P66: 0 | Q66: 366 | R66: 0
I67: 0 | J67: 0 | K67: 0 | M67: 0 | N67: 0 | O67: 0 | P67: 0 | Q67: 0 | R67: 0
I68: 0 | J68: 0 | K68: 0 | M68: 0 | N68: 0 | O68: 0 | P68: 0 | Q68: 0 | R68: 0
B69: Interest on Credit Line | G69: 0.06 | I69: 19.56271874 | J69: =+SUM(J18:J68)/2*H69 -> 0 | M69: 0 | N69: =+SUM(N18:N68)/2*L69 -> 0 | O69: 19.56271874 | P69: =+SUM(P18:P68)/2*L69 -> 0 | Q69: 2386.651687 | R69: =+J69*E$7 -> 0
A70: Total Variable Costs | I70: 952.5191526 | J70: =SUM(J19:J69) -> 0 | M70: 0 | N70: =SUM(N19:N69) -> 0 | O70: 952.5191526 | P70: =SUM(P19:P69) -> 0 | Q70: 116207.3366 | R70: =SUM(R19:R69) -> 0
A71: Planned Returns Above Variable Costs: | I71: 436.2808474 | J71: =+J14-J70 -> 0 | M71: 0 | N71: =+N14-N70 -> 0 | O71: 436.2808474 | P71: =+P14-P70 -> 0 | Q71: 53226.26339 | R71: =+R14-R70 -> 0
B72: Breakeven Price to Cover Variable Costs | G72: 0.4306966586 | H72: =IF(E10=0,"n/a",(YVarExp-(YTotExp+YTotRet-J10))/E10) -> n/a | I72: Pound
Q73: Enterprise | R73: Enterprise
A74: FIXED COSTS | D74: Quantity | E74: Quantity | F74: Units | G74: $/Unit | H74: $/Unit | I74: Total | J74: Total | K74: Share | L74: Share | M74: Landlord | N74: Landlord | O74: Tenant | P74: Tenant | Q74: Total | R74: Total
B75: Equipment Fixed Costs
C76: Pickup/General Use Equipment | D76: 1 | F76: Acre | G76: 1.25 | I76: 1.25 | J76: =E76*H76 -> 0 | K76: 0 | M76: 0 | N76: =J76*L76 -> 0 | O76: 1.25 | P76: =+J76-N76 -> 0 | Q76: 152.5 | R76: =+J76*E$7 -> 0
C77: Irrigation Equipment | D77: 1 | F77: Acre | G77: 75 | I77: 75 | J77: 0 | K77: 0 | M77: 0 | N77: 0 | O77: 75 | P77: 0 | Q77: 9150 | R77: 0
C78: Tractors/Self-Propelled | D78: 1 | F78: Acre | G78: 12 | I78: 12 | J78: 0 | K78: 0 | M78: 0 | N78: 0 | O78: 12 | P78: 0 | Q78: 1464 | R78: 0
C79: Implements | D79: 1 | F79: Acre | G79: 10 | I79: 10 | J79: 0 | K79: 0 | M79: 0 | N79: 0 | O79: 10 | P79: 0 | Q79: 1220 | R79: 0
B80: Salaried Labor | D80: 1 | F80: Acre | G80: 0 | I80: 0 | J80: =E80*H80 -> 0 | K80: 0 | M80: 0 | N80: 0 | O80: 0 | P80: 0 | Q80: 0 | R80: 0
B81: Management Fee, Owner/Operator Labor | D81: 1 | F81: Acre | G81: 25 | I81: 25 | J81: 0 | K81: 0 | M81: 0 | N81: 0 | O81: 25 | P81: 0 | Q81: 3050 | R81: 0
B82: Allocated Establishment Cost | D82: 1 | F82: Acre | G82: 0 | I82: 0 | J82: 0 | K82: 0 | M82: 0 | N82: 0 | O82: 0 | P82: 0 | Q82: 0 | R82: 0
B83: Cash Rent - Cotton Drip | D83: 1 | F83: Acre | G83: 130 | I83: 130 | J83: 0 | K83: 0 | M83: 0 | N83: 0 | O83: 130 | P83: 0 | Q83: 15860 | R83: 0
B84: Property Taxes | D84: 1 | F84: Acre | G84: 0 | I84: 0 | J84: 0 | K84: 0 | M84: 0 | N84: 0 | O84: 0 | P84: 0 | Q84: 0 | R84: 0
B85: Whole Farm Insurance | D85: 1 | F85: Acre | G85: 2 | I85: 2 | J85: 0 | K85: 0 | M85: 0 | N85: 0 | O85: 2 | P85: 0 | Q85: 244 | R85: 0
D86: 1 | G86: 0 | I86: 0 | J86: 0 | K86: 0 | M86: 0 | N86: 0 | O86: 0 | P86: 0 | Q86: 0 | R86: 0
D87: 1 | G87: 0 | I87: 0 | J87: =E87*H87 -> 0 | K87: 0 | M87: 0 | N87: 0 | O87: 0 | P87: 0 | Q87: 0 | R87: 0
A88: Total Fixed Costs | I88: 255.25 | J88: =+SUM(J75:J87) -> 0 | M88: 0 | N88: =+SUM(N75:N87) -> 0 | O88: 255.25 | P88: =+SUM(P75:P87) -> 0 | Q88: 31140.5 | R88: =+SUM(R75:R87) -> 0
A89: Total Specified Costs | I89: 1207.769153 | J89: =+J70+J88 -> 0 | M89: 0 | N89: =+N70+N88 -> 0 | O89: 1207.769153 | P89: =+P70+P88 -> 0 | Q89: 147347.8366 | R89: =+R70+R88 -> 0
A91: Returns Above Specified Costs | I91: 181.0308474 | J91: =+J14-J89 -> 0 | M91: 0 | N91: =+N14-N89 -> 0 | O91: 181.0308474 | P91: =+P14-P89 -> 0 | Q91: 22085.76339 | R91: =+R14-R89 -> 0
A93: Breakeven Price to Cover Total Costs | G93: 0.5765538015 | H93: =IF(E10=0,"n/a",(YTotExp-(YTotExp+YTotRet-J10))/E10) -> n/a | I93: Pound
D95: Example Breakeven Prices
B96: Example | C96: Example | D96: To Cover | G96: To Cover
B97: Yield | C97: Yield | D97: Variable | G97: Total
B98: Percent | C98: Pound | D98: Costs | G98: Costs
B99: 0.75 | C99: 1312.5 | D99: 0.5742622115 | G99: 0.768738402
B100: 0.9 | C100: 1575 | D100: 0.4785518429 | G100: 0.640615335
B101: 1 | C101: 1750 | D101: 0.4306966586 | G101: 0.5765538015
B102: 1.1 | C102: 1925 | D102: 0.3915424169 | G102: 0.5241398195
B103: 1.25 | C103: 2187.5 | D103: 0.3445573269 | G103: 0.4612430412
D105: Your Breakeven Prices
B106: Your | C106: Your | E106: To Cover | H106: To Cover
B107: Yield | C107: Yield | E107: Variable | H107: Total
B108: Percent | C108: Pound | E108: Costs | H108: Costs
B109: 0.75 | C109: =E10*YPER1 -> 0 | E109: =IF($E$10=0,0,(YVarExp-(YTotExp+YTotRet-J10))/($E$10*YPER1)) -> 0 | H109: =IF($E$10=0,0,(YTotExp-(YTotExp+YTotRet-J10))/($E$10*YPER1)) -> 0
B110: 0.9 | C110: =E10*YPER2 -> 0 | E110: =IF($E$10=0,0,(YVarExp-(YTotExp+YTotRet-J10))/($E$10*YPER2)) -> 0 | H110: =IF($E$10=0,0,(YTotExp-(YTotExp+YTotRet-J10))/($E$10*YPER2)) -> 0
B111: 1 | C111: =+E10 -> 0 | E111: =IF($E$10=0,0,(YVarExp-(YTotExp+YTotRet-J10))/($E$10*YPER3)) -> 0 | H111: =IF($E$10=0,0,(YTotExp-(YTotExp+YTotRet-J10))/($E$10*YPER3)) -> 0
B112: 1.1 | C112: =E10*YPER4 -> 0 | E112: =IF($E$10=0,0,(YVarExp-(YTotExp+YTotRet-J10))/($E$10*YPER4)) -> 0 | H112: =IF($E$10=0,0,(YTotExp-(YTotExp+YTotRet-J10))/($E$10*YPER4)) -> 0
B113: 1.25 | C113: =E10*YPER5 -> 0 | E113: =IF($E$10=0,0,(YVarExp-(YTotExp+YTotRet-J10))/($E$10*YPER5)) -> 0 | H113: =IF($E$10=0,0,(YTotExp-(YTotExp+YTotRet-J10))/($E$10*YPER5)) -> 0
A115: Developed by Jackie Smith, Professor and Extension Economist, Texas A&M AgriLife Extension, 806-746-6101.
A117: Information presented is prepared solely as a general guide and not intended to recognize or predict the costs and returns from any one operation. Brand names are mentioned only as examples and imply no endorsement.

Sheet CottonPivot
A1: Projections for Planning Purposes Only -- Not to be Used without Updating
A2: 2018 Estimated Costs and Returns per Acre
A3: Irrigated Cotton - Pivot
A4: Enter your name for this budget in the cell above.
A5: Enter Your Values in the cells highlighed in MAROON.
E6: Your Acres | R6: Your
C7: Crop Acres | D7: 122 | L7: Your | Q7: Enterprise | R7: Enterprise
E8: Your | H8: Your | I8: Cash | J8: Your | K8: Landlord | L8: Landlord | N8: Your | P8: Your | Q8: Total | R8: Total
A9: REVENUE | D9: Quantity | E9: Quantity | F9: Units | G9: $/Unit | H9: $/Unit | I9: Total | J9: Total | K9: Share | L9: Share | M9: Landlord | N9: Landlord | O9: Tenant | P9: Tenant | Q9: (122 acres) | R9: ="(" & E7 & " acres)" -> ( acres)
B10: Cotton Lint | D10: 1250 | F10: Pound | G10: 0.68 | I10: 850 | J10: =E10*H10 -> 0 | K10: 0 | M10: 0 | N10: =J10*L10 -> 0 | O10: 850 | P10: =+J10-N10 -> 0 | Q10: 103700 | R10: =+J10*E$7 -> 0
B11: Cottonseed | D11: 0.8875 | F11: Ton | G11: 160 | I11: 142 | J11: 0 | K11: 0 | M11: 0 | N11: 0 | O11: 142 | P11: =+J11-N11 -> 0 | Q11: 17324 | R11: 0
D12: 0 | G12: 0 | I12: 0 | J12: 0 | K12: 0 | M12: 0 | N12: 0 | O12: 0 | P12: 0 | Q12: 0 | R12: 0
D13: 0 | G13: 0 | I13: 0 | J13: 0 | K13: 0 | M13: 0 | N13: 0 | O13: 0 | P13: 0 | Q13: 0 | R13: 0
A14: Total Revenue | I14: 992 | J14: =SUM(J10:J13) -> 0 | M14: 0 | N14: =SUM(N10:N13) -> 0 | O14: 992 | P14: =SUM(P10:P13) -> 0 | Q14: 121024 | R14: =SUM(R10:R13) -> 0
Q15: Enterprise | R15: Enterprise
A16: VARIABLE COSTS | D16: Quantity | E16: Quantity | F16: Units | G16: $/Unit | H16: $/Unit | I16: Total | J16: Total | K16: Share | L16: Share | M16: Landlord | N16: Landlord | O16: Tenant | P16: Tenant | Q16: Total | R16: Total
A17: Production Costs
B18: Custom
C19: Strip and Module - Cotton | D19: 1250 | F19: Pound | G19: 0.08 | I19: 100 | J19: =E19*H19 -> 0 | K19: 0 | M19: 0 | N19: =J19*L19 -> 0 | O19: 100 | P19: =+J19-N19 -> 0 | Q19: 12200 | R19: =+J19*E$7 -> 0
C20: Ginning - Cotton | D20: 44.64 | F20: CWT | G20: 2.9 | I20: 129.456 | J20: 0 | K20: 0 | M20: 0 | N20: 0 | O20: 129.456 | P20: 0 | Q20: 15793.632 | R20: 0
C21: Fertilizer Application - Liquid High | D21: 1 | F21: Acre | G21: 4.75 | I21: 4.75 | J21: 0 | K21: 0 | M21: 0 | N21: 0 | O21: 4.75 | P21: 0 | Q21: 579.5 | R21: 0
C22: Scouting | D22: 1 | F22: Acre | G22: 9 | I22: 9 | J22: 0 | K22: 0 | M22: 0 | N22: 0 | O22: 9 | P22: 0 | Q22: 1098 | R22: 0
B23: Fertilizer
C24: Fertilizer (P) - Liquid | D24: 50 | F24: Pound | G24: 0.5735294118 | I24: 28.67647059 | J24: 0 | K24: 0 | M24: 0 | N24: 0 | O24: 28.67647059 | P24: 0 | Q24: 3498.529412 | R24: 0
C25: Fertilizer (N) - Liquid | D25: 125 | F25: Pound | G25: 0.390625 | I25: 48.828125 | J25: 0 | K25: 0 | M25: 0 | N25: 0 | O25: 48.828125 | P25: 0 | Q25: 5957.03125 | R25: 0
B26: Herbicide
C27: Herbicide - Cotton Preplant | D27: 1 | F27: Acre | G27: 9.5 | I27: 9.5 | J27: 0 | K27: 0 | M27: 0 | N27: 0 | O27: 9.5 | P27: 0 | Q27: 1159 | R27: 0
C28: Herbicide - Cotton At Plant | D28: 1 | F28: Acre | G28: 4.5 | I28: 4.5 | J28: 0 | K28: 0 | M28: 0 | N28: 0 | O28: 4.5 | P28: 0 | Q28: 549 | R28: 0
C29: Herbicide - Cotton Postplant | D29: 1 | F29: Acre | G29: 25 | I29: 25 | J29: 0 | K29: 0 | M29: 0 | N29: 0 | O29: 25 | P29: 0 | Q29: 3050 | R29: 0
C30: Spot Spray and Chemical | D30: 0.2 | F30: Acre | G30: 15 | I30: 3 | J30: 0 | K30: 0 | M30: 0 | N30: 0 | O30: 3 | P30: 0 | Q30: 366 | R30: 0
B31: Insecticide
C32: Insecticide and Apply Cotton | D32: 1 | F32: Acre | G32: 12 | I32: 12 | J32: 0 | K32: 0 | M32: 0 | N32: 0 | O32: 12 | P32: 0 | Q32: 1464 | R32: 0
C33: Boll Weevil Assessment Irrigated | D33: 2.5 | F33: Bale | G33: 1 | I33: 2.5 | J33: 0 | K33: 0 | M33: 0 | N33: 0 | O33: 2.5 | P33: 0 | Q33: 305 | R33: 0
B34: Miscellaneous
C35: Crop Insurance Cotton - Irrigated | D35: 1 | F35: Acre | G35: 40 | I35: 40 | J35: 0 | K35: 0 | M35: 0 | N35: 0 | O35: 40 | P35: 0 | Q35: 4880 | R35: 0
B36: Seed
C37: Seed - Cotton Irrigated | D37: 45 | F37: Thousand | G37: 1.59 | I37: 71.55 | J37: 0 | K37: 0 | M37: 0 | N37: 0 | O37: 71.55 | P37: 0 | Q37: 8729.1 | R37: 0
B38: Other Chemicals
C39: Harvest Aid Apply Cotton Irrigated | D39: 1 | F39: Acre | G39: 25 | I39: 25 | J39: 0 | K39: 0 | M39: 0 | N39: 0 | O39: 25 | P39: 0 | Q39: 3050 | R39: 0
B40: Other Labor
C41: Hoeing | D41: 0.2 | F41: Acre | G41: 15 | I41: 3 | J41: 0 | K41: 0 | M41: 0 | N41: 0 | O41: 3 | P41: 0 | Q41: 366 | R41: 0
D42: 0 | G42: 0 | I42: 0 | J42: 0 | K42: 0 | M42: 0 | N42: 0 | O42: 0 | P42: 0 | Q42: 0 | R42: 0
D43: 0 | G43: 0 | I43: 0 | J43: 0 | K43: 0 | M43: 0 | N43: 0 | O43: 0 | P43: 0 | Q43: 0 | R43: 0
D44: 0 | G44: 0 | I44: 0 | J44: =E44*H44 -> 0 | K44: 0 | M44: 0 | N44: =J44*L44 -> 0 | O44: 0 | P44: =+J44-N44 -> 0 | Q44: 0 | R44: =+J44*E$7 -> 0
B45: Irrigation
C46: Energy Cost | D46: 12 | F46: AcreInch | G46: 10 | I46: 120 | J46: =E46*H46 -> 0 | K46: 0 | M46: 0 | N46: =J46*L46 -> 0 | O46: 120 | P46: =+J46-N46 -> 0 | Q46: 14640 | R46: =+J46*E$7 -> 0
C47: Irrigation Labor | D47: 1 | F47: Hour | G47: 12 | I47: 12 | J47: 0 | K47: 0 | M47: 0 | N47: 0 | O47: 12 | P47: 0 | Q47: 1464 | R47: 0
B48: Machinery Labor
C49: Tractors/Self-Propelled | D49: 0.74 | F49: Hour | G49: 12 | I49: 8.88 | J49: =E49*H49 -> 0 | K49: 0 | M49: 0 | N49: =J49*L49 -> 0 | O49: 8.88 | P49: =+J49-N49 -> 0 | Q49: 1083.36 | R49: =+J49*E$7 -> 0
C50: Other Labor | D50: 0.86 | F50: Hour | G50: 12 | I50: 10.32 | J50: =E50*H50 -> 0 | K50: 0 | M50: 0 | N50: =J50*L50 -> 0 | O50: 10.32 | P50: =+J50-N50 -> 0 | Q50: 1259.04 | R50: =+J50*E$7 -> 0
B52: Diesel Fuel
C53: Pickup/General Use Equipment | D53: 1 | F53: Acre | G53: 0 | I53: 0 | J53: =E53*H53 -> 0 | K53: 0 | M53: 0 | N53: =J53*L53 -> 0 | O53: 0 | P53: =+J53-N53 -> 0 | Q53: 0 | R53: =+J53*E$7 -> 0
C54: Tractors/Self-Propelled | D54: 4 | F54: Gallon | G54: 2.3 | I54: 9.2 | J54: =E54*H54 -> 0 | K54: 0 | M54: 0 | N54: =J54*L54 -> 0 | O54: 9.2 | P54: =+J54-N54 -> 0 | Q54: 1122.4 | R54: =+J54*E$7 -> 0
B56: Gasoline
C57: Pickup/General Use Equipment | D57: 1 | F57: Acre | G57: 6 | I57: 6 | J57: =E57*H57 -> 0 | K57: 0 | M57: 0 | N57: =J57*L57 -> 0 | O57: 6 | P57: =+J57-N57 -> 0 | Q57: 732 | R57: =+J57*E$7 -> 0
C58: Tractors/Self-Propelled | D58: 0 | F58: Gallon | G58: 3 | I58: 0 | J58: =E58*H58 -> 0 | K58: 0 | M58: 0 | N58: =J58*L58 -> 0 | O58: 0 | P58: =+J58-N58 -> 0 | Q58: 0 | R58: =+J58*E$7 -> 0
B60: Repairs & Maintenance
C61: Pickup/General Use Equipment | D61: 1 | F61: Acre | G61: 0.5 | I61: 0.5 | J61: =E61*H61 -> 0 | K61: 0 | M61: 0 | N61: =J61*L61 -> 0 | O61: 0.5 | P61: =+J61-N61 -> 0 | Q61: 61 | R61: =+J61*E$7 -> 0
C62: Irrigation Equipment | D62: 1 | F62: Acre | G62: 21 | I62: 21 | J62: 0 | K62: 0 | M62: 0 | N62: 0 | O62: 21 | P62: 0 | Q62: 2562 | R62: 0
C63: Tractors/Self-Propelled | D63: 1 | F63: Acre | G63: 6 | I63: 6 | J63: 0 | K63: 0 | M63: 0 | N63: 0 | O63: 6 | P63: 0 | Q63: 732 | R63: 0
C64: Implements | D64: 1 | F64: Acre | G64: 3 | I64: 3 | J64: 0 | K64: 0 | M64: 0 | N64: 0 | O64: 3 | P64: 0 | Q64: 366 | R64: 0
I65: 0 | J65: 0 | K65: 0 | M65: 0 | N65: 0 | O65: 0 | P65: 0 | Q65: 0 | R65: 0
I66: 0 | J66: 0 | K66: 0 | M66: 0 | N66: 0 | O66: 0 | P66: 0 | Q66: 0 | R66: 0
B67: Interest on Credit Line | G67: 0.06 | I67: 15.61791802 | J67: =+SUM(J18:J66)/2*H67 -> 0 | M67: 0 | N67: =+SUM(N18:N66)/2*L67 -> 0 | O67: 15.61791802 | P67: =+SUM(P18:P66)/2*L67 -> 0 | Q67: 1905.385999 | R67: =+J67*E$7 -> 0
A68: Total Variable Costs | I68: 729.2785136 | J68: =SUM(J19:J67) -> 0 | M68: 0 | N68: =SUM(N19:N67) -> 0 | O68: 729.2785136 | P68: =SUM(P19:P67) -> 0 | Q68: 88971.97866 | R68: =SUM(R19:R67) -> 0
A69: Planned Returns Above Variable Costs: | I69: 262.7214864 | J69: =+J14-J68 -> 0 | M69: 0 | N69: =+N14-N68 -> 0 | O69: 262.7214864 | P69: =+P14-P68 -> 0 | Q69: 32052.02134 | R69: =+R14-R68 -> 0
B70: Breakeven Price to Cover Variable Costs | G70: 0.4698228109 | H70: =IF(E10=0,"n/a",(YVarExp-(YTotExp+YTotRet-J10))/E10) -> n/a | I70: Pound
Q71: Enterprise | R71: Enterprise
A72: FIXED COSTS | D72: Quantity | E72: Quantity | F72: Units | G72: $/Unit | H72: $/Unit | I72: Total | J72: Total | K72: Share | L72: Share | M72: Landlord | N72: Landlord | O72: Tenant | P72: Tenant | Q72: Total | R72: Total
B73: Equipment Fixed Costs
C74: Pickup/General Use Equipment | D74: 1 | F74: Acre | G74: 1.25 | I74: 1.25 | J74: =E74*H74 -> 0 | K74: 0 | M74: 0 | N74: =J74*L74 -> 0 | O74: 1.25 | P74: =+J74-N74 -> 0 | Q74: 152.5 | R74: =+J74*E$7 -> 0
C75: Irrigation Equipment | D75: 1 | F75: Acre | G75: 55 | I75: 55 | J75: 0 | K75: 0 | M75: 0 | N75: 0 | O75: 55 | P75: 0 | Q75: 6710 | R75: 0
C76: Tractors/Self-Propelled | D76: 1 | F76: Acre | G76: 12 | I76: 12 | J76: 0 | K76: 0 | M76: 0 | N76: 0 | O76: 12 | P76: 0 | Q76: 1464 | R76: 0
C77: Implements | D77: 1 | F77: Acre | G77: 10 | I77: 10 | J77: 0 | K77: 0 | M77: 0 | N77: 0 | O77: 10 | P77: 0 | Q77: 1220 | R77: 0
B78: Salaried Labor | D78: 1 | F78: Acre | G78: 0 | I78: 0 | J78: =E78*H78 -> 0 | K78: 0 | M78: 0 | N78: 0 | O78: 0 | P78: 0 | Q78: 0 | R78: 0
B79: Management Fee, Owner/Operator Labor | D79: 1 | F79: Acre | G79: 25 | I79: 25 | J79: 0 | K79: 0 | M79: 0 | N79: 0 | O79: 25 | P79: 0 | Q79: 3050 | R79: 0
B80: Allocated Establishment Cost | D80: 1 | F80: Acre | G80: 0 | I80: 0 | J80: 0 | K80: 0 | M80: 0 | N80: 0 | O80: 0 | P80: 0 | Q80: 0 | R80: 0
B81: Cash Rent - Cotton Irrigated | D81: 1 | F81: Acre | G81: 100 | I81: 100 | J81: 0 | K81: 0 | M81: 0 | N81: 0 | O81: 100 | P81: 0 | Q81: 12200 | R81: 0
B82: Property Taxes | D82: 1 | F82: Acre | G82: 0 | I82: 0 | J82: 0 | K82: 0 | M82: 0 | N82: 0 | O82: 0 | P82: 0 | Q82: 0 | R82: 0
B83: Whole Farm Insurance | D83: 1 | F83: Acre | G83: 2 | I83: 2 | J83: 0 | K83: 0 | M83: 0 | N83: 0 | O83: 2 | P83: 0 | Q83: 244 | R83: 0
D84: 1 | G84: 0 | I84: 0 | J84: 0 | K84: 0 | M84: 0 | N84: 0 | O84: 0 | P84: 0 | Q84: 0 | R84: 0
D85: 1 | G85: 0 | I85: 0 | J85: =E85*H85 -> 0 | K85: 0 | M85: 0 | N85: 0 | O85: 0 | P85: 0 | Q85: 0 | R85: 0
A86: Total Fixed Costs | I86: 205.25 | J86: =+SUM(J73:J85) -> 0 | M86: 0 | N86: =+SUM(N73:N85) -> 0 | O86: 205.25 | P86: =+SUM(P73:P85) -> 0 | Q86: 25040.5 | R86: =+SUM(R73:R85) -> 0
A87: Total Specified Costs | I87: 934.5285136 | J87: =+J68+J86 -> 0 | M87: 0 | N87: =+N68+N86 -> 0 | O87: 934.5285136 | P87: =+P68+P86 -> 0 | Q87: 114012.4787 | R87: =+R68+R86 -> 0
A89: Returns Above Specified Costs | I89: 57.47148639 | J89: =+J14-J87 -> 0 | M89: 0 | N89: =+N14-N87 -> 0 | O89: 57.47148639 | P89: =+P14-P87 -> 0 | Q89: 7011.52134 | R89: =+R14-R87 -> 0
A91: Breakeven Price to Cover Total Costs | G91: 0.6340228109 | H91: =IF(E10=0,"n/a",(YTotExp-(YTotExp+YTotRet-J10))/E10) -> n/a | I91: Pound
D93: Example Breakeven Prices
B94: Example | C94: Example | D94: To Cover | G94: To Cover
B95: Yield | C95: Yield | D95: Variable | G95: Total
B96: Percent | C96: Pound | D96: Costs | G96: Costs
B97: 0.75 | C97: 937.5 | D97: 0.6264304145 | G97: 0.8453637479
B98: 0.9 | C98: 1125 | D98: 0.5220253454 | G98: 0.7044697899
B99: 1 | C99: 1250 | D99: 0.4698228109 | G99: 0.6340228109
B100: 1.1 | C100: 1375 | D100: 0.4271116463 | G100: 0.5763843735
B101: 1.25 | C101: 1562.5 | D101: 0.3758582487 | G101: 0.5072182487
D103: Your Breakeven Prices
B104: Your | C104: Your | E104: To Cover | H104: To Cover
B105: Yield | C105: Yield | E105: Variable | H105: Total
B106: Percent | C106: Pound | E106: Costs | H106: Costs
B107: 0.75 | C107: =E10*YPER1 -> 0 | E107: =IF($E$10=0,0,(YVarExp-(YTotExp+YTotRet-J10))/($E$10*YPER1)) -> 0 | H107: =IF($E$10=0,0,(YTotExp-(YTotExp+YTotRet-J10))/($E$10*YPER1)) -> 0
B108: 0.9 | C108: =E10*YPER2 -> 0 | E108: =IF($E$10=0,0,(YVarExp-(YTotExp+YTotRet-J10))/($E$10*YPER2)) -> 0 | H108: =IF($E$10=0,0,(YTotExp-(YTotExp+YTotRet-J10))/($E$10*YPER2)) -> 0
B109: 1 | C109: =+E10 -> 0 | E109: =IF($E$10=0,0,(YVarExp-(YTotExp+YTotRet-J10))/($E$10*YPER3)) -> 0 | H109: =IF($E$10=0,0,(YTotExp-(YTotExp+YTotRet-J10))/($E$10*YPER3)) -> 0
B110: 1.1 | C110: =E10*YPER4 -> 0 | E110: =IF($E$10=0,0,(YVarExp-(YTotExp+YTotRet-J10))/($E$10*YPER4)) -> 0 | H110: =IF($E$10=0,0,(YTotExp-(YTotExp+YTotRet-J10))/($E$10*YPER4)) -> 0
B111: 1.25 | C111: =E10*YPER5 -> 0 | E111: =IF($E$10=0,0,(YVarExp-(YTotExp+YTotRet-J10))/($E$10*YPER5)) -> 0 | H111: =IF($E$10=0,0,(YTotExp-(YTotExp+YTotRet-J10))/($E$10*YPER5)) -> 0
A113: Developed by Jackie Smith, Professor and Extension Economist, Texas A&M AgriLife Extension, 806-746-6101.
A115: Information presented is prepared solely as a general guide and not intended to recognize or predict the costs and returns from any one operation. Brand names are mentioned only as examples and imply no endorsement.

Sheet GuarIrragated
A1: Projections for Planning Purposes Only -- Not to be Used without Updating
A2: 2018 Estimated Costs and Returns per Acre
A3: Irrigated Guar
A4: Enter your name for this budget in the cell above.
A5: Enter Your Values in the cells highlighed in MAROON.
E6: Your Acres | R6: Your
C7: Crop Acres | D7: 122 | L7: Your | Q7: Enterprise | R7: Enterprise
E8: Your | H8: Your | I8: Cash | J8: Your | K8: Landlord | L8: Landlord | N8: Your | P8: Your | Q8: Total | R8: Total
A9: REVENUE | D9: Quantity | E9: Quantity | F9: Units | G9: $/Unit | H9: $/Unit | I9: Total | J9: Total | K9: Share | L9: Share | M9: Landlord | N9: Landlord | O9: Tenant | P9: Tenant | Q9: (122 acres) | R9: ="(" & E7 & " acres)" -> ( acres)
B10: Guar | D10: 1200 | F10: Pound | G10: 0.16 | I10: 192 | J10: =E10*H10 -> 0 | K10: 0 | M10: 0 | N10: =J10*L10 -> 0 | O10: 192 | P10: =+J10-N10 -> 0 | Q10: 23424 | R10: =+J10*E$7 -> 0
D11: 0 | G11: 0 | I11: 0 | J11: 0 | K11: 0 | M11: 0 | N11: 0 | O11: 0 | P11: =+J11-N11 -> 0 | Q11: 0 | R11: 0
D12: 0 | G12: 0 | I12: 0 | J12: 0 | K12: 0 | M12: 0 | N12: 0 | O12: 0 | P12: 0 | Q12: 0 | R12: 0
A13: Total Revenue | I13: 192 | J13: =SUM(J10:J12) -> 0 | M13: 0 | N13: =SUM(N10:N12) -> 0 | O13: 192 | P13: =SUM(P10:P12) -> 0 | Q13: 23424 | R13: =SUM(R10:R12) -> 0
Q14: Enterprise | R14: Enterprise
A15: VARIABLE COSTS | D15: Quantity | E15: Quantity | F15: Units | G15: $/Unit | H15: $/Unit | I15: Total | J15: Total | K15: Share | L15: Share | M15: Landlord | N15: Landlord | O15: Tenant | P15: Tenant | Q15: Total | R15: Total
A16: Production Costs
B17: Custom
C18: Fertilizer Application - Dry | D18: 1 | F18: Acre | G18: 3.5 | I18: 3.5 | J18: =E18*H18 -> 0 | K18: 0 | M18: 0 | N18: =J18*L18 -> 0 | O18: 3.5 | P18: =+J18-N18 -> 0 | Q18: 427 | R18: =+J18*E$7 -> 0
C19: Harvest and Haul - Guar Acre | D19: 1 | F19: Acre | G19: 30 | I19: 30 | J19: 0 | K19: 0 | M19: 0 | N19: 0 | O19: 30 | P19: 0 | Q19: 3660 | R19: 0
C20: Harvest and Haul - Guar CWT | D20: 12 | F20: CWT | G20: 0.2 | I20: 2.4 | J20: 0 | K20: 0 | M20: 0 | N20: 0 | O20: 2.4 | P20: 0 | Q20: 292.8 | R20: 0
B21: Fertilizer
C22: Fertilizer (P) - Dry | D22: 40 | F22: Pound | G22: 0.5096153846 | I22: 20.38461538 | J22: 0 | K22: 0 | M22: 0 | N22: 0 | O22: 20.38461538 | P22: 0 | Q22: 2486.923077 | R22: 0
B23: Herbicide
C24: Herbicide and Apply Guar | D24: 1 | F24: Acre | G24: 4 | I24: 4 | J24: 0 | K24: 0 | M24: 0 | N24: 0 | O24: 4 | P24: 0 | Q24: 488 | R24: 0
B25: Miscellaneous
C26: Crop Insurance Guar | D26: 1 | F26: Acre | G26: 2.5 | I26: 2.5 | J26: 0 | K26: 0 | M26: 0 | N26: 0 | O26: 2.5 | P26: 0 | Q26: 305 | R26: 0
B27: Seed
C28: Seed - Guar | D28: 10 | F28: Pound | G28: 1.5 | I28: 15 | J28: 0 | K28: 0 | M28: 0 | N28: 0 | O28: 15 | P28: 0 | Q28: 1830 | R28: 0
C29: Innoculant Guar | D29: 2 | F29: Pound | G29: 3 | I29: 6 | J29: 0 | K29: 0 | M29: 0 | N29: 0 | O29: 6 | P29: 0 | Q29: 732 | R29: 0
D30: 0 | G30: 0 | I30: 0 | J30: 0 | K30: 0 | M30: 0 | N30: 0 | O30: 0 | P30: 0 | Q30: 0 | R30: 0
D31: 0 | G31: 0 | I31: 0 | J31: 0 | K31: 0 | M31: 0 | N31: 0 | O31: 0 | P31: 0 | Q31: 0 | R31: 0
D32: 0 | G32: 0 | I32: 0 | J32: =E32*H32 -> 0 | K32: 0 | M32: 0 | N32: =J32*L32 -> 0 | O32: 0 | P32: =+J32-N32 -> 0 | Q32: 0 | R32: =+J32*E$7 -> 0
B33: Irrigation
C34: Energy Cost | D34: 4 | F34: AcreInch | G34: 10 | I34: 40 | J34: =E34*H34 -> 0 | K34: 0 | M34: 0 | N34: =J34*L34 -> 0 | O34: 40 | P34: =+J34-N34 -> 0 | Q34: 4880 | R34: =+J34*E$7 -> 0
C35: Irrigation Labor | D35: 0.75 | F35: Hour | G35: 12 | I35: 9 | J35: 0 | K35: 0 | M35: 0 | N35: 0 | O35: 9 | P35: 0 | Q35: 1098 | R35: 0
B36: Machinery Labor
C37: Tractors/Self-Propelled | D37: 0.61 | F37: Hour | G37: 12 | I37: 7.32 | J37: =E37*H37 -> 0 | K37: 0 | M37: 0 | N37: =J37*L37 -> 0 | O37: 7.32 | P37: =+J37-N37 -> 0 | Q37: 893.04 | R37: =+J37*E$7 -> 0
C38: Other Labor | D38: 0.39 | F38: Hour | G38: 12 | I38: 4.68 | J38: =E38*H38 -> 0 | K38: 0 | M38: 0 | N38: =J38*L38 -> 0 | O38: 4.68 | P38: =+J38-N38 -> 0 | Q38: 570.96 | R38: =+J38*E$7 -> 0
B40: Diesel Fuel
C41: Pickup/General Use Equipment | D41: 1 | F41: Acre | G41: 0 | I41: 0 | J41: =E41*H41 -> 0 | K41: 0 | M41: 0 | N41: =J41*L41 -> 0 | O41: 0 | P41: =+J41-N41 -> 0 | Q41: 0 | R41: =+J41*E$7 -> 0
C42: Tractors/Self-Propelled | D42: 2.4 | F42: Gallon | G42: 2.3 | I42: 5.52 | J42: =E42*H42 -> 0 | K42: 0 | M42: 0 | N42: =J42*L42 -> 0 | O42: 5.52 | P42: =+J42-N42 -> 0 | Q42: 673.44 | R42: =+J42*E$7 -> 0
B44: Gasoline
C45: Pickup/General Use Equipment | D45: 1 | F45: Acre | G45: 6 | I45: 6 | J45: =E45*H45 -> 0 | K45: 0 | M45: 0 | N45: =J45*L45 -> 0 | O45: 6 | P45: =+J45-N45 -> 0 | Q45: 732 | R45: =+J45*E$7 -> 0
C46: Tractors/Self-Propelled | D46: 0 | F46: Gallon | G46: 3 | I46: 0 | J46: =E46*H46 -> 0 | K46: 0 | M46: 0 | N46: =J46*L46 -> 0 | O46: 0 | P46: =+J46-N46 -> 0 | Q46: 0 | R46: =+J46*E$7 -> 0
B48: Repairs & Maintenance
C49: Pickup/General Use Equipment | D49: 1 | F49: Acre | G49: 0.5 | I49: 0.5 | J49: =E49*H49 -> 0 | K49: 0 | M49: 0 | N49: =J49*L49 -> 0 | O49: 0.5 | P49: =+J49-N49 -> 0 | Q49: 61 | R49: =+J49*E$7 -> 0
C50: Irrigation Equipment | D50: 1 | F50: Acre | G50: 22 | I50: 22 | J50: 0 | K50: 0 | M50: 0 | N50: 0 | O50: 22 | P50: 0 | Q50: 2684 | R50: 0
C51: Tractors/Self-Propelled | D51: 1 | F51: Acre | G51: 6 | I51: 6 | J51: 0 | K51: 0 | M51: 0 | N51: 0 | O51: 6 | P51: 0 | Q51: 732 | R51: 0
C52: Implements | D52: 1 | F52: Acre | G52: 3 | I52: 3 | J52: 0 | K52: 0 | M52: 0 | N52: 0 | O52: 3 | P52: 0 | Q52: 366 | R52: 0
I53: 0 | J53: 0 | K53: 0 | M53: 0 | N53: 0 | O53: 0 | P53: 0 | Q53: 0 | R53: 0
I54: 0 | J54: 0 | K54: 0 | M54: 0 | N54: 0 | O54: 0 | P54: 0 | Q54: 0 | R54: 0
B55: Interest on Credit Line | G55: 0.06 | I55: 4.188725731 | J55: =+SUM(J17:J54)/2*H55 -> 0 | M55: 0 | N55: =+SUM(N17:N54)/2*L55 -> 0 | O55: 4.188725731 | P55: =+SUM(P17:P54)/2*L55 -> 0 | Q55: 511.0245392 | R55: =+J55*E$7 -> 0
A56: Total Variable Costs | I56: 191.9933411 | J56: =SUM(J18:J55) -> 0 | M56: 0 | N56: =SUM(N18:N55) -> 0 | O56: 191.9933411 | P56: =SUM(P18:P55) -> 0 | Q56: 23423.18762 | R56: =SUM(R18:R55) -> 0
A57: Planned Returns Above Variable Costs: | I57: 0.006658884643 | J57: =+J13-J56 -> 0 | M57: 0 | N57: =+N13-N56 -> 0 | O57: 0.006658884643 | P57: =+P13-P56 -> 0 | Q57: 0.8123839265 | R57: =+R13-R56 -> 0
B58: Breakeven Price to Cover Variable Costs | G58: 0.1599944509 | H58: =IF(E10=0,"n/a",(YVarExp-(YTotExp+YTotRet-J10))/E10) -> n/a | I58: Pound
Q59: Enterprise | R59: Enterprise
A60: FIXED COSTS | D60: Quantity | E60: Quantity | F60: Units | G60: $/Unit | H60: $/Unit | I60: Total | J60: Total | K60: Share | L60: Share | M60: Landlord | N60: Landlord | O60: Tenant | P60: Tenant | Q60: Total | R60: Total
B61: Equipment Fixed Costs
C62: Pickup/General Use Equipment | D62: 1 | F62: Acre | G62: 1.25 | I62: 1.25 | J62: =E62*H62 -> 0 | K62: 0 | M62: 0 | N62: =J62*L62 -> 0 | O62: 1.25 | P62: =+J62-N62 -> 0 | Q62: 152.5 | R62: =+J62*E$7 -> 0
C63: Irrigation Equipment | D63: 1 | F63: Acre | G63: 55 | I63: 55 | J63: 0 | K63: 0 | M63: 0 | N63: 0 | O63: 55 | P63: 0 | Q63: 6710 | R63: 0
C64: Tractors/Self-Propelled | D64: 1 | F64: Acre | G64: 12 | I64: 12 | J64: 0 | K64: 0 | M64: 0 | N64: 0 | O64: 12 | P64: 0 | Q64: 1464 | R64: 0
C65: Implements | D65: 1 | F65: Acre | G65: 10 | I65: 10 | J65: 0 | K65: 0 | M65: 0 | N65: 0 | O65: 10 | P65: 0 | Q65: 1220 | R65: 0
B66: Salaried Labor | D66: 1 | F66: Acre | G66: 0 | I66: 0 | J66: =E66*H66 -> 0 | K66: 0 | M66: 0 | N66: 0 | O66: 0 | P66: 0 | Q66: 0 | R66: 0
B67: Management Fee, Owner/Operator Labor | D67: 1 | F67: Acre | G67: 25 | I67: 25 | J67: 0 | K67: 0 | M67: 0 | N67: 0 | O67: 25 | P67: 0 | Q67: 3050 | R67: 0
B68: Allocated Establishment Cost | D68: 1 | F68: Acre | G68: 0 | I68: 0 | J68: 0 | K68: 0 | M68: 0 | N68: 0 | O68: 0 | P68: 0 | Q68: 0 | R68: 0
B69: Cash Rent - Irrigated | D69: 1 | F69: Acre | G69: 100 | I69: 100 | J69: 0 | K69: 0 | M69: 0 | N69: 0 | O69: 100 | P69: 0 | Q69: 12200 | R69: 0
B70: Property Taxes | D70: 1 | F70: Acre | G70: 0 | I70: 0 | J70: 0 | K70: 0 | M70: 0 | N70: 0 | O70: 0 | P70: 0 | Q70: 0 | R70: 0
B71: Whole Farm Insurance | D71: 1 | F71: Acre | G71: 2 | I71: 2 | J71: 0 | K71: 0 | M71: 0 | N71: 0 | O71: 2 | P71: 0 | Q71: 244 | R71: 0
D72: 1 | G72: 0 | I72: 0 | J72: 0 | K72: 0 | M72: 0 | N72: 0 | O72: 0 | P72: 0 | Q72: 0 | R72: 0
D73: 1 | G73: 0 | I73: 0 | J73: =E73*H73 -> 0 | K73: 0 | M73: 0 | N73: 0 | O73: 0 | P73: 0 | Q73: 0 | R73: 0
A74: Total Fixed Costs | I74: 205.25 | J74: =+SUM(J61:J73) -> 0 | M74: 0 | N74: =+SUM(N61:N73) -> 0 | O74: 205.25 | P74: =+SUM(P61:P73) -> 0 | Q74: 25040.5 | R74: =+SUM(R61:R73) -> 0
A75: Total Specified Costs | I75: 397.2433411 | J75: =+J56+J74 -> 0 | M75: 0 | N75: =+N56+N74 -> 0 | O75: 397.2433411 | P75: =+P56+P74 -> 0 | Q75: 48463.68762 | R75: =+R56+R74 -> 0
A77: Returns Above Specified Costs | I77: -205.2433411 | J77: =+J13-J75 -> 0 | M77: 0 | N77: =+N13-N75 -> 0 | O77: -205.2433411 | P77: =+P13-P75 -> 0 | Q77: -25039.68762 | R77: =+R13-R75 -> 0
A79: Breakeven Price to Cover Total Costs | G79: 0.3310361176 | H79: =IF(E10=0,"n/a",(YTotExp-(YTotExp+YTotRet-J10))/E10) -> n/a | I79: Pound
D81: Example Breakeven Prices
B82: Example | C82: Example | D82: To Cover | G82: To Cover
B83: Yield | C83: Yield | D83: Variable | G83: Total
B84: Percent | C84: Pound | D84: Costs | G84: Costs
B85: 0.75 | C85: 900 | D85: 0.2133259346 | G85: 0.4413814901
B86: 0.9 | C86: 1080 | D86: 0.1777716121 | G86: 0.3678179084
B87: 1 | C87: 1200 | D87: 0.1599944509 | G87: 0.3310361176
B88: 1.1 | C88: 1320 | D88: 0.1454495008 | G88: 0.3009419251
B89: 1.25 | C89: 1500 | D89: 0.1279955607 | G89: 0.2648288941
D91: Your Breakeven Prices
B92: Your | C92: Your | E92: To Cover | H92: To Cover
B93: Yield | C93: Yield | E93: Variable | H93: Total
B94: Percent | C94: Pound | E94: Costs | H94: Costs
B95: 0.75 | C95: =E10*YPER1 -> 0 | E95: =IF($E$10=0,0,(YVarExp-(YTotExp+YTotRet-J10))/($E$10*YPER1)) -> 0 | H95: =IF($E$10=0,0,(YTotExp-(YTotExp+YTotRet-J10))/($E$10*YPER1)) -> 0
B96: 0.9 | C96: =E10*YPER2 -> 0 | E96: =IF($E$10=0,0,(YVarExp-(YTotExp+YTotRet-J10))/($E$10*YPER2)) -> 0 | H96: =IF($E$10=0,0,(YTotExp-(YTotExp+YTotRet-J10))/($E$10*YPER2)) -> 0
B97: 1 | C97: =+E10 -> 0 | E97: =IF($E$10=0,0,(YVarExp-(YTotExp+YTotRet-J10))/($E$10*YPER3)) -> 0 | H97: =IF($E$10=0,0,(YTotExp-(YTotExp+YTotRet-J10))/($E$10*YPER3)) -> 0
B98: 1.1 | C98: =E10*YPER4 -> 0 | E98: =IF($E$10=0,0,(YVarExp-(YTotExp+YTotRet-J10))/($E$10*YPER4)) -> 0 | H98: =IF($E$10=0,0,(YTotExp-(YTotExp+YTotRet-J10))/($E$10*YPER4)) -> 0
B99: 1.25 | C99: =E10*YPER5 -> 0 | E99: =IF($E$10=0,0,(YVarExp-(YTotExp+YTotRet-J10))/($E$10*YPER5)) -> 0 | H99: =IF($E$10=0,0,(YTotExp-(YTotExp+YTotRet-J10))/($E$10*YPER5)) -> 0
A101: Developed by Jackie Smith, Professor and Extension Economist, Texas A&M AgriLife Extension, 806-746-6101.
A103: Information presented is prepared solely as a general guide and not intended to recognize or predict the costs and returns from any one operation. Brand names are mentioned only as examples and imply no endorsement.

Sheet Peanuts
A1: Projections for Planning Purposes Only -- Not to be Used without Updating
A2: 2018 Estimated Costs and Returns per Acre
A3: Irrigated Peanuts
A4: Enter your name for this budget in the cell above.
A5: Enter Your Values in the cells highlighed in MAROON.
E6: Your Acres | R6: Your
C7: Crop Acres | D7: 122 | L7: Your | Q7: Enterprise | R7: Enterprise
E8: Your | H8: Your | I8: Cash | J8: Your | K8: Landlord | L8: Landlord | N8: Your | P8: Your | Q8: Total | R8: Total
A9: REVENUE | D9: Quantity | E9: Quantity | F9: Units | G9: $/Unit | H9: $/Unit | I9: Total | J9: Total | K9: Share | L9: Share | M9: Landlord | N9: Landlord | O9: Tenant | P9: Tenant | Q9: (122 acres) | R9: ="(" & E7 & " acres)" -> ( acres)
B10: Peanuts - Runner | D10: 2.2 | F10: Ton | G10: 430 | I10: 946 | J10: =E10*H10 -> 0 | K10: 0 | M10: 0 | N10: =J10*L10 -> 0 | O10: 946 | P10: =+J10-N10 -> 0 | Q10: 115412 | R10: =+J10*E$7 -> 0
D11: 0 | G11: 0 | I11: 0 | J11: 0 | K11: 0 | M11: 0 | N11: 0 | O11: 0 | P11: =+J11-N11 -> 0 | Q11: 0 | R11: 0
D12: 0 | G12: 0 | I12: 0 | J12: 0 | K12: 0 | M12: 0 | N12: 0 | O12: 0 | P12: 0 | Q12: 0 | R12: 0
A13: Total Revenue | I13: 946 | J13: =SUM(J10:J12) -> 0 | M13: 0 | N13: =SUM(N10:N12) -> 0 | O13: 946 | P13: =SUM(P10:P12) -> 0 | Q13: 115412 | R13: =SUM(R10:R12) -> 0
Q14: Enterprise | R14: Enterprise
A15: VARIABLE COSTS | D15: Quantity | E15: Quantity | F15: Units | G15: $/Unit | H15: $/Unit | I15: Total | J15: Total | K15: Share | L15: Share | M15: Landlord | N15: Landlord | O15: Tenant | P15: Tenant | Q15: Total | R15: Total
A16: Production Costs
B17: Custom
C18: Dig and Shake | D18: 1 | F18: Acre | G18: 25 | I18: 25 | J18: =E18*H18 -> 0 | K18: 0 | M18: 0 | N18: =J18*L18 -> 0 | O18: 25 | P18: =+J18-N18 -> 0 | Q18: 3050 | R18: =+J18*E$7 -> 0
C19: Harvest and Haul - Peanuts | D19: 2.2 | F19: Ton | G19: 60 | I19: 132 | J19: 0 | K19: 0 | M19: 0 | N19: 0 | O19: 132 | P19: 0 | Q19: 16104 | R19: 0
C20: Drying - Peanuts | D20: 2.2 | F20: Ton | G20: 30 | I20: 66 | J20: 0 | K20: 0 | M20: 0 | N20: 0 | O20: 66 | P20: 0 | Q20: 8052 | R20: 0
C21: Fertilizer Application - Liquid High | D21: 1 | F21: Acre | G21: 4.75 | I21: 4.75 | J21: 0 | K21: 0 | M21: 0 | N21: 0 | O21: 4.75 | P21: 0 | Q21: 579.5 | R21: 0
C22: Scouting - Peanuts | D22: 1 | F22: Acre | G22: 10 | I22: 10 | J22: 0 | K22: 0 | M22: 0 | N22: 0 | O22: 10 | P22: 0 | Q22: 1220 | R22: 0
B23: Fertilizer
C24: Fertilizer (P) - Liquid | D24: 50 | F24: Pound | G24: 0.5735294118 | I24: 28.67647059 | J24: 0 | K24: 0 | M24: 0 | N24: 0 | O24: 28.67647059 | P24: 0 | Q24: 3498.529412 | R24: 0
C25: Fertilizer (N) - Liquid | D25: 80 | F25: Pound | G25: 0.390625 | I25: 31.25 | J25: 0 | K25: 0 | M25: 0 | N25: 0 | O25: 31.25 | P25: 0 | Q25: 3812.5 | R25: 0
B26: Herbicide
C27: Herbicide - Peanut | D27: 1 | F27: Acre | G27: 20 | I27: 20 | J27: 0 | K27: 0 | M27: 0 | N27: 0 | O27: 20 | P27: 0 | Q27: 2440 | R27: 0
B28: Insecticide
C29: Insecticide and Apply Peanut | D29: 1 | F29: Application | G29: 12 | I29: 12 | J29: 0 | K29: 0 | M29: 0 | N29: 0 | O29: 12 | P29: 0 | Q29: 1464 | R29: 0
B30: Miscellaneous
C31: Crop Insurance Peanuts - Irrigated | D31: 1 | F31: Acre | G31: 30 | I31: 30 | J31: 0 | K31: 0 | M31: 0 | N31: 0 | O31: 30 | P31: 0 | Q31: 3660 | R31: 0
B32: Seed
C33: Seed - Peanut | D33: 120 | F33: Pound | G33: 0.75 | I33: 90 | J33: 0 | K33: 0 | M33: 0 | N33: 0 | O33: 90 | P33: 0 | Q33: 10980 | R33: 0
C34: Innoculant Peanut | D34: 1 | F34: Acre | G34: 7 | I34: 7 | J34: 0 | K34: 0 | M34: 0 | N34: 0 | O34: 7 | P34: 0 | Q34: 854 | R34: 0
B35: Fungicides
C36: Fungicide and Apply Peanut | D36: 1 | F36: Application | G36: 35 | I36: 35 | J36: 0 | K36: 0 | M36: 0 | N36: 0 | O36: 35 | P36: 0 | Q36: 4270 | R36: 0
B37: Other Labor
C38: Hoeing | D38: 1 | F38: Acre | G38: 15 | I38: 15 | J38: 0 | K38: 0 | M38: 0 | N38: 0 | O38: 15 | P38: 0 | Q38: 1830 | R38: 0
D39: 0 | G39: 0 | I39: 0 | J39: 0 | K39: 0 | M39: 0 | N39: 0 | O39: 0 | P39: 0 | Q39: 0 | R39: 0
D40: 0 | G40: 0 | I40: 0 | J40: 0 | K40: 0 | M40: 0 | N40: 0 | O40: 0 | P40: 0 | Q40: 0 | R40: 0
D41: 0 | G41: 0 | I41: 0 | J41: =E41*H41 -> 0 | K41: 0 | M41: 0 | N41: =J41*L41 -> 0 | O41: 0 | P41: =+J41-N41 -> 0 | Q41: 0 | R41: =+J41*E$7 -> 0
B42: Irrigation
C43: Energy Cost | D43: 22 | F43: AcreInch | G43: 10 | I43: 220 | J43: =E43*H43 -> 0 | K43: 0 | M43: 0 | N43: =J43*L43 -> 0 | O43: 220 | P43: =+J43-N43 -> 0 | Q43: 26840 | R43: =+J43*E$7 -> 0
C44: Irrigation Labor | D44: 1.25 | F44: Hour | G44: 12 | I44: 15 | J44: 0 | K44: 0 | M44: 0 | N44: 0 | O44: 15 | P44: 0 | Q44: 1830 | R44: 0
B45: Machinery Labor
C46: Tractors/Self-Propelled | D46: 1.39 | F46: Hour | G46: 12 | I46: 16.68 | J46: =E46*H46 -> 0 | K46: 0 | M46: 0 | N46: =J46*L46 -> 0 | O46: 16.68 | P46: =+J46-N46 -> 0 | Q46: 2034.96 | R46: =+J46*E$7 -> 0
C47: Other Labor | D47: 1.61 | F47: Hour | G47: 12 | I47: 19.32 | J47: =E47*H47 -> 0 | K47: 0 | M47: 0 | N47: =J47*L47 -> 0 | O47: 19.32 | P47: =+J47-N47 -> 0 | Q47: 2357.04 | R47: =+J47*E$7 -> 0
B49: Diesel Fuel
C50: Pickup/General Use Equipment | D50: 1 | F50: Acre | G50: 0 | I50: 0 | J50: =E50*H50 -> 0 | K50: 0 | M50: 0 | N50: =J50*L50 -> 0 | O50: 0 | P50: =+J50-N50 -> 0 | Q50: 0 | R50: =+J50*E$7 -> 0
C51: Tractors/Self-Propelled | D51: 7.6 | F51: Gallon | G51: 2.3 | I51: 17.48 | J51: =E51*H51 -> 0 | K51: 0 | M51: 0 | N51: =J51*L51 -> 0 | O51: 17.48 | P51: =+J51-N51 -> 0 | Q51: 2132.56 | R51: =+J51*E$7 -> 0
B53: Gasoline
C54: Pickup/General Use Equipment | D54: 1 | F54: Acre | G54: 6 | I54: 6 | J54: =E54*H54 -> 0 | K54: 0 | M54: 0 | N54: =J54*L54 -> 0 | O54: 6 | P54: =+J54-N54 -> 0 | Q54: 732 | R54: =+J54*E$7 -> 0
C55: Tractors/Self-Propelled | D55: 0 | F55: Gallon | G55: 3 | I55: 0 | J55: =E55*H55 -> 0 | K55: 0 | M55: 0 | N55: =J55*L55 -> 0 | O55: 0 | P55: =+J55-N55 -> 0 | Q55: 0 | R55: =+J55*E$7 -> 0
B57: Repairs & Maintenance
C58: Pickup/General Use Equipment | D58: 1 | F58: Acre | G58: 0.5 | I58: 0.5 | J58: =E58*H58 -> 0 | K58: 0 | M58: 0 | N58: =J58*L58 -> 0 | O58: 0.5 | P58: =+J58-N58 -> 0 | Q58: 61 | R58: =+J58*E$7 -> 0
C59: Irrigation Equipment | D59: 1 | F59: Acre | G59: 40 | I59: 40 | J59: 0 | K59: 0 | M59: 0 | N59: 0 | O59: 40 | P59: 0 | Q59: 4880 | R59: 0
C60: Tractors/Self-Propelled | D60: 1 | F60: Acre | G60: 6 | I60: 6 | J60: 0 | K60: 0 | M60: 0 | N60: 0 | O60: 6 | P60: 0 | Q60: 732 | R60: 0
C61: Implements | D61: 1 | F61: Acre | G61: 3 | I61: 3 | J61: 0 | K61: 0 | M61: 0 | N61: 0 | O61: 3 | P61: 0 | Q61: 366 | R61: 0
I62: 0 | J62: 0 | K62: 0 | M62: 0 | N62: 0 | O62: 0 | P62: 0 | Q62: 0 | R62: 0
I63: 0 | J63: 0 | K63: 0 | M63: 0 | N63: 0 | O63: 0 | P63: 0 | Q63: 0 | R63: 0
B64: Interest on Credit Line | G64: 0.06 | I64: 17.95358545 | J64: =+SUM(J17:J63)/2*H64 -> 0 | M64: 0 | N64: =+SUM(N17:N63)/2*L64 -> 0 | O64: 17.95358545 | P64: =+SUM(P17:P63)/2*L64 -> 0 | Q64: 2190.337424 | R64: =+J64*E$7 -> 0
A65: Total Variable Costs | I65: 868.610056 | J65: =SUM(J18:J64) -> 0 | M65: 0 | N65: =SUM(N18:N64) -> 0 | O65: 868.610056 | P65: =SUM(P18:P64) -> 0 | Q65: 105970.4268 | R65: =SUM(R18:R64) -> 0
A66: Planned Returns Above Variable Costs: | I66: 77.38994397 | J66: =+J13-J65 -> 0 | M66: 0 | N66: =+N13-N65 -> 0 | O66: 77.38994397 | P66: =+P13-P65 -> 0 | Q66: 9441.573164 | R66: =+R13-R65 -> 0
B67: Breakeven Price to Cover Variable Costs | G67: 394.8227527 | H67: =IF(E10=0,"n/a",(YVarExp-(YTotExp+YTotRet-J10))/E10) -> n/a | I67: Ton
Q68: Enterprise | R68: Enterprise
A69: FIXED COSTS | D69: Quantity | E69: Quantity | F69: Units | G69: $/Unit | H69: $/Unit | I69: Total | J69: Total | K69: Share | L69: Share | M69: Landlord | N69: Landlord | O69: Tenant | P69: Tenant | Q69: Total | R69: Total
B70: Equipment Fixed Costs
C71: Pickup/General Use Equipment | D71: 1 | F71: Acre | G71: 1.25 | I71: 1.25 | J71: =E71*H71 -> 0 | K71: 0 | M71: 0 | N71: =J71*L71 -> 0 | O71: 1.25 | P71: =+J71-N71 -> 0 | Q71: 152.5 | R71: =+J71*E$7 -> 0
C72: Irrigation Equipment | D72: 1 | F72: Acre | G72: 55 | I72: 55 | J72: 0 | K72: 0 | M72: 0 | N72: 0 | O72: 55 | P72: 0 | Q72: 6710 | R72: 0
C73: Tractors/Self-Propelled | D73: 1 | F73: Acre | G73: 12 | I73: 12 | J73: 0 | K73: 0 | M73: 0 | N73: 0 | O73: 12 | P73: 0 | Q73: 1464 | R73: 0
C74: Implements | D74: 1 | F74: Acre | G74: 10 | I74: 10 | J74: 0 | K74: 0 | M74: 0 | N74: 0 | O74: 10 | P74: 0 | Q74: 1220 | R74: 0
B75: Salaried Labor | D75: 1 | F75: Acre | G75: 0 | I75: 0 | J75: =E75*H75 -> 0 | K75: 0 | M75: 0 | N75: 0 | O75: 0 | P75: 0 | Q75: 0 | R75: 0
B76: Management Fee, Owner/Operator Labor | D76: 1 | F76: Acre | G76: 25 | I76: 25 | J76: 0 | K76: 0 | M76: 0 | N76: 0 | O76: 25 | P76: 0 | Q76: 3050 | R76: 0
B77: Allocated Establishment Cost | D77: 1 | F77: Acre | G77: 0 | I77: 0 | J77: 0 | K77: 0 | M77: 0 | N77: 0 | O77: 0 | P77: 0 | Q77: 0 | R77: 0
B78: Cash Rent - Peanuts | D78: 1 | F78: Acre | G78: 130 | I78: 130 | J78: 0 | K78: 0 | M78: 0 | N78: 0 | O78: 130 | P78: 0 | Q78: 15860 | R78: 0
B79: Property Taxes | D79: 1 | F79: Acre | G79: 0 | I79: 0 | J79: 0 | K79: 0 | M79: 0 | N79: 0 | O79: 0 | P79: 0 | Q79: 0 | R79: 0
B80: Whole Farm Insurance | D80: 1 | F80: Acre | G80: 2 | I80: 2 | J80: 0 | K80: 0 | M80: 0 | N80: 0 | O80: 2 | P80: 0 | Q80: 244 | R80: 0
D81: 1 | G81: 0 | I81: 0 | J81: 0 | K81: 0 | M81: 0 | N81: 0 | O81: 0 | P81: 0 | Q81: 0 | R81: 0
D82: 1 | G82: 0 | I82: 0 | J82: =E82*H82 -> 0 | K82: 0 | M82: 0 | N82: 0 | O82: 0 | P82: 0 | Q82: 0 | R82: 0
A83: Total Fixed Costs | I83: 235.25 | J83: =+SUM(J70:J82) -> 0 | M83: 0 | N83: =+SUM(N70:N82) -> 0 | O83: 235.25 | P83: =+SUM(P70:P82) -> 0 | Q83: 28700.5 | R83: =+SUM(R70:R82) -> 0
A84: Total Specified Costs | I84: 1103.860056 | J84: =+J65+J83 -> 0 | M84: 0 | N84: =+N65+N83 -> 0 | O84: 1103.860056 | P84: =+P65+P83 -> 0 | Q84: 134670.9268 | R84: =+R65+R83 -> 0
A86: Returns Above Specified Costs | I86: -157.860056 | J86: =+J13-J84 -> 0 | M86: 0 | N86: =+N13-N84 -> 0 | O86: -157.860056 | P86: =+P13-P84 -> 0 | Q86: -19258.92684 | R86: =+R13-R84 -> 0
A88: Breakeven Price to Cover Total Costs | G88: 501.7545709 | H88: =IF(E10=0,"n/a",(YTotExp-(YTotExp+YTotRet-J10))/E10) -> n/a | I88: Ton
D90: Example Breakeven Prices
B91: Example | C91: Example | D91: To Cover | G91: To Cover
B92: Yield | C92: Yield | D92: Variable | G92: Total
B93: Percent | C93: Ton | D93: Costs | G93: Costs
B94: 0.75 | C94: 1.65 | D94: 526.430337 | G94: 669.0060946
B95: 0.9 | C95: 1.98 | D95: 438.6919475 | G95: 557.5050788
B96: 1 | C96: 2.2 | D96: 394.8227527 | G96: 501.7545709
B97: 1.1 | C97: 2.42 | D97: 358.9297752 | G97: 456.140519
B98: 1.25 | C98: 2.75 | D98: 315.8582022 | G98: 401.4036567
D100: Your Breakeven Prices
B101: Your | C101: Your | E101: To Cover | H101: To Cover
B102: Yield | C102: Yield | E102: Variable | H102: Total
B103: Percent | C103: Ton | E103: Costs | H103: Costs
B104: 0.75 | C104: =E10*YPER1 -> 0 | E104: =IF($E$10=0,0,(YVarExp-(YTotExp+YTotRet-J10))/($E$10*YPER1)) -> 0 | H104: =IF($E$10=0,0,(YTotExp-(YTotExp+YTotRet-J10))/($E$10*YPER1)) -> 0
B105: 0.9 | C105: =E10*YPER2 -> 0 | E105: =IF($E$10=0,0,(YVarExp-(YTotExp+YTotRet-J10))/($E$10*YPER2)) -> 0 | H105: =IF($E$10=0,0,(YTotExp-(YTotExp+YTotRet-J10))/($E$10*YPER2)) -> 0
B106: 1 | C106: =+E10 -> 0 | E106: =IF($E$10=0,0,(YVarExp-(YTotExp+YTotRet-J10))/($E$10*YPER3)) -> 0 | H106: =IF($E$10=0,0,(YTotExp-(YTotExp+YTotRet-J10))/($E$10*YPER3)) -> 0
B107: 1.1 | C107: =E10*YPER4 -> 0 | E107: =IF($E$10=0,0,(YVarExp-(YTotExp+YTotRet-J10))/($E$10*YPER4)) -> 0 | H107: =IF($E$10=0,0,(YTotExp-(YTotExp+YTotRet-J10))/($E$10*YPER4)) -> 0
B108: 1.25 | C108: =E10*YPER5 -> 0 | E108: =IF($E$10=0,0,(YVarExp-(YTotExp+YTotRet-J10))/($E$10*YPER5)) -> 0 | H108: =IF($E$10=0,0,(YTotExp-(YTotExp+YTotRet-J10))/($E$10*YPER5)) -> 0
A110: Developed by Jackie Smith, Professor and Extension Economist, Texas A&M AgriLife Extension, 806-746-6101.
A112: Information presented is prepared solely as a general guide and not intended to recognize or predict the costs and returns from any one operation. Brand names are mentioned only as examples and imply no endorsement.

Sheet SesameIrrigated
A1: Projections for Planning Purposes Only -- Not to be Used without Updating
A2: 2018 Estimated Costs and Returns per Acre
A3: Irrigated Sesame
A4: Enter your name for this budget in the cell above.
A5: Enter Your Values in the cells highlighed in MAROON.
E6: Your Acres | R6: Your
C7: Crop Acres | D7: 122 | L7: Your | Q7: Enterprise | R7: Enterprise
E8: Your | H8: Your | I8: Cash | J8: Your | K8: Landlord | L8: Landlord | N8: Your | P8: Your | Q8: Total | R8: Total
A9: REVENUE | D9: Quantity | E9: Quantity | F9: Units | G9: $/Unit | H9: $/Unit | I9: Total | J9: Total | K9: Share | L9: Share | M9: Landlord | N9: Landlord | O9: Tenant | P9: Tenant | Q9: (122 acres) | R9: ="(" & E7 & " acres)" -> ( acres)
B10: Sesame - Irrigated | D10: 1500 | F10: Pound | G10: 0.32 | I10: 480 | J10: =E10*H10 -> 0 | K10: 0 | M10: 0 | N10: =J10*L10 -> 0 | O10: 480 | P10: =+J10-N10 -> 0 | Q10: 58560 | R10: =+J10*E$7 -> 0
D11: 0 | G11: 0 | I11: 0 | J11: 0 | K11: 0 | M11: 0 | N11: 0 | O11: 0 | P11: =+J11-N11 -> 0 | Q11: 0 | R11: 0
D12: 0 | G12: 0 | I12: 0 | J12: 0 | K12: 0 | M12: 0 | N12: 0 | O12: 0 | P12: 0 | Q12: 0 | R12: 0
A13: Total Revenue | I13: 480 | J13: =SUM(J10:J12) -> 0 | M13: 0 | N13: =SUM(N10:N12) -> 0 | O13: 480 | P13: =SUM(P10:P12) -> 0 | Q13: 58560 | R13: =SUM(R10:R12) -> 0
Q14: Enterprise | R14: Enterprise
A15: VARIABLE COSTS | D15: Quantity | E15: Quantity | F15: Units | G15: $/Unit | H15: $/Unit | I15: Total | J15: Total | K15: Share | L15: Share | M15: Landlord | N15: Landlord | O15: Tenant | P15: Tenant | Q15: Total | R15: Total
A16: Production Costs
B17: Herbicide
C18: Herbicide - Sesame | D18: 1 | F18: Acre | G18: 21.75 | I18: 21.75 | J18: =E18*H18 -> 0 | K18: 0 | M18: 0 | N18: =J18*L18 -> 0 | O18: 21.75 | P18: =+J18-N18 -> 0 | Q18: 2653.5 | R18: =+J18*E$7 -> 0
B19: Seed
C20: Seed - Sesame | D20: 2.5 | F20: Pound | G20: 4 | I20: 10 | J20: 0 | K20: 0 | M20: 0 | N20: 0 | O20: 10 | P20: 0 | Q20: 1220 | R20: 0
B21: Fertilizer
C22: Fertilizer (P) - Liquid | D22: 30 | F22: Pound | G22: 0.5735294118 | I22: 17.20588235 | J22: 0 | K22: 0 | M22: 0 | N22: 0 | O22: 17.20588235 | P22: 0 | Q22: 2099.117647 | R22: 0
C23: Fertilizer (N) - Liquid | D23: 75 | F23: Pound | G23: 0.390625 | I23: 29.296875 | J23: 0 | K23: 0 | M23: 0 | N23: 0 | O23: 29.296875 | P23: 0 | Q23: 3574.21875 | R23: 0
B24: Custom
C25: Fertilizer Application - Liquid High | D25: 1 | F25: Acre | G25: 4.75 | I25: 4.75 | J25: 0 | K25: 0 | M25: 0 | N25: 0 | O25: 4.75 | P25: 0 | Q25: 579.5 | R25: 0
C26: Custom Harvest - Sesame | D26: 1 | F26: Acre | G26: 25 | I26: 25 | J26: 0 | K26: 0 | M26: 0 | N26: 0 | O26: 25 | P26: 0 | Q26: 3050 | R26: 0
C27: Custom Haul - Sesame | D27: 15 | F27: CWT | G27: 0.12 | I27: 1.8 | J27: 0 | K27: 0 | M27: 0 | N27: 0 | O27: 1.8 | P27: 0 | Q27: 219.6 | R27: 0
B28: Miscellaneous
C29: Crop Insurance Sesame - Irrigated | D29: 1 | F29: Acre | G29: 12.5 | I29: 12.5 | J29: 0 | K29: 0 | M29: 0 | N29: 0 | O29: 12.5 | P29: 0 | Q29: 1525 | R29: 0
B30: Other Labor
C31: Hoeing | D31: 1 | F31: Acre | G31: 15 | I31: 15 | J31: 0 | K31: 0 | M31: 0 | N31: 0 | O31: 15 | P31: 0 | Q31: 1830 | R31: 0
D32: 0 | G32: 0 | I32: 0 | J32: 0 | K32: 0 | M32: 0 | N32: 0 | O32: 0 | P32: 0 | Q32: 0 | R32: 0
D33: 0 | G33: 0 | I33: 0 | J33: 0 | K33: 0 | M33: 0 | N33: 0 | O33: 0 | P33: 0 | Q33: 0 | R33: 0
D34: 0 | G34: 0 | I34: 0 | J34: =E34*H34 -> 0 | K34: 0 | M34: 0 | N34: =J34*L34 -> 0 | O34: 0 | P34: =+J34-N34 -> 0 | Q34: 0 | R34: =+J34*E$7 -> 0
B35: Irrigation
C36: Energy Cost | D36: 11 | F36: AcreInch | G36: 10 | I36: 110 | J36: =E36*H36 -> 0 | K36: 0 | M36: 0 | N36: =J36*L36 -> 0 | O36: 110 | P36: =+J36-N36 -> 0 | Q36: 13420 | R36: =+J36*E$7 -> 0
C37: Irrigation Labor | D37: 1 | F37: Hour | G37: 12 | I37: 12 | J37: 0 | K37: 0 | M37: 0 | N37: 0 | O37: 12 | P37: 0 | Q37: 1464 | R37: 0
B38: Machinery Labor
C39: Tractors/Self-Propelled | D39: 0.46 | F39: Hour | G39: 12 | I39: 5.52 | J39: =E39*H39 -> 0 | K39: 0 | M39: 0 | N39: =J39*L39 -> 0 | O39: 5.52 | P39: =+J39-N39 -> 0 | Q39: 673.44 | R39: =+J39*E$7 -> 0
C40: Other Labor | D40: 0.54 | F40: Hour | G40: 12 | I40: 6.48 | J40: =E40*H40 -> 0 | K40: 0 | M40: 0 | N40: =J40*L40 -> 0 | O40: 6.48 | P40: =+J40-N40 -> 0 | Q40: 790.56 | R40: =+J40*E$7 -> 0
B42: Diesel Fuel
C43: Pickup/General Use Equipment | D43: 1 | F43: Acre | G43: 0 | I43: 0 | J43: =E43*H43 -> 0 | K43: 0 | M43: 0 | N43: =J43*L43 -> 0 | O43: 0 | P43: =+J43-N43 -> 0 | Q43: 0 | R43: =+J43*E$7 -> 0
C44: Tractors/Self-Propelled | D44: 2.4 | F44: Gallon | G44: 2.3 | I44: 5.52 | J44: =E44*H44 -> 0 | K44: 0 | M44: 0 | N44: =J44*L44 -> 0 | O44: 5.52 | P44: =+J44-N44 -> 0 | Q44: 673.44 | R44: =+J44*E$7 -> 0
B46: Gasoline
C47: Pickup/General Use Equipment | D47: 1 | F47: Acre | G47: 6 | I47: 6 | J47: =E47*H47 -> 0 | K47: 0 | M47: 0 | N47: =J47*L47 -> 0 | O47: 6 | P47: =+J47-N47 -> 0 | Q47: 732 | R47: =+J47*E$7 -> 0
C48: Tractors/Self-Propelled | D48: 0 | F48: Gallon | G48: 3 | I48: 0 | J48: =E48*H48 -> 0 | K48: 0 | M48: 0 | N48: =J48*L48 -> 0 | O48: 0 | P48: =+J48-N48 -> 0 | Q48: 0 | R48: =+J48*E$7 -> 0
B50: Repairs & Maintenance
C51: Pickup/General Use Equipment | D51: 1 | F51: Acre | G51: 0.5 | I51: 0.5 | J51: =E51*H51 -> 0 | K51: 0 | M51: 0 | N51: =J51*L51 -> 0 | O51: 0.5 | P51: =+J51-N51 -> 0 | Q51: 61 | R51: =+J51*E$7 -> 0
C52: Irrigation Equipment | D52: 1 | F52: Acre | G52: 19.25 | I52: 19.25 | J52: 0 | K52: 0 | M52: 0 | N52: 0 | O52: 19.25 | P52: 0 | Q52: 2348.5 | R52: 0
C53: Tractors/Self-Propelled | D53: 1 | F53: Acre | G53: 6 | I53: 6 | J53: 0 | K53: 0 | M53: 0 | N53: 0 | O53: 6 | P53: 0 | Q53: 732 | R53: 0
C54: Implements | D54: 1 | F54: Acre | G54: 3 | I54: 3 | J54: 0 | K54: 0 | M54: 0 | N54: 0 | O54: 3 | P54: 0 | Q54: 366 | R54: 0
I55: 0 | J55: 0 | K55: 0 | M55: 0 | N55: 0 | O55: 0 | P55: 0 | Q55: 0 | R55: 0
I56: 0 | J56: 0 | K56: 0 | M56: 0 | N56: 0 | O56: 0 | P56: 0 | Q56: 0 | R56: 0
B57: Interest on Credit Line | G57: 0.06 | I57: 7.958553872 | J57: =+SUM(J17:J56)/2*H57 -> 0 | M57: 0 | N57: =+SUM(N17:N56)/2*L57 -> 0 | O57: 7.958553872 | P57: =+SUM(P17:P56)/2*L57 -> 0 | Q57: 970.9435724 | R57: =+J57*E$7 -> 0
A58: Total Variable Costs | I58: 319.5313112 | J58: =SUM(J18:J57) -> 0 | M58: 0 | N58: =SUM(N18:N57) -> 0 | O58: 319.5313112 | P58: =SUM(P18:P57) -> 0 | Q58: 38982.81997 | R58: =SUM(R18:R57) -> 0
A59: Planned Returns Above Variable Costs: | I59: 160.4686888 | J59: =+J13-J58 -> 0 | M59: 0 | N59: =+N13-N58 -> 0 | O59: 160.4686888 | P59: =+P13-P58 -> 0 | Q59: 19577.18003 | R59: =+R13-R58 -> 0
B60: Breakeven Price to Cover Variable Costs | G60: 0.2130208741 | H60: =IF(E10=0,"n/a",(YVarExp-(YTotExp+YTotRet-J10))/E10) -> n/a | I60: Pound
Q61: Enterprise | R61: Enterprise
A62: FIXED COSTS | D62: Quantity | E62: Quantity | F62: Units | G62: $/Unit | H62: $/Unit | I62: Total | J62: Total | K62: Share | L62: Share | M62: Landlord | N62: Landlord | O62: Tenant | P62: Tenant | Q62: Total | R62: Total
B63: Equipment Fixed Costs
C64: Pickup/General Use Equipment | D64: 1 | F64: Acre | G64: 1.25 | I64: 1.25 | J64: =E64*H64 -> 0 | K64: 0 | M64: 0 | N64: =J64*L64 -> 0 | O64: 1.25 | P64: =+J64-N64 -> 0 | Q64: 152.5 | R64: =+J64*E$7 -> 0
C65: Irrigation Equipment | D65: 1 | F65: Acre | G65: 55 | I65: 55 | J65: 0 | K65: 0 | M65: 0 | N65: 0 | O65: 55 | P65: 0 | Q65: 6710 | R65: 0
C66: Tractors/Self-Propelled | D66: 1 | F66: Acre | G66: 12 | I66: 12 | J66: 0 | K66: 0 | M66: 0 | N66: 0 | O66: 12 | P66: 0 | Q66: 1464 | R66: 0
C67: Implements | D67: 1 | F67: Acre | G67: 10 | I67: 10 | J67: 0 | K67: 0 | M67: 0 | N67: 0 | O67: 10 | P67: 0 | Q67: 1220 | R67: 0
B68: Salaried Labor | D68: 1 | F68: Acre | G68: 0 | I68: 0 | J68: =E68*H68 -> 0 | K68: 0 | M68: 0 | N68: 0 | O68: 0 | P68: 0 | Q68: 0 | R68: 0
B69: Management Fee, Owner/Operator Labor | D69: 1 | F69: Acre | G69: 25 | I69: 25 | J69: 0 | K69: 0 | M69: 0 | N69: 0 | O69: 25 | P69: 0 | Q69: 3050 | R69: 0
B70: Allocated Establishment Cost | D70: 1 | F70: Acre | G70: 0 | I70: 0 | J70: 0 | K70: 0 | M70: 0 | N70: 0 | O70: 0 | P70: 0 | Q70: 0 | R70: 0
B71: Cash Rent - Sesame | D71: 1 | F71: Acre | G71: 100 | I71: 100 | J71: 0 | K71: 0 | M71: 0 | N71: 0 | O71: 100 | P71: 0 | Q71: 12200 | R71: 0
B72: Property Taxes | D72: 1 | F72: Acre | G72: 0 | I72: 0 | J72: 0 | K72: 0 | M72: 0 | N72: 0 | O72: 0 | P72: 0 | Q72: 0 | R72: 0
B73: Whole Farm Insurance | D73: 1 | F73: Acre | G73: 2 | I73: 2 | J73: 0 | K73: 0 | M73: 0 | N73: 0 | O73: 2 | P73: 0 | Q73: 244 | R73: 0
D74: 1 | G74: 0 | I74: 0 | J74: 0 | K74: 0 | M74: 0 | N74: 0 | O74: 0 | P74: 0 | Q74: 0 | R74: 0
D75: 1 | G75: 0 | I75: 0 | J75: =E75*H75 -> 0 | K75: 0 | M75: 0 | N75: 0 | O75: 0 | P75: 0 | Q75: 0 | R75: 0
A76: Total Fixed Costs | I76: 205.25 | J76: =+SUM(J63:J75) -> 0 | M76: 0 | N76: =+SUM(N63:N75) -> 0 | O76: 205.25 | P76: =+SUM(P63:P75) -> 0 | Q76: 25040.5 | R76: =+SUM(R63:R75) -> 0
A77: Total Specified Costs | I77: 524.7813112 | J77: =+J58+J76 -> 0 | M77: 0 | N77: =+N58+N76 -> 0 | O77: 524.7813112 | P77: =+P58+P76 -> 0 | Q77: 64023.31997 | R77: =+R58+R76 -> 0
A79: Returns Above Specified Costs | I79: -44.78131122 | J79: =+J13-J77 -> 0 | M79: 0 | N79: =+N13-N77 -> 0 | O79: -44.78131122 | P79: =+P13-P77 -> 0 | Q79: -5463.319969 | R79: =+R13-R77 -> 0
A81: Breakeven Price to Cover Total Costs | G81: 0.3498542075 | H81: =IF(E10=0,"n/a",(YTotExp-(YTotExp+YTotRet-J10))/E10) -> n/a | I81: Pound
D83: Example Breakeven Prices
B84: Example | C84: Example | D84: To Cover | G84: To Cover
B85: Yield | C85: Yield | D85: Variable | G85: Total
B86: Percent | C86: Pound | D86: Costs | G86: Costs
B87: 0.75 | C87: 1125 | D87: 0.2840278322 | G87: 0.4664722766
B88: 0.9 | C88: 1350 | D88: 0.2366898602 | G88: 0.3887268972
B89: 1 | C89: 1500 | D89: 0.2130208741 | G89: 0.3498542075
B90: 1.1 | C90: 1650 | D90: 0.1936553401 | G90: 0.3180492795
B91: 1.25 | C91: 1875 | D91: 0.1704166993 | G91: 0.279883366
D93: Your Breakeven Prices
B94: Your | C94: Your | E94: To Cover | H94: To Cover
B95: Yield | C95: Yield | E95: Variable | H95: Total
B96: Percent | C96: Pound | E96: Costs | H96: Costs
B97: 0.75 | C97: =E10*YPER1 -> 0 | E97: =IF($E$10=0,0,(YVarExp-(YTotExp+YTotRet-J10))/($E$10*YPER1)) -> 0 | H97: =IF($E$10=0,0,(YTotExp-(YTotExp+YTotRet-J10))/($E$10*YPER1)) -> 0
B98: 0.9 | C98: =E10*YPER2 -> 0 | E98: =IF($E$10=0,0,(YVarExp-(YTotExp+YTotRet-J10))/($E$10*YPER2)) -> 0 | H98: =IF($E$10=0,0,(YTotExp-(YTotExp+YTotRet-J10))/($E$10*YPER2)) -> 0
B99: 1 | C99: =+E10 -> 0 | E99: =IF($E$10=0,0,(YVarExp-(YTotExp+YTotRet-J10))/($E$10*YPER3)) -> 0 | H99: =IF($E$10=0,0,(YTotExp-(YTotExp+YTotRet-J10))/($E$10*YPER3)) -> 0
B100: 1.1 | C100: =E10*YPER4 -> 0 | E100: =IF($E$10=0,0,(YVarExp-(YTotExp+YTotRet-J10))/($E$10*YPER4)) -> 0 | H100: =IF($E$10=0,0,(YTotExp-(YTotExp+YTotRet-J10))/($E$10*YPER4)) -> 0
B101: 1.25 | C101: =E10*YPER5 -> 0 | E101: =IF($E$10=0,0,(YVarExp-(YTotExp+YTotRet-J10))/($E$10*YPER5)) -> 0 | H101: =IF($E$10=0,0,(YTotExp-(YTotExp+YTotRet-J10))/($E$10*YPER5)) -> 0
A103: Developed by Jackie Smith, Professor and Extension Economist, Texas A&M AgriLife Extension, 806-746-6101.
A105: Information presented is prepared solely as a general guide and not intended to recognize or predict the costs and returns from any one operation. Brand names are mentioned only as examples and imply no endorsement.

Sheet SorghumIrrigated
A1: Projections for Planning Purposes Only -- Not to be Used without Updating
A2: 2018 Estimated Costs and Returns per Acre
A3: Irrigated Sorghum
A4: Enter your name for this budget in the cell above.
A5: Enter Your Values in the cells highlighed in MAROON.
E6: Your Acres | R6: Your
C7: Crop Acres | D7: 122 | L7: Your | Q7: Enterprise | R7: Enterprise
E8: Your | H8: Your | I8: Cash | J8: Your | K8: Landlord | L8: Landlord | N8: Your | P8: Your | Q8: Total | R8: Total
A9: REVENUE | D9: Quantity | E9: Quantity | F9: Units | G9: $/Unit | H9: $/Unit | I9: Total | J9: Total | K9: Share | L9: Share | M9: Landlord | N9: Landlord | O9: Tenant | P9: Tenant | Q9: (122 acres) | R9: ="(" & E7 & " acres)" -> ( acres)
B10: Grain Sorghum | D10: 55 | F10: CWT | G10: 6.5 | I10: 357.5 | J10: =E10*H10 -> 0 | K10: 0 | M10: 0 | N10: =J10*L10 -> 0 | O10: 357.5 | P10: =+J10-N10 -> 0 | Q10: 43615 | R10: =+J10*E$7 -> 0
D11: 0 | G11: 0 | I11: 0 | J11: 0 | K11: 0 | M11: 0 | N11: 0 | O11: 0 | P11: =+J11-N11 -> 0 | Q11: 0 | R11: 0
D12: 0 | G12: 0 | I12: 0 | J12: 0 | K12: 0 | M12: 0 | N12: 0 | O12: 0 | P12: 0 | Q12: 0 | R12: 0
A13: Total Revenue | I13: 357.5 | J13: =SUM(J10:J12) -> 0 | M13: 0 | N13: =SUM(N10:N12) -> 0 | O13: 357.5 | P13: =SUM(P10:P12) -> 0 | Q13: 43615 | R13: =SUM(R10:R12) -> 0
Q14: Enterprise | R14: Enterprise
A15: VARIABLE COSTS | D15: Quantity | E15: Quantity | F15: Units | G15: $/Unit | H15: $/Unit | I15: Total | J15: Total | K15: Share | L15: Share | M15: Landlord | N15: Landlord | O15: Tenant | P15: Tenant | Q15: Total | R15: Total
A16: Production Costs
B17: Herbicide
C18: Herbicide and Apply Sorghum Irrigated | D18: 1 | F18: Acre | G18: 21.12 | I18: 21.12 | J18: =E18*H18 -> 0 | K18: 0 | M18: 0 | N18: =J18*L18 -> 0 | O18: 21.12 | P18: =+J18-N18 -> 0 | Q18: 2576.64 | R18: =+J18*E$7 -> 0
B19: Seed
C20: Seed - Sorghum | D20: 4.5 | F20: Pound | G20: 2.4 | I20: 10.8 | J20: 0 | K20: 0 | M20: 0 | N20: 0 | O20: 10.8 | P20: 0 | Q20: 1317.6 | R20: 0
B21: Fertilizer
C22: Fertilizer (N) - Liquid | D22: 40 | F22: Pound | G22: 0.390625 | I22: 15.625 | J22: 0 | K22: 0 | M22: 0 | N22: 0 | O22: 15.625 | P22: 0 | Q22: 1906.25 | R22: 0
C23: Fertilizer (P) - Liquid | D23: 44 | F23: Pound | G23: 0.5735294118 | I23: 25.23529412 | J23: 0 | K23: 0 | M23: 0 | N23: 0 | O23: 25.23529412 | P23: 0 | Q23: 3078.705882 | R23: 0
C24: Fertilizer (N) - NH3 | D24: 70 | F24: Pound | G24: 0.3048780488 | I24: 21.34146341 | J24: 0 | K24: 0 | M24: 0 | N24: 0 | O24: 21.34146341 | P24: 0 | Q24: 2603.658537 | R24: 0
B25: Custom
C26: Harvest and Haul - Sorghum | D26: 55 | F26: CWT | G26: 0.6 | I26: 33 | J26: 0 | K26: 0 | M26: 0 | N26: 0 | O26: 33 | P26: 0 | Q26: 4026 | R26: 0
C27: Fertilizer Application - Liquid High | D27: 1 | F27: Acre | G27: 4.75 | I27: 4.75 | J27: 0 | K27: 0 | M27: 0 | N27: 0 | O27: 4.75 | P27: 0 | Q27: 579.5 | R27: 0
C28: Fertilizer Application - Liquid Low | D28: 1 | F28: Acre | G28: 3.5 | I28: 3.5 | J28: 0 | K28: 0 | M28: 0 | N28: 0 | O28: 3.5 | P28: 0 | Q28: 427 | R28: 0
C29: Fertilizer Application - NH3 | D29: 1 | F29: Acre | G29: 3.5 | I29: 3.5 | J29: 0 | K29: 0 | M29: 0 | N29: 0 | O29: 3.5 | P29: 0 | Q29: 427 | R29: 0
B30: Miscellaneous
C31: Crop Insurance Sorghum - Irrigated | D31: 1 | F31: Acre | G31: 29 | I31: 29 | J31: 0 | K31: 0 | M31: 0 | N31: 0 | O31: 29 | P31: 0 | Q31: 3538 | R31: 0
B32: Insecticide
C33: Insecticide and Apply Sorghum | D33: 1 | F33: Acre | G33: 25 | I33: 25 | J33: 0 | K33: 0 | M33: 0 | N33: 0 | O33: 25 | P33: 0 | Q33: 3050 | R33: 0
D34: 0 | G34: 0 | I34: 0 | J34: 0 | K34: 0 | M34: 0 | N34: 0 | O34: 0 | P34: 0 | Q34: 0 | R34: 0
D35: 0 | G35: 0 | I35: 0 | J35: 0 | K35: 0 | M35: 0 | N35: 0 | O35: 0 | P35: 0 | Q35: 0 | R35: 0
D36: 0 | G36: 0 | I36: 0 | J36: =E36*H36 -> 0 | K36: 0 | M36: 0 | N36: =J36*L36 -> 0 | O36: 0 | P36: =+J36-N36 -> 0 | Q36: 0 | R36: =+J36*E$7 -> 0
B37: Irrigation
C38: Energy Cost | D38: 9 | F38: AcreInch | G38: 10 | I38: 90 | J38: =E38*H38 -> 0 | K38: 0 | M38: 0 | N38: =J38*L38 -> 0 | O38: 90 | P38: =+J38-N38 -> 0 | Q38: 10980 | R38: =+J38*E$7 -> 0
C39: Irrigation Labor | D39: 0.75 | F39: Hour | G39: 12 | I39: 9 | J39: 0 | K39: 0 | M39: 0 | N39: 0 | O39: 9 | P39: 0 | Q39: 1098 | R39: 0
B40: Machinery Labor
C41: Tractors/Self-Propelled | D41: 0.61 | F41: Hour | G41: 12 | I41: 7.32 | J41: =E41*H41 -> 0 | K41: 0 | M41: 0 | N41: =J41*L41 -> 0 | O41: 7.32 | P41: =+J41-N41 -> 0 | Q41: 893.04 | R41: =+J41*E$7 -> 0
C42: Other Labor | D42: 0.69 | F42: Hour | G42: 12 | I42: 8.28 | J42: =E42*H42 -> 0 | K42: 0 | M42: 0 | N42: =J42*L42 -> 0 | O42: 8.28 | P42: =+J42-N42 -> 0 | Q42: 1010.16 | R42: =+J42*E$7 -> 0
B44: Diesel Fuel
C45: Pickup/General Use Equipment | D45: 1 | F45: Acre | G45: 0 | I45: 0 | J45: =E45*H45 -> 0 | K45: 0 | M45: 0 | N45: =J45*L45 -> 0 | O45: 0 | P45: =+J45-N45 -> 0 | Q45: 0 | R45: =+J45*E$7 -> 0
C46: Tractors/Self-Propelled | D46: 3.2 | F46: Gallon | G46: 2.3 | I46: 7.36 | J46: =E46*H46 -> 0 | K46: 0 | M46: 0 | N46: =J46*L46 -> 0 | O46: 7.36 | P46: =+J46-N46 -> 0 | Q46: 897.92 | R46: =+J46*E$7 -> 0
B48: Gasoline
C49: Pickup/General Use Equipment | D49: 1 | F49: Acre | G49: 6 | I49: 6 | J49: =E49*H49 -> 0 | K49: 0 | M49: 0 | N49: =J49*L49 -> 0 | O49: 6 | P49: =+J49-N49 -> 0 | Q49: 732 | R49: =+J49*E$7 -> 0
C50: Tractors/Self-Propelled | D50: 0 | F50: Gallon | G50: 3 | I50: 0 | J50: =E50*H50 -> 0 | K50: 0 | M50: 0 | N50: =J50*L50 -> 0 | O50: 0 | P50: =+J50-N50 -> 0 | Q50: 0 | R50: =+J50*E$7 -> 0
B52: Repairs & Maintenance
C53: Pickup/General Use Equipment | D53: 1 | F53: Acre | G53: 0.5 | I53: 0.5 | J53: =E53*H53 -> 0 | K53: 0 | M53: 0 | N53: =J53*L53 -> 0 | O53: 0.5 | P53: =+J53-N53 -> 0 | Q53: 61 | R53: =+J53*E$7 -> 0
C54: Irrigation Equipment | D54: 1 | F54: Acre | G54: 15.75 | I54: 15.75 | J54: 0 | K54: 0 | M54: 0 | N54: 0 | O54: 15.75 | P54: 0 | Q54: 1921.5 | R54: 0
C55: Tractors/Self-Propelled | D55: 1 | F55: Acre | G55: 6 | I55: 6 | J55: 0 | K55: 0 | M55: 0 | N55: 0 | O55: 6 | P55: 0 | Q55: 732 | R55: 0
C56: Implements | D56: 1 | F56: Acre | G56: 3 | I56: 3 | J56: 0 | K56: 0 | M56: 0 | N56: 0 | O56: 3 | P56: 0 | Q56: 366 | R56: 0
I57: 0 | J57: 0 | K57: 0 | M57: 0 | N57: 0 | O57: 0 | P57: 0 | Q57: 0 | R57: 0
I58: 0 | J58: 0 | K58: 0 | M58: 0 | N58: 0 | O58: 0 | P58: 0 | Q58: 0 | R58: 0
B59: Interest on Credit Line | G59: 0.06 | I59: 8.095096307 | J59: =+SUM(J17:J58)/2*H59 -> 0 | M59: 0 | N59: =+SUM(N17:N58)/2*L59 -> 0 | O59: 8.095096307 | P59: =+SUM(P17:P58)/2*L59 -> 0 | Q59: 987.6017495 | R59: =+J59*E$7 -> 0
A60: Total Variable Costs | I60: 354.1768538 | J60: =SUM(J18:J59) -> 0 | M60: 0 | N60: =SUM(N18:N59) -> 0 | O60: 354.1768538 | P60: =SUM(P18:P59) -> 0 | Q60: 43209.57617 | R60: =SUM(R18:R59) -> 0
A61: Planned Returns Above Variable Costs: | I61: 3.323146161 | J61: =+J13-J60 -> 0 | M61: 0 | N61: =+N13-N60 -> 0 | O61: 3.323146161 | P61: =+P13-P60 -> 0 | Q61: 405.4238316 | R61: =+R13-R60 -> 0
B62: Breakeven Price to Cover Variable Costs | G62: 6.439579161 | H62: =IF(E10=0,"n/a",(YVarExp-(YTotExp+YTotRet-J10))/E10) -> n/a | I62: CWT
Q63: Enterprise | R63: Enterprise
A64: FIXED COSTS | D64: Quantity | E64: Quantity | F64: Units | G64: $/Unit | H64: $/Unit | I64: Total | J64: Total | K64: Share | L64: Share | M64: Landlord | N64: Landlord | O64: Tenant | P64: Tenant | Q64: Total | R64: Total
B65: Equipment Fixed Costs
C66: Pickup/General Use Equipment | D66: 1 | F66: Acre | G66: 1.25 | I66: 1.25 | J66: =E66*H66 -> 0 | K66: 0 | M66: 0 | N66: =J66*L66 -> 0 | O66: 1.25 | P66: =+J66-N66 -> 0 | Q66: 152.5 | R66: =+J66*E$7 -> 0
C67: Irrigation Equipment | D67: 1 | F67: Acre | G67: 55 | I67: 55 | J67: 0 | K67: 0 | M67: 0 | N67: 0 | O67: 55 | P67: 0 | Q67: 6710 | R67: 0
C68: Tractors/Self-Propelled | D68: 1 | F68: Acre | G68: 12 | I68: 12 | J68: 0 | K68: 0 | M68: 0 | N68: 0 | O68: 12 | P68: 0 | Q68: 1464 | R68: 0
C69: Implements | D69: 1 | F69: Acre | G69: 10 | I69: 10 | J69: 0 | K69: 0 | M69: 0 | N69: 0 | O69: 10 | P69: 0 | Q69: 1220 | R69: 0
B70: Salaried Labor | D70: 1 | F70: Acre | G70: 0 | I70: 0 | J70: =E70*H70 -> 0 | K70: 0 | M70: 0 | N70: 0 | O70: 0 | P70: 0 | Q70: 0 | R70: 0
B71: Management Fee, Owner/Operator Labor | D71: 1 | F71: Acre | G71: 30 | I71: 30 | J71: 0 | K71: 0 | M71: 0 | N71: 0 | O71: 30 | P71: 0 | Q71: 3660 | R71: 0
B72: Allocated Establishment Cost | D72: 1 | F72: Acre | G72: 0 | I72: 0 | J72: 0 | K72: 0 | M72: 0 | N72: 0 | O72: 0 | P72: 0 | Q72: 0 | R72: 0
B73: Cash Rent - Sorghum Irrigated | D73: 1 | F73: Acre | G73: 100 | I73: 100 | J73: 0 | K73: 0 | M73: 0 | N73: 0 | O73: 100 | P73: 0 | Q73: 12200 | R73: 0
B74: Property Taxes | D74: 1 | F74: Acre | G74: 0 | I74: 0 | J74: 0 | K74: 0 | M74: 0 | N74: 0 | O74: 0 | P74: 0 | Q74: 0 | R74: 0
B75: Whole Farm Insurance | D75: 1 | F75: Acre | G75: 2 | I75: 2 | J75: 0 | K75: 0 | M75: 0 | N75: 0 | O75: 2 | P75: 0 | Q75: 244 | R75: 0
D76: 1 | G76: 0 | I76: 0 | J76: 0 | K76: 0 | M76: 0 | N76: 0 | O76: 0 | P76: 0 | Q76: 0 | R76: 0
D77: 1 | G77: 0 | I77: 0 | J77: =E77*H77 -> 0 | K77: 0 | M77: 0 | N77: 0 | O77: 0 | P77: 0 | Q77: 0 | R77: 0
A78: Total Fixed Costs | I78: 210.25 | J78: =+SUM(J65:J77) -> 0 | M78: 0 | N78: =+SUM(N65:N77) -> 0 | O78: 210.25 | P78: =+SUM(P65:P77) -> 0 | Q78: 25650.5 | R78: =+SUM(R65:R77) -> 0
A79: Total Specified Costs | I79: 564.4268538 | J79: =+J60+J78 -> 0 | M79: 0 | N79: =+N60+N78 -> 0 | O79: 564.4268538 | P79: =+P60+P78 -> 0 | Q79: 68860.07617 | R79: =+R60+R78 -> 0
A81: Returns Above Specified Costs | I81: -206.9268538 | J81: =+J13-J79 -> 0 | M81: 0 | N81: =+N13-N79 -> 0 | O81: -206.9268538 | P81: =+P13-P79 -> 0 | Q81: -25245.07617 | R81: =+R13-R79 -> 0
A83: Breakeven Price to Cover Total Costs | G83: 10.26230643 | H83: =IF(E10=0,"n/a",(YTotExp-(YTotExp+YTotRet-J10))/E10) -> n/a | I83: CWT
D85: Example Breakeven Prices
B86: Example | C86: Example | D86: To Cover | G86: To Cover
B87: Yield | C87: Yield | D87: Variable | G87: Total
B88: Percent | C88: CWT | D88: Costs | G88: Costs
B89: 0.75 | C89: 41.25 | D89: 8.586105548 | G89: 13.68307524
B90: 0.9 | C90: 49.5 | D90: 7.155087956 | G90: 11.4025627
B91: 1 | C91: 55 | D91: 6.439579161 | G91: 10.26230643
B92: 1.1 | C92: 60.5 | D92: 5.854162873 | G92: 9.329369485
B93: 1.25 | C93: 68.75 | D93: 5.151663329 | G93: 8.209845147
D95: Your Breakeven Prices
B96: Your | C96: Your | E96: To Cover | H96: To Cover
B97: Yield | C97: Yield | E97: Variable | H97: Total
B98: Percent | C98: CWT | E98: Costs | H98: Costs
B99: 0.75 | C99: =E10*YPER1 -> 0 | E99: =IF($E$10=0,0,(YVarExp-(YTotExp+YTotRet-J10))/($E$10*YPER1)) -> 0 | H99: =IF($E$10=0,0,(YTotExp-(YTotExp+YTotRet-J10))/($E$10*YPER1)) -> 0
B100: 0.9 | C100: =E10*YPER2 -> 0 | E100: =IF($E$10=0,0,(YVarExp-(YTotExp+YTotRet-J10))/($E$10*YPER2)) -> 0 | H100: =IF($E$10=0,0,(YTotExp-(YTotExp+YTotRet-J10))/($E$10*YPER2)) -> 0
B101: 1 | C101: =+E10 -> 0 | E101: =IF($E$10=0,0,(YVarExp-(YTotExp+YTotRet-J10))/($E$10*YPER3)) -> 0 | H101: =IF($E$10=0,0,(YTotExp-(YTotExp+YTotRet-J10))/($E$10*YPER3)) -> 0
B102: 1.1 | C102: =E10*YPER4 -> 0 | E102: =IF($E$10=0,0,(YVarExp-(YTotExp+YTotRet-J10))/($E$10*YPER4)) -> 0 | H102: =IF($E$10=0,0,(YTotExp-(YTotExp+YTotRet-J10))/($E$10*YPER4)) -> 0
B103: 1.25 | C103: =E10*YPER5 -> 0 | E103: =IF($E$10=0,0,(YVarExp-(YTotExp+YTotRet-J10))/($E$10*YPER5)) -> 0 | H103: =IF($E$10=0,0,(YTotExp-(YTotExp+YTotRet-J10))/($E$10*YPER5)) -> 0
A105: Developed by Jackie Smith, Professor and Extension Economist, Texas A&M AgriLife Extension, 806-746-6101.
A107: Information presented is prepared solely as a general guide and not intended to recognize or predict the costs and returns from any one operation. Brand names are mentioned only as examples and imply no endorsement.

Sheet SorghumSilage
A1: Projections for Planning Purposes Only -- Not to be Used without Updating
A2: 2018 Estimated Costs and Returns per Acre
A3: Irrigated Sorghum Silage
A4: Enter your name for this budget in the cell above.
A5: Enter Your Values in the cells highlighed in MAROON.
E6: Your Acres | R6: Your
C7: Crop Acres | D7: 122 | L7: Your | Q7: Enterprise | R7: Enterprise
E8: Your | H8: Your | I8: Cash | J8: Your | K8: Landlord | L8: Landlord | N8: Your | P8: Your | Q8: Total | R8: Total
A9: REVENUE | D9: Quantity | E9: Quantity | F9: Units | G9: $/Unit | H9: $/Unit | I9: Total | J9: Total | K9: Share | L9: Share | M9: Landlord | N9: Landlord | O9: Tenant | P9: Tenant | Q9: (122 acres) | R9: ="(" & E7 & " acres)" -> ( acres)
B10: Sorghum Silage | D10: 24 | F10: Ton | G10: 33 | I10: 792 | J10: =E10*H10 -> 0 | K10: 0 | M10: 0 | N10: =J10*L10 -> 0 | O10: 792 | P10: =+J10-N10 -> 0 | Q10: 96624 | R10: =+J10*E$7 -> 0
D11: 0 | G11: 0 | I11: 0 | J11: 0 | K11: 0 | M11: 0 | N11: 0 | O11: 0 | P11: =+J11-N11 -> 0 | Q11: 0 | R11: 0
D12: 0 | G12: 0 | I12: 0 | J12: 0 | K12: 0 | M12: 0 | N12: 0 | O12: 0 | P12: 0 | Q12: 0 | R12: 0
A13: Total Revenue | I13: 792 | J13: =SUM(J10:J12) -> 0 | M13: 0 | N13: =SUM(N10:N12) -> 0 | O13: 792 | P13: =SUM(P10:P12) -> 0 | Q13: 96624 | R13: =SUM(R10:R12) -> 0
Q14: Enterprise | R14: Enterprise
A15: VARIABLE COSTS | D15: Quantity | E15: Quantity | F15: Units | G15: $/Unit | H15: $/Unit | I15: Total | J15: Total | K15: Share | L15: Share | M15: Landlord | N15: Landlord | O15: Tenant | P15: Tenant | Q15: Total | R15: Total
A16: Production Costs
B17: Fertilizer
C18: Fertilizer (N) - Liquid | D18: 70 | F18: Pound | G18: 0.390625 | I18: 27.34375 | J18: =E18*H18 -> 0 | K18: 0 | M18: 0 | N18: =J18*L18 -> 0 | O18: 27.34375 | P18: =+J18-N18 -> 0 | Q18: 3335.9375 | R18: =+J18*E$7 -> 0
C19: Fertilizer (P) - Liquid | D19: 88 | F19: Pound | G19: 0.5735294118 | I19: 50.47058824 | J19: 0 | K19: 0 | M19: 0 | N19: 0 | O19: 50.47058824 | P19: 0 | Q19: 6157.411765 | R19: 0
C20: Fertilizer (N) - NH3 | D20: 150 | F20: Pound | G20: 0.3048780488 | I20: 45.73170732 | J20: 0 | K20: 0 | M20: 0 | N20: 0 | O20: 45.73170732 | P20: 0 | Q20: 5579.268293 | R20: 0
B21: Custom
C22: Harvest and Haul - Sorghum Silage | D22: 24 | F22: Ton | G22: 7 | I22: 168 | J22: 0 | K22: 0 | M22: 0 | N22: 0 | O22: 168 | P22: 0 | Q22: 20496 | R22: 0
C23: Fertilizer Application - Liquid High | D23: 1 | F23: Acre | G23: 4.75 | I23: 4.75 | J23: 0 | K23: 0 | M23: 0 | N23: 0 | O23: 4.75 | P23: 0 | Q23: 579.5 | R23: 0
C24: Fertilizer Application - Liquid Low | D24: 1 | F24: Acre | G24: 3.5 | I24: 3.5 | J24: 0 | K24: 0 | M24: 0 | N24: 0 | O24: 3.5 | P24: 0 | Q24: 427 | R24: 0
C25: Fertilizer Application - NH3 | D25: 1 | F25: Acre | G25: 3.5 | I25: 3.5 | J25: 0 | K25: 0 | M25: 0 | N25: 0 | O25: 3.5 | P25: 0 | Q25: 427 | R25: 0
B26: Miscellaneous
C27: Crop Insurance Sorghum Silage | D27: 1 | F27: Acre | G27: 23 | I27: 23 | J27: 0 | K27: 0 | M27: 0 | N27: 0 | O27: 23 | P27: 0 | Q27: 2806 | R27: 0
B28: Insecticide
C29: Insecticide and Apply Sorghum Silage | D29: 1 | F29: Acre | G29: 4.29 | I29: 4.29 | J29: 0 | K29: 0 | M29: 0 | N29: 0 | O29: 4.29 | P29: 0 | Q29: 523.38 | R29: 0
B30: Herbicide
C31: Herbicide and Apply Sorghum Silage | D31: 1 | F31: Acre | G31: 10.5 | I31: 10.5 | J31: 0 | K31: 0 | M31: 0 | N31: 0 | O31: 10.5 | P31: 0 | Q31: 1281 | R31: 0
B32: Seed
C33: Seed - Sorghum | D33: 7 | F33: Pound | G33: 2.4 | I33: 16.8 | J33: 0 | K33: 0 | M33: 0 | N33: 0 | O33: 16.8 | P33: 0 | Q33: 2049.6 | R33: 0
D34: 0 | G34: 0 | I34: 0 | J34: 0 | K34: 0 | M34: 0 | N34: 0 | O34: 0 | P34: 0 | Q34: 0 | R34: 0
D35: 0 | G35: 0 | I35: 0 | J35: 0 | K35: 0 | M35: 0 | N35: 0 | O35: 0 | P35: 0 | Q35: 0 | R35: 0
D36: 0 | G36: 0 | I36: 0 | J36: =E36*H36 -> 0 | K36: 0 | M36: 0 | N36: =J36*L36 -> 0 | O36: 0 | P36: =+J36-N36 -> 0 | Q36: 0 | R36: =+J36*E$7 -> 0
B37: Irrigation
C38: Energy Cost | D38: 16 | F38: AcreInch | G38: 10 | I38: 160 | J38: =E38*H38 -> 0 | K38: 0 | M38: 0 | N38: =J38*L38 -> 0 | O38: 160 | P38: =+J38-N38 -> 0 | Q38: 19520 | R38: =+J38*E$7 -> 0
C39: Irrigation Labor | D39: 1 | F39: Hour | G39: 12 | I39: 12 | J39: 0 | K39: 0 | M39: 0 | N39: 0 | O39: 12 | P39: 0 | Q39: 1464 | R39: 0
B40: Machinery Labor
C41: Tractors/Self-Propelled | D41: 0.61 | F41: Hour | G41: 12 | I41: 7.32 | J41: =E41*H41 -> 0 | K41: 0 | M41: 0 | N41: =J41*L41 -> 0 | O41: 7.32 | P41: =+J41-N41 -> 0 | Q41: 893.04 | R41: =+J41*E$7 -> 0
C42: Other Labor | D42: 0.69 | F42: Hour | G42: 12 | I42: 8.28 | J42: =E42*H42 -> 0 | K42: 0 | M42: 0 | N42: =J42*L42 -> 0 | O42: 8.28 | P42: =+J42-N42 -> 0 | Q42: 1010.16 | R42: =+J42*E$7 -> 0
B44: Diesel Fuel
C45: Pickup/General Use Equipment | D45: 1 | F45: Acre | G45: 0 | I45: 0 | J45: =E45*H45 -> 0 | K45: 0 | M45: 0 | N45: =J45*L45 -> 0 | O45: 0 | P45: =+J45-N45 -> 0 | Q45: 0 | R45: =+J45*E$7 -> 0
C46: Tractors/Self-Propelled | D46: 3.2 | F46: Gallon | G46: 2.3 | I46: 7.36 | J46: =E46*H46 -> 0 | K46: 0 | M46: 0 | N46: =J46*L46 -> 0 | O46: 7.36 | P46: =+J46-N46 -> 0 | Q46: 897.92 | R46: =+J46*E$7 -> 0
B48: Gasoline
C49: Pickup/General Use Equipment | D49: 1 | F49: Acre | G49: 6 | I49: 6 | J49: =E49*H49 -> 0 | K49: 0 | M49: 0 | N49: =J49*L49 -> 0 | O49: 6 | P49: =+J49-N49 -> 0 | Q49: 732 | R49: =+J49*E$7 -> 0
C50: Tractors/Self-Propelled | D50: 0 | F50: Gallon | G50: 3 | I50: 0 | J50: =E50*H50 -> 0 | K50: 0 | M50: 0 | N50: =J50*L50 -> 0 | O50: 0 | P50: =+J50-N50 -> 0 | Q50: 0 | R50: =+J50*E$7 -> 0
B52: Repairs & Maintenance
C53: Pickup/General Use Equipment | D53: 1 | F53: Acre | G53: 0.5 | I53: 0.5 | J53: =E53*H53 -> 0 | K53: 0 | M53: 0 | N53: =J53*L53 -> 0 | O53: 0.5 | P53: =+J53-N53 -> 0 | Q53: 61 | R53: =+J53*E$7 -> 0
C54: Irrigation Equipment | D54: 1 | F54: Acre | G54: 27.25 | I54: 27.25 | J54: 0 | K54: 0 | M54: 0 | N54: 0 | O54: 27.25 | P54: 0 | Q54: 3324.5 | R54: 0
C55: Tractors/Self-Propelled | D55: 1 | F55: Acre | G55: 6 | I55: 6 | J55: 0 | K55: 0 | M55: 0 | N55: 0 | O55: 6 | P55: 0 | Q55: 732 | R55: 0
C56: Implements | D56: 1 | F56: Acre | G56: 3 | I56: 3 | J56: 0 | K56: 0 | M56: 0 | N56: 0 | O56: 3 | P56: 0 | Q56: 366 | R56: 0
I57: 0 | J57: 0 | K57: 0 | M57: 0 | N57: 0 | O57: 0 | P57: 0 | Q57: 0 | R57: 0
I58: 0 | J58: 0 | K58: 0 | M58: 0 | N58: 0 | O58: 0 | P58: 0 | Q58: 0 | R58: 0
B59: Interest on Credit Line | G59: 0.06 | I59: 7.460994577 | J59: =+SUM(J17:J58)/2*H59 -> 0 | M59: 0 | N59: =+SUM(N17:N58)/2*L59 -> 0 | O59: 7.460994577 | P59: =+SUM(P17:P58)/2*L59 -> 0 | Q59: 910.2413384 | R59: =+J59*E$7 -> 0
A60: Total Variable Costs | I60: 603.0570401 | J60: =SUM(J18:J59) -> 0 | M60: 0 | N60: =SUM(N18:N59) -> 0 | O60: 603.0570401 | P60: =SUM(P18:P59) -> 0 | Q60: 73572.9589 | R60: =SUM(R18:R59) -> 0
A61: Planned Returns Above Variable Costs: | I61: 188.9429599 | J61: =+J13-J60 -> 0 | M61: 0 | N61: =+N13-N60 -> 0 | O61: 188.9429599 | P61: =+P13-P60 -> 0 | Q61: 23051.0411 | R61: =+R13-R60 -> 0
B62: Breakeven Price to Cover Variable Costs | G62: 25.12737667 | H62: =IF(E10=0,"n/a",(YVarExp-(YTotExp+YTotRet-J10))/E10) -> n/a | I62: Ton
Q63: Enterprise | R63: Enterprise
A64: FIXED COSTS | D64: Quantity | E64: Quantity | F64: Units | G64: $/Unit | H64: $/Unit | I64: Total | J64: Total | K64: Share | L64: Share | M64: Landlord | N64: Landlord | O64: Tenant | P64: Tenant | Q64: Total | R64: Total
B65: Equipment Fixed Costs
C66: Pickup/General Use Equipment | D66: 1 | F66: Acre | G66: 1.25 | I66: 1.25 | J66: =E66*H66 -> 0 | K66: 0 | M66: 0 | N66: =J66*L66 -> 0 | O66: 1.25 | P66: =+J66-N66 -> 0 | Q66: 152.5 | R66: =+J66*E$7 -> 0
C67: Irrigation Equipment | D67: 1 | F67: Acre | G67: 55 | I67: 55 | J67: 0 | K67: 0 | M67: 0 | N67: 0 | O67: 55 | P67: 0 | Q67: 6710 | R67: 0
C68: Tractors/Self-Propelled | D68: 1 | F68: Acre | G68: 12 | I68: 12 | J68: 0 | K68: 0 | M68: 0 | N68: 0 | O68: 12 | P68: 0 | Q68: 1464 | R68: 0
C69: Implements | D69: 1 | F69: Acre | G69: 10 | I69: 10 | J69: 0 | K69: 0 | M69: 0 | N69: 0 | O69: 10 | P69: 0 | Q69: 1220 | R69: 0
B70: Salaried Labor | D70: 1 | F70: Acre | G70: 0 | I70: 0 | J70: =E70*H70 -> 0 | K70: 0 | M70: 0 | N70: 0 | O70: 0 | P70: 0 | Q70: 0 | R70: 0
B71: Management Fee, Owner/Operator Labor | D71: 1 | F71: Acre | G71: 25 | I71: 25 | J71: 0 | K71: 0 | M71: 0 | N71: 0 | O71: 25 | P71: 0 | Q71: 3050 | R71: 0
B72: Allocated Establishment Cost | D72: 1 | F72: Acre | G72: 0 | I72: 0 | J72: 0 | K72: 0 | M72: 0 | N72: 0 | O72: 0 | P72: 0 | Q72: 0 | R72: 0
B73: Cash Rent - Sorghum Silage | D73: 1 | F73: Acre | G73: 100 | I73: 100 | J73: 0 | K73: 0 | M73: 0 | N73: 0 | O73: 100 | P73: 0 | Q73: 12200 | R73: 0
B74: Property Taxes | D74: 1 | F74: Acre | G74: 0 | I74: 0 | J74: 0 | K74: 0 | M74: 0 | N74: 0 | O74: 0 | P74: 0 | Q74: 0 | R74: 0
B75: Whole Farm Insurance | D75: 1 | F75: Acre | G75: 2 | I75: 2 | J75: 0 | K75: 0 | M75: 0 | N75: 0 | O75: 2 | P75: 0 | Q75: 244 | R75: 0
D76: 1 | G76: 0 | I76: 0 | J76: 0 | K76: 0 | M76: 0 | N76: 0 | O76: 0 | P76: 0 | Q76: 0 | R76: 0
D77: 1 | G77: 0 | I77: 0 | J77: =E77*H77 -> 0 | K77: 0 | M77: 0 | N77: 0 | O77: 0 | P77: 0 | Q77: 0 | R77: 0
A78: Total Fixed Costs | I78: 205.25 | J78: =+SUM(J65:J77) -> 0 | M78: 0 | N78: =+SUM(N65:N77) -> 0 | O78: 205.25 | P78: =+SUM(P65:P77) -> 0 | Q78: 25040.5 | R78: =+SUM(R65:R77) -> 0
A79: Total Specified Costs | I79: 808.3070401 | J79: =+J60+J78 -> 0 | M79: 0 | N79: =+N60+N78 -> 0 | O79: 808.3070401 | P79: =+P60+P78 -> 0 | Q79: 98613.4589 | R79: =+R60+R78 -> 0
A81: Returns Above Specified Costs | I81: -16.30704013 | J81: =+J13-J79 -> 0 | M81: 0 | N81: =+N13-N79 -> 0 | O81: -16.30704013 | P81: =+P13-P79 -> 0 | Q81: -1989.458896 | R81: =+R13-R79 -> 0
A83: Breakeven Price to Cover Total Costs | G83: 33.67946001 | H83: =IF(E10=0,"n/a",(YTotExp-(YTotExp+YTotRet-J10))/E10) -> n/a | I83: Ton
D85: Example Breakeven Prices
B86: Example | C86: Example | D86: To Cover | G86: To Cover
B87: Yield | C87: Yield | D87: Variable | G87: Total
B88: Percent | C88: Ton | D88: Costs | G88: Costs
B89: 0.75 | C89: 18 | D89: 33.5031689 | G89: 44.90594667
B90: 0.9 | C90: 21.6 | D90: 27.91930741 | G90: 37.42162223
B91: 1 | C91: 24 | D91: 25.12737667 | G91: 33.67946001
B92: 1.1 | C92: 26.4 | D92: 22.8430697 | G92: 30.61769091
B93: 1.25 | C93: 30 | D93: 20.10190134 | G93: 26.943568
D95: Your Breakeven Prices
B96: Your | C96: Your | E96: To Cover | H96: To Cover
B97: Yield | C97: Yield | E97: Variable | H97: Total
B98: Percent | C98: Ton | E98: Costs | H98: Costs
B99: 0.75 | C99: =E10*YPER1 -> 0 | E99: =IF($E$10=0,0,(YVarExp-(YTotExp+YTotRet-J10))/($E$10*YPER1)) -> 0 | H99: =IF($E$10=0,0,(YTotExp-(YTotExp+YTotRet-J10))/($E$10*YPER1)) -> 0
B100: 0.9 | C100: =E10*YPER2 -> 0 | E100: =IF($E$10=0,0,(YVarExp-(YTotExp+YTotRet-J10))/($E$10*YPER2)) -> 0 | H100: =IF($E$10=0,0,(YTotExp-(YTotExp+YTotRet-J10))/($E$10*YPER2)) -> 0
B101: 1 | C101: =+E10 -> 0 | E101: =IF($E$10=0,0,(YVarExp-(YTotExp+YTotRet-J10))/($E$10*YPER3)) -> 0 | H101: =IF($E$10=0,0,(YTotExp-(YTotExp+YTotRet-J10))/($E$10*YPER3)) -> 0
B102: 1.1 | C102: =E10*YPER4 -> 0 | E102: =IF($E$10=0,0,(YVarExp-(YTotExp+YTotRet-J10))/($E$10*YPER4)) -> 0 | H102: =IF($E$10=0,0,(YTotExp-(YTotExp+YTotRet-J10))/($E$10*YPER4)) -> 0
B103: 1.25 | C103: =E10*YPER5 -> 0 | E103: =IF($E$10=0,0,(YVarExp-(YTotExp+YTotRet-J10))/($E$10*YPER5)) -> 0 | H103: =IF($E$10=0,0,(YTotExp-(YTotExp+YTotRet-J10))/($E$10*YPER5)) -> 0
A105: Developed by Jackie Smith, Professor and Extension Economist, Texas A&M AgriLife Extension, 806-746-6101.
A107: Information presented is prepared solely as a general guide and not intended to recognize or predict the costs and returns from any one operation. Brand names are mentioned only as examples and imply no endorsement.

Sheet Soybeans
A1: Projections for Planning Purposes Only -- Not to be Used without Updating
A2: 2018 Estimated Costs and Returns per Acre
A3: Irrigated Soybeans
A4: Enter your name for this budget in the cell above.
A5: Enter Your Values in the cells highlighed in MAROON.
E6: Your Acres | R6: Your
C7: Crop Acres | D7: 122 | L7: Your | Q7: Enterprise | R7: Enterprise
E8: Your | H8: Your | I8: Cash | J8: Your | K8: Landlord | L8: Landlord | N8: Your | P8: Your | Q8: Total | R8: Total
A9: REVENUE | D9: Quantity | E9: Quantity | F9: Units | G9: $/Unit | H9: $/Unit | I9: Total | J9: Total | K9: Share | L9: Share | M9: Landlord | N9: Landlord | O9: Tenant | P9: Tenant | Q9: (122 acres) | R9: ="(" & E7 & " acres)" -> ( acres)
B10: Soybeans | D10: 40 | F10: Bushel | G10: 9 | I10: 360 | J10: =E10*H10 -> 0 | K10: 0 | M10: 0 | N10: =J10*L10 -> 0 | O10: 360 | P10: =+J10-N10 -> 0 | Q10: 43920 | R10: =+J10*E$7 -> 0
D11: 0 | G11: 0 | I11: 0 | J11: 0 | K11: 0 | M11: 0 | N11: 0 | O11: 0 | P11: =+J11-N11 -> 0 | Q11: 0 | R11: 0
D12: 0 | G12: 0 | I12: 0 | J12: 0 | K12: 0 | M12: 0 | N12: 0 | O12: 0 | P12: 0 | Q12: 0 | R12: 0
A13: Total Revenue | I13: 360 | J13: =SUM(J10:J12) -> 0 | M13: 0 | N13: =SUM(N10:N12) -> 0 | O13: 360 | P13: =SUM(P10:P12) -> 0 | Q13: 43920 | R13: =SUM(R10:R12) -> 0
Q14: Enterprise | R14: Enterprise
A15: VARIABLE COSTS | D15: Quantity | E15: Quantity | F15: Units | G15: $/Unit | H15: $/Unit | I15: Total | J15: Total | K15: Share | L15: Share | M15: Landlord | N15: Landlord | O15: Tenant | P15: Tenant | Q15: Total | R15: Total
A16: Production Costs
B17: Herbicide
C18: Herbicide and Apply Soybeans | D18: 1 | F18: Acre | G18: 18 | I18: 18 | J18: =E18*H18 -> 0 | K18: 0 | M18: 0 | N18: =J18*L18 -> 0 | O18: 18 | P18: =+J18-N18 -> 0 | Q18: 2196 | R18: =+J18*E$7 -> 0
B19: Seed
C20: Seed - Soybeans | D20: 60 | F20: Pound | G20: 0.65 | I20: 39 | J20: 0 | K20: 0 | M20: 0 | N20: 0 | O20: 39 | P20: 0 | Q20: 4758 | R20: 0
C21: Innoculant Soybeans | D21: 1 | F21: Acre | G21: 7 | I21: 7 | J21: 0 | K21: 0 | M21: 0 | N21: 0 | O21: 7 | P21: 0 | Q21: 854 | R21: 0
B22: Fertilizer
C23: Fertilizer (P) - Liquid | D23: 45 | F23: Pound | G23: 0.5735294118 | I23: 25.80882353 | J23: 0 | K23: 0 | M23: 0 | N23: 0 | O23: 25.80882353 | P23: 0 | Q23: 3148.676471 | R23: 0
B24: Custom
C25: Harvest and Haul - Soybeans | D25: 40 | F25: Bushel | G25: 0.5 | I25: 20 | J25: 0 | K25: 0 | M25: 0 | N25: 0 | O25: 20 | P25: 0 | Q25: 2440 | R25: 0
B26: Miscellaneous
C27: Crop Insurance Soybeans | D27: 1 | F27: Acre | G27: 23 | I27: 23 | J27: 0 | K27: 0 | M27: 0 | N27: 0 | O27: 23 | P27: 0 | Q27: 2806 | R27: 0
C28: Crop Insurance Hail Soybeans | D28: 2 | F28: Acre | G28: 6 | I28: 12 | J28: 0 | K28: 0 | M28: 0 | N28: 0 | O28: 12 | P28: 0 | Q28: 1464 | R28: 0
B29: Insecticide
C30: Insecticide and Apply Soybeans | D30: 1 | F30: Acre | G30: 5.12 | I30: 5.12 | J30: 0 | K30: 0 | M30: 0 | N30: 0 | O30: 5.12 | P30: 0 | Q30: 624.64 | R30: 0
D31: 0 | G31: 0 | I31: 0 | J31: 0 | K31: 0 | M31: 0 | N31: 0 | O31: 0 | P31: 0 | Q31: 0 | R31: 0
D32: 0 | G32: 0 | I32: 0 | J32: 0 | K32: 0 | M32: 0 | N32: 0 | O32: 0 | P32: 0 | Q32: 0 | R32: 0
D33: 0 | G33: 0 | I33: 0 | J33: =E33*H33 -> 0 | K33: 0 | M33: 0 | N33: =J33*L33 -> 0 | O33: 0 | P33: =+J33-N33 -> 0 | Q33: 0 | R33: =+J33*E$7 -> 0
B34: Irrigation
C35: Energy Cost | D35: 15 | F35: AcreInch | G35: 10 | I35: 150 | J35: =E35*H35 -> 0 | K35: 0 | M35: 0 | N35: =J35*L35 -> 0 | O35: 150 | P35: =+J35-N35 -> 0 | Q35: 18300 | R35: =+J35*E$7 -> 0
C36: Irrigation Labor | D36: 1 | F36: Hour | G36: 12 | I36: 12 | J36: 0 | K36: 0 | M36: 0 | N36: 0 | O36: 12 | P36: 0 | Q36: 1464 | R36: 0
B37: Machinery Labor
C38: Tractors/Self-Propelled | D38: 0.7 | F38: Hour | G38: 12 | I38: 8.4 | J38: =E38*H38 -> 0 | K38: 0 | M38: 0 | N38: =J38*L38 -> 0 | O38: 8.4 | P38: =+J38-N38 -> 0 | Q38: 1024.8 | R38: =+J38*E$7 -> 0
C39: Other Labor | D39: 0.8 | F39: Hour | G39: 12 | I39: 9.6 | J39: =E39*H39 -> 0 | K39: 0 | M39: 0 | N39: =J39*L39 -> 0 | O39: 9.6 | P39: =+J39-N39 -> 0 | Q39: 1171.2 | R39: =+J39*E$7 -> 0
B41: Diesel Fuel
C42: Pickup/General Use Equipment | D42: 1 | F42: Acre | G42: 0 | I42: 0 | J42: =E42*H42 -> 0 | K42: 0 | M42: 0 | N42: =J42*L42 -> 0 | O42: 0 | P42: =+J42-N42 -> 0 | Q42: 0 | R42: =+J42*E$7 -> 0
C43: Tractors/Self-Propelled | D43: 3.8 | F43: Gallon | G43: 2.3 | I43: 8.74 | J43: =E43*H43 -> 0 | K43: 0 | M43: 0 | N43: =J43*L43 -> 0 | O43: 8.74 | P43: =+J43-N43 -> 0 | Q43: 1066.28 | R43: =+J43*E$7 -> 0
B45: Gasoline
C46: Pickup/General Use Equipment | D46: 1 | F46: Acre | G46: 6 | I46: 6 | J46: =E46*H46 -> 0 | K46: 0 | M46: 0 | N46: =J46*L46 -> 0 | O46: 6 | P46: =+J46-N46 -> 0 | Q46: 732 | R46: =+J46*E$7 -> 0
C47: Tractors/Self-Propelled | D47: 0 | F47: Gallon | G47: 3 | I47: 0 | J47: =E47*H47 -> 0 | K47: 0 | M47: 0 | N47: =J47*L47 -> 0 | O47: 0 | P47: =+J47-N47 -> 0 | Q47: 0 | R47: =+J47*E$7 -> 0
B49: Repairs & Maintenance
C50: Pickup/General Use Equipment | D50: 1 | F50: Acre | G50: 0.5 | I50: 0.5 | J50: =E50*H50 -> 0 | K50: 0 | M50: 0 | N50: =J50*L50 -> 0 | O50: 0.5 | P50: =+J50-N50 -> 0 | Q50: 61 | R50: =+J50*E$7 -> 0
C51: Irrigation Equipment | D51: 1 | F51: Acre | G51: 26.25 | I51: 26.25 | J51: 0 | K51: 0 | M51: 0 | N51: 0 | O51: 26.25 | P51: 0 | Q51: 3202.5 | R51: 0
C52: Tractors/Self-Propelled | D52: 1 | F52: Acre | G52: 6 | I52: 6 | J52: 0 | K52: 0 | M52: 0 | N52: 0 | O52: 6 | P52: 0 | Q52: 732 | R52: 0
C53: Implements | D53: 1 | F53: Acre | G53: 3 | I53: 3 | J53: 0 | K53: 0 | M53: 0 | N53: 0 | O53: 3 | P53: 0 | Q53: 366 | R53: 0
I54: 0 | J54: 0 | K54: 0 | M54: 0 | N54: 0 | O54: 0 | P54: 0 | Q54: 0 | R54: 0
I55: 0 | J55: 0 | K55: 0 | M55: 0 | N55: 0 | O55: 0 | P55: 0 | Q55: 0 | R55: 0
B56: Interest on Credit Line | G56: 0.06 | I56: 7.6418446 | J56: =+SUM(J17:J55)/2*H56 -> 0 | M56: 0 | N56: =+SUM(N17:N55)/2*L56 -> 0 | O56: 7.6418446 | P56: =+SUM(P17:P55)/2*L56 -> 0 | Q56: 932.3050412 | R56: =+J56*E$7 -> 0
A57: Total Variable Costs | I57: 388.0606681 | J57: =SUM(J18:J56) -> 0 | M57: 0 | N57: =SUM(N18:N56) -> 0 | O57: 388.0606681 | P57: =SUM(P18:P56) -> 0 | Q57: 47343.40151 | R57: =SUM(R18:R56) -> 0
A58: Planned Returns Above Variable Costs: | I58: -28.06066813 | J58: =+J13-J57 -> 0 | M58: 0 | N58: =+N13-N57 -> 0 | O58: -28.06066813 | P58: =+P13-P57 -> 0 | Q58: -3423.401512 | R58: =+R13-R57 -> 0
B59: Breakeven Price to Cover Variable Costs | G59: 9.701516703 | H59: =IF(E10=0,"n/a",(YVarExp-(YTotExp+YTotRet-J10))/E10) -> n/a | I59: Bushel
Q60: Enterprise | R60: Enterprise
A61: FIXED COSTS | D61: Quantity | E61: Quantity | F61: Units | G61: $/Unit | H61: $/Unit | I61: Total | J61: Total | K61: Share | L61: Share | M61: Landlord | N61: Landlord | O61: Tenant | P61: Tenant | Q61: Total | R61: Total
B62: Equipment Fixed Costs
C63: Pickup/General Use Equipment | D63: 1 | F63: Acre | G63: 1.25 | I63: 1.25 | J63: =E63*H63 -> 0 | K63: 0 | M63: 0 | N63: =J63*L63 -> 0 | O63: 1.25 | P63: =+J63-N63 -> 0 | Q63: 152.5 | R63: =+J63*E$7 -> 0
C64: Irrigation Equipment | D64: 1 | F64: Acre | G64: 55 | I64: 55 | J64: 0 | K64: 0 | M64: 0 | N64: 0 | O64: 55 | P64: 0 | Q64: 6710 | R64: 0
C65: Tractors/Self-Propelled | D65: 1 | F65: Acre | G65: 12 | I65: 12 | J65: 0 | K65: 0 | M65: 0 | N65: 0 | O65: 12 | P65: 0 | Q65: 1464 | R65: 0
C66: Implements | D66: 1 | F66: Acre | G66: 10 | I66: 10 | J66: 0 | K66: 0 | M66: 0 | N66: 0 | O66: 10 | P66: 0 | Q66: 1220 | R66: 0
B67: Salaried Labor | D67: 1 | F67: Acre | G67: 0 | I67: 0 | J67: =E67*H67 -> 0 | K67: 0 | M67: 0 | N67: 0 | O67: 0 | P67: 0 | Q67: 0 | R67: 0
B68: Management Fee, Owner/Operator Labor | D68: 1 | F68: Acre | G68: 25 | I68: 25 | J68: 0 | K68: 0 | M68: 0 | N68: 0 | O68: 25 | P68: 0 | Q68: 3050 | R68: 0
B69: Allocated Establishment Cost | D69: 1 | F69: Acre | G69: 0 | I69: 0 | J69: 0 | K69: 0 | M69: 0 | N69: 0 | O69: 0 | P69: 0 | Q69: 0 | R69: 0
B70: Cash Rent - Soybeans | D70: 1 | F70: Acre | G70: 100 | I70: 100 | J70: 0 | K70: 0 | M70: 0 | N70: 0 | O70: 100 | P70: 0 | Q70: 12200 | R70: 0
B71: Property Taxes | D71: 1 | F71: Acre | G71: 0 | I71: 0 | J71: 0 | K71: 0 | M71: 0 | N71: 0 | O71: 0 | P71: 0 | Q71: 0 | R71: 0
B72: Whole Farm Insurance | D72: 1 | F72: Acre | G72: 2 | I72: 2 | J72: 0 | K72: 0 | M72: 0 | N72: 0 | O72: 2 | P72: 0 | Q72: 244 | R72: 0
D73: 1 | G73: 0 | I73: 0 | J73: 0 | K73: 0 | M73: 0 | N73: 0 | O73: 0 | P73: 0 | Q73: 0 | R73: 0
D74: 1 | G74: 0 | I74: 0 | J74: =E74*H74 -> 0 | K74: 0 | M74: 0 | N74: 0 | O74: 0 | P74: 0 | Q74: 0 | R74: 0
A75: Total Fixed Costs | I75: 205.25 | J75: =+SUM(J62:J74) -> 0 | M75: 0 | N75: =+SUM(N62:N74) -> 0 | O75: 205.25 | P75: =+SUM(P62:P74) -> 0 | Q75: 25040.5 | R75: =+SUM(R62:R74) -> 0
A76: Total Specified Costs | I76: 593.3106681 | J76: =+J57+J75 -> 0 | M76: 0 | N76: =+N57+N75 -> 0 | O76: 593.3106681 | P76: =+P57+P75 -> 0 | Q76: 72383.90151 | R76: =+R57+R75 -> 0
A78: Returns Above Specified Costs | I78: -233.3106681 | J78: =+J13-J76 -> 0 | M78: 0 | N78: =+N13-N76 -> 0 | O78: -233.3106681 | P78: =+P13-P76 -> 0 | Q78: -28463.90151 | R78: =+R13-R76 -> 0
A80: Breakeven Price to Cover Total Costs | G80: 14.8327667 | H80: =IF(E10=0,"n/a",(YTotExp-(YTotExp+YTotRet-J10))/E10) -> n/a | I80: Bushel
D82: Example Breakeven Prices
B83: Example | C83: Example | D83: To Cover | G83: To Cover
B84: Yield | C84: Yield | D84: Variable | G84: Total
B85: Percent | C85: Bushel | D85: Costs | G85: Costs
B86: 0.75 | C86: 30 | D86: 12.9353556 | G86: 19.77702227
B87: 0.9 | C87: 36 | D87: 10.779463 | G87: 16.48085189
B88: 1 | C88: 40 | D88: 9.701516703 | G88: 14.8327667
B89: 1.1 | C89: 44 | D89: 8.819560639 | G89: 13.48433337
B90: 1.25 | C90: 50 | D90: 7.761213363 | G90: 11.86621336
D92: Your Breakeven Prices
B93: Your | C93: Your | E93: To Cover | H93: To Cover
B94: Yield | C94: Yield | E94: Variable | H94: Total
B95: Percent | C95: Bushel | E95: Costs | H95: Costs
B96: 0.75 | C96: =E10*YPER1 -> 0 | E96: =IF($E$10=0,0,(YVarExp-(YTotExp+YTotRet-J10))/($E$10*YPER1)) -> 0 | H96: =IF($E$10=0,0,(YTotExp-(YTotExp+YTotRet-J10))/($E$10*YPER1)) -> 0
B97: 0.9 | C97: =E10*YPER2 -> 0 | E97: =IF($E$10=0,0,(YVarExp-(YTotExp+YTotRet-J10))/($E$10*YPER2)) -> 0 | H97: =IF($E$10=0,0,(YTotExp-(YTotExp+YTotRet-J10))/($E$10*YPER2)) -> 0
B98: 1 | C98: =+E10 -> 0 | E98: =IF($E$10=0,0,(YVarExp-(YTotExp+YTotRet-J10))/($E$10*YPER3)) -> 0 | H98: =IF($E$10=0,0,(YTotExp-(YTotExp+YTotRet-J10))/($E$10*YPER3)) -> 0
B99: 1.1 | C99: =E10*YPER4 -> 0 | E99: =IF($E$10=0,0,(YVarExp-(YTotExp+YTotRet-J10))/($E$10*YPER4)) -> 0 | H99: =IF($E$10=0,0,(YTotExp-(YTotExp+YTotRet-J10))/($E$10*YPER4)) -> 0
B100: 1.25 | C100: =E10*YPER5 -> 0 | E100: =IF($E$10=0,0,(YVarExp-(YTotExp+YTotRet-J10))/($E$10*YPER5)) -> 0 | H100: =IF($E$10=0,0,(YTotExp-(YTotExp+YTotRet-J10))/($E$10*YPER5)) -> 0
A102: Developed by Jackie Smith, Professor and Extension Economist, Texas A&M AgriLife Extension, 806-746-6101.
A104: Information presented is prepared solely as a general guide and not intended to recognize or predict the costs and returns from any one operation. Brand names are mentioned only as examples and imply no endorsement.

Sheet SunflowersConfectionary
A1: Projections for Planning Purposes Only -- Not to be Used without Updating
A2: 2018 Estimated Costs and Returns per Acre
A3: Irrigated Sunflowers - Confectionary
A4: Enter your name for this budget in the cell above.
A5: Enter Your Values in the cells highlighed in MAROON.
E6: Your Acres | R6: Your
C7: Crop Acres | D7: 122 | L7: Your | Q7: Enterprise | R7: Enterprise
E8: Your | H8: Your | I8: Cash | J8: Your | K8: Landlord | L8: Landlord | N8: Your | P8: Your | Q8: Total | R8: Total
A9: REVENUE | D9: Quantity | E9: Quantity | F9: Units | G9: $/Unit | H9: $/Unit | I9: Total | J9: Total | K9: Share | L9: Share | M9: Landlord | N9: Landlord | O9: Tenant | P9: Tenant | Q9: (122 acres) | R9: ="(" & E7 & " acres)" -> ( acres)
B10: Confectionary Sunflowers | D10: 2000 | F10: Pound | G10: 0.2133 | I10: 426.6 | J10: =E10*H10 -> 0 | K10: 0 | M10: 0 | N10: =J10*L10 -> 0 | O10: 426.6 | P10: =+J10-N10 -> 0 | Q10: 52045.2 | R10: =+J10*E$7 -> 0
D11: 0 | G11: 0 | I11: 0 | J11: 0 | K11: 0 | M11: 0 | N11: 0 | O11: 0 | P11: =+J11-N11 -> 0 | Q11: 0 | R11: 0
D12: 0 | G12: 0 | I12: 0 | J12: 0 | K12: 0 | M12: 0 | N12: 0 | O12: 0 | P12: 0 | Q12: 0 | R12: 0
A13: Total Revenue | I13: 426.6 | J13: =SUM(J10:J12) -> 0 | M13: 0 | N13: =SUM(N10:N12) -> 0 | O13: 426.6 | P13: =SUM(P10:P12) -> 0 | Q13: 52045.2 | R13: =SUM(R10:R12) -> 0
Q14: Enterprise | R14: Enterprise
A15: VARIABLE COSTS | D15: Quantity | E15: Quantity | F15: Units | G15: $/Unit | H15: $/Unit | I15: Total | J15: Total | K15: Share | L15: Share | M15: Landlord | N15: Landlord | O15: Tenant | P15: Tenant | Q15: Total | R15: Total
A16: Production Costs
B17: Herbicide
C18: Herbicide and Apply Conf. Sunflowers | D18: 1 | F18: Acre | G18: 35 | I18: 35 | J18: =E18*H18 -> 0 | K18: 0 | M18: 0 | N18: =J18*L18 -> 0 | O18: 35 | P18: =+J18-N18 -> 0 | Q18: 4270 | R18: =+J18*E$7 -> 0
B19: Seed
C20: Seed - Confectionary Sunflower | D20: 1 | F20: Acre | G20: 21 | I20: 21 | J20: 0 | K20: 0 | M20: 0 | N20: 0 | O20: 21 | P20: 0 | Q20: 2562 | R20: 0
B21: Fertilizer
C22: Fertilizer (N) - Liquid | D22: 70 | F22: Pound | G22: 0.390625 | I22: 27.34375 | J22: 0 | K22: 0 | M22: 0 | N22: 0 | O22: 27.34375 | P22: 0 | Q22: 3335.9375 | R22: 0
C23: Fertilizer (P) - Liquid | D23: 24 | F23: Pound | G23: 0.5735294118 | I23: 13.76470588 | J23: 0 | K23: 0 | M23: 0 | N23: 0 | O23: 13.76470588 | P23: 0 | Q23: 1679.294118 | R23: 0
B24: Custom
C25: Custom Haul - Sunflowers | D25: 20 | F25: CWT | G25: 0.3 | I25: 6 | J25: 0 | K25: 0 | M25: 0 | N25: 0 | O25: 6 | P25: 0 | Q25: 732 | R25: 0
C26: Custom Harvest - Sunflowers Irrigated | D26: 1 | F26: Acre | G26: 20 | I26: 20 | J26: 0 | K26: 0 | M26: 0 | N26: 0 | O26: 20 | P26: 0 | Q26: 2440 | R26: 0
B27: Miscellaneous
C28: Crop Insurance Conf. Sunflowers | D28: 1 | F28: Acre | G28: 17 | I28: 17 | J28: 0 | K28: 0 | M28: 0 | N28: 0 | O28: 17 | P28: 0 | Q28: 2074 | R28: 0
B29: Insecticide
C30: Insecticide and Apply Conf. Sunflowers | D30: 1 | F30: Acre | G30: 25 | I30: 25 | J30: 0 | K30: 0 | M30: 0 | N30: 0 | O30: 25 | P30: 0 | Q30: 3050 | R30: 0
D31: 0 | G31: 0 | I31: 0 | J31: 0 | K31: 0 | M31: 0 | N31: 0 | O31: 0 | P31: 0 | Q31: 0 | R31: 0
D32: 0 | G32: 0 | I32: 0 | J32: 0 | K32: 0 | M32: 0 | N32: 0 | O32: 0 | P32: 0 | Q32: 0 | R32: 0
D33: 0 | G33: 0 | I33: 0 | J33: =E33*H33 -> 0 | K33: 0 | M33: 0 | N33: =J33*L33 -> 0 | O33: 0 | P33: =+J33-N33 -> 0 | Q33: 0 | R33: =+J33*E$7 -> 0
B34: Irrigation
C35: Energy Cost | D35: 8 | F35: AcreInch | G35: 10 | I35: 80 | J35: =E35*H35 -> 0 | K35: 0 | M35: 0 | N35: =J35*L35 -> 0 | O35: 80 | P35: =+J35-N35 -> 0 | Q35: 9760 | R35: =+J35*E$7 -> 0
C36: Irrigation Labor | D36: 0.75 | F36: Hour | G36: 12 | I36: 9 | J36: 0 | K36: 0 | M36: 0 | N36: 0 | O36: 9 | P36: 0 | Q36: 1098 | R36: 0
B37: Machinery Labor
C38: Tractors/Self-Propelled | D38: 0.68 | F38: Hour | G38: 12 | I38: 8.16 | J38: =E38*H38 -> 0 | K38: 0 | M38: 0 | N38: =J38*L38 -> 0 | O38: 8.16 | P38: =+J38-N38 -> 0 | Q38: 995.52 | R38: =+J38*E$7 -> 0
C39: Other Labor | D39: 0.82 | F39: Hour | G39: 12 | I39: 9.84 | J39: =E39*H39 -> 0 | K39: 0 | M39: 0 | N39: =J39*L39 -> 0 | O39: 9.84 | P39: =+J39-N39 -> 0 | Q39: 1200.48 | R39: =+J39*E$7 -> 0
B41: Diesel Fuel
C42: Pickup/General Use Equipment | D42: 1 | F42: Acre | G42: 0 | I42: 0 | J42: =E42*H42 -> 0 | K42: 0 | M42: 0 | N42: =J42*L42 -> 0 | O42: 0 | P42: =+J42-N42 -> 0 | Q42: 0 | R42: =+J42*E$7 -> 0
C43: Tractors/Self-Propelled | D43: 3.8 | F43: Gallon | G43: 2.3 | I43: 8.74 | J43: =E43*H43 -> 0 | K43: 0 | M43: 0 | N43: =J43*L43 -> 0 | O43: 8.74 | P43: =+J43-N43 -> 0 | Q43: 1066.28 | R43: =+J43*E$7 -> 0
B45: Gasoline
C46: Pickup/General Use Equipment | D46: 1 | F46: Acre | G46: 6 | I46: 6 | J46: =E46*H46 -> 0 | K46: 0 | M46: 0 | N46: =J46*L46 -> 0 | O46: 6 | P46: =+J46-N46 -> 0 | Q46: 732 | R46: =+J46*E$7 -> 0
C47: Tractors/Self-Propelled | D47: 0 | F47: Gallon | G47: 3 | I47: 0 | J47: =E47*H47 -> 0 | K47: 0 | M47: 0 | N47: =J47*L47 -> 0 | O47: 0 | P47: =+J47-N47 -> 0 | Q47: 0 | R47: =+J47*E$7 -> 0
B49: Repairs & Maintenance
C50: Pickup/General Use Equipment | D50: 1 | F50: Acre | G50: 0.5 | I50: 0.5 | J50: =E50*H50 -> 0 | K50: 0 | M50: 0 | N50: =J50*L50 -> 0 | O50: 0.5 | P50: =+J50-N50 -> 0 | Q50: 61 | R50: =+J50*E$7 -> 0
C51: Irrigation Equipment | D51: 1 | F51: Acre | G51: 14 | I51: 14 | J51: 0 | K51: 0 | M51: 0 | N51: 0 | O51: 14 | P51: 0 | Q51: 1708 | R51: 0
C52: Tractors/Self-Propelled | D52: 1 | F52: Acre | G52: 6 | I52: 6 | J52: 0 | K52: 0 | M52: 0 | N52: 0 | O52: 6 | P52: 0 | Q52: 732 | R52: 0
C53: Implements | D53: 1 | F53: Acre | G53: 3 | I53: 3 | J53: 0 | K53: 0 | M53: 0 | N53: 0 | O53: 3 | P53: 0 | Q53: 366 | R53: 0
I54: 0 | J54: 0 | K54: 0 | M54: 0 | N54: 0 | O54: 0 | P54: 0 | Q54: 0 | R54: 0
I55: 0 | J55: 0 | K55: 0 | M55: 0 | N55: 0 | O55: 0 | P55: 0 | Q55: 0 | R55: 0
B56: Interest on Credit Line | G56: 0.06 | I56: 7.733923765 | J56: =+SUM(J17:J55)/2*H56 -> 0 | M56: 0 | N56: =+SUM(N17:N55)/2*L56 -> 0 | O56: 7.733923765 | P56: =+SUM(P17:P55)/2*L56 -> 0 | Q56: 943.5386993 | R56: =+J56*E$7 -> 0
A57: Total Variable Costs | I57: 318.0823796 | J57: =SUM(J18:J56) -> 0 | M57: 0 | N57: =SUM(N18:N56) -> 0 | O57: 318.0823796 | P57: =SUM(P18:P56) -> 0 | Q57: 38806.05032 | R57: =SUM(R18:R56) -> 0
A58: Planned Returns Above Variable Costs: | I58: 108.5176204 | J58: =+J13-J57 -> 0 | M58: 0 | N58: =+N13-N57 -> 0 | O58: 108.5176204 | P58: =+P13-P57 -> 0 | Q58: 13239.14968 | R58: =+R13-R57 -> 0
B59: Breakeven Price to Cover Variable Costs | G59: 0.1590411898 | H59: =IF(E10=0,"n/a",(YVarExp-(YTotExp+YTotRet-J10))/E10) -> n/a | I59: Pound
Q60: Enterprise | R60: Enterprise
A61: FIXED COSTS | D61: Quantity | E61: Quantity | F61: Units | G61: $/Unit | H61: $/Unit | I61: Total | J61: Total | K61: Share | L61: Share | M61: Landlord | N61: Landlord | O61: Tenant | P61: Tenant | Q61: Total | R61: Total
B62: Equipment Fixed Costs
C63: Pickup/General Use Equipment | D63: 1 | F63: Acre | G63: 1.25 | I63: 1.25 | J63: =E63*H63 -> 0 | K63: 0 | M63: 0 | N63: =J63*L63 -> 0 | O63: 1.25 | P63: =+J63-N63 -> 0 | Q63: 152.5 | R63: =+J63*E$7 -> 0
C64: Irrigation Equipment | D64: 1 | F64: Acre | G64: 55 | I64: 55 | J64: 0 | K64: 0 | M64: 0 | N64: 0 | O64: 55 | P64: 0 | Q64: 6710 | R64: 0
C65: Tractors/Self-Propelled | D65: 1 | F65: Acre | G65: 12 | I65: 12 | J65: 0 | K65: 0 | M65: 0 | N65: 0 | O65: 12 | P65: 0 | Q65: 1464 | R65: 0
C66: Implements | D66: 1 | F66: Acre | G66: 10 | I66: 10 | J66: 0 | K66: 0 | M66: 0 | N66: 0 | O66: 10 | P66: 0 | Q66: 1220 | R66: 0
B67: Salaried Labor | D67: 1 | F67: Acre | G67: 0 | I67: 0 | J67: =E67*H67 -> 0 | K67: 0 | M67: 0 | N67: 0 | O67: 0 | P67: 0 | Q67: 0 | R67: 0
B68: Management Fee, Owner/Operator Labor | D68: 1 | F68: Acre | G68: 25 | I68: 25 | J68: 0 | K68: 0 | M68: 0 | N68: 0 | O68: 25 | P68: 0 | Q68: 3050 | R68: 0
B69: Allocated Establishment Cost | D69: 1 | F69: Acre | G69: 0 | I69: 0 | J69: 0 | K69: 0 | M69: 0 | N69: 0 | O69: 0 | P69: 0 | Q69: 0 | R69: 0
B70: Cash Rent - Sunflowers Irrigated | D70: 1 | F70: Acre | G70: 100 | I70: 100 | J70: 0 | K70: 0 | M70: 0 | N70: 0 | O70: 100 | P70: 0 | Q70: 12200 | R70: 0
B71: Property Taxes | D71: 1 | F71: Acre | G71: 0 | I71: 0 | J71: 0 | K71: 0 | M71: 0 | N71: 0 | O71: 0 | P71: 0 | Q71: 0 | R71: 0
B72: Whole Farm Insurance | D72: 1 | F72: Acre | G72: 2 | I72: 2 | J72: 0 | K72: 0 | M72: 0 | N72: 0 | O72: 2 | P72: 0 | Q72: 244 | R72: 0
D73: 1 | G73: 0 | I73: 0 | J73: 0 | K73: 0 | M73: 0 | N73: 0 | O73: 0 | P73: 0 | Q73: 0 | R73: 0
D74: 1 | G74: 0 | I74: 0 | J74: =E74*H74 -> 0 | K74: 0 | M74: 0 | N74: 0 | O74: 0 | P74: 0 | Q74: 0 | R74: 0
A75: Total Fixed Costs | I75: 205.25 | J75: =+SUM(J62:J74) -> 0 | M75: 0 | N75: =+SUM(N62:N74) -> 0 | O75: 205.25 | P75: =+SUM(P62:P74) -> 0 | Q75: 25040.5 | R75: =+SUM(R62:R74) -> 0
A76: Total Specified Costs | I76: 523.3323796 | J76: =+J57+J75 -> 0 | M76: 0 | N76: =+N57+N75 -> 0 | O76: 523.3323796 | P76: =+P57+P75 -> 0 | Q76: 63846.55032 | R76: =+R57+R75 -> 0
A78: Returns Above Specified Costs | I78: -96.73237965 | J78: =+J13-J76 -> 0 | M78: 0 | N78: =+N13-N76 -> 0 | O78: -96.73237965 | P78: =+P13-P76 -> 0 | Q78: -11801.35032 | R78: =+R13-R76 -> 0
A80: Breakeven Price to Cover Total Costs | G80: 0.2616661898 | H80: =IF(E10=0,"n/a",(YTotExp-(YTotExp+YTotRet-J10))/E10) -> n/a | I80: Pound
D82: Example Breakeven Prices
B83: Example | C83: Example | D83: To Cover | G83: To Cover
B84: Yield | C84: Yield | D84: Variable | G84: Total
B85: Percent | C85: Pound | D85: Costs | G85: Costs
B86: 0.75 | C86: 1500 | D86: 0.2120549198 | G86: 0.3488882531
B87: 0.9 | C87: 1800 | D87: 0.1767124331 | G87: 0.2907402109
B88: 1 | C88: 2000 | D88: 0.1590411898 | G88: 0.2616661898
B89: 1.1 | C89: 2200 | D89: 0.1445828998 | G89: 0.2378783544
B90: 1.25 | C90: 2500 | D90: 0.1272329519 | G90: 0.2093329519
D92: Your Breakeven Prices
B93: Your | C93: Your | E93: To Cover | H93: To Cover
B94: Yield | C94: Yield | E94: Variable | H94: Total
B95: Percent | C95: Pound | E95: Costs | H95: Costs
B96: 0.75 | C96: =E10*YPER1 -> 0 | E96: =IF($E$10=0,0,(YVarExp-(YTotExp+YTotRet-J10))/($E$10*YPER1)) -> 0 | H96: =IF($E$10=0,0,(YTotExp-(YTotExp+YTotRet-J10))/($E$10*YPER1)) -> 0
B97: 0.9 | C97: =E10*YPER2 -> 0 | E97: =IF($E$10=0,0,(YVarExp-(YTotExp+YTotRet-J10))/($E$10*YPER2)) -> 0 | H97: =IF($E$10=0,0,(YTotExp-(YTotExp+YTotRet-J10))/($E$10*YPER2)) -> 0
B98: 1 | C98: =+E10 -> 0 | E98: =IF($E$10=0,0,(YVarExp-(YTotExp+YTotRet-J10))/($E$10*YPER3)) -> 0 | H98: =IF($E$10=0,0,(YTotExp-(YTotExp+YTotRet-J10))/($E$10*YPER3)) -> 0
B99: 1.1 | C99: =E10*YPER4 -> 0 | E99: =IF($E$10=0,0,(YVarExp-(YTotExp+YTotRet-J10))/($E$10*YPER4)) -> 0 | H99: =IF($E$10=0,0,(YTotExp-(YTotExp+YTotRet-J10))/($E$10*YPER4)) -> 0
B100: 1.25 | C100: =E10*YPER5 -> 0 | E100: =IF($E$10=0,0,(YVarExp-(YTotExp+YTotRet-J10))/($E$10*YPER5)) -> 0 | H100: =IF($E$10=0,0,(YTotExp-(YTotExp+YTotRet-J10))/($E$10*YPER5)) -> 0
A102: Developed by Jackie Smith, Professor and Extension Economist, Texas A&M AgriLife Extension, 806-746-6101.
A104: Information presented is prepared solely as a general guide and not intended to recognize or predict the costs and returns from any one operation. Brand names are mentioned only as examples and imply no endorsement.

Sheet SunflowersOilseed
A1: Projections for Planning Purposes Only -- Not to be Used without Updating
A2: 2018 Estimated Costs and Returns per Acre
A3: Irrigated Sunflowers - Oilseed
A4: Enter your name for this budget in the cell above.
A5: Enter Your Values in the cells highlighed in MAROON.
E6: Your Acres | R6: Your
C7: Crop Acres | D7: 122 | L7: Your | Q7: Enterprise | R7: Enterprise
E8: Your | H8: Your | I8: Cash | J8: Your | K8: Landlord | L8: Landlord | N8: Your | P8: Your | Q8: Total | R8: Total
A9: REVENUE | D9: Quantity | E9: Quantity | F9: Units | G9: $/Unit | H9: $/Unit | I9: Total | J9: Total | K9: Share | L9: Share | M9: Landlord | N9: Landlord | O9: Tenant | P9: Tenant | Q9: (122 acres) | R9: ="(" & E7 & " acres)" -> ( acres)
B10: Oilseed Sunflowers | D10: 2000 | F10: Pound | G10: 0.14 | I10: 280 | J10: =E10*H10 -> 0 | K10: 0 | M10: 0 | N10: =J10*L10 -> 0 | O10: 280 | P10: =+J10-N10 -> 0 | Q10: 34160 | R10: =+J10*E$7 -> 0
D11: 0 | G11: 0 | I11: 0 | J11: 0 | K11: 0 | M11: 0 | N11: 0 | O11: 0 | P11: =+J11-N11 -> 0 | Q11: 0 | R11: 0
D12: 0 | G12: 0 | I12: 0 | J12: 0 | K12: 0 | M12: 0 | N12: 0 | O12: 0 | P12: 0 | Q12: 0 | R12: 0
A13: Total Revenue | I13: 280 | J13: =SUM(J10:J12) -> 0 | M13: 0 | N13: =SUM(N10:N12) -> 0 | O13: 280 | P13: =SUM(P10:P12) -> 0 | Q13: 34160 | R13: =SUM(R10:R12) -> 0
Q14: Enterprise | R14: Enterprise
A15: VARIABLE COSTS | D15: Quantity | E15: Quantity | F15: Units | G15: $/Unit | H15: $/Unit | I15: Total | J15: Total | K15: Share | L15: Share | M15: Landlord | N15: Landlord | O15: Tenant | P15: Tenant | Q15: Total | R15: Total
A16: Production Costs
B17: Herbicide
C18: Herbicide and Apply Oilseed Sunflowers | D18: 1 | F18: Acre | G18: 34.75 | I18: 34.75 | J18: =E18*H18 -> 0 | K18: 0 | M18: 0 | N18: =J18*L18 -> 0 | O18: 34.75 | P18: =+J18-N18 -> 0 | Q18: 4239.5 | R18: =+J18*E$7 -> 0
B19: Seed
C20: Seed - Oilseed Sunflower | D20: 1 | F20: Acre | G20: 21 | I20: 21 | J20: 0 | K20: 0 | M20: 0 | N20: 0 | O20: 21 | P20: 0 | Q20: 2562 | R20: 0
B21: Fertilizer
C22: Fertilizer (N) - Liquid | D22: 70 | F22: Pound | G22: 0.390625 | I22: 27.34375 | J22: 0 | K22: 0 | M22: 0 | N22: 0 | O22: 27.34375 | P22: 0 | Q22: 3335.9375 | R22: 0
C23: Fertilizer (P) - Liquid | D23: 24 | F23: Pound | G23: 0.5735294118 | I23: 13.76470588 | J23: 0 | K23: 0 | M23: 0 | N23: 0 | O23: 13.76470588 | P23: 0 | Q23: 1679.294118 | R23: 0
B24: Custom
C25: Custom Haul - Sunflowers | D25: 20 | F25: CWT | G25: 0.3 | I25: 6 | J25: 0 | K25: 0 | M25: 0 | N25: 0 | O25: 6 | P25: 0 | Q25: 732 | R25: 0
C26: Custom Harvest - Sunflowers Irrigated | D26: 1 | F26: Acre | G26: 20 | I26: 20 | J26: 0 | K26: 0 | M26: 0 | N26: 0 | O26: 20 | P26: 0 | Q26: 2440 | R26: 0
B27: Miscellaneous
C28: Crop Insurance Oilseed Sunflowers | D28: 1 | F28: Acre | G28: 13 | I28: 13 | J28: 0 | K28: 0 | M28: 0 | N28: 0 | O28: 13 | P28: 0 | Q28: 1586 | R28: 0
B29: Insecticide
C30: Insecticide and Apply Oil Sunflowers | D30: 1 | F30: Acre | G30: 12.62 | I30: 12.62 | J30: 0 | K30: 0 | M30: 0 | N30: 0 | O30: 12.62 | P30: 0 | Q30: 1539.64 | R30: 0
D31: 0 | G31: 0 | I31: 0 | J31: 0 | K31: 0 | M31: 0 | N31: 0 | O31: 0 | P31: 0 | Q31: 0 | R31: 0
D32: 0 | G32: 0 | I32: 0 | J32: 0 | K32: 0 | M32: 0 | N32: 0 | O32: 0 | P32: 0 | Q32: 0 | R32: 0
D33: 0 | G33: 0 | I33: 0 | J33: =E33*H33 -> 0 | K33: 0 | M33: 0 | N33: =J33*L33 -> 0 | O33: 0 | P33: =+J33-N33 -> 0 | Q33: 0 | R33: =+J33*E$7 -> 0
B34: Irrigation
C35: Energy Cost | D35: 8 | F35: AcreInch | G35: 10 | I35: 80 | J35: =E35*H35 -> 0 | K35: 0 | M35: 0 | N35: =J35*L35 -> 0 | O35: 80 | P35: =+J35-N35 -> 0 | Q35: 9760 | R35: =+J35*E$7 -> 0
C36: Irrigation Labor | D36: 0.75 | F36: Hour | G36: 12 | I36: 9 | J36: 0 | K36: 0 | M36: 0 | N36: 0 | O36: 9 | P36: 0 | Q36: 1098 | R36: 0
B37: Machinery Labor
C38: Tractors/Self-Propelled | D38: 0.68 | F38: Hour | G38: 12 | I38: 8.16 | J38: =E38*H38 -> 0 | K38: 0 | M38: 0 | N38: =J38*L38 -> 0 | O38: 8.16 | P38: =+J38-N38 -> 0 | Q38: 995.52 | R38: =+J38*E$7 -> 0
C39: Other Labor | D39: 0.82 | F39: Hour | G39: 12 | I39: 9.84 | J39: =E39*H39 -> 0 | K39: 0 | M39: 0 | N39: =J39*L39 -> 0 | O39: 9.84 | P39: =+J39-N39 -> 0 | Q39: 1200.48 | R39: =+J39*E$7 -> 0
B41: Diesel Fuel
C42: Pickup/General Use Equipment | D42: 1 | F42: Acre | G42: 0 | I42: 0 | J42: =E42*H42 -> 0 | K42: 0 | M42: 0 | N42: =J42*L42 -> 0 | O42: 0 | P42: =+J42-N42 -> 0 | Q42: 0 | R42: =+J42*E$7 -> 0
C43: Tractors/Self-Propelled | D43: 3.8 | F43: Gallon | G43: 2.3 | I43: 8.74 | J43: =E43*H43 -> 0 | K43: 0 | M43: 0 | N43: =J43*L43 -> 0 | O43: 8.74 | P43: =+J43-N43 -> 0 | Q43: 1066.28 | R43: =+J43*E$7 -> 0
B45: Gasoline
C46: Pickup/General Use Equipment | D46: 1 | F46: Acre | G46: 6 | I46: 6 | J46: =E46*H46 -> 0 | K46: 0 | M46: 0 | N46: =J46*L46 -> 0 | O46: 6 | P46: =+J46-N46 -> 0 | Q46: 732 | R46: =+J46*E$7 -> 0
C47: Tractors/Self-Propelled | D47: 0 | F47: Gallon | G47: 3 | I47: 0 | J47: =E47*H47 -> 0 | K47: 0 | M47: 0 | N47: =J47*L47 -> 0 | O47: 0 | P47: =+J47-N47 -> 0 | Q47: 0 | R47: =+J47*E$7 -> 0
B49: Repairs & Maintenance
C50: Pickup/General Use Equipment | D50: 1 | F50: Acre | G50: 0.5 | I50: 0.5 | J50: =E50*H50 -> 0 | K50: 0 | M50: 0 | N50: =J50*L50 -> 0 | O50: 0.5 | P50: =+J50-N50 -> 0 | Q50: 61 | R50: =+J50*E$7 -> 0
C51: Irrigation Equipment | D51: 1 | F51: Acre | G51: 14 | I51: 14 | J51: 0 | K51: 0 | M51: 0 | N51: 0 | O51: 14 | P51: 0 | Q51: 1708 | R51: 0
C52: Tractors/Self-Propelled | D52: 1 | F52: Acre | G52: 6 | I52: 6 | J52: 0 | K52: 0 | M52: 0 | N52: 0 | O52: 6 | P52: 0 | Q52: 732 | R52: 0
C53: Implements | D53: 1 | F53: Acre | G53: 3 | I53: 3 | J53: 0 | K53: 0 | M53: 0 | N53: 0 | O53: 3 | P53: 0 | Q53: 366 | R53: 0
I54: 0 | J54: 0 | K54: 0 | M54: 0 | N54: 0 | O54: 0 | P54: 0 | Q54: 0 | R54: 0
I55: 0 | J55: 0 | K55: 0 | M55: 0 | N55: 0 | O55: 0 | P55: 0 | Q55: 0 | R55: 0
B56: Interest on Credit Line | G56: 0.06 | I56: 7.435302672 | J56: =+SUM(J17:J55)/2*H56 -> 0 | M56: 0 | N56: =+SUM(N17:N55)/2*L56 -> 0 | O56: 7.435302672 | P56: =+SUM(P17:P55)/2*L56 -> 0 | Q56: 907.1069259 | R56: =+J56*E$7 -> 0
A57: Total Variable Costs | I57: 301.1537586 | J57: =SUM(J18:J56) -> 0 | M57: 0 | N57: =SUM(N18:N56) -> 0 | O57: 301.1537586 | P57: =SUM(P18:P56) -> 0 | Q57: 36740.75854 | R57: =SUM(R18:R56) -> 0
A58: Planned Returns Above Variable Costs: | I58: -21.15375855 | J58: =+J13-J57 -> 0 | M58: 0 | N58: =+N13-N57 -> 0 | O58: -21.15375855 | P58: =+P13-P57 -> 0 | Q58: -2580.758544 | R58: =+R13-R57 -> 0
B59: Breakeven Price to Cover Variable Costs | G59: 0.1505768793 | H59: =IF(E10=0,"n/a",(YVarExp-(YTotExp+YTotRet-J10))/E10) -> n/a | I59: Pound
Q60: Enterprise | R60: Enterprise
A61: FIXED COSTS | D61: Quantity | E61: Quantity | F61: Units | G61: $/Unit | H61: $/Unit | I61: Total | J61: Total | K61: Share | L61: Share | M61: Landlord | N61: Landlord | O61: Tenant | P61: Tenant | Q61: Total | R61: Total
B62: Equipment Fixed Costs
C63: Pickup/General Use Equipment | D63: 1 | F63: Acre | G63: 1.25 | I63: 1.25 | J63: =E63*H63 -> 0 | K63: 0 | M63: 0 | N63: =J63*L63 -> 0 | O63: 1.25 | P63: =+J63-N63 -> 0 | Q63: 152.5 | R63: =+J63*E$7 -> 0
C64: Irrigation Equipment | D64: 1 | F64: Acre | G64: 55 | I64: 55 | J64: 0 | K64: 0 | M64: 0 | N64: 0 | O64: 55 | P64: 0 | Q64: 6710 | R64: 0
C65: Tractors/Self-Propelled | D65: 1 | F65: Acre | G65: 12 | I65: 12 | J65: 0 | K65: 0 | M65: 0 | N65: 0 | O65: 12 | P65: 0 | Q65: 1464 | R65: 0
C66: Implements | D66: 1 | F66: Acre | G66: 10 | I66: 10 | J66: 0 | K66: 0 | M66: 0 | N66: 0 | O66: 10 | P66: 0 | Q66: 1220 | R66: 0
B67: Salaried Labor | D67: 1 | F67: Acre | G67: 0 | I67: 0 | J67: =E67*H67 -> 0 | K67: 0 | M67: 0 | N67: 0 | O67: 0 | P67: 0 | Q67: 0 | R67: 0
B68: Management Fee, Owner/Operator Labor | D68: 1 | F68: Acre | G68: 25 | I68: 25 | J68: 0 | K68: 0 | M68: 0 | N68: 0 | O68: 25 | P68: 0 | Q68: 3050 | R68: 0
B69: Allocated Establishment Cost | D69: 1 | F69: Acre | G69: 0 | I69: 0 | J69: 0 | K69: 0 | M69: 0 | N69: 0 | O69: 0 | P69: 0 | Q69: 0 | R69: 0
B70: Cash Rent - Sunflowers Irrigated | D70: 1 | F70: Acre | G70: 100 | I70: 100 | J70: 0 | K70: 0 | M70: 0 | N70: 0 | O70: 100 | P70: 0 | Q70: 12200 | R70: 0
B71: Property Taxes | D71: 1 | F71: Acre | G71: 0 | I71: 0 | J71: 0 | K71: 0 | M71: 0 | N71: 0 | O71: 0 | P71: 0 | Q71: 0 | R71: 0
B72: Whole Farm Insurance | D72: 1 | F72: Acre | G72: 2 | I72: 2 | J72: 0 | K72: 0 | M72: 0 | N72: 0 | O72: 2 | P72: 0 | Q72: 244 | R72: 0
D73: 1 | G73: 0 | I73: 0 | J73: 0 | K73: 0 | M73: 0 | N73: 0 | O73: 0 | P73: 0 | Q73: 0 | R73: 0
D74: 1 | G74: 0 | I74: 0 | J74: =E74*H74 -> 0 | K74: 0 | M74: 0 | N74: 0 | O74: 0 | P74: 0 | Q74: 0 | R74: 0
A75: Total Fixed Costs | I75: 205.25 | J75: =+SUM(J62:J74) -> 0 | M75: 0 | N75: =+SUM(N62:N74) -> 0 | O75: 205.25 | P75: =+SUM(P62:P74) -> 0 | Q75: 25040.5 | R75: =+SUM(R62:R74) -> 0
A76: Total Specified Costs | I76: 506.4037586 | J76: =+J57+J75 -> 0 | M76: 0 | N76: =+N57+N75 -> 0 | O76: 506.4037586 | P76: =+P57+P75 -> 0 | Q76: 61781.25854 | R76: =+R57+R75 -> 0
A78: Returns Above Specified Costs | I78: -226.4037586 | J78: =+J13-J76 -> 0 | M78: 0 | N78: =+N13-N76 -> 0 | O78: -226.4037586 | P78: =+P13-P76 -> 0 | Q78: -27621.25854 | R78: =+R13-R76 -> 0
A80: Breakeven Price to Cover Total Costs | G80: 0.2532018793 | H80: =IF(E10=0,"n/a",(YTotExp-(YTotExp+YTotRet-J10))/E10) -> n/a | I80: Pound
D82: Example Breakeven Prices
B83: Example | C83: Example | D83: To Cover | G83: To Cover
B84: Yield | C84: Yield | D84: Variable | G84: Total
B85: Percent | C85: Pound | D85: Costs | G85: Costs
B86: 0.75 | C86: 1500 | D86: 0.2007691724 | G86: 0.3376025057
B87: 0.9 | C87: 1800 | D87: 0.1673076436 | G87: 0.2813354214
B88: 1 | C88: 2000 | D88: 0.1505768793 | G88: 0.2532018793
B89: 1.1 | C89: 2200 | D89: 0.1368880721 | G89: 0.2301835266
B90: 1.25 | C90: 2500 | D90: 0.1204615034 | G90: 0.2025615034
D92: Your Breakeven Prices
B93: Your | C93: Your | E93: To Cover | H93: To Cover
B94: Yield | C94: Yield | E94: Variable | H94: Total
B95: Percent | C95: Pound | E95: Costs | H95: Costs
B96: 0.75 | C96: =E10*YPER1 -> 0 | E96: =IF($E$10=0,0,(YVarExp-(YTotExp+YTotRet-J10))/($E$10*YPER1)) -> 0 | H96: =IF($E$10=0,0,(YTotExp-(YTotExp+YTotRet-J10))/($E$10*YPER1)) -> 0
B97: 0.9 | C97: =E10*YPER2 -> 0 | E97: =IF($E$10=0,0,(YVarExp-(YTotExp+YTotRet-J10))/($E$10*YPER2)) -> 0 | H97: =IF($E$10=0,0,(YTotExp-(YTotExp+YTotRet-J10))/($E$10*YPER2)) -> 0
B98: 1 | C98: =+E10 -> 0 | E98: =IF($E$10=0,0,(YVarExp-(YTotExp+YTotRet-J10))/($E$10*YPER3)) -> 0 | H98: =IF($E$10=0,0,(YTotExp-(YTotExp+YTotRet-J10))/($E$10*YPER3)) -> 0
B99: 1.1 | C99: =E10*YPER4 -> 0 | E99: =IF($E$10=0,0,(YVarExp-(YTotExp+YTotRet-J10))/($E$10*YPER4)) -> 0 | H99: =IF($E$10=0,0,(YTotExp-(YTotExp+YTotRet-J10))/($E$10*YPER4)) -> 0
B100: 1.25 | C100: =E10*YPER5 -> 0 | E100: =IF($E$10=0,0,(YVarExp-(YTotExp+YTotRet-J10))/($E$10*YPER5)) -> 0 | H100: =IF($E$10=0,0,(YTotExp-(YTotExp+YTotRet-J10))/($E$10*YPER5)) -> 0
A102: Developed by Jackie Smith, Professor and Extension Economist, Texas A&M AgriLife Extension, 806-746-6101.
A104: Information presented is prepared solely as a general guide and not intended to recognize or predict the costs and returns from any one operation. Brand names are mentioned only as examples and imply no endorsement.

Sheet WheatIrrigated
A1: Projections for Planning Purposes Only -- Not to be Used without Updating
A2: 2018 Estimated Costs and Returns per Acre
A3: Irrigated Wheat
A4: Enter your name for this budget in the cell above.
A5: Enter Your Values in the cells highlighed in MAROON.
E6: Your Acres | R6: Your
C7: Crop Acres | D7: 122 | L7: Your | Q7: Enterprise | R7: Enterprise
E8: Your | H8: Your | I8: Cash | J8: Your | K8: Landlord | L8: Landlord | N8: Your | P8: Your | Q8: Total | R8: Total
A9: REVENUE | D9: Quantity | E9: Quantity | F9: Units | G9: $/Unit | H9: $/Unit | I9: Total | J9: Total | K9: Share | L9: Share | M9: Landlord | N9: Landlord | O9: Tenant | P9: Tenant | Q9: (122 acres) | R9: ="(" & E7 & " acres)" -> ( acres)
B10: Wheat | D10: 60 | F10: Bushel | G10: 4.5 | I10: 270 | J10: =E10*H10 -> 0 | K10: 0 | M10: 0 | N10: =J10*L10 -> 0 | O10: 270 | P10: =+J10-N10 -> 0 | Q10: 32940 | R10: =+J10*E$7 -> 0
B11: Grazing - Wheat Irrigated | D11: 136 | F11: Pound | G11: 0.5 | I11: 68 | J11: 0 | K11: 0 | M11: 0 | N11: 0 | O11: 68 | P11: =+J11-N11 -> 0 | Q11: 8296 | R11: 0
D12: 0 | G12: 0 | I12: 0 | J12: 0 | K12: 0 | M12: 0 | N12: 0 | O12: 0 | P12: 0 | Q12: 0 | R12: 0
D13: 0 | G13: 0 | I13: 0 | J13: 0 | K13: 0 | M13: 0 | N13: 0 | O13: 0 | P13: 0 | Q13: 0 | R13: 0
A14: Total Revenue | I14: 338 | J14: =SUM(J10:J13) -> 0 | M14: 0 | N14: =SUM(N10:N13) -> 0 | O14: 338 | P14: =SUM(P10:P13) -> 0 | Q14: 41236 | R14: =SUM(R10:R13) -> 0
Q15: Enterprise | R15: Enterprise
A16: VARIABLE COSTS | D16: Quantity | E16: Quantity | F16: Units | G16: $/Unit | H16: $/Unit | I16: Total | J16: Total | K16: Share | L16: Share | M16: Landlord | N16: Landlord | O16: Tenant | P16: Tenant | Q16: Total | R16: Total
A17: Production Costs
B18: Seed
C19: Seed - Wheat | D19: 1.5 | F19: Bushel | G19: 25 | I19: 37.5 | J19: =E19*H19 -> 0 | K19: 0 | M19: 0 | N19: =J19*L19 -> 0 | O19: 37.5 | P19: =+J19-N19 -> 0 | Q19: 4575 | R19: =+J19*E$7 -> 0
B20: Fertilizer
C21: Fertilizer (P) - Liquid | D21: 56 | F21: Pound | G21: 0.5735294118 | I21: 32.11764706 | J21: 0 | K21: 0 | M21: 0 | N21: 0 | O21: 32.11764706 | P21: 0 | Q21: 3918.352941 | R21: 0
C22: Fertilizer (N) - Liquid | D22: 50 | F22: Pound | G22: 0.390625 | I22: 19.53125 | J22: 0 | K22: 0 | M22: 0 | N22: 0 | O22: 19.53125 | P22: 0 | Q22: 2382.8125 | R22: 0
C23: Fertilizer (N) - NH3 | D23: 90 | F23: Pound | G23: 0.3048780488 | I23: 27.43902439 | J23: 0 | K23: 0 | M23: 0 | N23: 0 | O23: 27.43902439 | P23: 0 | Q23: 3347.560976 | R23: 0
B24: Custom
C25: Harvest and Haul - Wheat Irrigated | D25: 60 | F25: Bushel | G25: 0.5 | I25: 30 | J25: 0 | K25: 0 | M25: 0 | N25: 0 | O25: 30 | P25: 0 | Q25: 3660 | R25: 0
C26: Fertilizer Application - NH3 | D26: 1 | F26: Acre | G26: 3.5 | I26: 3.5 | J26: 0 | K26: 0 | M26: 0 | N26: 0 | O26: 3.5 | P26: 0 | Q26: 427 | R26: 0
C27: Fertilizer Application - Liquid Low | D27: 1 | F27: Acre | G27: 3.5 | I27: 3.5 | J27: 0 | K27: 0 | M27: 0 | N27: 0 | O27: 3.5 | P27: 0 | Q27: 427 | R27: 0
C28: Fertilizer Application - Liquid High | D28: 1 | F28: Acre | G28: 4.75 | I28: 4.75 | J28: 0 | K28: 0 | M28: 0 | N28: 0 | O28: 4.75 | P28: 0 | Q28: 579.5 | R28: 0
B29: Miscellaneous
C30: Crop Insurance Wheat Irrigated | D30: 1 | F30: Acre | G30: 19.5 | I30: 19.5 | J30: 0 | K30: 0 | M30: 0 | N30: 0 | O30: 19.5 | P30: 0 | Q30: 2379 | R30: 0
B31: Insecticide
C32: Insecticide and Apply Wheat | D32: 1 | F32: Acre | G32: 11 | I32: 11 | J32: 0 | K32: 0 | M32: 0 | N32: 0 | O32: 11 | P32: 0 | Q32: 1342 | R32: 0
D33: 0 | G33: 0 | I33: 0 | J33: 0 | K33: 0 | M33: 0 | N33: 0 | O33: 0 | P33: 0 | Q33: 0 | R33: 0
D34: 0 | G34: 0 | I34: 0 | J34: 0 | K34: 0 | M34: 0 | N34: 0 | O34: 0 | P34: 0 | Q34: 0 | R34: 0
D35: 0 | G35: 0 | I35: 0 | J35: =E35*H35 -> 0 | K35: 0 | M35: 0 | N35: =J35*L35 -> 0 | O35: 0 | P35: =+J35-N35 -> 0 | Q35: 0 | R35: =+J35*E$7 -> 0
B36: Irrigation
C37: Energy Cost | D37: 14 | F37: AcreInch | G37: 10 | I37: 140 | J37: =E37*H37 -> 0 | K37: 0 | M37: 0 | N37: =J37*L37 -> 0 | O37: 140 | P37: =+J37-N37 -> 0 | Q37: 17080 | R37: =+J37*E$7 -> 0
C38: Irrigation Labor | D38: 1 | F38: Hour | G38: 12 | I38: 12 | J38: 0 | K38: 0 | M38: 0 | N38: 0 | O38: 12 | P38: 0 | Q38: 1464 | R38: 0
B39: Machinery Labor
C40: Tractors/Self-Propelled | D40: 0.47 | F40: Hour | G40: 12 | I40: 5.64 | J40: =E40*H40 -> 0 | K40: 0 | M40: 0 | N40: =J40*L40 -> 0 | O40: 5.64 | P40: =+J40-N40 -> 0 | Q40: 688.08 | R40: =+J40*E$7 -> 0
C41: Other Labor | D41: 0.53 | F41: Hour | G41: 12 | I41: 6.36 | J41: =E41*H41 -> 0 | K41: 0 | M41: 0 | N41: =J41*L41 -> 0 | O41: 6.36 | P41: =+J41-N41 -> 0 | Q41: 775.92 | R41: =+J41*E$7 -> 0
B43: Diesel Fuel
C44: Pickup/General Use Equipment | D44: 1 | F44: Acre | G44: 0 | I44: 0 | J44: =E44*H44 -> 0 | K44: 0 | M44: 0 | N44: =J44*L44 -> 0 | O44: 0 | P44: =+J44-N44 -> 0 | Q44: 0 | R44: =+J44*E$7 -> 0
C45: Tractors/Self-Propelled | D45: 2.4 | F45: Gallon | G45: 2.3 | I45: 5.52 | J45: =E45*H45 -> 0 | K45: 0 | M45: 0 | N45: =J45*L45 -> 0 | O45: 5.52 | P45: =+J45-N45 -> 0 | Q45: 673.44 | R45: =+J45*E$7 -> 0
B47: Gasoline
C48: Pickup/General Use Equipment | D48: 1 | F48: Acre | G48: 6 | I48: 6 | J48: =E48*H48 -> 0 | K48: 0 | M48: 0 | N48: =J48*L48 -> 0 | O48: 6 | P48: =+J48-N48 -> 0 | Q48: 732 | R48: =+J48*E$7 -> 0
C49: Tractors/Self-Propelled | D49: 0 | F49: Gallon | G49: 3 | I49: 0 | J49: =E49*H49 -> 0 | K49: 0 | M49: 0 | N49: =J49*L49 -> 0 | O49: 0 | P49: =+J49-N49 -> 0 | Q49: 0 | R49: =+J49*E$7 -> 0
B51: Repairs & Maintenance
C52: Pickup/General Use Equipment | D52: 1 | F52: Acre | G52: 0.5 | I52: 0.5 | J52: =E52*H52 -> 0 | K52: 0 | M52: 0 | N52: =J52*L52 -> 0 | O52: 0.5 | P52: =+J52-N52 -> 0 | Q52: 61 | R52: =+J52*E$7 -> 0
C53: Irrigation Equipment | D53: 1 | F53: Acre | G53: 25.25 | I53: 25.25 | J53: 0 | K53: 0 | M53: 0 | N53: 0 | O53: 25.25 | P53: 0 | Q53: 3080.5 | R53: 0
C54: Tractors/Self-Propelled | D54: 1 | F54: Acre | G54: 6 | I54: 6 | J54: 0 | K54: 0 | M54: 0 | N54: 0 | O54: 6 | P54: 0 | Q54: 732 | R54: 0
C55: Implements | D55: 1 | F55: Acre | G55: 3 | I55: 3 | J55: 0 | K55: 0 | M55: 0 | N55: 0 | O55: 3 | P55: 0 | Q55: 366 | R55: 0
I56: 0 | J56: 0 | K56: 0 | M56: 0 | N56: 0 | O56: 0 | P56: 0 | Q56: 0 | R56: 0
I57: 0 | J57: 0 | K57: 0 | M57: 0 | N57: 0 | O57: 0 | P57: 0 | Q57: 0 | R57: 0
B58: Interest on Credit Line | G58: 0.06 | I58: 13.83595784 | J58: =+SUM(J18:J57)/2*H58 -> 0 | M58: 0 | N58: =+SUM(N18:N57)/2*L58 -> 0 | O58: 13.83595784 | P58: =+SUM(P18:P57)/2*L58 -> 0 | Q58: 1687.986856 | R58: =+J58*E$7 -> 0
A59: Total Variable Costs | I59: 412.9438793 | J59: =SUM(J19:J58) -> 0 | M59: 0 | N59: =SUM(N19:N58) -> 0 | O59: 412.9438793 | P59: =SUM(P19:P58) -> 0 | Q59: 50379.15327 | R59: =SUM(R19:R58) -> 0
A60: Planned Returns Above Variable Costs: | I60: -74.94387929 | J60: =+J14-J59 -> 0 | M60: 0 | N60: =+N14-N59 -> 0 | O60: -74.94387929 | P60: =+P14-P59 -> 0 | Q60: -9143.153273 | R60: =+R14-R59 -> 0
B61: Breakeven Price to Cover Variable Costs | G61: 5.749064655 | H61: =IF(E10=0,"n/a",(YVarExp-(YTotExp+YTotRet-J10))/E10) -> n/a | I61: Bushel
Q62: Enterprise | R62: Enterprise
A63: FIXED COSTS | D63: Quantity | E63: Quantity | F63: Units | G63: $/Unit | H63: $/Unit | I63: Total | J63: Total | K63: Share | L63: Share | M63: Landlord | N63: Landlord | O63: Tenant | P63: Tenant | Q63: Total | R63: Total
B64: Equipment Fixed Costs
C65: Pickup/General Use Equipment | D65: 1 | F65: Acre | G65: 1.25 | I65: 1.25 | J65: =E65*H65 -> 0 | K65: 0 | M65: 0 | N65: =J65*L65 -> 0 | O65: 1.25 | P65: =+J65-N65 -> 0 | Q65: 152.5 | R65: =+J65*E$7 -> 0
C66: Irrigation Equipment | D66: 1 | F66: Acre | G66: 55 | I66: 55 | J66: 0 | K66: 0 | M66: 0 | N66: 0 | O66: 55 | P66: 0 | Q66: 6710 | R66: 0
C67: Tractors/Self-Propelled | D67: 1 | F67: Acre | G67: 12 | I67: 12 | J67: 0 | K67: 0 | M67: 0 | N67: 0 | O67: 12 | P67: 0 | Q67: 1464 | R67: 0
C68: Implements | D68: 1 | F68: Acre | G68: 10 | I68: 10 | J68: 0 | K68: 0 | M68: 0 | N68: 0 | O68: 10 | P68: 0 | Q68: 1220 | R68: 0
B69: Salaried Labor | D69: 1 | F69: Acre | G69: 0 | I69: 0 | J69: =E69*H69 -> 0 | K69: 0 | M69: 0 | N69: 0 | O69: 0 | P69: 0 | Q69: 0 | R69: 0
B70: Management Fee, Owner/Operator Labor | D70: 1 | F70: Acre | G70: 25 | I70: 25 | J70: 0 | K70: 0 | M70: 0 | N70: 0 | O70: 25 | P70: 0 | Q70: 3050 | R70: 0
B71: Allocated Establishment Cost | D71: 1 | F71: Acre | G71: 0 | I71: 0 | J71: 0 | K71: 0 | M71: 0 | N71: 0 | O71: 0 | P71: 0 | Q71: 0 | R71: 0
B72: Cash Rent - Wheat Irrigated | D72: 1 | F72: Acre | G72: 100 | I72: 100 | J72: 0 | K72: 0 | M72: 0 | N72: 0 | O72: 100 | P72: 0 | Q72: 12200 | R72: 0
B73: Property Taxes | D73: 1 | F73: Acre | G73: 0 | I73: 0 | J73: 0 | K73: 0 | M73: 0 | N73: 0 | O73: 0 | P73: 0 | Q73: 0 | R73: 0
B74: Whole Farm Insurance | D74: 1 | F74: Acre | G74: 2 | I74: 2 | J74: 0 | K74: 0 | M74: 0 | N74: 0 | O74: 2 | P74: 0 | Q74: 244 | R74: 0
D75: 1 | G75: 0 | I75: 0 | J75: 0 | K75: 0 | M75: 0 | N75: 0 | O75: 0 | P75: 0 | Q75: 0 | R75: 0
D76: 1 | G76: 0 | I76: 0 | J76: =E76*H76 -> 0 | K76: 0 | M76: 0 | N76: 0 | O76: 0 | P76: 0 | Q76: 0 | R76: 0
A77: Total Fixed Costs | I77: 205.25 | J77: =+SUM(J64:J76) -> 0 | M77: 0 | N77: =+SUM(N64:N76) -> 0 | O77: 205.25 | P77: =+SUM(P64:P76) -> 0 | Q77: 25040.5 | R77: =+SUM(R64:R76) -> 0
A78: Total Specified Costs | I78: 618.1938793 | J78: =+J59+J77 -> 0 | M78: 0 | N78: =+N59+N77 -> 0 | O78: 618.1938793 | P78: =+P59+P77 -> 0 | Q78: 75419.65327 | R78: =+R59+R77 -> 0
A80: Returns Above Specified Costs | I80: -280.1938793 | J80: =+J14-J78 -> 0 | M80: 0 | N80: =+N14-N78 -> 0 | O80: -280.1938793 | P80: =+P14-P78 -> 0 | Q80: -34183.65327 | R80: =+R14-R78 -> 0
A82: Breakeven Price to Cover Total Costs | G82: 9.169897988 | H82: =IF(E10=0,"n/a",(YTotExp-(YTotExp+YTotRet-J10))/E10) -> n/a | I82: Bushel
D84: Example Breakeven Prices
B85: Example | C85: Example | D85: To Cover | G85: To Cover
B86: Yield | C86: Yield | D86: Variable | G86: Total
B87: Percent | C87: Bushel | D87: Costs | G87: Costs
B88: 0.75 | C88: 45 | D88: 7.66541954 | G88: 12.22653065
B89: 0.9 | C89: 54 | D89: 6.387849616 | G89: 10.18877554
B90: 1 | C90: 60 | D90: 5.749064655 | G90: 9.169897988
B91: 1.1 | C91: 66 | D91: 5.226422413 | G91: 8.336270898
B92: 1.25 | C92: 75 | D92: 4.599251724 | G92: 7.335918391
D94: Your Breakeven Prices
B95: Your | C95: Your | E95: To Cover | H95: To Cover
B96: Yield | C96: Yield | E96: Variable | H96: Total
B97: Percent | C97: Bushel | E97: Costs | H97: Costs
B98: 0.75 | C98: =E10*YPER1 -> 0 | E98: =IF($E$10=0,0,(YVarExp-(YTotExp+YTotRet-J10))/($E$10*YPER1)) -> 0 | H98: =IF($E$10=0,0,(YTotExp-(YTotExp+YTotRet-J10))/($E$10*YPER1)) -> 0
B99: 0.9 | C99: =E10*YPER2 -> 0 | E99: =IF($E$10=0,0,(YVarExp-(YTotExp+YTotRet-J10))/($E$10*YPER2)) -> 0 | H99: =IF($E$10=0,0,(YTotExp-(YTotExp+YTotRet-J10))/($E$10*YPER2)) -> 0
B100: 1 | C100: =+E10 -> 0 | E100: =IF($E$10=0,0,(YVarExp-(YTotExp+YTotRet-J10))/($E$10*YPER3)) -> 0 | H100: =IF($E$10=0,0,(YTotExp-(YTotExp+YTotRet-J10))/($E$10*YPER3)) -> 0
B101: 1.1 | C101: =E10*YPER4 -> 0 | E101: =IF($E$10=0,0,(YVarExp-(YTotExp+YTotRet-J10))/($E$10*YPER4)) -> 0 | H101: =IF($E$10=0,0,(YTotExp-(YTotExp+YTotRet-J10))/($E$10*YPER4)) -> 0
B102: 1.25 | C102: =E10*YPER5 -> 0 | E102: =IF($E$10=0,0,(YVarExp-(YTotExp+YTotRet-J10))/($E$10*YPER5)) -> 0 | H102: =IF($E$10=0,0,(YTotExp-(YTotExp+YTotRet-J10))/($E$10*YPER5)) -> 0
A104: Developed by Jackie Smith, Professor and Extension Economist, Texas A&M AgriLife Extension, 806-746-6101.
A106: Information presented is prepared solely as a general guide and not intended to recognize or predict the costs and returns from any one operation. Brand names are mentioned only as examples and imply no endorsement.

Sheet CottonDryland
A1: Projections for Planning Purposes Only -- Not to be Used without Updating
A2: 2018 Estimated Costs and Returns per Acre
A3: Dryland Cotton - Herbicide Tolerant
A4: Enter your name for this budget in the cell above.
A5: Enter Your Values in the cells highlighed in MAROON.
E6: Your Acres | R6: Your
C7: Crop Acres | D7: 160 | L7: Your | Q7: Enterprise | R7: Enterprise
E8: Your | H8: Your | I8: Cash | J8: Your | K8: Landlord | L8: Landlord | N8: Your | P8: Your | Q8: Total | R8: Total
A9: REVENUE | D9: Quantity | E9: Quantity | F9: Units | G9: $/Unit | H9: $/Unit | I9: Total | J9: Total | K9: Share | L9: Share | M9: Landlord | N9: Landlord | O9: Tenant | P9: Tenant | Q9: (160 acres) | R9: ="(" & E7 & " acres)" -> ( acres)
B10: Cotton Lint | D10: 375 | F10: Pound | G10: 0.68 | I10: 255 | J10: =E10*H10 -> 0 | K10: 0 | M10: 0 | N10: =J10*L10 -> 0 | O10: 255 | P10: =+J10-N10 -> 0 | Q10: 40800 | R10: =+J10*E$7 -> 0
B11: Cottonseed | D11: 0.266 | F11: Ton | G11: 160 | I11: 42.56 | J11: 0 | K11: 0 | M11: 0 | N11: 0 | O11: 42.56 | P11: =+J11-N11 -> 0 | Q11: 6809.6 | R11: 0
D12: 0 | G12: 0 | I12: 0 | J12: 0 | K12: 0 | M12: 0 | N12: 0 | O12: 0 | P12: 0 | Q12: 0 | R12: 0
D13: 0 | G13: 0 | I13: 0 | J13: 0 | K13: 0 | M13: 0 | N13: 0 | O13: 0 | P13: 0 | Q13: 0 | R13: 0
A14: Total Revenue | I14: 297.56 | J14: =SUM(J10:J13) -> 0 | M14: 0 | N14: =SUM(N10:N13) -> 0 | O14: 297.56 | P14: =SUM(P10:P13) -> 0 | Q14: 47609.6 | R14: =SUM(R10:R13) -> 0
Q15: Enterprise | R15: Enterprise
A16: VARIABLE COSTS | D16: Quantity | E16: Quantity | F16: Units | G16: $/Unit | H16: $/Unit | I16: Total | J16: Total | K16: Share | L16: Share | M16: Landlord | N16: Landlord | O16: Tenant | P16: Tenant | Q16: Total | R16: Total
A17: Production Costs
B18: Custom
C19: Strip and Module - Cotton | D19: 375 | F19: Pound | G19: 0.08 | I19: 30 | J19: =E19*H19 -> 0 | K19: 0 | M19: 0 | N19: =J19*L19 -> 0 | O19: 30 | P19: =+J19-N19 -> 0 | Q19: 4800 | R19: =+J19*E$7 -> 0
C20: Ginning - Cotton | D20: 14.42 | F20: CWT | G20: 2.9 | I20: 41.818 | J20: 0 | K20: 0 | M20: 0 | N20: 0 | O20: 41.818 | P20: 0 | Q20: 6690.88 | R20: 0
C21: Fertilizer Application - Liquid High | D21: 1 | F21: Acre | G21: 4.75 | I21: 4.75 | J21: 0 | K21: 0 | M21: 0 | N21: 0 | O21: 4.75 | P21: 0 | Q21: 760 | R21: 0
C22: Scouting - Dryland Cotton | D22: 1 | F22: Acre | G22: 5 | I22: 5 | J22: 0 | K22: 0 | M22: 0 | N22: 0 | O22: 5 | P22: 0 | Q22: 800 | R22: 0
B23: Fertilizer
C24: Fertilizer (N) - Liquid | D24: 35 | F24: Pound | G24: 0.390625 | I24: 13.671875 | J24: 0 | K24: 0 | M24: 0 | N24: 0 | O24: 13.671875 | P24: 0 | Q24: 2187.5 | R24: 0
C25: Fertilizer (P) - Liquid | D25: 14 | F25: Pound | G25: 0.5735294118 | I25: 8.029411765 | J25: 0 | K25: 0 | M25: 0 | N25: 0 | O25: 8.029411765 | P25: 0 | Q25: 1284.705882 | R25: 0
B26: Herbicide
C27: Herbicide - Cotton Preplant | D27: 1 | F27: Acre | G27: 9.5 | I27: 9.5 | J27: 0 | K27: 0 | M27: 0 | N27: 0 | O27: 9.5 | P27: 0 | Q27: 1520 | R27: 0
C28: Herbicide - Cotton At Plant | D28: 1 | F28: Acre | G28: 4.5 | I28: 4.5 | J28: 0 | K28: 0 | M28: 0 | N28: 0 | O28: 4.5 | P28: 0 | Q28: 720 | R28: 0
C29: Herbicide - Cotton Postplant Dryland | D29: 1 | F29: Acre | G29: 12.5 | I29: 12.5 | J29: 0 | K29: 0 | M29: 0 | N29: 0 | O29: 12.5 | P29: 0 | Q29: 2000 | R29: 0
C30: Spot Spray and Chemical | D30: 0.1 | F30: Acre | G30: 15 | I30: 1.5 | J30: 0 | K30: 0 | M30: 0 | N30: 0 | O30: 1.5 | P30: 0 | Q30: 240 | R30: 0
B31: Insecticide
C32: Boll Weevil Assessment Dryland | D32: 0.8 | F32: Bale | G32: 1 | I32: 0.8 | J32: 0 | K32: 0 | M32: 0 | N32: 0 | O32: 0.8 | P32: 0 | Q32: 128 | R32: 0
C33: Insecticide and Apply Cotton Dryland | D33: 1 | F33: Acre | G33: 6 | I33: 6 | J33: 0 | K33: 0 | M33: 0 | N33: 0 | O33: 6 | P33: 0 | Q33: 960 | R33: 0
B34: Miscellaneous
C35: Crop Insurance Cotton - Dryland | D35: 1 | F35: Acre | G35: 32 | I35: 32 | J35: 0 | K35: 0 | M35: 0 | N35: 0 | O35: 32 | P35: 0 | Q35: 5120 | R35: 0
B36: Seed
C37: Seed - Cotton Dryland HT | D37: 30 | F37: Thousand | G37: 1.06 | I37: 31.8 | J37: 0 | K37: 0 | M37: 0 | N37: 0 | O37: 31.8 | P37: 0 | Q37: 5088 | R37: 0
B38: Other Chemicals
C39: Harvest Aid Apply Cotton Dryland | D39: 1 | F39: Acre | G39: 10 | I39: 10 | J39: 0 | K39: 0 | M39: 0 | N39: 0 | O39: 10 | P39: 0 | Q39: 1600 | R39: 0
B40: Other Labor
C41: Hoeing | D41: 0.1 | F41: Acre | G41: 15 | I41: 1.5 | J41: 0 | K41: 0 | M41: 0 | N41: 0 | O41: 1.5 | P41: 0 | Q41: 240 | R41: 0
D42: 0 | G42: 0 | I42: 0 | J42: 0 | K42: 0 | M42: 0 | N42: 0 | O42: 0 | P42: 0 | Q42: 0 | R42: 0
D43: 0 | G43: 0 | I43: 0 | J43: 0 | K43: 0 | M43: 0 | N43: 0 | O43: 0 | P43: 0 | Q43: 0 | R43: 0
D44: 0 | G44: 0 | I44: 0 | J44: =E44*H44 -> 0 | K44: 0 | M44: 0 | N44: =J44*L44 -> 0 | O44: 0 | P44: =+J44-N44 -> 0 | Q44: 0 | R44: =+J44*E$7 -> 0
B45: Machinery Labor
C46: Tractors/Self-Propelled | D46: 0.65 | F46: Hour | G46: 12 | I46: 7.8 | J46: =E46*H46 -> 0 | K46: 0 | M46: 0 | N46: =J46*L46 -> 0 | O46: 7.8 | P46: =+J46-N46 -> 0 | Q46: 1248 | R46: =+J46*E$7 -> 0
C47: Other Labor | D47: 0.75 | F47: Hour | G47: 12 | I47: 9 | J47: =E47*H47 -> 0 | K47: 0 | M47: 0 | N47: =J47*L47 -> 0 | O47: 9 | P47: =+J47-N47 -> 0 | Q47: 1440 | R47: =+J47*E$7 -> 0
B49: Diesel Fuel
C50: Pickup/General Use Equipment | D50: 1 | F50: Acre | G50: 0 | I50: 0 | J50: =E50*H50 -> 0 | K50: 0 | M50: 0 | N50: =J50*L50 -> 0 | O50: 0 | P50: =+J50-N50 -> 0 | Q50: 0 | R50: =+J50*E$7 -> 0
C51: Tractors/Self-Propelled | D51: 3.4 | F51: Gallon | G51: 2.3 | I51: 7.82 | J51: =E51*H51 -> 0 | K51: 0 | M51: 0 | N51: =J51*L51 -> 0 | O51: 7.82 | P51: =+J51-N51 -> 0 | Q51: 1251.2 | R51: =+J51*E$7 -> 0
B53: Gasoline
C54: Pickup/General Use Equipment | D54: 1 | F54: Acre | G54: 6 | I54: 6 | J54: =E54*H54 -> 0 | K54: 0 | M54: 0 | N54: =J54*L54 -> 0 | O54: 6 | P54: =+J54-N54 -> 0 | Q54: 960 | R54: =+J54*E$7 -> 0
C55: Tractors/Self-Propelled | D55: 0 | F55: Gallon | G55: 3 | I55: 0 | J55: =E55*H55 -> 0 | K55: 0 | M55: 0 | N55: =J55*L55 -> 0 | O55: 0 | P55: =+J55-N55 -> 0 | Q55: 0 | R55: =+J55*E$7 -> 0
B57: Repairs & Maintenance
C58: Pickup/General Use Equipment | D58: 1 | F58: Acre | G58: 0.5 | I58: 0.5 | J58: =E58*H58 -> 0 | K58: 0 | M58: 0 | N58: =J58*L58 -> 0 | O58: 0.5 | P58: =+J58-N58 -> 0 | Q58: 80 | R58: =+J58*E$7 -> 0
C59: Irrigation Equipment | D59: 1 | F59: Acre | G59: 0 | I59: 0 | J59: 0 | K59: 0 | M59: 0 | N59: 0 | O59: 0 | P59: 0 | Q59: 0 | R59: 0
C60: Tractors/Self-Propelled | D60: 1 | F60: Acre | G60: 6 | I60: 6 | J60: 0 | K60: 0 | M60: 0 | N60: 0 | O60: 6 | P60: 0 | Q60: 960 | R60: 0
C61: Implements | D61: 1 | F61: Acre | G61: 3 | I61: 3 | J61: 0 | K61: 0 | M61: 0 | N61: 0 | O61: 3 | P61: 0 | Q61: 480 | R61: 0
I62: 0 | J62: 0 | K62: 0 | M62: 0 | N62: 0 | O62: 0 | P62: 0 | Q62: 0 | R62: 0
I63: 0 | J63: 0 | K63: 0 | M63: 0 | N63: 0 | O63: 0 | P63: 0 | Q63: 0 | R63: 0
B64: Interest on Credit Line | G64: 0.06 | I64: 6.905322418 | J64: =+SUM(J18:J63)/2*H64 -> 0 | M64: 0 | N64: =+SUM(N18:N63)/2*L64 -> 0 | O64: 6.905322418 | P64: =+SUM(P18:P63)/2*L64 -> 0 | Q64: 1104.851587 | R64: =+J64*E$7 -> 0
A65: Total Variable Costs | I65: 260.3946092 | J65: =SUM(J19:J64) -> 0 | M65: 0 | N65: =SUM(N19:N64) -> 0 | O65: 260.3946092 | P65: =SUM(P19:P64) -> 0 | Q65: 41663.13747 | R65: =SUM(R19:R64) -> 0
A66: Planned Returns Above Variable Costs: | I66: 37.16539082 | J66: =+J14-J65 -> 0 | M66: 0 | N66: =+N14-N65 -> 0 | O66: 37.16539082 | P66: =+P14-P65 -> 0 | Q66: 5946.462531 | R66: =+R14-R65 -> 0
B67: Breakeven Price to Cover Variable Costs | G67: 0.5808922912 | H67: =IF(E10=0,"n/a",(YVarExp-(YTotExp+YTotRet-J10))/E10) -> n/a | I67: Pound
Q68: Enterprise | R68: Enterprise
A69: FIXED COSTS | D69: Quantity | E69: Quantity | F69: Units | G69: $/Unit | H69: $/Unit | I69: Total | J69: Total | K69: Share | L69: Share | M69: Landlord | N69: Landlord | O69: Tenant | P69: Tenant | Q69: Total | R69: Total
B70: Equipment Fixed Costs
C71: Pickup/General Use Equipment | D71: 1 | F71: Acre | G71: 1.25 | I71: 1.25 | J71: =E71*H71 -> 0 | K71: 0 | M71: 0 | N71: =J71*L71 -> 0 | O71: 1.25 | P71: =+J71-N71 -> 0 | Q71: 200 | R71: =+J71*E$7 -> 0
C72: Tractors/Self-Propelled | D72: 1 | F72: Acre | G72: 12 | I72: 12 | J72: 0 | K72: 0 | M72: 0 | N72: 0 | O72: 12 | P72: 0 | Q72: 1920 | R72: 0
C73: Implements | D73: 1 | F73: Acre | G73: 10 | I73: 10 | J73: 0 | K73: 0 | M73: 0 | N73: 0 | O73: 10 | P73: 0 | Q73: 1600 | R73: 0
B74: Salaried Labor | D74: 1 | F74: Acre | G74: 0 | I74: 0 | J74: =E74*H74 -> 0 | K74: 0 | M74: 0 | N74: 0 | O74: 0 | P74: 0 | Q74: 0 | R74: 0
B75: Management Fee, Owner/Operator Labor | D75: 1 | F75: Acre | G75: 25 | I75: 25 | J75: 0 | K75: 0 | M75: 0 | N75: 0 | O75: 25 | P75: 0 | Q75: 4000 | R75: 0
B76: Allocated Establishment Cost | D76: 1 | F76: Acre | G76: 0 | I76: 0 | J76: 0 | K76: 0 | M76: 0 | N76: 0 | O76: 0 | P76: 0 | Q76: 0 | R76: 0
B77: Cash Rent - Cotton Dryland | D77: 1 | F77: Acre | G77: 50 | I77: 50 | J77: 0 | K77: 0 | M77: 0 | N77: 0 | O77: 50 | P77: 0 | Q77: 8000 | R77: 0
B78: Property Taxes | D78: 1 | F78: Acre | G78: 0 | I78: 0 | J78: 0 | K78: 0 | M78: 0 | N78: 0 | O78: 0 | P78: 0 | Q78: 0 | R78: 0
B79: Whole Farm Insurance | D79: 1 | F79: Acre | G79: 2 | I79: 2 | J79: 0 | K79: 0 | M79: 0 | N79: 0 | O79: 2 | P79: 0 | Q79: 320 | R79: 0
D80: 1 | G80: 0 | I80: 0 | J80: 0 | K80: 0 | M80: 0 | N80: 0 | O80: 0 | P80: 0 | Q80: 0 | R80: 0
D81: 1 | G81: 0 | I81: 0 | J81: =E81*H81 -> 0 | K81: 0 | M81: 0 | N81: 0 | O81: 0 | P81: 0 | Q81: 0 | R81: 0
A82: Total Fixed Costs | I82: 100.25 | J82: =+SUM(J70:J81) -> 0 | M82: 0 | N82: =+SUM(N70:N81) -> 0 | O82: 100.25 | P82: =+SUM(P70:P81) -> 0 | Q82: 16040 | R82: =+SUM(R70:R81) -> 0
A83: Total Specified Costs | I83: 360.6446092 | J83: =+J65+J82 -> 0 | M83: 0 | N83: =+N65+N82 -> 0 | O83: 360.6446092 | P83: =+P65+P82 -> 0 | Q83: 57703.13747 | R83: =+R65+R82 -> 0
A85: Returns Above Specified Costs | I85: -63.08460918 | J85: =+J14-J83 -> 0 | M85: 0 | N85: =+N14-N83 -> 0 | O85: -63.08460918 | P85: =+P14-P83 -> 0 | Q85: -10093.53747 | R85: =+R14-R83 -> 0
A87: Breakeven Price to Cover Total Costs | G87: 0.8482256245 | H87: =IF(E10=0,"n/a",(YTotExp-(YTotExp+YTotRet-J10))/E10) -> n/a | I87: Pound
D89: Example Breakeven Prices
B90: Example | C90: Example | D90: To Cover | G90: To Cover
B91: Yield | C91: Yield | D91: Variable | G91: Total
B92: Percent | C92: Pound | D92: Costs | G92: Costs
B93: 0.75 | C93: 281.25 | D93: 0.7745230549 | G93: 1.130967499
B94: 0.9 | C94: 337.5 | D94: 0.6454358791 | G94: 0.9424729161
B95: 1 | C95: 375 | D95: 0.5808922912 | G95: 0.8482256245
B96: 1.1 | C96: 412.5 | D96: 0.5280839011 | G96: 0.7711142041
B97: 1.25 | C97: 468.75 | D97: 0.4647138329 | G97: 0.6785804996
D99: Your Breakeven Prices
B100: Your | C100: Your | E100: To Cover | H100: To Cover
B101: Yield | C101: Yield | E101: Variable | H101: Total
B102: Percent | C102: Pound | E102: Costs | H102: Costs
B103: 0.75 | C103: =E10*YPER1 -> 0 | E103: =IF($E$10=0,0,(YVarExp-(YTotExp+YTotRet-J10))/($E$10*YPER1)) -> 0 | H103: =IF($E$10=0,0,(YTotExp-(YTotExp+YTotRet-J10))/($E$10*YPER1)) -> 0
B104: 0.9 | C104: =E10*YPER2 -> 0 | E104: =IF($E$10=0,0,(YVarExp-(YTotExp+YTotRet-J10))/($E$10*YPER2)) -> 0 | H104: =IF($E$10=0,0,(YTotExp-(YTotExp+YTotRet-J10))/($E$10*YPER2)) -> 0
B105: 1 | C105: =+E10 -> 0 | E105: =IF($E$10=0,0,(YVarExp-(YTotExp+YTotRet-J10))/($E$10*YPER3)) -> 0 | H105: =IF($E$10=0,0,(YTotExp-(YTotExp+YTotRet-J10))/($E$10*YPER3)) -> 0
B106: 1.1 | C106: =E10*YPER4 -> 0 | E106: =IF($E$10=0,0,(YVarExp-(YTotExp+YTotRet-J10))/($E$10*YPER4)) -> 0 | H106: =IF($E$10=0,0,(YTotExp-(YTotExp+YTotRet-J10))/($E$10*YPER4)) -> 0
B107: 1.25 | C107: =E10*YPER5 -> 0 | E107: =IF($E$10=0,0,(YVarExp-(YTotExp+YTotRet-J10))/($E$10*YPER5)) -> 0 | H107: =IF($E$10=0,0,(YTotExp-(YTotExp+YTotRet-J10))/($E$10*YPER5)) -> 0
A109: Developed by Jackie Smith, Professor and Extension Economist, Texas A&M AgriLife Extension, 806-746-6101.
A111: Information presented is prepared solely as a general guide and not intended to recognize or predict the costs and returns from any one operation. Brand names are mentioned only as examples and imply no endorsement.

Sheet GuarDryland
A1: Projections for Planning Purposes Only -- Not to be Used without Updating
A2: 2018 Estimated Costs and Returns per Acre
A3: Dryland Guar - Herbicide Tolerant
A4: Enter your name for this budget in the cell above.
A5: Enter Your Values in the cells highlighed in MAROON.
E6: Your Acres | R6: Your
C7: Crop Acres | D7: 160 | L7: Your | Q7: Enterprise | R7: Enterprise
E8: Your | H8: Your | I8: Cash | J8: Your | K8: Landlord | L8: Landlord | N8: Your | P8: Your | Q8: Total | R8: Total
A9: REVENUE | D9: Quantity | E9: Quantity | F9: Units | G9: $/Unit | H9: $/Unit | I9: Total | J9: Total | K9: Share | L9: Share | M9: Landlord | N9: Landlord | O9: Tenant | P9: Tenant | Q9: (160 acres) | R9: ="(" & E7 & " acres)" -> ( acres)
B10: Guar | D10: 600 | F10: Pound | G10: 0.16 | I10: 96 | J10: =E10*H10 -> 0 | K10: 0 | M10: 0 | N10: =J10*L10 -> 0 | O10: 96 | P10: =+J10-N10 -> 0 | Q10: 15360 | R10: =+J10*E$7 -> 0
D11: 0 | G11: 0 | I11: 0 | J11: 0 | K11: 0 | M11: 0 | N11: 0 | O11: 0 | P11: =+J11-N11 -> 0 | Q11: 0 | R11: 0
D12: 0 | G12: 0 | I12: 0 | J12: 0 | K12: 0 | M12: 0 | N12: 0 | O12: 0 | P12: 0 | Q12: 0 | R12: 0
A13: Total Revenue | I13: 96 | J13: =SUM(J10:J12) -> 0 | M13: 0 | N13: =SUM(N10:N12) -> 0 | O13: 96 | P13: =SUM(P10:P12) -> 0 | Q13: 15360 | R13: =SUM(R10:R12) -> 0
Q14: Enterprise | R14: Enterprise
A15: VARIABLE COSTS | D15: Quantity | E15: Quantity | F15: Units | G15: $/Unit | H15: $/Unit | I15: Total | J15: Total | K15: Share | L15: Share | M15: Landlord | N15: Landlord | O15: Tenant | P15: Tenant | Q15: Total | R15: Total
A16: Production Costs
B17: Custom
C18: Fertilizer Application - Dry | D18: 1 | F18: Acre | G18: 3.5 | I18: 3.5 | J18: =E18*H18 -> 0 | K18: 0 | M18: 0 | N18: =J18*L18 -> 0 | O18: 3.5 | P18: =+J18-N18 -> 0 | Q18: 560 | R18: =+J18*E$7 -> 0
C19: Harvest and Haul - Guar CWT | D19: 6 | F19: CWT | G19: 0.2 | I19: 1.2 | J19: 0 | K19: 0 | M19: 0 | N19: 0 | O19: 1.2 | P19: 0 | Q19: 192 | R19: 0
C20: Harvest and Haul - Guar Dryland | D20: 1 | F20: Acre | G20: 25 | I20: 25 | J20: 0 | K20: 0 | M20: 0 | N20: 0 | O20: 25 | P20: 0 | Q20: 4000 | R20: 0
B21: Fertilizer
C22: Fertilizer (P) - Dry | D22: 20 | F22: Pound | G22: 0.5096153846 | I22: 10.19230769 | J22: 0 | K22: 0 | M22: 0 | N22: 0 | O22: 10.19230769 | P22: 0 | Q22: 1630.769231 | R22: 0
B23: Herbicide
C24: Herbicide - Guar Dryland | D24: 1 | F24: Acre | G24: 2.34 | I24: 2.34 | J24: 0 | K24: 0 | M24: 0 | N24: 0 | O24: 2.34 | P24: 0 | Q24: 374.4 | R24: 0
B25: Miscellaneous
C26: Crop Insurance Guar | D26: 1 | F26: Acre | G26: 2.5 | I26: 2.5 | J26: 0 | K26: 0 | M26: 0 | N26: 0 | O26: 2.5 | P26: 0 | Q26: 400 | R26: 0
B27: Seed
C28: Seed - Guar | D28: 8 | F28: Pound | G28: 1.5 | I28: 12 | J28: 0 | K28: 0 | M28: 0 | N28: 0 | O28: 12 | P28: 0 | Q28: 1920 | R28: 0
C29: Innoculant Guar | D29: 1 | F29: Pound | G29: 3 | I29: 3 | J29: 0 | K29: 0 | M29: 0 | N29: 0 | O29: 3 | P29: 0 | Q29: 480 | R29: 0
D30: 0 | G30: 0 | I30: 0 | J30: 0 | K30: 0 | M30: 0 | N30: 0 | O30: 0 | P30: 0 | Q30: 0 | R30: 0
D31: 0 | G31: 0 | I31: 0 | J31: 0 | K31: 0 | M31: 0 | N31: 0 | O31: 0 | P31: 0 | Q31: 0 | R31: 0
D32: 0 | G32: 0 | I32: 0 | J32: =E32*H32 -> 0 | K32: 0 | M32: 0 | N32: =J32*L32 -> 0 | O32: 0 | P32: =+J32-N32 -> 0 | Q32: 0 | R32: =+J32*E$7 -> 0
B33: Machinery Labor
C34: Tractors/Self-Propelled | D34: 0.64 | F34: Hour | G34: 12 | I34: 7.68 | J34: =E34*H34 -> 0 | K34: 0 | M34: 0 | N34: =J34*L34 -> 0 | O34: 7.68 | P34: =+J34-N34 -> 0 | Q34: 1228.8 | R34: =+J34*E$7 -> 0
C35: Other Labor | D35: 0.11 | F35: Hour | G35: 12 | I35: 1.32 | J35: =E35*H35 -> 0 | K35: 0 | M35: 0 | N35: =J35*L35 -> 0 | O35: 1.32 | P35: =+J35-N35 -> 0 | Q35: 211.2 | R35: =+J35*E$7 -> 0
B37: Diesel Fuel
C38: Pickup/General Use Equipment | D38: 1 | F38: Acre | G38: 0 | I38: 0 | J38: =E38*H38 -> 0 | K38: 0 | M38: 0 | N38: =J38*L38 -> 0 | O38: 0 | P38: =+J38-N38 -> 0 | Q38: 0 | R38: =+J38*E$7 -> 0
C39: Tractors/Self-Propelled | D39: 2.4 | F39: Gallon | G39: 2.3 | I39: 5.52 | J39: =E39*H39 -> 0 | K39: 0 | M39: 0 | N39: =J39*L39 -> 0 | O39: 5.52 | P39: =+J39-N39 -> 0 | Q39: 883.2 | R39: =+J39*E$7 -> 0
B41: Gasoline
C42: Pickup/General Use Equipment | D42: 1 | F42: Acre | G42: 6 | I42: 6 | J42: =E42*H42 -> 0 | K42: 0 | M42: 0 | N42: =J42*L42 -> 0 | O42: 6 | P42: =+J42-N42 -> 0 | Q42: 960 | R42: =+J42*E$7 -> 0
C43: Tractors/Self-Propelled | D43: 0 | F43: Gallon | G43: 3 | I43: 0 | J43: =E43*H43 -> 0 | K43: 0 | M43: 0 | N43: =J43*L43 -> 0 | O43: 0 | P43: =+J43-N43 -> 0 | Q43: 0 | R43: =+J43*E$7 -> 0
B45: Repairs & Maintenance
C46: Pickup/General Use Equipment | D46: 1 | F46: Acre | G46: 0.5 | I46: 0.5 | J46: =E46*H46 -> 0 | K46: 0 | M46: 0 | N46: =J46*L46 -> 0 | O46: 0.5 | P46: =+J46-N46 -> 0 | Q46: 80 | R46: =+J46*E$7 -> 0
C47: Irrigation Equipment | D47: 1 | F47: Acre | G47: 0 | I47: 0 | J47: 0 | K47: 0 | M47: 0 | N47: 0 | O47: 0 | P47: 0 | Q47: 0 | R47: 0
C48: Tractors/Self-Propelled | D48: 1 | F48: Acre | G48: 6 | I48: 6 | J48: 0 | K48: 0 | M48: 0 | N48: 0 | O48: 6 | P48: 0 | Q48: 960 | R48: 0
C49: Implements | D49: 1 | F49: Acre | G49: 3 | I49: 3 | J49: 0 | K49: 0 | M49: 0 | N49: 0 | O49: 3 | P49: 0 | Q49: 480 | R49: 0
I50: 0 | J50: 0 | K50: 0 | M50: 0 | N50: 0 | O50: 0 | P50: 0 | Q50: 0 | R50: 0
I51: 0 | J51: 0 | K51: 0 | M51: 0 | N51: 0 | O51: 0 | P51: 0 | Q51: 0 | R51: 0
B52: Interest on Credit Line | G52: 0.06 | I52: 2.662522529 | J52: =+SUM(J17:J51)/2*H52 -> 0 | M52: 0 | N52: =+SUM(N17:N51)/2*L52 -> 0 | O52: 2.662522529 | P52: =+SUM(P17:P51)/2*L52 -> 0 | Q52: 426.0036046 | R52: =+J52*E$7 -> 0
A53: Total Variable Costs | I53: 92.41483022 | J53: =SUM(J18:J52) -> 0 | M53: 0 | N53: =SUM(N18:N52) -> 0 | O53: 92.41483022 | P53: =SUM(P18:P52) -> 0 | Q53: 14786.37284 | R53: =SUM(R18:R52) -> 0
A54: Planned Returns Above Variable Costs: | I54: 3.585169779 | J54: =+J13-J53 -> 0 | M54: 0 | N54: =+N13-N53 -> 0 | O54: 3.585169779 | P54: =+P13-P53 -> 0 | Q54: 573.6271646 | R54: =+R13-R53 -> 0
B55: Breakeven Price to Cover Variable Costs | G55: 0.154024717 | H55: =IF(E10=0,"n/a",(YVarExp-(YTotExp+YTotRet-J10))/E10) -> n/a | I55: Pound
Q56: Enterprise | R56: Enterprise
A57: FIXED COSTS | D57: Quantity | E57: Quantity | F57: Units | G57: $/Unit | H57: $/Unit | I57: Total | J57: Total | K57: Share | L57: Share | M57: Landlord | N57: Landlord | O57: Tenant | P57: Tenant | Q57: Total | R57: Total
B58: Equipment Fixed Costs
C59: Pickup/General Use Equipment | D59: 1 | F59: Acre | G59: 1.25 | I59: 1.25 | J59: =E59*H59 -> 0 | K59: 0 | M59: 0 | N59: =J59*L59 -> 0 | O59: 1.25 | P59: =+J59-N59 -> 0 | Q59: 200 | R59: =+J59*E$7 -> 0
C60: Tractors/Self-Propelled | D60: 1 | F60: Acre | G60: 12 | I60: 12 | J60: 0 | K60: 0 | M60: 0 | N60: 0 | O60: 12 | P60: 0 | Q60: 1920 | R60: 0
C61: Implements | D61: 1 | F61: Acre | G61: 10 | I61: 10 | J61: 0 | K61: 0 | M61: 0 | N61: 0 | O61: 10 | P61: 0 | Q61: 1600 | R61: 0
B62: Salaried Labor | D62: 1 | F62: Acre | G62: 0 | I62: 0 | J62: =E62*H62 -> 0 | K62: 0 | M62: 0 | N62: 0 | O62: 0 | P62: 0 | Q62: 0 | R62: 0
B63: Management Fee, Owner/Operator Labor | D63: 1 | F63: Acre | G63: 25 | I63: 25 | J63: 0 | K63: 0 | M63: 0 | N63: 0 | O63: 25 | P63: 0 | Q63: 4000 | R63: 0
B64: Allocated Establishment Cost | D64: 1 | F64: Acre | G64: 0 | I64: 0 | J64: 0 | K64: 0 | M64: 0 | N64: 0 | O64: 0 | P64: 0 | Q64: 0 | R64: 0
B65: Cash Rent - Dryland | D65: 1 | F65: Acre | G65: 50 | I65: 50 | J65: 0 | K65: 0 | M65: 0 | N65: 0 | O65: 50 | P65: 0 | Q65: 8000 | R65: 0
B66: Property Taxes | D66: 1 | F66: Acre | G66: 0 | I66: 0 | J66: 0 | K66: 0 | M66: 0 | N66: 0 | O66: 0 | P66: 0 | Q66: 0 | R66: 0
B67: Whole Farm Insurance | D67: 1 | F67: Acre | G67: 2 | I67: 2 | J67: 0 | K67: 0 | M67: 0 | N67: 0 | O67: 2 | P67: 0 | Q67: 320 | R67: 0
D68: 1 | G68: 0 | I68: 0 | J68: 0 | K68: 0 | M68: 0 | N68: 0 | O68: 0 | P68: 0 | Q68: 0 | R68: 0
D69: 1 | G69: 0 | I69: 0 | J69: =E69*H69 -> 0 | K69: 0 | M69: 0 | N69: 0 | O69: 0 | P69: 0 | Q69: 0 | R69: 0
A70: Total Fixed Costs | I70: 100.25 | J70: =+SUM(J58:J69) -> 0 | M70: 0 | N70: =+SUM(N58:N69) -> 0 | O70: 100.25 | P70: =+SUM(P58:P69) -> 0 | Q70: 16040 | R70: =+SUM(R58:R69) -> 0
A71: Total Specified Costs | I71: 192.6648302 | J71: =+J53+J70 -> 0 | M71: 0 | N71: =+N53+N70 -> 0 | O71: 192.6648302 | P71: =+P53+P70 -> 0 | Q71: 30826.37284 | R71: =+R53+R70 -> 0
A73: Returns Above Specified Costs | I73: -96.66483022 | J73: =+J13-J71 -> 0 | M73: 0 | N73: =+N13-N71 -> 0 | O73: -96.66483022 | P73: =+P13-P71 -> 0 | Q73: -15466.37284 | R73: =+R13-R71 -> 0
A75: Breakeven Price to Cover Total Costs | G75: 0.3211080504 | H75: =IF(E10=0,"n/a",(YTotExp-(YTotExp+YTotRet-J10))/E10) -> n/a | I75: Pound
D77: Example Breakeven Prices
B78: Example | C78: Example | D78: To Cover | G78: To Cover
B79: Yield | C79: Yield | D79: Variable | G79: Total
B80: Percent | C80: Pound | D80: Costs | G80: Costs
B81: 0.75 | C81: 450 | D81: 0.2053662894 | G81: 0.4281440672
B82: 0.9 | C82: 540 | D82: 0.1711385745 | G82: 0.3567867226
B83: 1 | C83: 600 | D83: 0.154024717 | G83: 0.3211080504
B84: 1.1 | C84: 660 | D84: 0.14002247 | G84: 0.2919164094
B85: 1.25 | C85: 750 | D85: 0.1232197736 | G85: 0.2568864403
D87: Your Breakeven Prices
B88: Your | C88: Your | E88: To Cover | H88: To Cover
B89: Yield | C89: Yield | E89: Variable | H89: Total
B90: Percent | C90: Pound | E90: Costs | H90: Costs
B91: 0.75 | C91: =E10*YPER1 -> 0 | E91: =IF($E$10=0,0,(YVarExp-(YTotExp+YTotRet-J10))/($E$10*YPER1)) -> 0 | H91: =IF($E$10=0,0,(YTotExp-(YTotExp+YTotRet-J10))/($E$10*YPER1)) -> 0
B92: 0.9 | C92: =E10*YPER2 -> 0 | E92: =IF($E$10=0,0,(YVarExp-(YTotExp+YTotRet-J10))/($E$10*YPER2)) -> 0 | H92: =IF($E$10=0,0,(YTotExp-(YTotExp+YTotRet-J10))/($E$10*YPER2)) -> 0
B93: 1 | C93: =+E10 -> 0 | E93: =IF($E$10=0,0,(YVarExp-(YTotExp+YTotRet-J10))/($E$10*YPER3)) -> 0 | H93: =IF($E$10=0,0,(YTotExp-(YTotExp+YTotRet-J10))/($E$10*YPER3)) -> 0
B94: 1.1 | C94: =E10*YPER4 -> 0 | E94: =IF($E$10=0,0,(YVarExp-(YTotExp+YTotRet-J10))/($E$10*YPER4)) -> 0 | H94: =IF($E$10=0,0,(YTotExp-(YTotExp+YTotRet-J10))/($E$10*YPER4)) -> 0
B95: 1.25 | C95: =E10*YPER5 -> 0 | E95: =IF($E$10=0,0,(YVarExp-(YTotExp+YTotRet-J10))/($E$10*YPER5)) -> 0 | H95: =IF($E$10=0,0,(YTotExp-(YTotExp+YTotRet-J10))/($E$10*YPER5)) -> 0
A97: Developed by Jackie Smith, Professor and Extension Economist, Texas A&M AgriLife Extension, 806-746-6101.
A99: Information presented is prepared solely as a general guide and not intended to recognize or predict the costs and returns from any one operation. Brand names are mentioned only as examples and imply no endorsement.

Sheet SesameDryland
A1: Projections for Planning Purposes Only -- Not to be Used without Updating
A2: 2018 Estimated Costs and Returns per Acre
A3: Dryland Sesame
A4: Enter your name for this budget in the cell above.
A5: Enter Your Values in the cells highlighed in MAROON.
E6: Your Acres | R6: Your
C7: Crop Acres | D7: 160 | L7: Your | Q7: Enterprise | R7: Enterprise
E8: Your | H8: Your | I8: Cash | J8: Your | K8: Landlord | L8: Landlord | N8: Your | P8: Your | Q8: Total | R8: Total
A9: REVENUE | D9: Quantity | E9: Quantity | F9: Units | G9: $/Unit | H9: $/Unit | I9: Total | J9: Total | K9: Share | L9: Share | M9: Landlord | N9: Landlord | O9: Tenant | P9: Tenant | Q9: (160 acres) | R9: ="(" & E7 & " acres)" -> ( acres)
B10: Sesame - Non-irrigated | D10: 700 | F10: Pound | G10: 0.28 | I10: 196 | J10: =E10*H10 -> 0 | K10: 0 | M10: 0 | N10: =J10*L10 -> 0 | O10: 196 | P10: =+J10-N10 -> 0 | Q10: 31360 | R10: =+J10*E$7 -> 0
D11: 0 | G11: 0 | I11: 0 | J11: 0 | K11: 0 | M11: 0 | N11: 0 | O11: 0 | P11: =+J11-N11 -> 0 | Q11: 0 | R11: 0
D12: 0 | G12: 0 | I12: 0 | J12: 0 | K12: 0 | M12: 0 | N12: 0 | O12: 0 | P12: 0 | Q12: 0 | R12: 0
A13: Total Revenue | I13: 196 | J13: =SUM(J10:J12) -> 0 | M13: 0 | N13: =SUM(N10:N12) -> 0 | O13: 196 | P13: =SUM(P10:P12) -> 0 | Q13: 31360 | R13: =SUM(R10:R12) -> 0
Q14: Enterprise | R14: Enterprise
A15: VARIABLE COSTS | D15: Quantity | E15: Quantity | F15: Units | G15: $/Unit | H15: $/Unit | I15: Total | J15: Total | K15: Share | L15: Share | M15: Landlord | N15: Landlord | O15: Tenant | P15: Tenant | Q15: Total | R15: Total
A16: Production Costs
B17: Custom
C18: Fertilizer Application - Liquid High | D18: 1 | F18: Acre | G18: 4.75 | I18: 4.75 | J18: =E18*H18 -> 0 | K18: 0 | M18: 0 | N18: =J18*L18 -> 0 | O18: 4.75 | P18: =+J18-N18 -> 0 | Q18: 760 | R18: =+J18*E$7 -> 0
C19: Custom Harvest - Sesame | D19: 1 | F19: Acre | G19: 25 | I19: 25 | J19: 0 | K19: 0 | M19: 0 | N19: 0 | O19: 25 | P19: 0 | Q19: 4000 | R19: 0
C20: Custom Haul - Sesame | D20: 7 | F20: CWT | G20: 0.12 | I20: 0.84 | J20: 0 | K20: 0 | M20: 0 | N20: 0 | O20: 0.84 | P20: 0 | Q20: 134.4 | R20: 0
B21: Fertilizer
C22: Fertilizer (N) - Liquid | D22: 30 | F22: Pound | G22: 0.390625 | I22: 11.71875 | J22: 0 | K22: 0 | M22: 0 | N22: 0 | O22: 11.71875 | P22: 0 | Q22: 1875 | R22: 0
B23: Herbicide
C24: Herbicide - Sesame | D24: 1 | F24: Acre | G24: 21.75 | I24: 21.75 | J24: 0 | K24: 0 | M24: 0 | N24: 0 | O24: 21.75 | P24: 0 | Q24: 3480 | R24: 0
B25: Miscellaneous
C26: Crop Insurance Sesame - Dryland | D26: 1 | F26: Acre | G26: 10 | I26: 10 | J26: 0 | K26: 0 | M26: 0 | N26: 0 | O26: 10 | P26: 0 | Q26: 1600 | R26: 0
B27: Seed
C28: Seed - Sesame | D28: 2.5 | F28: Pound | G28: 4 | I28: 10 | J28: 0 | K28: 0 | M28: 0 | N28: 0 | O28: 10 | P28: 0 | Q28: 1600 | R28: 0
D29: 0 | G29: 0 | I29: 0 | J29: 0 | K29: 0 | M29: 0 | N29: 0 | O29: 0 | P29: 0 | Q29: 0 | R29: 0
D30: 0 | G30: 0 | I30: 0 | J30: 0 | K30: 0 | M30: 0 | N30: 0 | O30: 0 | P30: 0 | Q30: 0 | R30: 0
D31: 0 | G31: 0 | I31: 0 | J31: =E31*H31 -> 0 | K31: 0 | M31: 0 | N31: =J31*L31 -> 0 | O31: 0 | P31: =+J31-N31 -> 0 | Q31: 0 | R31: =+J31*E$7 -> 0
B32: Machinery Labor
C33: Tractors/Self-Propelled | D33: 0.46 | F33: Hour | G33: 12 | I33: 5.52 | J33: =E33*H33 -> 0 | K33: 0 | M33: 0 | N33: =J33*L33 -> 0 | O33: 5.52 | P33: =+J33-N33 -> 0 | Q33: 883.2 | R33: =+J33*E$7 -> 0
C34: Other Labor | D34: 0.54 | F34: Hour | G34: 12 | I34: 6.48 | J34: =E34*H34 -> 0 | K34: 0 | M34: 0 | N34: =J34*L34 -> 0 | O34: 6.48 | P34: =+J34-N34 -> 0 | Q34: 1036.8 | R34: =+J34*E$7 -> 0
B36: Diesel Fuel
C37: Pickup/General Use Equipment | D37: 1 | F37: Acre | G37: 0 | I37: 0 | J37: =E37*H37 -> 0 | K37: 0 | M37: 0 | N37: =J37*L37 -> 0 | O37: 0 | P37: =+J37-N37 -> 0 | Q37: 0 | R37: =+J37*E$7 -> 0
C38: Tractors/Self-Propelled | D38: 2.2 | F38: Gallon | G38: 2.3 | I38: 5.06 | J38: =E38*H38 -> 0 | K38: 0 | M38: 0 | N38: =J38*L38 -> 0 | O38: 5.06 | P38: =+J38-N38 -> 0 | Q38: 809.6 | R38: =+J38*E$7 -> 0
B40: Gasoline
C41: Pickup/General Use Equipment | D41: 1 | F41: Acre | G41: 6 | I41: 6 | J41: =E41*H41 -> 0 | K41: 0 | M41: 0 | N41: =J41*L41 -> 0 | O41: 6 | P41: =+J41-N41 -> 0 | Q41: 960 | R41: =+J41*E$7 -> 0
C42: Tractors/Self-Propelled | D42: 0 | F42: Gallon | G42: 3 | I42: 0 | J42: =E42*H42 -> 0 | K42: 0 | M42: 0 | N42: =J42*L42 -> 0 | O42: 0 | P42: =+J42-N42 -> 0 | Q42: 0 | R42: =+J42*E$7 -> 0
B44: Repairs & Maintenance
C45: Pickup/General Use Equipment | D45: 1 | F45: Acre | G45: 0.5 | I45: 0.5 | J45: =E45*H45 -> 0 | K45: 0 | M45: 0 | N45: =J45*L45 -> 0 | O45: 0.5 | P45: =+J45-N45 -> 0 | Q45: 80 | R45: =+J45*E$7 -> 0
C46: Irrigation Equipment | D46: 1 | F46: Acre | G46: 0 | I46: 0 | J46: 0 | K46: 0 | M46: 0 | N46: 0 | O46: 0 | P46: 0 | Q46: 0 | R46: 0
C47: Tractors/Self-Propelled | D47: 1 | F47: Acre | G47: 6 | I47: 6 | J47: 0 | K47: 0 | M47: 0 | N47: 0 | O47: 6 | P47: 0 | Q47: 960 | R47: 0
C48: Implements | D48: 1 | F48: Acre | G48: 3 | I48: 3 | J48: 0 | K48: 0 | M48: 0 | N48: 0 | O48: 3 | P48: 0 | Q48: 480 | R48: 0
I49: 0 | J49: 0 | K49: 0 | M49: 0 | N49: 0 | O49: 0 | P49: 0 | Q49: 0 | R49: 0
I50: 0 | J50: 0 | K50: 0 | M50: 0 | N50: 0 | O50: 0 | P50: 0 | Q50: 0 | R50: 0
B51: Interest on Credit Line | G51: 0.06 | I51: 3.825389411 | J51: =+SUM(J17:J50)/2*H51 -> 0 | M51: 0 | N51: =+SUM(N17:N50)/2*L51 -> 0 | O51: 3.825389411 | P51: =+SUM(P17:P50)/2*L51 -> 0 | Q51: 612.0623057 | R51: =+J51*E$7 -> 0
A52: Total Variable Costs | I52: 120.4441394 | J52: =SUM(J18:J51) -> 0 | M52: 0 | N52: =SUM(N18:N51) -> 0 | O52: 120.4441394 | P52: =SUM(P18:P51) -> 0 | Q52: 19271.06231 | R52: =SUM(R18:R51) -> 0
A53: Planned Returns Above Variable Costs: | I53: 75.55586059 | J53: =+J13-J52 -> 0 | M53: 0 | N53: =+N13-N52 -> 0 | O53: 75.55586059 | P53: =+P13-P52 -> 0 | Q53: 12088.93769 | R53: =+R13-R52 -> 0
B54: Breakeven Price to Cover Variable Costs | G54: 0.1720630563 | H54: =IF(E10=0,"n/a",(YVarExp-(YTotExp+YTotRet-J10))/E10) -> n/a | I54: Pound
Q55: Enterprise | R55: Enterprise
A56: FIXED COSTS | D56: Quantity | E56: Quantity | F56: Units | G56: $/Unit | H56: $/Unit | I56: Total | J56: Total | K56: Share | L56: Share | M56: Landlord | N56: Landlord | O56: Tenant | P56: Tenant | Q56: Total | R56: Total
B57: Equipment Fixed Costs
C58: Pickup/General Use Equipment | D58: 1 | F58: Acre | G58: 1.25 | I58: 1.25 | J58: =E58*H58 -> 0 | K58: 0 | M58: 0 | N58: =J58*L58 -> 0 | O58: 1.25 | P58: =+J58-N58 -> 0 | Q58: 200 | R58: =+J58*E$7 -> 0
C59: Tractors/Self-Propelled | D59: 1 | F59: Acre | G59: 12 | I59: 12 | J59: 0 | K59: 0 | M59: 0 | N59: 0 | O59: 12 | P59: 0 | Q59: 1920 | R59: 0
C60: Implements | D60: 1 | F60: Acre | G60: 10 | I60: 10 | J60: 0 | K60: 0 | M60: 0 | N60: 0 | O60: 10 | P60: 0 | Q60: 1600 | R60: 0
B61: Salaried Labor | D61: 1 | F61: Acre | G61: 0 | I61: 0 | J61: =E61*H61 -> 0 | K61: 0 | M61: 0 | N61: 0 | O61: 0 | P61: 0 | Q61: 0 | R61: 0
B62: Management Fee, Owner/Operator Labor | D62: 1 | F62: Acre | G62: 25 | I62: 25 | J62: 0 | K62: 0 | M62: 0 | N62: 0 | O62: 25 | P62: 0 | Q62: 4000 | R62: 0
B63: Allocated Establishment Cost | D63: 1 | F63: Acre | G63: 0 | I63: 0 | J63: 0 | K63: 0 | M63: 0 | N63: 0 | O63: 0 | P63: 0 | Q63: 0 | R63: 0
B64: Cash Rent - Dryland | D64: 1 | F64: Acre | G64: 50 | I64: 50 | J64: 0 | K64: 0 | M64: 0 | N64: 0 | O64: 50 | P64: 0 | Q64: 8000 | R64: 0
B65: Property Taxes | D65: 1 | F65: Acre | G65: 0 | I65: 0 | J65: 0 | K65: 0 | M65: 0 | N65: 0 | O65: 0 | P65: 0 | Q65: 0 | R65: 0
B66: Whole Farm Insurance | D66: 1 | F66: Acre | G66: 2 | I66: 2 | J66: 0 | K66: 0 | M66: 0 | N66: 0 | O66: 2 | P66: 0 | Q66: 320 | R66: 0
D67: 1 | G67: 0 | I67: 0 | J67: 0 | K67: 0 | M67: 0 | N67: 0 | O67: 0 | P67: 0 | Q67: 0 | R67: 0
D68: 1 | G68: 0 | I68: 0 | J68: =E68*H68 -> 0 | K68: 0 | M68: 0 | N68: 0 | O68: 0 | P68: 0 | Q68: 0 | R68: 0
A69: Total Fixed Costs | I69: 100.25 | J69: =+SUM(J57:J68) -> 0 | M69: 0 | N69: =+SUM(N57:N68) -> 0 | O69: 100.25 | P69: =+SUM(P57:P68) -> 0 | Q69: 16040 | R69: =+SUM(R57:R68) -> 0
A70: Total Specified Costs | I70: 220.6941394 | J70: =+J52+J69 -> 0 | M70: 0 | N70: =+N52+N69 -> 0 | O70: 220.6941394 | P70: =+P52+P69 -> 0 | Q70: 35311.06231 | R70: =+R52+R69 -> 0
A72: Returns Above Specified Costs | I72: -24.69413941 | J72: =+J13-J70 -> 0 | M72: 0 | N72: =+N13-N70 -> 0 | O72: -24.69413941 | P72: =+P13-P70 -> 0 | Q72: -3951.062306 | R72: =+R13-R70 -> 0
A74: Breakeven Price to Cover Total Costs | G74: 0.315277342 | H74: =IF(E10=0,"n/a",(YTotExp-(YTotExp+YTotRet-J10))/E10) -> n/a | I74: Pound
D76: Example Breakeven Prices
B77: Example | C77: Example | D77: To Cover | G77: To Cover
B78: Yield | C78: Yield | D78: Variable | G78: Total
B79: Percent | C79: Pound | D79: Costs | G79: Costs
B80: 0.75 | C80: 525 | D80: 0.2294174084 | G80: 0.4203697894
B81: 0.9 | C81: 630 | D81: 0.1911811737 | G81: 0.3503081578
B82: 1 | C82: 700 | D82: 0.1720630563 | G82: 0.315277342
B83: 1.1 | C83: 770 | D83: 0.1564209603 | G83: 0.2866157655
B84: 1.25 | C84: 875 | D84: 0.137650445 | G84: 0.2522218736
D86: Your Breakeven Prices
B87: Your | C87: Your | E87: To Cover | H87: To Cover
B88: Yield | C88: Yield | E88: Variable | H88: Total
B89: Percent | C89: Pound | E89: Costs | H89: Costs
B90: 0.75 | C90: =E10*YPER1 -> 0 | E90: =IF($E$10=0,0,(YVarExp-(YTotExp+YTotRet-J10))/($E$10*YPER1)) -> 0 | H90: =IF($E$10=0,0,(YTotExp-(YTotExp+YTotRet-J10))/($E$10*YPER1)) -> 0
B91: 0.9 | C91: =E10*YPER2 -> 0 | E91: =IF($E$10=0,0,(YVarExp-(YTotExp+YTotRet-J10))/($E$10*YPER2)) -> 0 | H91: =IF($E$10=0,0,(YTotExp-(YTotExp+YTotRet-J10))/($E$10*YPER2)) -> 0
B92: 1 | C92: =+E10 -> 0 | E92: =IF($E$10=0,0,(YVarExp-(YTotExp+YTotRet-J10))/($E$10*YPER3)) -> 0 | H92: =IF($E$10=0,0,(YTotExp-(YTotExp+YTotRet-J10))/($E$10*YPER3)) -> 0
B93: 1.1 | C93: =E10*YPER4 -> 0 | E93: =IF($E$10=0,0,(YVarExp-(YTotExp+YTotRet-J10))/($E$10*YPER4)) -> 0 | H93: =IF($E$10=0,0,(YTotExp-(YTotExp+YTotRet-J10))/($E$10*YPER4)) -> 0
B94: 1.25 | C94: =E10*YPER5 -> 0 | E94: =IF($E$10=0,0,(YVarExp-(YTotExp+YTotRet-J10))/($E$10*YPER5)) -> 0 | H94: =IF($E$10=0,0,(YTotExp-(YTotExp+YTotRet-J10))/($E$10*YPER5)) -> 0
A96: Developed by Jackie Smith, Professor and Extension Economist, Texas A&M AgriLife Extension, 806-746-6101.
A98: Information presented is prepared solely as a general guide and not intended to recognize or predict the costs and returns from any one operation. Brand names are mentioned only as examples and imply no endorsement.

Sheet SorghumDryland
A1: Projections for Planning Purposes Only -- Not to be Used without Updating
A2: 2018 Estimated Costs and Returns per Acre
A3: Dryland Sorghum
A4: Enter your name for this budget in the cell above.
A5: Enter Your Values in the cells highlighed in MAROON.
E6: Your Acres | R6: Your
C7: Crop Acres | D7: 160 | L7: Your | Q7: Enterprise | R7: Enterprise
E8: Your | H8: Your | I8: Cash | J8: Your | K8: Landlord | L8: Landlord | N8: Your | P8: Your | Q8: Total | R8: Total
A9: REVENUE | D9: Quantity | E9: Quantity | F9: Units | G9: $/Unit | H9: $/Unit | I9: Total | J9: Total | K9: Share | L9: Share | M9: Landlord | N9: Landlord | O9: Tenant | P9: Tenant | Q9: (160 acres) | R9: ="(" & E7 & " acres)" -> ( acres)
B10: Grain Sorghum | D10: 18 | F10: CWT | G10: 6.5 | I10: 117 | J10: =E10*H10 -> 0 | K10: 0 | M10: 0 | N10: =J10*L10 -> 0 | O10: 117 | P10: =+J10-N10 -> 0 | Q10: 18720 | R10: =+J10*E$7 -> 0
D11: 0 | G11: 0 | I11: 0 | J11: 0 | K11: 0 | M11: 0 | N11: 0 | O11: 0 | P11: =+J11-N11 -> 0 | Q11: 0 | R11: 0
D12: 0 | G12: 0 | I12: 0 | J12: 0 | K12: 0 | M12: 0 | N12: 0 | O12: 0 | P12: 0 | Q12: 0 | R12: 0
A13: Total Revenue | I13: 117 | J13: =SUM(J10:J12) -> 0 | M13: 0 | N13: =SUM(N10:N12) -> 0 | O13: 117 | P13: =SUM(P10:P12) -> 0 | Q13: 18720 | R13: =SUM(R10:R12) -> 0
Q14: Enterprise | R14: Enterprise
A15: VARIABLE COSTS | D15: Quantity | E15: Quantity | F15: Units | G15: $/Unit | H15: $/Unit | I15: Total | J15: Total | K15: Share | L15: Share | M15: Landlord | N15: Landlord | O15: Tenant | P15: Tenant | Q15: Total | R15: Total
A16: Production Costs
B17: Herbicide
C18: Herbicide and Apply Sorghum Dryland | D18: 1 | F18: Acre | G18: 10.5 | I18: 10.5 | J18: =E18*H18 -> 0 | K18: 0 | M18: 0 | N18: =J18*L18 -> 0 | O18: 10.5 | P18: =+J18-N18 -> 0 | Q18: 1680 | R18: =+J18*E$7 -> 0
B19: Seed
C20: Seed - Sorghum | D20: 2.25 | F20: Pound | G20: 2.4 | I20: 5.4 | J20: 0 | K20: 0 | M20: 0 | N20: 0 | O20: 5.4 | P20: 0 | Q20: 864 | R20: 0
B21: Fertilizer
C22: Fertilizer (N) - Liquid | D22: 30 | F22: Pound | G22: 0.390625 | I22: 11.71875 | J22: 0 | K22: 0 | M22: 0 | N22: 0 | O22: 11.71875 | P22: 0 | Q22: 1875 | R22: 0
B23: Custom
C24: Custom Harvest - Sorghum Dryland | D24: 1 | F24: Acre | G24: 14 | I24: 14 | J24: 0 | K24: 0 | M24: 0 | N24: 0 | O24: 14 | P24: 0 | Q24: 2240 | R24: 0
C25: Custom Haul - Sorghum Dryland | D25: 18 | F25: CWT | G25: 0.4 | I25: 7.2 | J25: 0 | K25: 0 | M25: 0 | N25: 0 | O25: 7.2 | P25: 0 | Q25: 1152 | R25: 0
C26: Fertilizer Application - Liquid High | D26: 1 | F26: Acre | G26: 4.75 | I26: 4.75 | J26: 0 | K26: 0 | M26: 0 | N26: 0 | O26: 4.75 | P26: 0 | Q26: 760 | R26: 0
B27: Miscellaneous
C28: Crop Insurance Sorghum - Dryland | D28: 1 | F28: Acre | G28: 16.5 | I28: 16.5 | J28: 0 | K28: 0 | M28: 0 | N28: 0 | O28: 16.5 | P28: 0 | Q28: 2640 | R28: 0
B29: Insecticide
C30: Insecticide and Apply Sorghum | D30: 1 | F30: Acre | G30: 25 | I30: 25 | J30: 0 | K30: 0 | M30: 0 | N30: 0 | O30: 25 | P30: 0 | Q30: 4000 | R30: 0
D31: 0 | G31: 0 | I31: 0 | J31: 0 | K31: 0 | M31: 0 | N31: 0 | O31: 0 | P31: 0 | Q31: 0 | R31: 0
D32: 0 | G32: 0 | I32: 0 | J32: 0 | K32: 0 | M32: 0 | N32: 0 | O32: 0 | P32: 0 | Q32: 0 | R32: 0
D33: 0 | G33: 0 | I33: 0 | J33: =E33*H33 -> 0 | K33: 0 | M33: 0 | N33: =J33*L33 -> 0 | O33: 0 | P33: =+J33-N33 -> 0 | Q33: 0 | R33: =+J33*E$7 -> 0
B34: Machinery Labor
C35: Tractors/Self-Propelled | D35: 0.47 | F35: Hour | G35: 12 | I35: 5.64 | J35: =E35*H35 -> 0 | K35: 0 | M35: 0 | N35: =J35*L35 -> 0 | O35: 5.64 | P35: =+J35-N35 -> 0 | Q35: 902.4 | R35: =+J35*E$7 -> 0
C36: Other Labor | D36: 0.53 | F36: Hour | G36: 12 | I36: 6.36 | J36: =E36*H36 -> 0 | K36: 0 | M36: 0 | N36: =J36*L36 -> 0 | O36: 6.36 | P36: =+J36-N36 -> 0 | Q36: 1017.6 | R36: =+J36*E$7 -> 0
B38: Diesel Fuel
C39: Pickup/General Use Equipment | D39: 1 | F39: Acre | G39: 0 | I39: 0 | J39: =E39*H39 -> 0 | K39: 0 | M39: 0 | N39: =J39*L39 -> 0 | O39: 0 | P39: =+J39-N39 -> 0 | Q39: 0 | R39: =+J39*E$7 -> 0
C40: Tractors/Self-Propelled | D40: 2.4 | F40: Gallon | G40: 2.3 | I40: 5.52 | J40: =E40*H40 -> 0 | K40: 0 | M40: 0 | N40: =J40*L40 -> 0 | O40: 5.52 | P40: =+J40-N40 -> 0 | Q40: 883.2 | R40: =+J40*E$7 -> 0
B42: Gasoline
C43: Pickup/General Use Equipment | D43: 1 | F43: Acre | G43: 6 | I43: 6 | J43: =E43*H43 -> 0 | K43: 0 | M43: 0 | N43: =J43*L43 -> 0 | O43: 6 | P43: =+J43-N43 -> 0 | Q43: 960 | R43: =+J43*E$7 -> 0
C44: Tractors/Self-Propelled | D44: 0 | F44: Gallon | G44: 3 | I44: 0 | J44: =E44*H44 -> 0 | K44: 0 | M44: 0 | N44: =J44*L44 -> 0 | O44: 0 | P44: =+J44-N44 -> 0 | Q44: 0 | R44: =+J44*E$7 -> 0
B46: Repairs & Maintenance
C47: Pickup/General Use Equipment | D47: 1 | F47: Acre | G47: 0.5 | I47: 0.5 | J47: =E47*H47 -> 0 | K47: 0 | M47: 0 | N47: =J47*L47 -> 0 | O47: 0.5 | P47: =+J47-N47 -> 0 | Q47: 80 | R47: =+J47*E$7 -> 0
C48: Irrigation Equipment | D48: 1 | F48: Acre | G48: 0 | I48: 0 | J48: 0 | K48: 0 | M48: 0 | N48: 0 | O48: 0 | P48: 0 | Q48: 0 | R48: 0
C49: Tractors/Self-Propelled | D49: 1 | F49: Acre | G49: 6 | I49: 6 | J49: 0 | K49: 0 | M49: 0 | N49: 0 | O49: 6 | P49: 0 | Q49: 960 | R49: 0
C50: Implements | D50: 1 | F50: Acre | G50: 3 | I50: 3 | J50: 0 | K50: 0 | M50: 0 | N50: 0 | O50: 3 | P50: 0 | Q50: 480 | R50: 0
I51: 0 | J51: 0 | K51: 0 | M51: 0 | N51: 0 | O51: 0 | P51: 0 | Q51: 0 | R51: 0
I52: 0 | J52: 0 | K52: 0 | M52: 0 | N52: 0 | O52: 0 | P52: 0 | Q52: 0 | R52: 0
B53: Interest on Credit Line | G53: 0.06 | I53: 3.793886215 | J53: =+SUM(J17:J52)/2*H53 -> 0 | M53: 0 | N53: =+SUM(N17:N52)/2*L53 -> 0 | O53: 3.793886215 | P53: =+SUM(P17:P52)/2*L53 -> 0 | Q53: 607.0217943 | R53: =+J53*E$7 -> 0
A54: Total Variable Costs | I54: 131.8826362 | J54: =SUM(J18:J53) -> 0 | M54: 0 | N54: =SUM(N18:N53) -> 0 | O54: 131.8826362 | P54: =SUM(P18:P53) -> 0 | Q54: 21101.22179 | R54: =SUM(R18:R53) -> 0
A55: Planned Returns Above Variable Costs: | I55: -14.88263621 | J55: =+J13-J54 -> 0 | M55: 0 | N55: =+N13-N54 -> 0 | O55: -14.88263621 | P55: =+P13-P54 -> 0 | Q55: -2381.221794 | R55: =+R13-R54 -> 0
B56: Breakeven Price to Cover Variable Costs | G56: 7.326813123 | H56: =IF(E10=0,"n/a",(YVarExp-(YTotExp+YTotRet-J10))/E10) -> n/a | I56: CWT
Q57: Enterprise | R57: Enterprise
A58: FIXED COSTS | D58: Quantity | E58: Quantity | F58: Units | G58: $/Unit | H58: $/Unit | I58: Total | J58: Total | K58: Share | L58: Share | M58: Landlord | N58: Landlord | O58: Tenant | P58: Tenant | Q58: Total | R58: Total
B59: Equipment Fixed Costs
C60: Pickup/General Use Equipment | D60: 1 | F60: Acre | G60: 1.25 | I60: 1.25 | J60: =E60*H60 -> 0 | K60: 0 | M60: 0 | N60: =J60*L60 -> 0 | O60: 1.25 | P60: =+J60-N60 -> 0 | Q60: 200 | R60: =+J60*E$7 -> 0
C61: Tractors/Self-Propelled | D61: 1 | F61: Acre | G61: 12 | I61: 12 | J61: 0 | K61: 0 | M61: 0 | N61: 0 | O61: 12 | P61: 0 | Q61: 1920 | R61: 0
C62: Implements | D62: 1 | F62: Acre | G62: 10 | I62: 10 | J62: 0 | K62: 0 | M62: 0 | N62: 0 | O62: 10 | P62: 0 | Q62: 1600 | R62: 0
B63: Salaried Labor | D63: 1 | F63: Acre | G63: 0 | I63: 0 | J63: =E63*H63 -> 0 | K63: 0 | M63: 0 | N63: 0 | O63: 0 | P63: 0 | Q63: 0 | R63: 0
B64: Management Fee, Owner/Operator Labor | D64: 1 | F64: Acre | G64: 25 | I64: 25 | J64: 0 | K64: 0 | M64: 0 | N64: 0 | O64: 25 | P64: 0 | Q64: 4000 | R64: 0
B65: Allocated Establishment Cost | D65: 1 | F65: Acre | G65: 0 | I65: 0 | J65: 0 | K65: 0 | M65: 0 | N65: 0 | O65: 0 | P65: 0 | Q65: 0 | R65: 0
B66: Cash Rent - Sorghum | D66: 1 | F66: Acre | G66: 50 | I66: 50 | J66: 0 | K66: 0 | M66: 0 | N66: 0 | O66: 50 | P66: 0 | Q66: 8000 | R66: 0
B67: Property Taxes | D67: 1 | F67: Acre | G67: 0 | I67: 0 | J67: 0 | K67: 0 | M67: 0 | N67: 0 | O67: 0 | P67: 0 | Q67: 0 | R67: 0
B68: Whole Farm Insurance | D68: 1 | F68: Acre | G68: 2 | I68: 2 | J68: 0 | K68: 0 | M68: 0 | N68: 0 | O68: 2 | P68: 0 | Q68: 320 | R68: 0
D69: 1 | G69: 0 | I69: 0 | J69: 0 | K69: 0 | M69: 0 | N69: 0 | O69: 0 | P69: 0 | Q69: 0 | R69: 0
D70: 1 | G70: 0 | I70: 0 | J70: =E70*H70 -> 0 | K70: 0 | M70: 0 | N70: 0 | O70: 0 | P70: 0 | Q70: 0 | R70: 0
A71: Total Fixed Costs | I71: 100.25 | J71: =+SUM(J59:J70) -> 0 | M71: 0 | N71: =+SUM(N59:N70) -> 0 | O71: 100.25 | P71: =+SUM(P59:P70) -> 0 | Q71: 16040 | R71: =+SUM(R59:R70) -> 0
A72: Total Specified Costs | I72: 232.1326362 | J72: =+J54+J71 -> 0 | M72: 0 | N72: =+N54+N71 -> 0 | O72: 232.1326362 | P72: =+P54+P71 -> 0 | Q72: 37141.22179 | R72: =+R54+R71 -> 0
A74: Returns Above Specified Costs | I74: -115.1326362 | J74: =+J13-J72 -> 0 | M74: 0 | N74: =+N13-N72 -> 0 | O74: -115.1326362 | P74: =+P13-P72 -> 0 | Q74: -18421.22179 | R74: =+R13-R72 -> 0
A76: Breakeven Price to Cover Total Costs | G76: 12.89625757 | H76: =IF(E10=0,"n/a",(YTotExp-(YTotExp+YTotRet-J10))/E10) -> n/a | I76: CWT
D78: Example Breakeven Prices
B79: Example | C79: Example | D79: To Cover | G79: To Cover
B80: Yield | C80: Yield | D80: Variable | G80: Total
B81: Percent | C81: CWT | D81: Costs | G81: Costs
B82: 0.75 | C82: 13.5 | D82: 9.769084164 | G82: 17.19501009
B83: 0.9 | C83: 16.2 | D83: 8.14090347 | G83: 14.32917507
B84: 1 | C84: 18 | D84: 7.326813123 | G84: 12.89625757
B85: 1.1 | C85: 19.8 | D85: 6.660739203 | G85: 11.72387052
B86: 1.25 | C86: 22.5 | D86: 5.861450498 | G86: 10.31700605
D88: Your Breakeven Prices
B89: Your | C89: Your | E89: To Cover | H89: To Cover
B90: Yield | C90: Yield | E90: Variable | H90: Total
B91: Percent | C91: CWT | E91: Costs | H91: Costs
B92: 0.75 | C92: =E10*YPER1 -> 0 | E92: =IF($E$10=0,0,(YVarExp-(YTotExp+YTotRet-J10))/($E$10*YPER1)) -> 0 | H92: =IF($E$10=0,0,(YTotExp-(YTotExp+YTotRet-J10))/($E$10*YPER1)) -> 0
B93: 0.9 | C93: =E10*YPER2 -> 0 | E93: =IF($E$10=0,0,(YVarExp-(YTotExp+YTotRet-J10))/($E$10*YPER2)) -> 0 | H93: =IF($E$10=0,0,(YTotExp-(YTotExp+YTotRet-J10))/($E$10*YPER2)) -> 0
B94: 1 | C94: =+E10 -> 0 | E94: =IF($E$10=0,0,(YVarExp-(YTotExp+YTotRet-J10))/($E$10*YPER3)) -> 0 | H94: =IF($E$10=0,0,(YTotExp-(YTotExp+YTotRet-J10))/($E$10*YPER3)) -> 0
B95: 1.1 | C95: =E10*YPER4 -> 0 | E95: =IF($E$10=0,0,(YVarExp-(YTotExp+YTotRet-J10))/($E$10*YPER4)) -> 0 | H95: =IF($E$10=0,0,(YTotExp-(YTotExp+YTotRet-J10))/($E$10*YPER4)) -> 0
B96: 1.25 | C96: =E10*YPER5 -> 0 | E96: =IF($E$10=0,0,(YVarExp-(YTotExp+YTotRet-J10))/($E$10*YPER5)) -> 0 | H96: =IF($E$10=0,0,(YTotExp-(YTotExp+YTotRet-J10))/($E$10*YPER5)) -> 0
A98: Developed by Jackie Smith, Professor and Extension Economist, Texas A&M AgriLife Extension, 806-746-6101.
A100: Information presented is prepared solely as a general guide and not intended to recognize or predict the costs and returns from any one operation. Brand names are mentioned only as examples and imply no endorsement.

Sheet SunflowersDryland
A1: Projections for Planning Purposes Only -- Not to be Used without Updating
A2: 2018 Estimated Costs and Returns per Acre
A3: Dryland Sunflowers - Oilseed
A4: Enter your name for this budget in the cell above.
A5: Enter Your Values in the cells highlighed in MAROON.
E6: Your Acres | R6: Your
C7: Crop Acres | D7: 160 | L7: Your | Q7: Enterprise | R7: Enterprise
E8: Your | H8: Your | I8: Cash | J8: Your | K8: Landlord | L8: Landlord | N8: Your | P8: Your | Q8: Total | R8: Total
A9: REVENUE | D9: Quantity | E9: Quantity | F9: Units | G9: $/Unit | H9: $/Unit | I9: Total | J9: Total | K9: Share | L9: Share | M9: Landlord | N9: Landlord | O9: Tenant | P9: Tenant | Q9: (160 acres) | R9: ="(" & E7 & " acres)" -> ( acres)
B10: Oilseed Sunflowers | D10: 1000 | F10: Pound | G10: 0.14 | I10: 140 | J10: =E10*H10 -> 0 | K10: 0 | M10: 0 | N10: =J10*L10 -> 0 | O10: 140 | P10: =+J10-N10 -> 0 | Q10: 22400 | R10: =+J10*E$7 -> 0
D11: 0 | G11: 0 | I11: 0 | J11: 0 | K11: 0 | M11: 0 | N11: 0 | O11: 0 | P11: =+J11-N11 -> 0 | Q11: 0 | R11: 0
D12: 0 | G12: 0 | I12: 0 | J12: 0 | K12: 0 | M12: 0 | N12: 0 | O12: 0 | P12: 0 | Q12: 0 | R12: 0
A13: Total Revenue | I13: 140 | J13: =SUM(J10:J12) -> 0 | M13: 0 | N13: =SUM(N10:N12) -> 0 | O13: 140 | P13: =SUM(P10:P12) -> 0 | Q13: 22400 | R13: =SUM(R10:R12) -> 0
Q14: Enterprise | R14: Enterprise
A15: VARIABLE COSTS | D15: Quantity | E15: Quantity | F15: Units | G15: $/Unit | H15: $/Unit | I15: Total | J15: Total | K15: Share | L15: Share | M15: Landlord | N15: Landlord | O15: Tenant | P15: Tenant | Q15: Total | R15: Total
A16: Production Costs
B17: Herbicide
C18: Herbicide and Apply Oilseed Sunflowers | D18: 1 | F18: Acre | G18: 34.75 | I18: 34.75 | J18: =E18*H18 -> 0 | K18: 0 | M18: 0 | N18: =J18*L18 -> 0 | O18: 34.75 | P18: =+J18-N18 -> 0 | Q18: 5560 | R18: =+J18*E$7 -> 0
B19: Seed
C20: Seed - Oil Sunflower Dryland | D20: 1 | F20: Acre | G20: 12.5 | I20: 12.5 | J20: 0 | K20: 0 | M20: 0 | N20: 0 | O20: 12.5 | P20: 0 | Q20: 2000 | R20: 0
B21: Fertilizer
C22: Fertilizer (N) - Liquid | D22: 40 | F22: Pound | G22: 0.390625 | I22: 15.625 | J22: 0 | K22: 0 | M22: 0 | N22: 0 | O22: 15.625 | P22: 0 | Q22: 2500 | R22: 0
B23: Custom
C24: Custom Haul - Sunflowers | D24: 10 | F24: CWT | G24: 0.3 | I24: 3 | J24: 0 | K24: 0 | M24: 0 | N24: 0 | O24: 3 | P24: 0 | Q24: 480 | R24: 0
C25: Fertilizer Application - Liquid High | D25: 1 | F25: Acre | G25: 4.75 | I25: 4.75 | J25: 0 | K25: 0 | M25: 0 | N25: 0 | O25: 4.75 | P25: 0 | Q25: 760 | R25: 0
C26: Custom Harvest - Sunflowers Dryland | D26: 1 | F26: Acre | G26: 15 | I26: 15 | J26: 0 | K26: 0 | M26: 0 | N26: 0 | O26: 15 | P26: 0 | Q26: 2400 | R26: 0
B27: Miscellaneous
C28: Crop Insurance Oil Sunflowers Dryland | D28: 1 | F28: Acre | G28: 11 | I28: 11 | J28: 0 | K28: 0 | M28: 0 | N28: 0 | O28: 11 | P28: 0 | Q28: 1760 | R28: 0
B29: Insecticide
C30: Insecticide and Apply Oil Sunflowers Dry | D30: 1 | F30: Acre | G30: 11.63 | I30: 11.63 | J30: 0 | K30: 0 | M30: 0 | N30: 0 | O30: 11.63 | P30: 0 | Q30: 1860.8 | R30: 0
D31: 0 | G31: 0 | I31: 0 | J31: 0 | K31: 0 | M31: 0 | N31: 0 | O31: 0 | P31: 0 | Q31: 0 | R31: 0
D32: 0 | G32: 0 | I32: 0 | J32: 0 | K32: 0 | M32: 0 | N32: 0 | O32: 0 | P32: 0 | Q32: 0 | R32: 0
D33: 0 | G33: 0 | I33: 0 | J33: =E33*H33 -> 0 | K33: 0 | M33: 0 | N33: =J33*L33 -> 0 | O33: 0 | P33: =+J33-N33 -> 0 | Q33: 0 | R33: =+J33*E$7 -> 0
B34: Machinery Labor
C35: Tractors/Self-Propelled | D35: 0.45 | F35: Hour | G35: 12 | I35: 5.4 | J35: =E35*H35 -> 0 | K35: 0 | M35: 0 | N35: =J35*L35 -> 0 | O35: 5.4 | P35: =+J35-N35 -> 0 | Q35: 864 | R35: =+J35*E$7 -> 0
C36: Other Labor | D36: 0.55 | F36: Hour | G36: 12 | I36: 6.6 | J36: =E36*H36 -> 0 | K36: 0 | M36: 0 | N36: =J36*L36 -> 0 | O36: 6.6 | P36: =+J36-N36 -> 0 | Q36: 1056 | R36: =+J36*E$7 -> 0
B38: Diesel Fuel
C39: Pickup/General Use Equipment | D39: 1 | F39: Acre | G39: 0 | I39: 0 | J39: =E39*H39 -> 0 | K39: 0 | M39: 0 | N39: =J39*L39 -> 0 | O39: 0 | P39: =+J39-N39 -> 0 | Q39: 0 | R39: =+J39*E$7 -> 0
C40: Tractors/Self-Propelled | D40: 2.4 | F40: Gallon | G40: 2.3 | I40: 5.52 | J40: =E40*H40 -> 0 | K40: 0 | M40: 0 | N40: =J40*L40 -> 0 | O40: 5.52 | P40: =+J40-N40 -> 0 | Q40: 883.2 | R40: =+J40*E$7 -> 0
B42: Gasoline
C43: Pickup/General Use Equipment | D43: 1 | F43: Acre | G43: 6 | I43: 6 | J43: =E43*H43 -> 0 | K43: 0 | M43: 0 | N43: =J43*L43 -> 0 | O43: 6 | P43: =+J43-N43 -> 0 | Q43: 960 | R43: =+J43*E$7 -> 0
C44: Tractors/Self-Propelled | D44: 0 | F44: Gallon | G44: 3 | I44: 0 | J44: =E44*H44 -> 0 | K44: 0 | M44: 0 | N44: =J44*L44 -> 0 | O44: 0 | P44: =+J44-N44 -> 0 | Q44: 0 | R44: =+J44*E$7 -> 0
B46: Repairs & Maintenance
C47: Pickup/General Use Equipment | D47: 1 | F47: Acre | G47: 0.5 | I47: 0.5 | J47: =E47*H47 -> 0 | K47: 0 | M47: 0 | N47: =J47*L47 -> 0 | O47: 0.5 | P47: =+J47-N47 -> 0 | Q47: 80 | R47: =+J47*E$7 -> 0
C48: Irrigation Equipment | D48: 1 | F48: Acre | G48: 0 | I48: 0 | J48: 0 | K48: 0 | M48: 0 | N48: 0 | O48: 0 | P48: 0 | Q48: 0 | R48: 0
C49: Tractors/Self-Propelled | D49: 1 | F49: Acre | G49: 6 | I49: 6 | J49: 0 | K49: 0 | M49: 0 | N49: 0 | O49: 6 | P49: 0 | Q49: 960 | R49: 0
C50: Implements | D50: 1 | F50: Acre | G50: 3 | I50: 3 | J50: 0 | K50: 0 | M50: 0 | N50: 0 | O50: 3 | P50: 0 | Q50: 480 | R50: 0
I51: 0 | J51: 0 | K51: 0 | M51: 0 | N51: 0 | O51: 0 | P51: 0 | Q51: 0 | R51: 0
I52: 0 | J52: 0 | K52: 0 | M52: 0 | N52: 0 | O52: 0 | P52: 0 | Q52: 0 | R52: 0
B53: Interest on Credit Line | G53: 0.06 | I53: 4.25693067 | J53: =+SUM(J17:J52)/2*H53 -> 0 | M53: 0 | N53: =+SUM(N17:N52)/2*L53 -> 0 | O53: 4.25693067 | P53: =+SUM(P17:P52)/2*L53 -> 0 | Q53: 681.1089071 | R53: =+J53*E$7 -> 0
A54: Total Variable Costs | I54: 145.5319307 | J54: =SUM(J18:J53) -> 0 | M54: 0 | N54: =SUM(N18:N53) -> 0 | O54: 145.5319307 | P54: =SUM(P18:P53) -> 0 | Q54: 23285.10891 | R54: =SUM(R18:R53) -> 0
A55: Planned Returns Above Variable Costs: | I55: -5.53193067 | J55: =+J13-J54 -> 0 | M55: 0 | N55: =+N13-N54 -> 0 | O55: -5.53193067 | P55: =+P13-P54 -> 0 | Q55: -885.1089071 | R55: =+R13-R54 -> 0
B56: Breakeven Price to Cover Variable Costs | G56: 0.1455319307 | H56: =IF(E10=0,"n/a",(YVarExp-(YTotExp+YTotRet-J10))/E10) -> n/a | I56: Pound
Q57: Enterprise | R57: Enterprise
A58: FIXED COSTS | D58: Quantity | E58: Quantity | F58: Units | G58: $/Unit | H58: $/Unit | I58: Total | J58: Total | K58: Share | L58: Share | M58: Landlord | N58: Landlord | O58: Tenant | P58: Tenant | Q58: Total | R58: Total
B59: Equipment Fixed Costs
C60: Pickup/General Use Equipment | D60: 1 | F60: Acre | G60: 1.25 | I60: 1.25 | J60: =E60*H60 -> 0 | K60: 0 | M60: 0 | N60: =J60*L60 -> 0 | O60: 1.25 | P60: =+J60-N60 -> 0 | Q60: 200 | R60: =+J60*E$7 -> 0
C61: Tractors/Self-Propelled | D61: 1 | F61: Acre | G61: 12 | I61: 12 | J61: 0 | K61: 0 | M61: 0 | N61: 0 | O61: 12 | P61: 0 | Q61: 1920 | R61: 0
C62: Implements | D62: 1 | F62: Acre | G62: 10 | I62: 10 | J62: 0 | K62: 0 | M62: 0 | N62: 0 | O62: 10 | P62: 0 | Q62: 1600 | R62: 0
B63: Salaried Labor | D63: 1 | F63: Acre | G63: 0 | I63: 0 | J63: =E63*H63 -> 0 | K63: 0 | M63: 0 | N63: 0 | O63: 0 | P63: 0 | Q63: 0 | R63: 0
B64: Management Fee, Owner/Operator Labor | D64: 1 | F64: Acre | G64: 25 | I64: 25 | J64: 0 | K64: 0 | M64: 0 | N64: 0 | O64: 25 | P64: 0 | Q64: 4000 | R64: 0
B65: Allocated Establishment Cost | D65: 1 | F65: Acre | G65: 0 | I65: 0 | J65: 0 | K65: 0 | M65: 0 | N65: 0 | O65: 0 | P65: 0 | Q65: 0 | R65: 0
B66: Cash Rent - Sunflowers Dryland | D66: 1 | F66: Acre | G66: 50 | I66: 50 | J66: 0 | K66: 0 | M66: 0 | N66: 0 | O66: 50 | P66: 0 | Q66: 8000 | R66: 0
B67: Property Taxes | D67: 1 | F67: Acre | G67: 0 | I67: 0 | J67: 0 | K67: 0 | M67: 0 | N67: 0 | O67: 0 | P67: 0 | Q67: 0 | R67: 0
B68: Whole Farm Insurance | D68: 1 | F68: Acre | G68: 2 | I68: 2 | J68: 0 | K68: 0 | M68: 0 | N68: 0 | O68: 2 | P68: 0 | Q68: 320 | R68: 0
D69: 1 | G69: 0 | I69: 0 | J69: 0 | K69: 0 | M69: 0 | N69: 0 | O69: 0 | P69: 0 | Q69: 0 | R69: 0
D70: 1 | G70: 0 | I70: 0 | J70: =E70*H70 -> 0 | K70: 0 | M70: 0 | N70: 0 | O70: 0 | P70: 0 | Q70: 0 | R70: 0
A71: Total Fixed Costs | I71: 100.25 | J71: =+SUM(J59:J70) -> 0 | M71: 0 | N71: =+SUM(N59:N70) -> 0 | O71: 100.25 | P71: =+SUM(P59:P70) -> 0 | Q71: 16040 | R71: =+SUM(R59:R70) -> 0
A72: Total Specified Costs | I72: 245.7819307 | J72: =+J54+J71 -> 0 | M72: 0 | N72: =+N54+N71 -> 0 | O72: 245.7819307 | P72: =+P54+P71 -> 0 | Q72: 39325.10891 | R72: =+R54+R71 -> 0
A74: Returns Above Specified Costs | I74: -105.7819307 | J74: =+J13-J72 -> 0 | M74: 0 | N74: =+N13-N72 -> 0 | O74: -105.7819307 | P74: =+P13-P72 -> 0 | Q74: -16925.10891 | R74: =+R13-R72 -> 0
A76: Breakeven Price to Cover Total Costs | G76: 0.2457819307 | H76: =IF(E10=0,"n/a",(YTotExp-(YTotExp+YTotRet-J10))/E10) -> n/a | I76: Pound
D78: Example Breakeven Prices
B79: Example | C79: Example | D79: To Cover | G79: To Cover
B80: Yield | C80: Yield | D80: Variable | G80: Total
B81: Percent | C81: Pound | D81: Costs | G81: Costs
B82: 0.75 | C82: 750 | D82: 0.1940425742 | G82: 0.3277092409
B83: 0.9 | C83: 900 | D83: 0.1617021452 | G83: 0.2730910341
B84: 1 | C84: 1000 | D84: 0.1455319307 | G84: 0.2457819307
B85: 1.1 | C85: 1100 | D85: 0.1323017552 | G85: 0.2234381188
B86: 1.25 | C86: 1250 | D86: 0.1164255445 | G86: 0.1966255445
D88: Your Breakeven Prices
B89: Your | C89: Your | E89: To Cover | H89: To Cover
B90: Yield | C90: Yield | E90: Variable | H90: Total
B91: Percent | C91: Pound | E91: Costs | H91: Costs
B92: 0.75 | C92: =E10*YPER1 -> 0 | E92: =IF($E$10=0,0,(YVarExp-(YTotExp+YTotRet-J10))/($E$10*YPER1)) -> 0 | H92: =IF($E$10=0,0,(YTotExp-(YTotExp+YTotRet-J10))/($E$10*YPER1)) -> 0
B93: 0.9 | C93: =E10*YPER2 -> 0 | E93: =IF($E$10=0,0,(YVarExp-(YTotExp+YTotRet-J10))/($E$10*YPER2)) -> 0 | H93: =IF($E$10=0,0,(YTotExp-(YTotExp+YTotRet-J10))/($E$10*YPER2)) -> 0
B94: 1 | C94: =+E10 -> 0 | E94: =IF($E$10=0,0,(YVarExp-(YTotExp+YTotRet-J10))/($E$10*YPER3)) -> 0 | H94: =IF($E$10=0,0,(YTotExp-(YTotExp+YTotRet-J10))/($E$10*YPER3)) -> 0
B95: 1.1 | C95: =E10*YPER4 -> 0 | E95: =IF($E$10=0,0,(YVarExp-(YTotExp+YTotRet-J10))/($E$10*YPER4)) -> 0 | H95: =IF($E$10=0,0,(YTotExp-(YTotExp+YTotRet-J10))/($E$10*YPER4)) -> 0
B96: 1.25 | C96: =E10*YPER5 -> 0 | E96: =IF($E$10=0,0,(YVarExp-(YTotExp+YTotRet-J10))/($E$10*YPER5)) -> 0 | H96: =IF($E$10=0,0,(YTotExp-(YTotExp+YTotRet-J10))/($E$10*YPER5)) -> 0
A98: Developed by Jackie Smith, Professor and Extension Economist, Texas A&M AgriLife Extension, 806-746-6101.
A100: Information presented is prepared solely as a general guide and not intended to recognize or predict the costs and returns from any one operation. Brand names are mentioned only as examples and imply no endorsement.

Sheet WheatDryland
A1: Projections for Planning Purposes Only -- Not to be Used without Updating
A2: 2018 Estimated Costs and Returns per Acre
A3: Dryland Wheat
A4: Enter your name for this budget in the cell above.
A5: Enter Your Values in the cells highlighed in MAROON.
E6: Your Acres | R6: Your
C7: Crop Acres | D7: 160 | L7: Your | Q7: Enterprise | R7: Enterprise
E8: Your | H8: Your | I8: Cash | J8: Your | K8: Landlord | L8: Landlord | N8: Your | P8: Your | Q8: Total | R8: Total
A9: REVENUE | D9: Quantity | E9: Quantity | F9: Units | G9: $/Unit | H9: $/Unit | I9: Total | J9: Total | K9: Share | L9: Share | M9: Landlord | N9: Landlord | O9: Tenant | P9: Tenant | Q9: (160 acres) | R9: ="(" & E7 & " acres)" -> ( acres)
B10: Wheat | D10: 18 | F10: Bushel | G10: 4.5 | I10: 81 | J10: =E10*H10 -> 0 | K10: 0 | M10: 0 | N10: =J10*L10 -> 0 | O10: 81 | P10: =+J10-N10 -> 0 | Q10: 12960 | R10: =+J10*E$7 -> 0
B11: Grazing - Wheat | D11: 68 | F11: Pound | G11: 0.5 | I11: 34 | J11: 0 | K11: 0 | M11: 0 | N11: 0 | O11: 34 | P11: =+J11-N11 -> 0 | Q11: 5440 | R11: 0
D12: 0 | G12: 0 | I12: 0 | J12: 0 | K12: 0 | M12: 0 | N12: 0 | O12: 0 | P12: 0 | Q12: 0 | R12: 0
D13: 0 | G13: 0 | I13: 0 | J13: 0 | K13: 0 | M13: 0 | N13: 0 | O13: 0 | P13: 0 | Q13: 0 | R13: 0
A14: Total Revenue | I14: 115 | J14: =SUM(J10:J13) -> 0 | M14: 0 | N14: =SUM(N10:N13) -> 0 | O14: 115 | P14: =SUM(P10:P13) -> 0 | Q14: 18400 | R14: =SUM(R10:R13) -> 0
Q15: Enterprise | R15: Enterprise
A16: VARIABLE COSTS | D16: Quantity | E16: Quantity | F16: Units | G16: $/Unit | H16: $/Unit | I16: Total | J16: Total | K16: Share | L16: Share | M16: Landlord | N16: Landlord | O16: Tenant | P16: Tenant | Q16: Total | R16: Total
A17: Production Costs
B18: Seed
C19: Seed - Wheat | D19: 1 | F19: Bushel | G19: 25 | I19: 25 | J19: =E19*H19 -> 0 | K19: 0 | M19: 0 | N19: =J19*L19 -> 0 | O19: 25 | P19: =+J19-N19 -> 0 | Q19: 4000 | R19: =+J19*E$7 -> 0
B20: Fertilizer
C21: Fertilizer (N) - Liquid | D21: 30 | F21: Pound | G21: 0.390625 | I21: 11.71875 | J21: 0 | K21: 0 | M21: 0 | N21: 0 | O21: 11.71875 | P21: 0 | Q21: 1875 | R21: 0
B22: Custom
C23: Custom Harvest - Wheat | D23: 1 | F23: Acre | G23: 14 | I23: 14 | J23: 0 | K23: 0 | M23: 0 | N23: 0 | O23: 14 | P23: 0 | Q23: 2240 | R23: 0
C24: Custom Haul - Wheat | D24: 18 | F24: Bushel | G24: 0.14 | I24: 2.52 | J24: 0 | K24: 0 | M24: 0 | N24: 0 | O24: 2.52 | P24: 0 | Q24: 403.2 | R24: 0
C25: Fertilizer Application - Liquid High | D25: 1 | F25: Acre | G25: 4.75 | I25: 4.75 | J25: 0 | K25: 0 | M25: 0 | N25: 0 | O25: 4.75 | P25: 0 | Q25: 760 | R25: 0
B26: Miscellaneous
C27: Crop Insurance Wheat Dryland | D27: 1 | F27: Acre | G27: 19 | I27: 19 | J27: 0 | K27: 0 | M27: 0 | N27: 0 | O27: 19 | P27: 0 | Q27: 3040 | R27: 0
B28: Herbicide
C29: Herbicide and Apply Wheat Dryland | D29: 1 | F29: Acre | G29: 16.75 | I29: 16.75 | J29: 0 | K29: 0 | M29: 0 | N29: 0 | O29: 16.75 | P29: 0 | Q29: 2680 | R29: 0
B30: Insecticide
C31: Insecticide and Apply Wheat Dryland | D31: 1 | F31: Acre | G31: 5.5 | I31: 5.5 | J31: 0 | K31: 0 | M31: 0 | N31: 0 | O31: 5.5 | P31: 0 | Q31: 880 | R31: 0
D32: 0 | G32: 0 | I32: 0 | J32: 0 | K32: 0 | M32: 0 | N32: 0 | O32: 0 | P32: 0 | Q32: 0 | R32: 0
D33: 0 | G33: 0 | I33: 0 | J33: 0 | K33: 0 | M33: 0 | N33: 0 | O33: 0 | P33: 0 | Q33: 0 | R33: 0
D34: 0 | G34: 0 | I34: 0 | J34: =E34*H34 -> 0 | K34: 0 | M34: 0 | N34: =J34*L34 -> 0 | O34: 0 | P34: =+J34-N34 -> 0 | Q34: 0 | R34: =+J34*E$7 -> 0
B35: Machinery Labor
C36: Tractors/Self-Propelled | D36: 0.43 | F36: Hour | G36: 12 | I36: 5.16 | J36: =E36*H36 -> 0 | K36: 0 | M36: 0 | N36: =J36*L36 -> 0 | O36: 5.16 | P36: =+J36-N36 -> 0 | Q36: 825.6 | R36: =+J36*E$7 -> 0
C37: Other Labor | D37: 0.47 | F37: Hour | G37: 12 | I37: 5.64 | J37: =E37*H37 -> 0 | K37: 0 | M37: 0 | N37: =J37*L37 -> 0 | O37: 5.64 | P37: =+J37-N37 -> 0 | Q37: 902.4 | R37: =+J37*E$7 -> 0
B39: Diesel Fuel
C40: Pickup/General Use Equipment | D40: 1 | F40: Acre | G40: 0 | I40: 0 | J40: =E40*H40 -> 0 | K40: 0 | M40: 0 | N40: =J40*L40 -> 0 | O40: 0 | P40: =+J40-N40 -> 0 | Q40: 0 | R40: =+J40*E$7 -> 0
C41: Tractors/Self-Propelled | D41: 2.2 | F41: Gallon | G41: 2.3 | I41: 5.06 | J41: =E41*H41 -> 0 | K41: 0 | M41: 0 | N41: =J41*L41 -> 0 | O41: 5.06 | P41: =+J41-N41 -> 0 | Q41: 809.6 | R41: =+J41*E$7 -> 0
B43: Gasoline
C44: Pickup/General Use Equipment | D44: 1 | F44: Acre | G44: 6 | I44: 6 | J44: =E44*H44 -> 0 | K44: 0 | M44: 0 | N44: =J44*L44 -> 0 | O44: 6 | P44: =+J44-N44 -> 0 | Q44: 960 | R44: =+J44*E$7 -> 0
C45: Tractors/Self-Propelled | D45: 0 | F45: Gallon | G45: 3 | I45: 0 | J45: =E45*H45 -> 0 | K45: 0 | M45: 0 | N45: =J45*L45 -> 0 | O45: 0 | P45: =+J45-N45 -> 0 | Q45: 0 | R45: =+J45*E$7 -> 0
B47: Repairs & Maintenance
C48: Pickup/General Use Equipment | D48: 1 | F48: Acre | G48: 0.5 | I48: 0.5 | J48: =E48*H48 -> 0 | K48: 0 | M48: 0 | N48: =J48*L48 -> 0 | O48: 0.5 | P48: =+J48-N48 -> 0 | Q48: 80 | R48: =+J48*E$7 -> 0
C49: Irrigation Equipment | D49: 1 | F49: Acre | G49: 0 | I49: 0 | J49: 0 | K49: 0 | M49: 0 | N49: 0 | O49: 0 | P49: 0 | Q49: 0 | R49: 0
C50: Tractors/Self-Propelled | D50: 1 | F50: Acre | G50: 6 | I50: 6 | J50: 0 | K50: 0 | M50: 0 | N50: 0 | O50: 6 | P50: 0 | Q50: 960 | R50: 0
C51: Implements | D51: 1 | F51: Acre | G51: 3 | I51: 3 | J51: 0 | K51: 0 | M51: 0 | N51: 0 | O51: 3 | P51: 0 | Q51: 480 | R51: 0
I52: 0 | J52: 0 | K52: 0 | M52: 0 | N52: 0 | O52: 0 | P52: 0 | Q52: 0 | R52: 0
I53: 0 | J53: 0 | K53: 0 | M53: 0 | N53: 0 | O53: 0 | P53: 0 | Q53: 0 | R53: 0
B54: Interest on Credit Line | G54: 0.06 | I54: 5.922112104 | J54: =+SUM(J18:J53)/2*H54 -> 0 | M54: 0 | N54: =+SUM(N18:N53)/2*L54 -> 0 | O54: 5.922112104 | P54: =+SUM(P18:P53)/2*L54 -> 0 | Q54: 947.5379367 | R54: =+J54*E$7 -> 0
A55: Total Variable Costs | I55: 136.5208621 | J55: =SUM(J19:J54) -> 0 | M55: 0 | N55: =SUM(N19:N54) -> 0 | O55: 136.5208621 | P55: =SUM(P19:P54) -> 0 | Q55: 21843.33794 | R55: =SUM(R19:R54) -> 0
A56: Planned Returns Above Variable Costs: | I56: -21.5208621 | J56: =+J14-J55 -> 0 | M56: 0 | N56: =+N14-N55 -> 0 | O56: -21.5208621 | P56: =+P14-P55 -> 0 | Q56: -3443.337937 | R56: =+R14-R55 -> 0
B57: Breakeven Price to Cover Variable Costs | G57: 5.69560345 | H57: =IF(E10=0,"n/a",(YVarExp-(YTotExp+YTotRet-J10))/E10) -> n/a | I57: Bushel
Q58: Enterprise | R58: Enterprise
A59: FIXED COSTS | D59: Quantity | E59: Quantity | F59: Units | G59: $/Unit | H59: $/Unit | I59: Total | J59: Total | K59: Share | L59: Share | M59: Landlord | N59: Landlord | O59: Tenant | P59: Tenant | Q59: Total | R59: Total
B60: Equipment Fixed Costs
C61: Pickup/General Use Equipment | D61: 1 | F61: Acre | G61: 1.25 | I61: 1.25 | J61: =E61*H61 -> 0 | K61: 0 | M61: 0 | N61: =J61*L61 -> 0 | O61: 1.25 | P61: =+J61-N61 -> 0 | Q61: 200 | R61: =+J61*E$7 -> 0
C62: Tractors/Self-Propelled | D62: 1 | F62: Acre | G62: 12 | I62: 12 | J62: 0 | K62: 0 | M62: 0 | N62: 0 | O62: 12 | P62: 0 | Q62: 1920 | R62: 0
C63: Implements | D63: 1 | F63: Acre | G63: 10 | I63: 10 | J63: 0 | K63: 0 | M63: 0 | N63: 0 | O63: 10 | P63: 0 | Q63: 1600 | R63: 0
B64: Salaried Labor | D64: 1 | F64: Acre | G64: 0 | I64: 0 | J64: =E64*H64 -> 0 | K64: 0 | M64: 0 | N64: 0 | O64: 0 | P64: 0 | Q64: 0 | R64: 0
B65: Management Fee, Owner/Operator Labor | D65: 1 | F65: Acre | G65: 25 | I65: 25 | J65: 0 | K65: 0 | M65: 0 | N65: 0 | O65: 25 | P65: 0 | Q65: 4000 | R65: 0
B66: Allocated Establishment Cost | D66: 1 | F66: Acre | G66: 0 | I66: 0 | J66: 0 | K66: 0 | M66: 0 | N66: 0 | O66: 0 | P66: 0 | Q66: 0 | R66: 0
B67: Cash Rent - Wheat Dryland | D67: 1 | F67: Acre | G67: 50 | I67: 50 | J67: 0 | K67: 0 | M67: 0 | N67: 0 | O67: 50 | P67: 0 | Q67: 8000 | R67: 0
B68: Property Taxes | D68: 1 | F68: Acre | G68: 0 | I68: 0 | J68: 0 | K68: 0 | M68: 0 | N68: 0 | O68: 0 | P68: 0 | Q68: 0 | R68: 0
B69: Whole Farm Insurance | D69: 1 | F69: Acre | G69: 2 | I69: 2 | J69: 0 | K69: 0 | M69: 0 | N69: 0 | O69: 2 | P69: 0 | Q69: 320 | R69: 0
D70: 1 | G70: 0 | I70: 0 | J70: 0 | K70: 0 | M70: 0 | N70: 0 | O70: 0 | P70: 0 | Q70: 0 | R70: 0
D71: 1 | G71: 0 | I71: 0 | J71: =E71*H71 -> 0 | K71: 0 | M71: 0 | N71: 0 | O71: 0 | P71: 0 | Q71: 0 | R71: 0
A72: Total Fixed Costs | I72: 100.25 | J72: =+SUM(J60:J71) -> 0 | M72: 0 | N72: =+SUM(N60:N71) -> 0 | O72: 100.25 | P72: =+SUM(P60:P71) -> 0 | Q72: 16040 | R72: =+SUM(R60:R71) -> 0
A73: Total Specified Costs | I73: 236.7708621 | J73: =+J55+J72 -> 0 | M73: 0 | N73: =+N55+N72 -> 0 | O73: 236.7708621 | P73: =+P55+P72 -> 0 | Q73: 37883.33794 | R73: =+R55+R72 -> 0
A75: Returns Above Specified Costs | I75: -121.7708621 | J75: =+J14-J73 -> 0 | M75: 0 | N75: =+N14-N73 -> 0 | O75: -121.7708621 | P75: =+P14-P73 -> 0 | Q75: -19483.33794 | R75: =+R14-R73 -> 0
A77: Breakeven Price to Cover Total Costs | G77: 11.26504789 | H77: =IF(E10=0,"n/a",(YTotExp-(YTotExp+YTotRet-J10))/E10) -> n/a | I77: Bushel
D79: Example Breakeven Prices
B80: Example | C80: Example | D80: To Cover | G80: To Cover
B81: Yield | C81: Yield | D81: Variable | G81: Total
B82: Percent | C82: Bushel | D82: Costs | G82: Costs
B83: 0.75 | C83: 13.5 | D83: 7.594137934 | G83: 15.02006386
B84: 0.9 | C84: 16.2 | D84: 6.328448278 | G84: 12.51671988
B85: 1 | C85: 18 | D85: 5.69560345 | G85: 11.26504789
B86: 1.1 | C86: 19.8 | D86: 5.177821318 | G86: 10.24095263
B87: 1.25 | C87: 22.5 | D87: 4.55648276 | G87: 9.012038316
D89: Your Breakeven Prices
B90: Your | C90: Your | E90: To Cover | H90: To Cover
B91: Yield | C91: Yield | E91: Variable | H91: Total
B92: Percent | C92: Bushel | E92: Costs | H92: Costs
B93: 0.75 | C93: =E10*YPER1 -> 0 | E93: =IF($E$10=0,0,(YVarExp-(YTotExp+YTotRet-J10))/($E$10*YPER1)) -> 0 | H93: =IF($E$10=0,0,(YTotExp-(YTotExp+YTotRet-J10))/($E$10*YPER1)) -> 0
B94: 0.9 | C94: =E10*YPER2 -> 0 | E94: =IF($E$10=0,0,(YVarExp-(YTotExp+YTotRet-J10))/($E$10*YPER2)) -> 0 | H94: =IF($E$10=0,0,(YTotExp-(YTotExp+YTotRet-J10))/($E$10*YPER2)) -> 0
B95: 1 | C95: =+E10 -> 0 | E95: =IF($E$10=0,0,(YVarExp-(YTotExp+YTotRet-J10))/($E$10*YPER3)) -> 0 | H95: =IF($E$10=0,0,(YTotExp-(YTotExp+YTotRet-J10))/($E$10*YPER3)) -> 0
B96: 1.1 | C96: =E10*YPER4 -> 0 | E96: =IF($E$10=0,0,(YVarExp-(YTotExp+YTotRet-J10))/($E$10*YPER4)) -> 0 | H96: =IF($E$10=0,0,(YTotExp-(YTotExp+YTotRet-J10))/($E$10*YPER4)) -> 0
B97: 1.25 | C97: =E10*YPER5 -> 0 | E97: =IF($E$10=0,0,(YVarExp-(YTotExp+YTotRet-J10))/($E$10*YPER5)) -> 0 | H97: =IF($E$10=0,0,(YTotExp-(YTotExp+YTotRet-J10))/($E$10*YPER5)) -> 0
A99: Developed by Jackie Smith, Professor and Extension Economist, Texas A&M AgriLife Extension, 806-746-6101.
A101: Information presented is prepared solely as a general guide and not intended to recognize or predict the costs and returns from any one operation. Brand names are mentioned only as examples and imply no endorsement.

Sheet Livestock Budget
A1: Estimated Costs and Returns per Animal or Breeding Female
A3: Livestock Enterprise
A5: Number of Head of Livestock | D5: 0
A7: Enter Your Values in the cells highlighed in MAROON. | H7: Enterprise
A8: REVENUE | C8: Head | D8: Quantity | E8: Units | F8: $/Unit | G8: Total | H8: Total
B9: Males Sold | C9: 0 | D9: 0 | E9: CWT | F9: 0 | G9: =IF($D$5=0,0,C9/$D$5*D9*F9) -> 0 | H9: =+G9*$D$5 -> 0
B10: Females Sold | C10: 0 | D10: 0 | E10: CWT | F10: 0 | G10: =IF($D$5=0,0,C10/$D$5*D10*F10) -> 0 | H10: =+G10*$D$5 -> 0
B11: Cull Breeding Females | C11: 0 | D11: 0 | E11: CWT | F11: 0 | G11: 0 | H11: 0
B12: Cull Breeding Males | C12: 0 | D12: 0 | E12: CWT | F12: 0 | G12: 0 | H12: 0
B13: Stocker or Feed Animal | C13: 0 | D13: 0 | E13: CWT | F13: 0 | G13: 0 | H13: 0
B14: Other Revenue | C14: 0 | D14: 0 | E14: CWT | F14: 0 | G14: 0 | H14: 0
B15: Other Revenue | C15: 0 | D15: 0 | E15: CWT | F15: 0 | G15: 0 | H15: 0
B16: Other Revenue | C16: 0 | D16: 0 | E16: CWT | F16: 0 | G16: 0 | H16: 0
A18: Total Revenue | G18: =+SUM(G9:G17) -> 0 | H18: =+SUM(H9:H17) -> 0
H20: Enterprise
A21: VARIABLE COSTS | D21: Quantity | E21: Units | F21: $/Unit | G21: Total | H21: Total
A22: Production Costs
B23: Animal Purchase Price, if applicable | D23: 0 | E23: Cwt | F23: 0 | G23: =D23*F23 -> 0 | H23: =+G23*$D$5 -> 0
B24: Pasture | C24: =+SUM(G25:G28) -> 0
C25: Pasture 1 | D25: 0 | E25: Acre | F25: 0 | G25: =D25*F25 -> 0 | H25: =+G25*$D$5 -> 0
C26: Pasture 2 | D26: 0 | E26: Acre | F26: 0 | G26: 0 | H26: 0
C27: Pasture 3 | D27: 0 | E27: Acre | F27: 0 | G27: 0 | H27: 0
C28: Pasture 4 | D28: 0 | E28: Acre | F28: 0 | G28: 0 | H28: 0
B29: Feed | C29: =SUM(G30:G37) -> 0
C30: Hay | D30: 0 | E30: Bales | F30: 0 | G30: =D30*F30 -> 0 | H30: =+G30*$D$5 -> 0
C31: Supplement | D31: 0 | E31: Cwt,lb,etc | F31: 0 | G31: =D31*F31 -> 0 | H31: =+G31*$D$5 -> 0
C32: Salt Minerals | D32: 0 | E32: Cwt | F32: 0 | G32: 0 | H32: 0
C33: Other Feed | D33: 0 | E33: Cwt,lb,etc | F33: 0 | G33: 0 | H33: 0
C34: Other Feed | D34: 0 | E34: Cwt,lb,etc | F34: 0 | G34: 0 | H34: 0
C35: Other Feed | D35: 0 | E35: Cwt,lb,etc | F35: 0 | G35: 0 | H35: 0
C36: Other Feed | D36: 0 | E36: Cwt,lb,etc | F36: 0 | G36: 0 | H36: 0
C37: Other Feed | D37: 0 | E37: Cwt,lb,etc | F37: 0 | G37: 0 | H37: 0
B38: Health | C38: =SUM(G39:G48) -> 0
C39: Vet/Medicine 1 | D39: 0 | E39: Visit,dose,cc's, etc. | F39: 0 | G39: =D39*F39 -> 0 | H39: =+G39*$D$5 -> 0
C40: Vet/Medicine 2 | D40: 0 | E40: Visit,dose,cc's, etc. | F40: 0 | G40: 0 | H40: 0
C41: Vet/Medicine 3 | D41: 0 | E41: Visit,dose,cc's, etc. | F41: 0 | G41: 0 | H41: 0
C42: Vet/Medicine 4 | D42: 0 | E42: Visit,dose,cc's, etc. | F42: 0 | G42: 0 | H42: 0
C43: Vet/Medicine 5 | D43: 0 | E43: Visit,dose,cc's, etc. | F43: 0 | G43: 0 | H43: 0
C44: Vet/Medicine 6 | D44: 0 | E44: Visit,dose,cc's, etc. | F44: 0 | G44: 0 | H44: 0
C45: Vet/Medicine 7 | D45: 0 | E45: Visit,dose,cc's, etc. | F45: 0 | G45: 0 | H45: 0
C46: Vet/Medicine 8 | D46: 0 | E46: Visit,dose,cc's, etc. | F46: 0 | G46: 0 | H46: 0
C47: Vet/Medicine 9 | D47: 0 | E47: Visit,dose,cc's, etc. | F47: 0 | G47: 0 | H47: 0
C48: Vet/Medicine 10 | D48: 0 | E48: Visit,dose,cc's, etc. | F48: 0 | G48: 0 | H48: 0
B50: Fuel, lube, repair | D50: 1 | E50: Head | F50: 0 | G50: 0 | H50: 0
B52: Labor | D52: 0 | E52: Hours | F52: 0 | G52: 0 | H52: 0
B54: Other Variable Expense | D54: 0 | E54: Cwt,lb,etc | F54: 0 | G54: 0 | H54: 0
B55: Other Variable Expense | D55: 0 | E55: Cwt,lb,etc | F55: 0 | G55: 0 | H55: 0
B56: Other Variable Expense | D56: 0 | E56: Cwt,lb,etc | F56: 0 | G56: 0 | H56: 0
B57: Other Variable Expense | D57: 0 | E57: Cwt,lb,etc | F57: 0 | G57: 0 | H57: 0
B58: Other Variable Expense | D58: 0 | E58: Cwt,lb,etc | F58: 0 | G58: 0 | H58: 0
B59: Other Variable Expense | D59: 0 | E59: Cwt,lb,etc | F59: 0 | G59: 0 | H59: 0
B61: Operating Interest | F61: 0 | G61: =+SUM(G23:G59)/2*F61 -> 0 | H61: 0
A63: Total Variable Costs | G63: =+SUM(G23:G62) -> 0 | H63: =+SUM(H23:H62) -> 0
A65: Planned Returns Above Variable Costs | G65: =+G18-G63 -> 0 | H65: =+H18-H63 -> 0
B67: Breakeven Price to Cover Variable Costs | E67: =IF((H101/100+C13*D13)=0,0,(G63-SUM(G11:G12,G14:G16))/(H101/100+C13*D13)) -> 0 | F67: =+E9 -> CWT
H69: Enterprise
A70: FIXED COSTS | D70: Quantity | E70: Units | F70: $/Unit | G70: Total | H70: Total
B71: Depreciation - Equipment | D71: 0 | E71: Head,$,etc | F71: 0 | G71: =D71*F71 -> 0 | H71: =+G71*$D$5 -> 0
B72: Depreciation - Livestock | D72: 0 | E72: Head,$,etc | F72: 0 | G72: =D72*F72 -> 0 | H72: 0
B73: Equipment Investment | D73: 0 | E73: Head,$,etc | F73: 0 | G73: 0 | H73: 0
B74: Insurance | D74: 0 | E74: Head,$,etc | F74: 0 | G74: 0 | H74: 0
B75: Management Fee | D75: 0 | E75: Head,$,etc | F75: 0 | G75: 0 | H75: 0
B76: Owner/Operator Labor | D76: 0 | E76: Head,$,etc | F76: 0 | G76: 0 | H76: 0
B77: Salaried Labor | D77: 0 | E77: Head,$,etc | F77: 0 | G77: 0 | H77: 0
B78: Other Fixed Expense | D78: 0 | E78: Head,$,etc | F78: 0 | G78: 0 | H78: 0
B79: Other Fixed Expense | D79: 0 | E79: Head,$,etc | F79: 0 | G79: 0 | H79: 0
B80: Other Fixed Expense | D80: 0 | E80: Head,$,etc | F80: 0 | G80: 0 | H80: 0
B81: Other Fixed Expense | D81: 0 | E81: Head,$,etc | F81: 0 | G81: 0 | H81: 0
B82: Other Fixed Expense | D82: 0 | E82: Head,$,etc | F82: 0 | G82: 0 | H82: 0
D84: Total Fixed Costs | G84: =+SUM(G71:G83) -> 0 | H84: =+SUM(H71:H83) -> 0
D86: Total Specified Costs | G86: =+G63+G84 -> 0 | H86: =+H63+H84 -> 0
D88: Returns Above Specifiied Costs | G88: =+G18-G86 -> 0 | H88: =+H18-H86 -> 0
B90: Breakeven Price to Cover Total Costs | E90: =IF((H101/100+C13*D13)=0,0,(G86-SUM(G11:G12,G14:G16))/(H101/100+C13*D13)) -> 0 | F90: =+F67 -> CWT
B93: Sensitivity Analysis for Your Breeding Herd or Flock Values
B94: Your Weaning Percent | C94: ="Your Gross Sales per "&F18 -> Your Gross Sales per | D94: Pounds Produced per AU | E94: ="Your Breakeven "&F19&" Pay Weight to Cover Total Cost" -> Your Breakeven Pay Weight to Cover Total Cost | G94: Your Average Breakeven Price to Cover Total Cost
B95: =+B96-0.03 -> 0.94 | C95: =+IF($B$97=0,0,YTotRet-$L$11-$L$12+($L$11+$L$12)*B95/$B$97) -> 0 | D95: =IF($B$97=0,0,$H$101*B95/$B$97+$H$102) -> 0 | E95: =IF($C$97=0,0,(YTotExp-(YTotRet+YTotExp-$G$9-$G$10))/(YPrice/100)/(B95-C9/D5)) -> 0 | G95: =IF(D95-$H$102=0,0,(YTotExp-(YTotRet+YTotExp-$G$9-$G$10))/(D95-$H$102)*100) -> 0
B96: =+B97-0.03 -> 0.97 | C96: =+IF($B$97=0,0,YTotRet-$L$11-$L$12+($L$11+$L$12)*B96/$B$97) -> 0 | D96: =IF($B$97=0,0,$H$101*B96/$B$97+$H$102) -> 0 | E96: =IF($C$97=0,0,(YTotExp-(YTotRet+YTotExp-$G$9-$G$10))/(YPrice/100)/(B96-C10/D5)) -> 0 | G96: =IF(D96-$H$102=0,0,(YTotExp-(YTotRet+YTotExp-$G$9-$G$10))/(D96-$H$102)*100) -> 0
B97: 1 | C97: =+YTotRet -> 0 | D97: =H101+H102 -> 0 | E97: =IF($C$97=0,0,(YTotExp-(YTotRet+YTotExp-$G$9-$G$10))/(YPrice/100)/(B97-C11/D5)) -> 0 | G97: =IF(D97-$H$102=0,0,(YTotExp-(YTotRet+YTotExp-$G$9-$G$10))/(D97-$H$102)*100) -> 0
B98: =+B97+0.03 -> 1.03 | C98: =+IF($B$97=0,0,YTotRet-$L$11-$L$12+($L$11+$L$12)*B98/$B$97) -> 0 | D98: =IF($B$97=0,0,$H$101*B98/$B$97+$H$102) -> 0 | E98: =IF($C$97=0,0,(YTotExp-(YTotRet+YTotExp-$G$9-$G$10))/(YPrice/100)/(B98-C12/D5)) -> 0 | G98: =IF(D98-$H$102=0,0,(YTotExp-(YTotRet+YTotExp-$G$9-$G$10))/(D98-$H$102)*100) -> 0
B99: =+B98+0.03 -> 1.06 | C99: =+IF($B$97=0,0,YTotRet-$L$11-$L$12+($L$11+$L$12)*B99/$B$97) -> 0 | D99: 0 | E99: =IF($C$97=0,0,(YTotExp-(YTotRet+YTotExp-$G$9-$G$10))/(YPrice/100)/(B99-C13/D5)) -> 0 | G99: =IF(D99-$H$102=0,0,(YTotExp-(YTotRet+YTotExp-$G$9-$G$10))/(D99-$H$102)*100) -> 0
C101: Your Male Price | F101: =+F9 -> 0 | H101: =(C9*D9+C10*D10)*100 -> 0
C102: Your Female Price | F102: =+F10 -> 0 | H102: =(C11*D11+C12*D12)*100 -> 0
C103: Your Weighted Average Price ($/cwt) | F103: =+IF((C9*D9+C10*D10)=0,F13,(G9+G10)/(C9*D9+C10*D10)) -> 0
C105: Your Stocker or Feeder Break Even Sensitivity Analysis
C106: Your Average Daily Gain | E106: 0 | F106: Pounds per Day
C107: =+"Your Animal"&IF(M25="Stocker"," Grazing"," Feeding")&" Days" -> Your Animal Feeding Days | E107: 0 | F107: Days
C108: Your Sale Shrink | E108: 0
C109: Average Daily Gain (Pounds/day) | D109: Net Pay Weight with Shrink (Pounds) | F109: =+"Purchase Weight (Pounds/Head): "&D23*100 -> Purchase Weight (Pounds/Head): 0 | H109: Sales Price/Cwt of $Total
F110: ="Sales Price "&IF(F13="",".00",TEXT(F13,"#.00")) -> Sales Price .00 | H110: ="Purchase Price "&IF(F23="",".00",TEXT(F23,"#.00")) -> Purchase Price .00
F111: B/E Purchase Price ($/CWT) | H111: B/E Sales Price ($/CWT)
C112: =+C114*1.2 -> 0 | D112: =+C112*$E$107+$D$23*100*(1-$E$108) -> 0 | F112: =IF($D$23=0,0,(((D112*$F$13/100*$C$13)-($G$63-SUM($F$14:$F$16)-$G$23)-$G$84)/(100*$D$23))*100) -> 0 | H112: =IF($C$13=0,0,($G$86-SUM($F$14:$F$16))/(D112*$C$13/100)) -> 0
C113: =+C114*1.1 -> 0 | D113: =+C113*$E$107+$D$23*100*(1-$E$108) -> 0 | F113: =IF($D$23=0,0,(((D113*$F$13/100*$C$13)-($G$63-SUM($F$14:$F$16)-$G$23)-$G$84)/(100*$D$23))*100) -> 0 | H113: =IF($C$13=0,0,($G$86-SUM($F$14:$F$16))/(D113*$C$13/100)) -> 0
C114: =+E106 -> 0 | D114: 0 | F114: 0 | H114: 0
C115: =+C114*0.9 -> 0 | D115: 0 | F115: 0 | H115: 0
C116: =+C114*0.8 -> 0 | D116: 0 | F116: 0 | H116: 0

Sheet Crop Budget
A1: Estimated Costs and Returns per Acre
A3: Crop Enterprise
A5: Number of Acres of Crop | D5: 0
A7: Enter Your Values in the cells highlighed in MAROON. | G7: Enterprise
A8: REVENUE | C8: Quantity | D8: Units | E8: $/Unit | F8: Total | G8: Total
B9: Primary Product | C9: 0 | D9: Cwt,lb,etc | E9: 0 | F9: =C9*E9 -> 0 | G9: =+F9*$D$5 -> 0
B10: Secondary Product | C10: 0 | D10: Cwt,lb,etc | E10: 0 | F10: =C10*E10 -> 0 | G10: =+F10*$D$5 -> 0
B11: Secondary Product | C11: 0 | D11: Cwt,lb,etc | E11: 0 | F11: 0 | G11: 0
B12: Secondary Product | C12: 0 | D12: Cwt,lb,etc | E12: 0 | F12: 0 | G12: 0
B13: Secondary Product | C13: 0 | D13: Cwt,lb,etc | E13: 0 | F13: 0 | G13: 0
B14: Secondary Product | C14: 0 | D14: Cwt,lb,etc | E14: 0 | F14: 0 | G14: 0
B15: Secondary Product | C15: 0 | D15: Cwt,lb,etc | E15: 0 | F15: 0 | G15: 0
B16: Secondary Product | C16: 0 | D16: Cwt,lb,etc | E16: 0 | F16: 0 | G16: 0
A18: Total Revenue | F18: =+SUM(F9:F16) -> 0 | G18: =+SUM(G9:G16) -> 0
G20: Enterprise
A21: VARIABLE COSTS | C21: Quantity | D21: Units | E21: $/Unit | F21: Total | G21: Total
A23: Custom Field and Harvest Operations
B24: Custom Field Operation 1 | C24: 0 | D24: Acre | E24: 0 | F24: =C24*E24 -> 0 | G24: =+F24*$D$5 -> 0
B25: Custom Field Operation 2 | C25: 0 | D25: Acre | E25: 0 | F25: 0 | G25: 0
B26: Custom Field Operation 3 | C26: 0 | D26: Acre | E26: 0 | F26: 0 | G26: 0
B27: Custom Field Operation 4 | C27: 0 | D27: Acre | E27: 0 | F27: 0 | G27: 0
B28: Custom Field Operation 5 | C28: 0 | D28: Acre | E28: 0 | F28: 0 | G28: 0
B29: Custom Field Operation 6 | C29: 0 | D29: Acre | E29: 0 | F29: 0 | G29: 0
A30: Machinery Expenses
B31: Diesel | C31: 0 | D31: Gallon | E31: 0 | F31: =C31*E31 -> 0 | G31: 0
B32: Gasoline | C32: 0 | D32: Gallon | E32: 0 | F32: 0 | G32: 0
B33: Lube | C33: 0 | D33: Acre | E33: 0 | F33: 0 | G33: 0
B34: Repairs | C34: 0 | D34: Acre | E34: 0 | F34: 0 | G34: 0
B35: Other Machinery Expense 1 | C35: 0 | D35: Acre | E35: 0 | F35: 0 | G35: 0
B36: Other Machinery Expense 2 | C36: 0 | D36: Acre | E36: 0 | F36: 0 | G36: 0
A37: Labor
B38: Labor 1 | C38: 0 | D38: Hour | E38: 0 | F38: =C38*E38 -> 0 | G38: 0
B39: Labor 2 | C39: 0 | D39: Hour | E39: 0 | F39: 0 | G39: 0
B40: Labor 3 | C40: 0 | D40: Hour | E40: 0 | F40: 0 | G40: 0
B41: Labor 4 | C41: 0 | D41: Hour | E41: 0 | F41: 0 | G41: 0
B42: Labor 5 | C42: 0 | D42: Hour | E42: 0 | F42: 0 | G42: 0
B43: Irrigation Labor | C43: 0 | D43: Hour | E43: 0 | F43: 0 | G43: 0
A44: Seed or Transplants
B45: Seed | C45: 0 | D45: Pound | E45: 0 | F45: =C45*E45 -> 0 | G45: 0
B46: Seed Treatment | C46: 0 | D46: Pound | E46: 0 | F46: 0 | G46: 0
B47: Seed Fee | C47: 0 | D47: Pound | E47: 0 | F47: 0 | G47: 0
B48: Transplants | C48: 0 | D48: Thousand | E48: 0 | F48: 0 | G48: 0
B49: Mulch | C49: 0 | D49: Foot | E49: 0 | F49: 0 | G49: 0
B50: Other Seed or Transplant | C50: 0 | D50: Pound | E50: 0 | F50: 0 | G50: 0
A51: Fertilizer and Lime
B52: Fertlizer 1 | C52: 0 | D52: Pound | E52: 0 | F52: =C52*E52 -> 0 | G52: 0
B53: Fertlizer 2 | C53: 0 | D53: Pound | E53: 0 | F53: 0 | G53: 0
B54: Fertlizer 3 | C54: 0 | D54: Pound | E54: 0 | F54: 0 | G54: 0
B55: Fertlizer 4 | C55: 0 | D55: Pound | E55: 0 | F55: 0 | G55: 0
B56: Fertlizer 5 | C56: 0 | D56: Pound | E56: 0 | F56: 0 | G56: 0
B57: Lime | C57: 0 | D57: Ton | E57: 0 | F57: 0 | G57: 0
B58: Other Soil Amendment 1 | C58: 0 | D58: Pound | E58: 0 | F58: 0 | G58: 0
B59: Other Soil Amendment 2 | C59: 0 | D59: Pound | E59: 0 | F59: 0 | G59: 0
A60: Herbicides
B61: Herbicide 1 | C61: 0 | D61: Lb,Oz,Acre | E61: 0 | F61: =C61*E61 -> 0 | G61: 0
B62: Herbicide 2 | C62: 0 | D62: Lb,Oz,Acre | E62: 0 | F62: 0 | G62: 0
B63: Herbicide 3 | C63: 0 | D63: Lb,Oz,Acre | E63: 0 | F63: 0 | G63: 0
B64: Herbicide 4 | C64: 0 | D64: Lb,Oz,Acre | E64: 0 | F64: 0 | G64: 0
B65: Herbicide 5 | C65: 0 | D65: Lb,Oz,Acre | E65: 0 | F65: 0 | G65: 0
B66: Herbicide 6 | C66: 0 | D66: Lb,Oz,Acre | E66: 0 | F66: 0 | G66: 0
A67: Insecticides
B68: Insecticide 1 | C68: 0 | D68: Lb,Oz,Acre | E68: 0 | F68: =C68*E68 -> 0 | G68: 0
B69: Insecticide 2 | C69: 0 | D69: Lb,Oz,Acre | E69: 0 | F69: 0 | G69: 0
B70: Insecticide 3 | C70: 0 | D70: Lb,Oz,Acre | E70: 0 | F70: 0 | G70: 0
B71: Insecticide 4 | C71: 0 | D71: Lb,Oz,Acre | E71: 0 | F71: 0 | G71: 0
B72: Insecticide 5 | C72: 0 | D72: Lb,Oz,Acre | E72: 0 | F72: 0 | G72: 0
B73: Insecticide 6 | C73: 0 | D73: Lb,Oz,Acre | E73: 0 | F73: 0 | G73: 0
A74: Fungicides
B75: Fungicide 1 | C75: 0 | D75: Lb,Oz,Acre | E75: 0 | F75: =C75*E75 -> 0 | G75: 0
B76: Fungicide 2 | C76: 0 | D76: Lb,Oz,Acre | E76: 0 | F76: 0 | G76: 0
B77: Fungicide 3 | C77: 0 | D77: Lb,Oz,Acre | E77: 0 | F77: 0 | G77: 0
B78: Fungicide 4 | C78: 0 | D78: Lb,Oz,Acre | E78: 0 | F78: 0 | G78: 0
B79: Fungicide 5 | C79: 0 | D79: Lb,Oz,Acre | E79: 0 | F79: 0 | G79: 0
B80: Fungicide 6 | C80: 0 | D80: Lb,Oz,Acre | E80: 0 | F80: 0 | G80: 0
A81: Growth Regulators
B82: Growth Regulator 1 | C82: 0 | D82: Lb,Oz,Acre | E82: 0 | F82: =C82*E82 -> 0 | G82: 0
B83: Growth Regulator 2 | C83: 0 | D83: Lb,Oz,Acre | E83: 0 | F83: 0 | G83: 0
B84: Growth Regulator 3 | C84: 0 | D84: Lb,Oz,Acre | E84: 0 | F84: 0 | G84: 0
B85: Growth Regulator 4 | C85: 0 | D85: Lb,Oz,Acre | E85: 0 | F85: 0 | G85: 0
B86: Growth Regulator 5 | C86: 0 | D86: Lb,Oz,Acre | E86: 0 | F86: 0 | G86: 0
B87: Growth Regulator 6 | C87: 0 | D87: Lb,Oz,Acre | E87: 0 | F87: 0 | G87: 0
A88: Other Chemicals
B89: Fumigant | C89: 0 | D89: Lb,Oz,Acre | E89: 0 | F89: =C89*E89 -> 0 | G89: 0
B90: Other Chemical 1 | C90: 0 | D90: Lb,Oz,Acre | E90: 0 | F90: 0 | G90: =+F90*$D$5 -> 0
B91: Other Chemical 2 | C91: 0 | D91: Lb,Oz,Acre | E91: 0 | F91: 0 | G91: 0
B92: Other Chemical 3 | C92: 0 | D92: Lb,Oz,Acre | E92: 0 | F92: 0 | G92: 0
B93: Other Chemical 4 | C93: 0 | D93: Lb,Oz,Acre | E93: 0 | F93: 0 | G93: 0
B94: Other Chemical 5 | C94: 0 | D94: Lb,Oz,Acre | E94: 0 | F94: 0 | G94: 0
A95: Irrigation
B96: Well Expense | C96: 0 | D96: Acre | E96: 0 | F96: =C96*E96 -> 0 | G96: =+F96*$D$5 -> 0
B97: Pump Fuel | C97: 0 | D97: Mcf,kWh,Gallon | E97: 0 | F97: 0 | G97: 0
B98: Pump Expense | C98: 0 | D98: Acre | E98: 0 | F98: 0 | G98: 0
B99: Irrigation Equipment Expense | C99: 0 | D99: Acre | E99: 0 | F99: 0 | G99: 0
B100: Repairs | C100: 0 | D100: Acre | E100: 0 | F100: 0 | G100: 0
B101: Drip Tape | C101: 0 | D101: Foot,Acre | E101: 0 | F101: 0 | G101: 0
B102: Water Cost | C102: 0 | D102: AcIn,Gallon | E102: 0 | F102: 0 | G102: 0
B103: Other Irrigation Expense 1 | C103: 0 | D103: Acre | E103: 0 | F103: 0 | G103: 0
B104: Other Irrigation Expense 2 | C104: 0 | D104: Acre | E104: 0 | F104: 0 | G104: 0
A105: Miscellaneous Expenses
B106: Crop Insurance | C106: 0 | D106: Acre | E106: 0 | F106: =C106*E106 -> 0 | G106: 0
B107: Other Variable Expense 1 | C107: 0 | D107: Enter Unit | E107: 0 | F107: 0 | G107: 0
B108: Other Variable Expense 2 | C108: 0 | D108: Enter Unit | E108: 0 | F108: 0 | G108: 0
B109: Other Variable Expense 3 | C109: 0 | D109: Enter Unit | E109: 0 | F109: 0 | G109: 0
B110: Other Variable Expense 4 | C110: 0 | D110: Enter Unit | E110: 0 | F110: 0 | G110: 0
B111: Other Variable Expense 5 | C111: 0 | D111: Enter Unit | E111: 0 | F111: 0 | G111: 0
B112: Other Variable Expense 6 | C112: 0 | D112: Enter Unit | E112: 0 | F112: 0 | G112: 0
B113: Other Variable Expense 7 | C113: 0 | D113: Enter Unit | E113: 0 | F113: 0 | G113: 0
B114: Other Variable Expense 8 | C114: 0 | D114: Enter Unit | E114: 0 | F114: 0 | G114: 0
B116: Operating Interest | E116: 0 | F116: =+SUM(F23:F115)/2*E116 -> 0 | G116: =+F116*$D$6 -> 0
A118: Total Variable Costs | F118: =+SUM(F23:F116) -> 0 | G118: =+SUM(G23:G116) -> 0
A120: Planned Returns Above Variable Costs | F120: =+F18-F118 -> 0 | G120: =+G18-G118 -> 0
B122: Breakeven Price to Cover Variable Costs | E122: =+IF(C9=0,0,F118-SUM(F10:F16)/C9) -> 0 | F122: =+D9 -> Cwt,lb,etc
G124: Enterprise
A125: FIXED COSTS | C125: Quantity | D125: Units | E125: $/Unit | F125: Total | G125: Total
B126: Land Rent or Expense | C126: 0 | D126: Acre | E126: 0 | F126: =C126*E126 -> 0 | G126: =+F126*$D$6 -> 0
B127: Depreciation - Equipment | C127: 0 | D127: Acre,$,etc | E127: 0 | F127: =C127*E127 -> 0 | G127: 0
B128: Equipment Investment | C128: 0 | D128: Acre,$,etc | E128: 0 | F128: 0 | G128: 0
B129: Insurance | C129: 0 | D129: Acre,$,etc | E129: 0 | F129: 0 | G129: 0
B130: Management Fee | C130: 0 | D130: Acre,$,etc | E130: 0 | F130: 0 | G130: 0
B131: Owner/Operator Labor | C131: 0 | D131: Acre,$,etc | E131: 0 | F131: 0 | G131: 0
B132: Salaried Labor | C132: 0 | D132: Acre,$,etc | E132: 0 | F132: 0 | G132: 0
B133: Other Fixed Expense | C133: 0 | D133: Acre,$,etc | E133: 0 | F133: 0 | G133: 0
B134: Other Fixed Expense | C134: 0 | D134: Acre,$,etc | E134: 0 | F134: 0 | G134: 0
B135: Other Fixed Expense | C135: 0 | D135: Acre,$,etc | E135: 0 | F135: 0 | G135: 0
B136: Other Fixed Expense | C136: 0 | D136: Acre,$,etc | E136: 0 | F136: 0 | G136: 0
B137: Other Fixed Expense | C137: 0 | D137: Acre,$,etc | E137: 0 | F137: 0 | G137: 0
D139: Total Fixed Costs | F139: =+SUM(F126:F137) -> 0 | G139: =+SUM(G126:G137) -> 0
D141: Total Specified Costs | F141: =+F118+F139 -> 0 | G141: =+G118+G139 -> 0
D143: Returns Above Specifiied Costs | F143: =+F18-F141 -> 0 | G143: =+G18-G141 -> 0
B145: Breakeven Price to Cover Total Costs | E145: =+IF(C9=0,0,F141-SUM(F10:F16)/C9) -> 0 | F145: =+D9 -> Cwt,lb,etc
B147: Breakeven Prices for Your Crop
E148: To Cover | G148: To Cover
B149: Yield | C149: Yield | E149: Variable | G149: Total
B150: Percent | C150: =+D9 -> Cwt,lb,etc | E150: Costs | G150: Costs
B151: 0.75 | C151: =+$C$153*B151 -> 0 | E151: =+IF(C151=0,0,($F$118-SUM($F$10:$F$16))/C151) -> 0 | G151: =+IF(C151=0,0,($F$141-SUM($F$10:$F$16))/C151) -> 0
B152: 0.9 | C152: =+$C$153*B152 -> 0 | E152: 0 | G152: =+IF(C152=0,0,($F$141-SUM($F$10:$F$16))/C152) -> 0
B153: 1 | C153: =+C9 -> 0 | E153: =+IF(C153=0,0,($F$118-SUM($F$10:$F$16))/C153) -> 0 | G153: =+IF(C153=0,0,($F$141-SUM($F$10:$F$16))/C153) -> 0
B154: 1.1 | C154: 0 | E154: =+IF(C154=0,0,($F$118-SUM($F$10:$F$16))/C154) -> 0 | G154: =+IF(C154=0,0,($F$141-SUM($F$10:$F$16))/C154) -> 0
B155: 1.25 | C155: 0 | E155: 0 | G155: =+IF(C155=0,0,($F$141-SUM($F$10:$F$16))/C155) -> 0

Sheet Comparative Returns - Cash Rent
A1: Comparative Returns - Cash Rent
B3: Returns Above Total Specified Expenses | E3: Total Direct Expenses | H3: Break-Even Yield to Cover Total Costs at Price Entered
B4: Total | C4: Variable | E4: Total | F4: Variable | H4: Price | I4: Units | J4: Total | K4: Variable
A5: FORAGE CROPS
A7: =+AlfalfaHay!A3 -> Irrigated Alfalfa | B7: =+AlfalfaHay!TotRet -> 112.5061736 | C7: =+AlfalfaHay!VarRet -> 447.7561736 | E7: =+AlfalfaHay!TotExp -> 1087.493826 | F7: =+AlfalfaHay!VarExp -> 752.2438264 | H7: =+AlfalfaHay!Price -> 200 | I7: =+AlfalfaHay!Unit -> Ton | J7: =+IF($H7=0,0,E7/$H7) -> 5.437469132 | K7: =+IF($H7=0,0,F7/$H7) -> 3.761219132
A8: =+CornSilage!A3 -> Irrigated Corn Silage | B8: =+CornSilage!TotRet -> -187.0738965 | C8: =+CornSilage!VarRet -> 48.17610347 | E8: =+CornSilage!TotExp -> 1097.073897 | F8: =+CornSilage!VarExp -> 861.8238965 | H8: =+CornSilage!Price -> 35 | I8: =+CornSilage!Unit -> Ton | J8: =+IF($H8=0,0,E8/$H8) -> 31.34496847 | K8: 24.6235399
A9: =+SorghumSilage!A3 -> Irrigated Sorghum Silage | B9: =+SorghumSilage!TotRet -> -16.30704013 | C9: =+SorghumSilage!VarRet -> 188.9429599 | E9: =+SorghumSilage!TotExp -> 808.3070401 | F9: =+SorghumSilage!VarExp -> 603.0570401 | H9: =+SorghumSilage!Price -> 33 | I9: =+SorghumSilage!Unit -> Ton | J9: 24.49415273 | K9: 18.27445576
A11: FIELD CROPS - IRRIGATED
A13: =+Blackeyes!A3 -> Irrigated Blackeyed Peas | B13: =+Blackeyes!TotRet -> 151.4620155 | C13: =+Blackeyes!VarRet -> 356.7120155 | E13: =+Blackeyes!TotExp -> 477.5379845 | F13: =+Blackeyes!VarExp -> 272.2879845 | H13: =+Blackeyes!Price -> 0.34 | I13: =+Blackeyes!Unit -> Pound | J13: =+IF($H13=0,0,E13/$H13) -> 1404.523484 | K13: =+IF($H13=0,0,F13/$H13) -> 800.8470132
A14: =+Corn!A3 -> Irrigated Corn | B14: =+Corn!TotRet -> -159.8143325 | C14: =+Corn!VarRet -> 75.43566746 | E14: =+Corn!TotExp -> 999.8143325 | F14: =+Corn!VarExp -> 764.5643325 | H14: =+Corn!Price -> 4 | I14: =+Corn!Unit -> Bushel | J14: 249.9535831 | K14: 191.1410831
A15: =+CottonDrip!A3 -> Irrigated Cotton - Drip | B15: =+CottonDrip!TotRet -> 181.0308474 | C15: =+CottonDrip!VarRet -> 436.2808474 | E15: =+CottonDrip!TotExp -> 1207.769153 | F15: =+CottonDrip!VarExp -> 952.5191526 | H15: =+CottonDrip!Price -> 0.68 | I15: =+CottonDrip!Unit -> Pound | J15: 1776.131107 | K15: 1400.76346
A16: =+CottonPivot!A3 -> Irrigated Cotton - Pivot | B16: =+CottonPivot!TotRet -> 57.47148639 | C16: =+CottonPivot!VarRet -> 262.7214864 | E16: =+CottonPivot!TotExp -> 934.5285136 | F16: =+CottonPivot!VarExp -> 729.2785136 | H16: =+CottonPivot!Price -> 0.68 | I16: =+CottonPivot!Unit -> Pound | J16: 1374.306638 | K16: 1072.468402
A17: =GuarIrragated!A3 -> Irrigated Guar | B17: =GuarIrragated!TotRet -> -205.2433411 | C17: =GuarIrragated!VarRet -> 0.006658884643 | E17: =GuarIrragated!TotExp -> 397.2433411 | F17: =GuarIrragated!VarExp -> 191.9933411 | H17: =GuarIrragated!Price -> 0.16 | I17: =GuarIrragated!Unit -> Pound | J17: =IF(H17=0,0,E17/H17) -> 2482.770882 | K17: =IF(H17=0,0,F17/H17) -> 1199.958382
A18: =+Peanuts!A3 -> Irrigated Peanuts | B18: =+Peanuts!TotRet -> -157.860056 | C18: =+Peanuts!VarRet -> 77.38994397 | E18: =+Peanuts!TotExp -> 1103.860056 | F18: =+Peanuts!VarExp -> 868.610056 | H18: =+Peanuts!Price -> 430 | I18: =+Peanuts!Unit -> Ton | J18: 2.567116409 | K18: 2.020023386
A19: =+SesameIrrigated!A3 -> Irrigated Sesame | B19: =+SesameIrrigated!TotRet -> -44.78131122 | C19: =+SesameIrrigated!VarRet -> 160.4686888 | E19: =+SesameIrrigated!TotExp -> 524.7813112 | F19: =+SesameIrrigated!VarExp -> 319.5313112 | H19: =+SesameIrrigated!Price -> 0.32 | I19: =+SesameIrrigated!Unit -> Pound | J19: =+IF($H19=0,0,E19/$H19) -> 1639.941598 | K19: =+IF($H19=0,0,F19/$H19) -> 998.5353476
A20: =+SorghumIrrigated!A3 -> Irrigated Sorghum | B20: =+SorghumIrrigated!TotRet -> -206.9268538 | C20: =+SorghumIrrigated!VarRet -> 3.323146161 | E20: =+SorghumIrrigated!TotExp -> 564.4268538 | F20: =+SorghumIrrigated!VarExp -> 354.1768538 | H20: =+SorghumIrrigated!Price -> 6.5 | I20: =+SorghumIrrigated!Unit -> CWT | J20: 86.83490059 | K20: 54.48874674
A21: =+Soybeans!A3 -> Irrigated Soybeans | B21: =+Soybeans!TotRet -> -233.3106681 | C21: =+Soybeans!VarRet -> -28.06066813 | E21: =+Soybeans!TotExp -> 593.3106681 | F21: =+Soybeans!VarExp -> 388.0606681 | H21: =+Soybeans!Price -> 9 | I21: =+Soybeans!Unit -> Bushel | J21: 65.92340757 | K21: 43.11785201
A22: =+SunflowersOilseed!A3 -> Irrigated Sunflowers - Oilseed | B22: =+SunflowersOilseed!TotRet -> -226.4037586 | C22: =+SunflowersOilseed!VarRet -> -21.15375855 | E22: =+SunflowersOilseed!TotExp -> 506.4037586 | F22: =+SunflowersOilseed!VarExp -> 301.1537586 | H22: =+SunflowersOilseed!Price -> 0.14 | I22: =+SunflowersOilseed!Unit -> Pound | J22: 3617.169704 | K22: 2151.098275
A23: =+SunflowersConfectionary!A3 -> Irrigated Sunflowers - Confectionary | B23: =+SunflowersConfectionary!TotRet -> -96.73237965 | C23: =+SunflowersConfectionary!VarRet -> 108.5176204 | E23: =+SunflowersConfectionary!TotExp -> 523.3323796 | F23: =+SunflowersConfectionary!VarExp -> 318.0823796 | H23: =+SunflowersConfectionary!Price -> 0.2133 | I23: =+SunflowersConfectionary!Unit -> Pound | J23: 2453.50389 | K23: 1491.244161
A24: =+WheatIrrigated!A3 -> Irrigated Wheat | B24: =+WheatIrrigated!TotRet -> -280.1938793 | C24: =+WheatIrrigated!VarRet -> -74.94387929 | E24: =+WheatIrrigated!TotExp -> 618.1938793 | F24: =+WheatIrrigated!VarExp -> 412.9438793 | H24: =+WheatIrrigated!Price -> 4.5 | I24: =+WheatIrrigated!Unit -> Bushel | J24: 137.3764176 | K24: 91.76530651
A26: FIELD CROPS - DRYLAND
A28: =+CottonDryland!A3 -> Dryland Cotton - Herbicide Tolerant | B28: =+CottonDryland!TotRet -> -63.08460918 | C28: =+CottonDryland!VarRet -> 37.16539082 | E28: =+CottonDryland!TotExp -> 360.6446092 | F28: =+CottonDryland!VarExp -> 260.3946092 | H28: =+CottonDryland!Price -> 0.68 | I28: =+CottonDryland!Unit -> Pound | J28: =+IF($H28=0,0,E28/$H28) -> 530.3597194 | K28: 382.9332488
A29: =GuarDryland!A3 -> Dryland Guar - Herbicide Tolerant | B29: =GuarDryland!TotRet -> -96.66483022 | C29: =GuarDryland!VarRet -> 3.585169779 | E29: =GuarDryland!TotExp -> 192.6648302 | F29: =GuarDryland!VarExp -> 92.41483022 | H29: =GuarDryland!Price -> 0.16 | I29: =GuarDryland!Unit -> Pound | J29: =IF(H29=0,0,E29/H29) -> 1204.155189 | K29: =IF(H29=0,0,F29/H29) -> 577.5926889
A30: =+SesameDryland!A3 -> Dryland Sesame | B30: =+SesameDryland!TotRet -> -24.69413941 | C30: =+SesameDryland!VarRet -> 75.55586059 | E30: =+SesameDryland!TotExp -> 220.6941394 | F30: =+SesameDryland!VarExp -> 120.4441394 | H30: =+SesameDryland!Price -> 0.28 | I30: =+SesameDryland!Unit -> Pound | J30: =+IF($H30=0,0,E30/$H30) -> 788.193355 | K30: =+IF($H30=0,0,F30/$H30) -> 430.1576408
A31: =+SorghumDryland!A3 -> Dryland Sorghum | B31: =+SorghumDryland!TotRet -> -115.1326362 | C31: =+SorghumDryland!VarRet -> -14.88263621 | E31: =+SorghumDryland!TotExp -> 232.1326362 | F31: =+SorghumDryland!VarExp -> 131.8826362 | H31: =+SorghumDryland!Price -> 6.5 | I31: =+SorghumDryland!Unit -> CWT | J31: 35.71271326 | K31: 20.28963634
A32: =+SunflowersDryland!A3 -> Dryland Sunflowers - Oilseed | B32: =+SunflowersDryland!TotRet -> -105.7819307 | C32: =+SunflowersDryland!VarRet -> -5.53193067 | E32: =+SunflowersDryland!TotExp -> 245.7819307 | F32: =+SunflowersDryland!VarExp -> 145.5319307 | H32: =+SunflowersDryland!Price -> 0.14 | I32: =+SunflowersDryland!Unit -> Pound | J32: 1755.585219 | K32: 1039.51379
A33: =+WheatDryland!A3 -> Dryland Wheat | B33: =+WheatDryland!TotRet -> -121.7708621 | C33: =+WheatDryland!VarRet -> -21.5208621 | E33: =+WheatDryland!TotExp -> 236.7708621 | F33: =+WheatDryland!VarExp -> 136.5208621 | H33: =+WheatDryland!Price -> 4.5 | I33: =+WheatDryland!Unit -> Bushel | J33: 52.61574713 | K33: 30.33796936

Sheet Your Returns - Cash Rent
A1: Your Returns - Cash Rent
B3: Quantity | C3: Returns Above Total Specified Expenses | F3: Total Direct Expenses | I3: Break-Even Yield to Cover Total Costs at Price Entered
B4: Acres, AUs, or Head | C4: Total | D4: Variable | F4: Total | G4: Variable | I4: Price | J4: Units | K4: Total | L4: Variable
A5: FORAGE CROPS
A7: =+AlfalfaHay!A3 -> Irrigated Alfalfa | B7: =+AlfalfaHay!E7 -> 0 | C7: =+AlfalfaHay!YTotRet -> 0 | D7: =+AlfalfaHay!YVarRet -> 0 | F7: =+AlfalfaHay!YTotExp -> 0 | G7: =+AlfalfaHay!YVarExp -> 0 | I7: =+AlfalfaHay!YPrice -> 0 | J7: =+AlfalfaHay!Unit -> Ton | K7: =+IF($I7=0,0,F7/$I7) -> 0 | L7: =+IF($I7=0,0,G7/$I7) -> 0
A8: =+CornSilage!A3 -> Irrigated Corn Silage | B8: =+CornSilage!E7 -> 0 | C8: =+CornSilage!YTotRet -> 0 | D8: =+CornSilage!YVarRet -> 0 | F8: =+CornSilage!YTotExp -> 0 | G8: =+CornSilage!YVarExp -> 0 | I8: =+CornSilage!YPrice -> 0 | J8: =+CornSilage!Unit -> Ton | K8: =+IF($I8=0,0,F8/$I8) -> 0 | L8: 0
A9: =+SorghumSilage!A3 -> Irrigated Sorghum Silage | B9: =+SorghumSilage!E7 -> 0 | C9: =+SorghumSilage!YTotRet -> 0 | D9: =+SorghumSilage!YVarRet -> 0 | F9: =+SorghumSilage!YTotExp -> 0 | G9: =+SorghumSilage!YVarExp -> 0 | I9: =+SorghumSilage!YPrice -> 0 | J9: =+SorghumSilage!Unit -> Ton | K9: 0 | L9: 0
A11: FIELD CROPS - IRRIGATED
A13: =+Blackeyes!A3 -> Irrigated Blackeyed Peas | B13: =+Blackeyes!E7 -> 0 | C13: =+Blackeyes!YTotRet -> 0 | D13: =+Blackeyes!YVarRet -> 0 | F13: =+Blackeyes!YTotExp -> 0 | G13: =+Blackeyes!YVarExp -> 0 | I13: =+Blackeyes!YPrice -> 0 | J13: =+Blackeyes!Unit -> Pound | K13: =+IF($I13=0,0,F13/$I13) -> 0 | L13: =+IF($I13=0,0,G13/$I13) -> 0
A14: =+Corn!A3 -> Irrigated Corn | B14: =+Corn!E7 -> 0 | C14: =+Corn!YTotRet -> 0 | D14: =+Corn!YVarRet -> 0 | F14: =+Corn!YTotExp -> 0 | G14: =+Corn!YVarExp -> 0 | I14: =+Corn!YPrice -> 0 | J14: =+Corn!Unit -> Bushel | K14: 0 | L14: 0
A15: =+CottonDrip!A3 -> Irrigated Cotton - Drip | B15: =+CottonDrip!E7 -> 0 | C15: =+CottonDrip!YTotRet -> 0 | D15: =+CottonDrip!YVarRet -> 0 | F15: =+CottonDrip!YTotExp -> 0 | G15: =+CottonDrip!YVarExp -> 0 | I15: =+CottonDrip!YPrice -> 0 | J15: =+CottonDrip!Unit -> Pound | K15: 0 | L15: 0
A16: =+CottonPivot!A3 -> Irrigated Cotton - Pivot | B16: =+CottonPivot!E7 -> 0 | C16: =+CottonPivot!YTotRet -> 0 | D16: =+CottonPivot!YVarRet -> 0 | F16: =+CottonPivot!YTotExp -> 0 | G16: =+CottonPivot!YVarExp -> 0 | I16: =+CottonPivot!YPrice -> 0 | J16: =+CottonPivot!Unit -> Pound | K16: 0 | L16: 0
A17: =GuarIrragated!A3 -> Irrigated Guar | B17: =GuarIrragated!E7 -> 0 | C17: =GuarIrragated!YTotRet -> 0 | D17: =GuarIrragated!YVarRet -> 0 | F17: =GuarIrragated!YTotExp -> 0 | G17: =GuarIrragated!YVarExp -> 0 | I17: =GuarIrragated!YPrice -> 0 | J17: =GuarIrragated!Unit -> Pound | K17: =IF(I17=0,0,F17/I17) -> 0 | L17: =IF(I17=0,0,G17/I17) -> 0
A18: =+Peanuts!A3 -> Irrigated Peanuts | B18: =+Peanuts!E7 -> 0 | C18: =+Peanuts!YTotRet -> 0 | D18: =+Peanuts!YVarRet -> 0 | F18: =+Peanuts!YTotExp -> 0 | G18: =+Peanuts!YVarExp -> 0 | I18: =+Peanuts!YPrice -> 0 | J18: =+Peanuts!Unit -> Ton | K18: 0 | L18: 0
A19: =+SesameIrrigated!A3 -> Irrigated Sesame | B19: =+SesameIrrigated!E7 -> 0 | C19: =+SesameIrrigated!YTotRet -> 0 | D19: =+SesameIrrigated!YVarRet -> 0 | F19: =+SesameIrrigated!YTotExp -> 0 | G19: =+SesameIrrigated!YVarExp -> 0 | I19: =+SesameIrrigated!YPrice -> 0 | J19: =+SesameIrrigated!Unit -> Pound | K19: =+IF($I19=0,0,F19/$I19) -> 0 | L19: =+IF($I19=0,0,G19/$I19) -> 0
A20: =+SorghumIrrigated!A3 -> Irrigated Sorghum | B20: =+SorghumIrrigated!E7 -> 0 | C20: =+SorghumIrrigated!YTotRet -> 0 | D20: =+SorghumIrrigated!YVarRet -> 0 | F20: =+SorghumIrrigated!YTotExp -> 0 | G20: =+SorghumIrrigated!YVarExp -> 0 | I20: =+SorghumIrrigated!YPrice -> 0 | J20: =+SorghumIrrigated!Unit -> CWT | K20: 0 | L20: 0
A21: =+Soybeans!A3 -> Irrigated Soybeans | B21: =+Soybeans!E7 -> 0 | C21: =+Soybeans!YTotRet -> 0 | D21: =+Soybeans!YVarRet -> 0 | F21: =+Soybeans!YTotExp -> 0 | G21: =+Soybeans!YVarExp -> 0 | I21: =+Soybeans!YPrice -> 0 | J21: =+Soybeans!Unit -> Bushel | K21: 0 | L21: 0
A22: =+SunflowersOilseed!A3 -> Irrigated Sunflowers - Oilseed | B22: =+SunflowersOilseed!E7 -> 0 | C22: =+SunflowersOilseed!YTotRet -> 0 | D22: =+SunflowersOilseed!YVarRet -> 0 | F22: =+SunflowersOilseed!YTotExp -> 0 | G22: =+SunflowersOilseed!YVarExp -> 0 | I22: =+SunflowersOilseed!YPrice -> 0 | J22: =+SunflowersOilseed!Unit -> Pound | K22: 0 | L22: 0
A23: =+SunflowersConfectionary!A3 -> Irrigated Sunflowers - Confectionary | B23: =+SunflowersConfectionary!E7 -> 0 | C23: =+SunflowersConfectionary!YTotRet -> 0 | D23: =+SunflowersConfectionary!YVarRet -> 0 | F23: =+SunflowersConfectionary!YTotExp -> 0 | G23: =+SunflowersConfectionary!YVarExp -> 0 | I23: =+SunflowersConfectionary!YPrice -> 0 | J23: =+SunflowersConfectionary!Unit -> Pound | K23: 0 | L23: 0
A24: =+WheatIrrigated!A3 -> Irrigated Wheat | B24: =+WheatIrrigated!E7 -> 0 | C24: =+WheatIrrigated!YTotRet -> 0 | D24: =+WheatIrrigated!YVarRet -> 0 | F24: =+WheatIrrigated!YTotExp -> 0 | G24: =+WheatIrrigated!YVarExp -> 0 | I24: =+WheatIrrigated!YPrice -> 0 | J24: =+WheatIrrigated!Unit -> Bushel | K24: 0 | L24: 0
A26: FIELD CROPS - DRYLAND
A28: =+CottonDryland!A3 -> Dryland Cotton - Herbicide Tolerant | B28: =+CottonDryland!E7 -> 0 | C28: =+CottonDryland!YTotRet -> 0 | D28: =+CottonDryland!YVarRet -> 0 | F28: =+CottonDryland!YTotExp -> 0 | G28: =+CottonDryland!YVarExp -> 0 | I28: =+CottonDryland!YPrice -> 0 | J28: =+CottonDryland!Unit -> Pound | K28: =+IF($I28=0,0,F28/$I28) -> 0 | L28: 0
A29: =GuarDryland!A3 -> Dryland Guar - Herbicide Tolerant | B29: =GuarDryland!E7 -> 0 | C29: =GuarDryland!YTotRet -> 0 | D29: =GuarDryland!YVarRet -> 0 | F29: =GuarDryland!YTotExp -> 0 | G29: =GuarDryland!YVarExp -> 0 | I29: =GuarDryland!YPrice -> 0 | J29: =GuarDryland!Unit -> Pound | K29: =IF(I29=0,0,F29/I29) -> 0 | L29: =IF(I29=0,0,G29/I29) -> 0
A30: =+SesameDryland!A3 -> Dryland Sesame | B30: =+SesameDryland!E7 -> 0 | C30: =+SesameDryland!YTotRet -> 0 | D30: =+SesameDryland!YVarRet -> 0 | F30: =+SesameDryland!YTotExp -> 0 | G30: =+SesameDryland!YVarExp -> 0 | I30: =+SesameDryland!YPrice -> 0 | J30: =+SesameDryland!Unit -> Pound | K30: =+IF($I30=0,0,F30/$I30) -> 0 | L30: =+IF($I30=0,0,G30/$I30) -> 0
A31: =+SorghumDryland!A3 -> Dryland Sorghum | B31: =+SorghumDryland!E7 -> 0 | C31: =+SorghumDryland!YTotRet -> 0 | D31: =+SorghumDryland!YVarRet -> 0 | F31: =+SorghumDryland!YTotExp -> 0 | G31: =+SorghumDryland!YVarExp -> 0 | I31: =+SorghumDryland!YPrice -> 0 | J31: =+SorghumDryland!Unit -> CWT | K31: 0 | L31: 0
A32: =+SunflowersDryland!A3 -> Dryland Sunflowers - Oilseed | B32: =+SunflowersDryland!E7 -> 0 | C32: =+SunflowersDryland!YTotRet -> 0 | D32: =+SunflowersDryland!YVarRet -> 0 | F32: =+SunflowersDryland!YTotExp -> 0 | G32: =+SunflowersDryland!YVarExp -> 0 | I32: =+SunflowersDryland!YPrice -> 0 | J32: =+SunflowersDryland!Unit -> Pound | K32: 0 | L32: 0
A33: =+WheatDryland!A3 -> Dryland Wheat | B33: =+WheatDryland!E7 -> 0 | C33: =+WheatDryland!YTotRet -> 0 | D33: =+WheatDryland!YVarRet -> 0 | F33: =+WheatDryland!YTotExp -> 0 | G33: =+WheatDryland!YVarExp -> 0 | I33: =+WheatDryland!YPrice -> 0 | J33: =+WheatDryland!Unit -> Bushel | K33: 0 | L33: 0
A35: OTHER BUDGETS
A37: =+'Livestock Budget'!A3 -> Livestock Enterprise | B37: =+'Livestock Budget'!D5 -> 0 | C37: =+'Livestock Budget'!YTotRet -> 0 | D37: =+'Livestock Budget'!YVarRet -> 0 | F37: =+'Livestock Budget'!YTotExp -> 0 | G37: =+'Livestock Budget'!YVarExp -> 0 | I37: =+'Livestock Budget'!YPrice -> 0 | J37: =+'Livestock Budget'!Unit -> CWT | K37: =+IF($I37=0,0,F37/$I37) -> 0 | L37: =+IF($I37=0,0,G37/$I37) -> 0
A38: =+'Crop Budget'!A3 -> Crop Enterprise | B38: =+'Crop Budget'!D5 -> 0 | C38: =+'Crop Budget'!YTotRet -> 0 | D38: =+'Crop Budget'!YVarRet -> 0 | F38: =+'Crop Budget'!YTotExp -> 0 | G38: =+'Crop Budget'!YVarExp -> 0 | I38: =+'Crop Budget'!YPrice -> 0 | J38: =+'Crop Budget'!Unit -> Cwt,lb,etc | K38: 0 | L38: 0
